Workbook

Sheet District
D2: 2024-2025 | E2: 2023-2024 | F2: 2022-23 | G2: 2021-22 | H2: 2021-22 | I2: 2020-21 | J2: 2020-21 | K2: 2019-20 | L2: 2019-20 | M2: 2018-19 | N2: 2017-18 | O2: 2016-17 | P2: 2015-16 | Q2: 2014-15
D3: Preliminary | E3: Final | F3: Preliminary | G3: Final | H3: Preliminary | I3: Final | J3: Preliminary | K3: Final | L3: Preliminary | M3: Final | N3: 2nd Revised | O3: Revised
C4: Select District Name | D4: ARLINGTON
C5: District Code (CCDDD) | D5: =VLOOKUP(D4,CCDDD!D:F,3,FALSE) -> 31016
C7: Eisenhower 2001-02 Allocations | D7: =VLOOKUP($D$5,'Allocation 2024-25 Prelim'!$A$7:$S$323,4,FALSE) -> 0 | E7: =VLOOKUP($D$5,'Allocation 2023-24 Final'!$A$7:$L$322,4,FALSE) -> 0 | F7: =VLOOKUP($D$5,'[1]Allocation 2022-23 P'!$A$7:$M$321,3,FALSE) -> 0 | G7: =VLOOKUP($D$5,'[2]Allocation 2021-22 Final'!$A$7:$U$321,3,FALSE) -> 0 | H7: =VLOOKUP($D$5,'[1]Allocation 2021-22 Preliminary'!$A$7:$M$321,3,FALSE) -> 0 | I7: =IFERROR(VLOOKUP($D$5,'[1]Allocation 2020-21 Final'!$A$7:$M$317,3,FALSE),0) -> 0 | J7: =IFERROR(VLOOKUP($D$5,'[1]Allocation 2020-21 Preliminary'!$A$7:$M$318,3,FALSE),0) -> 0 | K7: =IFERROR(VLOOKUP($D$5,'[1]Allocation 2019-20 Final'!$A$7:$M$314,3,FALSE),0) -> 0 | L7: =IFERROR(VLOOKUP($D$5,'[1]Allocation 2019-20 Preliminary'!$A$7:$M$316,3,FALSE),0) -> 0 | M7: =IFERROR(VLOOKUP($D$5,'[1]Allocation 2018-19 Final'!$A$7:$M$316,3,FALSE),0) -> 0 | N7: =VLOOKUP($D$5,'[1]Allocation 2017-18 2ndRev_Final'!$A$7:$M$315,3,FALSE) -> 0 | O7: =VLOOKUP($D$5,'[1]Allocation 2016-17 rev_Final'!$A$7:$M$314,3,FALSE) -> 17804 | P7: =VLOOKUP($D$5,'[1]Allocation 2015-16 Final'!$A$7:$M$313,3,FALSE) -> 17804 | Q7: =VLOOKUP($D$5,'[1]Allocation 2014-15 Final'!$A$7:$M$304,3,FALSE) -> 17804
C8: Class Size Reduction allocations 2001-02 | D8: =VLOOKUP($D$5,'Allocation 2024-25 Prelim'!$A$7:$S$323,5,FALSE) -> 0 | E8: =VLOOKUP($D$5,'Allocation 2023-24 Final'!$A$7:$L$322,5,FALSE) -> 0 | F8: =VLOOKUP($D$5,'[1]Allocation 2022-23 P'!$A$7:$M$321,4,FALSE) -> 0 | G8: =VLOOKUP($D$5,'[2]Allocation 2021-22 Final'!$A$7:$U$321,4,FALSE) -> 0 | H8: =VLOOKUP($D$5,'[1]Allocation 2021-22 Preliminary'!$A$7:$M$321,4,FALSE) -> 0 | I8: =IFERROR(VLOOKUP($D$5,'[1]Allocation 2020-21 Final'!$A$7:$M$317,4,FALSE),0) -> 0 | J8: =IFERROR(VLOOKUP($D$5,'[1]Allocation 2020-21 Preliminary'!$A$7:$M$318,4,FALSE),0) -> 0 | K8: =IFERROR(VLOOKUP($D$5,'[1]Allocation 2019-20 Final'!$A$7:$M$314,4,FALSE),0) -> 0 | L8: =IFERROR(VLOOKUP($D$5,'[1]Allocation 2019-20 Preliminary'!$A$7:$M$316,4,FALSE),0) -> 0 | M8: =IFERROR(VLOOKUP($D$5,'[1]Allocation 2018-19 Final'!$A$7:$M$316,4,FALSE),0) -> 0 | N8: =VLOOKUP($D$5,'[1]Allocation 2017-18 2ndRev_Final'!$A$7:$M$315,4,FALSE) -> 0 | O8: =VLOOKUP($D$5,'[1]Allocation 2016-17 rev_Final'!$A$7:$M$314,4,FALSE) -> 75126 | P8: =VLOOKUP($D$5,'[1]Allocation 2015-16 Final'!$A$7:$M$313,4,FALSE) -> 75126 | Q8: =VLOOKUP($D$5,'[1]Allocation 2014-15 Final'!$A$7:$M$304,4,FALSE) -> 75126
C10: Census Population Ages 5-17 | D10: =VLOOKUP($D$5,'Allocation 2024-25 Prelim'!$A$7:$S$323,6,FALSE) -> 5915 | E10: =VLOOKUP($D$5,'Allocation 2023-24 Final'!$A$7:$L$322,6,FALSE) -> 5998 | F10: =VLOOKUP($D$5,'[1]Allocation 2022-23 P'!$A$7:$M$321,5,FALSE) -> 6040 | G10: =VLOOKUP($D$5,'[2]Allocation 2021-22 Final'!$A$7:$U$321,5,FALSE) -> 5966 | H10: =VLOOKUP($D$5,'[1]Allocation 2021-22 Preliminary'!$A$7:$M$321,5,FALSE) -> 5966 | I10: =IFERROR(VLOOKUP($D$5,'[1]Allocation 2020-21 Final'!$A$7:$M$317,5,FALSE),0) -> 5983 | J10: =IFERROR(VLOOKUP($D$5,'[1]Allocation 2020-21 Preliminary'!$A$7:$M$318,5,FALSE),0) -> 5983 | K10: =IFERROR(VLOOKUP($D$5,'[1]Allocation 2019-20 Final'!$A$7:$M$314,5,FALSE),0) -> 5918 | L10: =IFERROR(VLOOKUP($D$5,'[1]Allocation 2019-20 Preliminary'!$A$7:$M$316,5,FALSE),0) -> 5918 | M10: =IFERROR(VLOOKUP($D$5,'[1]Allocation 2018-19 Final'!$A$7:$M$315,5,FALSE),0) -> 5859 | N10: =VLOOKUP($D$5,'[1]Allocation 2017-18 2ndRev_Final'!$A$7:$M$315,5,FALSE) -> 5850 | O10: =VLOOKUP($D$5,'[1]Allocation 2016-17 rev_Final'!$A$7:$M$314,5,FALSE) -> 5816 | P10: =VLOOKUP($D$5,'[1]Allocation 2015-16 Final'!$A$7:$M$313,5,FALSE) -> 5755 | Q10: =VLOOKUP($D$5,'[1]Allocation 2014-15 Final'!$A$7:$M$304,5,FALSE) -> 5684
C11: 20% based on Total Pop | D11: =VLOOKUP($D$5,'Allocation 2024-25 Prelim'!$A$7:$S$323,7,FALSE) -> 31801 | E11: =VLOOKUP($D$5,'Allocation 2023-24 Final'!$A$7:$L$322,7,FALSE) -> 32187 | F11: =VLOOKUP($D$5,'[1]Allocation 2022-23 P'!$A$7:$M$321,6,FALSE) -> 32073 | G11: =VLOOKUP($D$5,'[2]Allocation 2021-22 Final'!$A$7:$U$321,6,FALSE) -> 32486 | H11: =VLOOKUP($D$5,'[1]Allocation 2021-22 Preliminary'!$A$7:$M$321,6,FALSE) -> 32465 | I11: =IFERROR(VLOOKUP($D$5,'[1]Allocation 2020-21 Final'!$A$7:$M$317,6,FALSE),0) -> 32151 | J11: =IFERROR(VLOOKUP($D$5,'[1]Allocation 2020-21 Preliminary'!$A$7:$M$318,6,FALSE),0) -> 32114 | K11: =IFERROR(VLOOKUP($D$5,'[1]Allocation 2019-20 Final'!$A$7:$M$314,6,FALSE),0) -> 32322 | L11: =IFERROR(VLOOKUP($D$5,'[1]Allocation 2019-20 Preliminary'!$A$7:$M$316,6,FALSE),0) -> 32243 | M11: =IFERROR(VLOOKUP($D$5,'[1]Allocation 2018-19 Final'!$A$7:$M$315,6,FALSE),0) -> 31602 | N11: =VLOOKUP($D$5,'[1]Allocation 2017-18 Rev_Final'!$A$7:$M$315,6,FALSE) -> 31867 | O11: =VLOOKUP($D$5,'[1]Allocation 2016-17 rev_Final'!$A$7:$M$314,6,FALSE) -> 2488 | P11: =VLOOKUP($D$5,'[1]Allocation 2015-16 Final'!$A$7:$M$313,6,FALSE) -> 3326 | Q11: =VLOOKUP($D$5,'[1]Allocation 2014-15 Final'!$A$7:$M$304,6,FALSE) -> 3292
C12: Census Poverty Ages 5-17 | D12: =VLOOKUP($D$5,'Allocation 2024-25 Prelim'!$A$7:$S$323,8,FALSE) -> 554 | E12: =VLOOKUP($D$5,'Allocation 2023-24 Final'!$A$7:$L$322,8,FALSE) -> 465 | F12: =VLOOKUP($D$5,'[1]Allocation 2022-23 P'!$A$7:$M$321,7,FALSE) -> 369 | G12: =VLOOKUP($D$5,'[2]Allocation 2021-22 Final'!$A$7:$U$321,7,FALSE) -> 369 | H12: =VLOOKUP($D$5,'[1]Allocation 2021-22 Preliminary'!$A$7:$M$321,7,FALSE) -> 369 | I12: =IFERROR(VLOOKUP($D$5,'[1]Allocation 2020-21 Final'!$A$7:$M$317,7,FALSE),0) -> 345 | J12: =IFERROR(VLOOKUP($D$5,'[1]Allocation 2020-21 Preliminary'!$A$7:$M$318,7,FALSE),0) -> 345 | K12: =IFERROR(VLOOKUP($D$5,'[1]Allocation 2019-20 Final'!$A$7:$M$314,7,FALSE),0) -> 388 | L12: =IFERROR(VLOOKUP($D$5,'[1]Allocation 2019-20 Preliminary'!$A$7:$M$316,7,FALSE),0) -> 388 | M12: =IFERROR(VLOOKUP($D$5,'[1]Allocation 2018-19 Final'!$A$7:$M$316,7,FALSE),0) -> 411 | N12: =VLOOKUP($D$5,'[1]Allocation 2017-18 2ndRev_Final'!$A$7:$M$315,7,FALSE) -> 582 | O12: =VLOOKUP($D$5,'[1]Allocation 2016-17 rev_Final'!$A$7:$M$314,7,FALSE) -> 684 | P12: =VLOOKUP($D$5,'[1]Allocation 2015-16 Final'!$A$7:$M$313,7,FALSE) -> 647 | Q12: =VLOOKUP($D$5,'[1]Allocation 2014-15 Final'!$A$7:$M$304,7,FALSE) -> 534
C13: 80% based on Low Inc Pop | D13: =VLOOKUP($D$5,'Allocation 2024-25 Prelim'!$A$7:$S$323,9,FALSE) -> 109761 | E13: =VLOOKUP($D$5,'Allocation 2023-24 Final'!$A$7:$L$322,9,FALSE) -> 90599 | F13: =VLOOKUP($D$5,'[1]Allocation 2022-23 P'!$A$7:$M$321,8,FALSE) -> 82428 | G13: =VLOOKUP($D$5,'[2]Allocation 2021-22 Final'!$A$7:$U$321,8,FALSE) -> 73299 | H13: =VLOOKUP($D$5,'[1]Allocation 2021-22 Preliminary'!$A$7:$M$321,8,FALSE) -> 73202 | I13: =IFERROR(VLOOKUP($D$5,'[1]Allocation 2020-21 Final'!$A$7:$M$317,8,FALSE),0) -> 64468 | J13: =IFERROR(VLOOKUP($D$5,'[1]Allocation 2020-21 Preliminary'!$A$7:$M$318,8,FALSE),0) -> 64393 | K13: =IFERROR(VLOOKUP($D$5,'[1]Allocation 2019-20 Final'!$A$7:$M$314,8,FALSE),0) -> 64626 | L13: =IFERROR(VLOOKUP($D$5,'[1]Allocation 2019-20 Preliminary'!$A$7:$M$316,8,FALSE),0) -> 64467 | M13: =IFERROR(VLOOKUP($D$5,'[1]Allocation 2018-19 Final'!$A$7:$M$316,8,FALSE),0) -> 70738 | N13: =VLOOKUP($D$5,'[1]Allocation 2017-18 2ndRev_Final'!$A$7:$M$315,8,FALSE) -> 89590 | O13: =VLOOKUP($D$5,'[1]Allocation 2016-17 rev_Final'!$A$7:$M$314,8,FALSE) -> 7412 | P13: =VLOOKUP($D$5,'[1]Allocation 2015-16 Final'!$A$7:$M$313,8,FALSE) -> 8836 | Q13: =VLOOKUP($D$5,'[1]Allocation 2014-15 Final'!$A$7:$M$304,8,FALSE) -> 7314
C15: Total Allocation | D15: =VLOOKUP($D$5,'Allocation 2024-25 Prelim'!$A$7:$S$323,11,FALSE) -> 141562 | E15: =VLOOKUP($D$5,'Allocation 2023-24 Final'!$A$7:$S$322,11,FALSE) -> 122786 | F15: =VLOOKUP($D$5,'[1]Allocation 2022-23 P'!$A$7:$R$321,18,FALSE) -> 114501 | G15: =VLOOKUP($D$5,'[2]Allocation 2021-22 Final'!$A$7:$U$321,10,FALSE) -> 105785 | H15: =VLOOKUP($D$5,'[1]Allocation 2021-22 Preliminary'!$A$7:$R$321,18,FALSE) -> 105667 | I15: =IFERROR(VLOOKUP($D$5,'[1]Allocation 2020-21 Final'!$A$7:$R$317,18,FALSE),0) -> 96619 | J15: =IFERROR(VLOOKUP($D$5,'[1]Allocation 2020-21 Preliminary'!$A$7:$R$318,18,FALSE),0) -> 96507 | K15: =IFERROR(VLOOKUP($D$5,'[1]Allocation 2019-20 Final'!$A$7:$R$314,18,FALSE),0) -> 96948 | L15: =IFERROR(VLOOKUP($D$5,'[1]Allocation 2019-20 Preliminary'!$A$7:$R$316,18,FALSE),0) -> 96710 | M15: =IFERROR(VLOOKUP($D$5,'[1]Allocation 2018-19 Final'!$A$7:$R$316,18,FALSE),0) -> 102340 | N15: =VLOOKUP($D$5,'[1]Allocation 2017-18 2ndRev_Final'!$A$7:$R$315,18,FALSE) -> 121642 | O15: =VLOOKUP($D$5,'[1]Allocation 2016-17 rev_Final'!$A$7:$R$314,18,FALSE)-IF(D4="Seattle",11,0) -> 102819 | P15: =VLOOKUP($D$5,'[1]Allocation 2015-16 Final'!$A$7:$R$313,18,FALSE)-IF(D4="Seattle",6,0) -> 105066 | Q15: =VLOOKUP($D$5,'[1]Allocation 2014-15 Final'!$A$7:$R$304,18,FALSE) -> 103510
C16: Poverty Percentage | D16: =IF(D10=0,0,D12/D10) -> 0.09366018597 | E16: =IF(E10=0,0,E12/E10) -> 0.07752584195 | F16: 0.06109271523 | G16: 0.06185048609 | H16: 0.06185048609 | I16: 0.05766337958 | J16: 0.05766337958 | K16: 0.0655626901 | L16: 0.0655626901 | M16: 0.0701484895 | N16: 0.09948717949 | O16: 0.1176066025 | P16: 0.1124239791 | Q16: 0.093947924
C18: MOE Reduction Percentage | D18: =VLOOKUP($D$5,'Allocation 2024-25 Prelim'!$A$7:$S$323,17,FALSE) -> 0 | E18: =VLOOKUP($D$5,'Allocation 2023-24 Final'!$A$7:$S$322,17,FALSE) -> 0 | F18: 0 | G18: =VLOOKUP($D$5,'[2]Allocation 2021-22 Final'!$A$7:$U$321,19,FALSE) -> 0 | H18: =IF(VLOOKUP($D$5,'[1]Allocation 2021-22 Preliminary'!$A$7:$T$321,19,FALSE)=0,0,VLOOKUP($D$5,'[1]Allocation 2021-22 Preliminary'!$A$7:$T$321,19,FALSE)-0.9) -> 0 | I18: =IFERROR(IF(VLOOKUP($D$5,'[1]Allocation 2020-21 Final'!$A$7:$T$317,19,FALSE)=0,0,VLOOKUP($D$5,'[1]Allocation 2020-21 Final'!$A$7:$T$317,19,FALSE)-0.9),0) -> 0 | J18: =IFERROR(IF(VLOOKUP($D$5,'[1]Allocation 2020-21 Preliminary'!$A$7:$T$318,19,FALSE)=0,0,VLOOKUP($D$5,'[1]Allocation 2020-21 Preliminary'!$A$7:$T$318,19,FALSE)-0.9),0) -> 0 | K18: =IFERROR(IF(VLOOKUP($D$5,'[1]Allocation 2019-20 Final'!$A$7:$T$314,19,FALSE)=0,0,VLOOKUP($J$5,'[1]Allocation 2019-20 Final'!$A$7:$T$314,19,FALSE)-0.9),0) -> 0 | L18: =IFERROR(IF(VLOOKUP($D$5,'[1]Allocation 2019-20 Preliminary'!$A$7:$T$316,19,FALSE)=0,0,VLOOKUP($D$5,'[1]Allocation 2019-20 Preliminary'!$A$7:$T$316,19,FALSE)-0.9),0) -> 0 | M18: =IFERROR(IF(VLOOKUP($D$5,'[1]Allocation 2018-19 Final'!$A$7:$T$316,19,FALSE)=0,0,VLOOKUP($D$5,'[1]Allocation 2018-19 Final'!$A$7:$T$316,19,FALSE)-0.9),0) -> 0 | N18: =IF(VLOOKUP($D$5,'[1]Allocation 2017-18 2ndRev_Final'!$A$7:$T$315,19,FALSE)=0,0,VLOOKUP($D$5,'[1]Allocation 2017-18 2ndRev_Final'!$A$7:$T$315,19,FALSE)-0.9) -> 0 | O18: =IF(VLOOKUP($D$5,'[1]Allocation 2016-17 rev_Final'!$A$7:$T$314,19,FALSE)=0,0,VLOOKUP($D$5,'[1]Allocation 2016-17 rev_Final'!$A$7:$T$314,19,FALSE)-0.9) -> 0 | P18: =IF(VLOOKUP($D$5,'[1]Allocation 2015-16 Final'!$A$7:$T$313,19,FALSE)=0,0,VLOOKUP($D$5,'[1]Allocation 2015-16 Final'!$A$7:$T$313,19,FALSE)-0.9) -> 0 | Q18: =IF(VLOOKUP($D$5,'[1]Allocation 2014-15 Final'!$A$7:$T$304,19,FALSE)=0,0,VLOOKUP($D$5,'[1]Allocation 2014-15 Final'!$A$7:$T$304,19,FALSE)-0.9) -> 0
C19: MOE Reduction Amount | D19: =VLOOKUP($D$5,'Allocation 2024-25 Prelim'!$A$7:$S$323,18,FALSE) -> 0 | E19: =VLOOKUP($D$5,'Allocation 2023-24 Final'!$A$7:$S$322,18,FALSE) -> 0 | F19: =VLOOKUP($D$5,'[1]Allocation 2022-23 P'!$A$7:$T$321,20,FALSE) -> 0 | G19: =VLOOKUP($D$5,'[2]Allocation 2021-22 Final'!$A$7:$U$321,20,FALSE) -> 0 | H19: =VLOOKUP($D$5,'[1]Allocation 2021-22 Preliminary'!$A$7:$T$321,20,FALSE) -> 0 | I19: =IFERROR(VLOOKUP($D$5,'[1]Allocation 2020-21 Final'!$A$7:$T$317,20,FALSE),0) -> 0 | J19: =IFERROR(VLOOKUP($D$5,'[1]Allocation 2020-21 Preliminary'!$A$7:$T$318,20,FALSE),0) -> 0 | K19: =IFERROR(VLOOKUP($D$5,'[1]Allocation 2019-20 Final'!$A$7:$T$314,20,FALSE),0) -> 0 | L19: =IFERROR(VLOOKUP($D$5,'[1]Allocation 2019-20 Preliminary'!$A$7:$T$316,20,FALSE),0) -> 0 | M19: =IFERROR(VLOOKUP($D$5,'[1]Allocation 2018-19 Preliminary'!$A$7:$T$316,20,FALSE),0) -> 0 | N19: =VLOOKUP($D$5,'[1]Allocation 2017-18 2ndRev_Final'!$A$7:$T$315,20,FALSE) -> 0 | O19: =VLOOKUP($D$5,'[1]Allocation 2016-17 rev_Final'!$A$7:$T$314,20,FALSE) -> 0 | P19: =VLOOKUP($D$5,'[1]Allocation 2015-16 Final'!$A$7:$T$313,20,FALSE) -> 0 | Q19: =VLOOKUP($D$5,'[1]Allocation 2014-15 Final'!$A$7:$T$304,20,FALSE) -> 0
C20: Prior Year Adjustment (reallocation) | D20: =VLOOKUP($D$5,'Allocation 2024-25 Prelim'!$A$7:$S$323,15,FALSE) -> 0 | E20: =VLOOKUP($D$5,'Allocation 2023-24 Final'!$A$7:$S$322,15,FALSE) -> 0 | G20: =VLOOKUP($D$5,'[2]Allocation 2021-22 Final'!$A$7:$U$321,17,FALSE) -> 0
C21: Final Allocation | D21: =+D15+D19+D20 -> 141562 | E21: =+E15+E19+E20 -> 122786 | F21: =+F15+F19+F20 -> 114501 | G21: =VLOOKUP($D$5,'[2]Allocation 2021-22 Final'!$A$7:$U$321,21,FALSE) -> 105785 | H21: =+H15+H19+H20 -> 105667 | I21: 96619 | J21: 96507 | K21: 96948 | L21: 96710 | M21: 102340 | N21: 121642 | O21: =+O15+O19 -> 102819 | P21: =+P15+P19 -> 105066 | Q21: =+Q15+Q19 -> 103510
C23: Increase (Decrease) from Prior Year | D23: =D21-E21 -> 18776 | F23: =F21-G15 -> 8716 | G23: =G21-I15 -> 9166 | H23: =H21-I15 -> 9048 | I23: =I21-K15 -> -329 | J23: =J21-K15 -> -441 | K23: =K21-L15 -> 238 | L23: =L21-M15 -> -5630 | M23: =IFERROR(M21-N15,0) -> -19302 | N23: =N21-O15 -> 18823 | O23: =O15-P15 -> -2247 | P23: =P15-Q15 -> 1556
C24: % Change from Prior Year | D24: =IFERROR(D23/E21,"") -> 0.1529164563 | F24: =IFERROR(F23/G15,"") -> 0.08239353405 | G24: =IFERROR(G23/I15,"") -> 0.09486746913 | H24: =IFERROR(H23/I15,"") -> 0.09364617725 | I24: =IFERROR(I23/K15,"") -> -0.003393571812 | J24: =IFERROR(J23/K15,"") -> -0.004548830301 | K24: =IFERROR(K23/L15,"") -> 0.002460965774 | L24: =IFERROR(L23/M15,"") -> -0.05501270276 | M24: =IFERROR(M23/N15,"") -> -0.1586787458 | N24: =N23/O15 -> 0.1830692771 | O24: =O23/P15 -> -0.02138655702 | P24: =P23/Q15 -> 0.01503236402

Sheet Allocation 2024-25 Prelim (hidden)
B1: 2024-25 | K1: =IF(K5=Assumptions!$C$22+J5,"Rounding OK","Rounding Error = "&FIXED(K5-Assumptions!$C$22-J5,TRUE)) -> Rounding OK | R1: =R5 -> 0 | S1: =IF(S5=Assumptions!$C22+R5,"Rounding OK","Rounding Error = "&FIXED(S5-(Assumptions!$C22+R5),TRUE)) -> Rounding OK
B2: ESEA -- Title 2 Distributions | K2: Allocation including private participation | S2: \
A3: 1 | B3: 2 | C3: 3 | D3: 4 | E3: 5 | F3: 6 | G3: 7 | H3: 8 | I3: 9 | J3: 10 | L3: 12 | M3: 13 | N3: 14 | O3: 15 | P3: 16 | Q3: 17 | R3: 18 | S3: 19 | U3: 18
A4: CCDDD | B4: LEAID | C4: District Name | D4: Eisenhower 2001-02 Allocations | E4: Class Size Reduction Allocations 2001-02 | F4: Census Population Ages 5-17 | G4: 20% based on Total Pop | H4: Census Poverty Ages 5-17 | I4: 80% based on Low Inc Pop | J4: MOE | K4: Total Final Allocation | M4: Alloc to non-Census LEA | N4: Realloc Pool | O4: Realloc | P4: Final Alloc Before MOE | Q4: MOE | R4: MOE Reduction | S4: Final Alloc | U4: Prior Year Allocation | Y4: Rank Order | AB4: do not delete Y & Z
C5: State Totals | D5: =SUM(D7:D308) -> 0 | E5: =SUM(E7:E308) -> 0 | F5: =SUM(F7:F322) -> 1220024 | G5: =SUM(G7:G322) -> 6559349 | H5: =SUM(H7:H322) -> 132429 | I5: =SUM(I7:I322) -> 26237405 | K5: =SUM(K7:K322) -> 32796764 | M5: =SUM(M7:M322) -> 0 | N5: =SUM(N7:N322) -> 32796764 | O5: =SUM(O7:O322) -> 0 | P5: =SUM(P7:P322) -> 32796764 | R5: =SUM(R7:R322) -> 0 | S5: =SUM(S7:S322) -> 32796764 | U5: =SUM(U7:U322) -> 33292231.49 | W5: =SUM(W7:W320) -> -499571.49 | X5: =MIN(X7:X316) -> -0.6696252465 | Y5: ="Lose = "& PROPER(VLOOKUP(X5,$X$7:$AC$316,6,FALSE)) -> Lose = Steptoe | AB5: =+B5 -> 0 | AC5: =+C5 -> State Totals
X6: =MAX(X7:X309) -> 1.880188679 | Y6: ="Win = "&PROPER(VLOOKUP(X6,$X$7:$AC$309,6,FALSE)) -> Win = Starbuck
A7: =VLOOKUP(B7,CCDDD!$A$3:$B$319,2,FALSE) -> 14005 | B7: 5300030 | C7: ABERDEEN | D7: 0 | E7: 0 | F7: =VLOOKUP(B7,'24-25 Adjusted Formula counts'!$A$3:$L$320,8,FALSE) -> 3494 | G7: =ROUND((F7/$F$5*Assumptions!$C$22*Assumptions!$C$30),0) -> 18785 | H7: =VLOOKUP(B7,'24-25 Adjusted Formula counts'!$A$3:$L$320,9,FALSE) -> 804 | I7: =ROUND((H7/$H$5*Assumptions!$C$22*Assumptions!$C$31),0) -> 159292 | K7: =ROUNDDOWN(+I7+G7+E7+D7+J7,0) -> 178077 | N7: =K7 -> 178077 | O7: =-ROUND(N7/$N$5*$M$5,0) -> 0 | P7: =+K7+O7+M7 -> 178077 | R7: =-1*(P7*Q7) -> 0 | S7: =+P7+R7 -> 178077 | U7: =IFERROR(VLOOKUP($A7, 'Allocation 2023-24 Final'!$A$7:$S$323,19,FALSE),0) -> 160843 | W7: =+S7-U7 -> 17234 | X7: =IF(U7>0,W7/U7,0) -> 0.1071479642 | Y7: =RANK(W7,$W$7:$W$322,0) -> 24 | Z7: =(SUM(D7:E7)/S7) -> 0 | AB7: =+B7 -> 5300030 | AC7: ABERDEEN
A8: =VLOOKUP(B8,CCDDD!$A$3:$B$319,2,FALSE) -> 21226 | B8: 5300060 | C8: ADNA | D8: 0 | E8: 0 | F8: =VLOOKUP(B8,'24-25 Adjusted Formula counts'!$A$3:$L$320,8,FALSE) -> 737 | G8: =ROUND((F8/$F$5*Assumptions!$C$22*Assumptions!$C$30),0) -> 3962 | H8: =VLOOKUP(B8,'24-25 Adjusted Formula counts'!$A$3:$L$320,9,FALSE) -> 38 | I8: =ROUND((H8/$H$5*Assumptions!$C$22*Assumptions!$C$31),0) -> 7529 | K8: 11491 | N8: 11491 | O8: 0 | P8: =+K8+O8+M9 -> 11491 | R8: 0 | S8: 11491 | U8: =IFERROR(VLOOKUP($A8, 'Allocation 2023-24 Final'!$A$7:$S$323,19,FALSE),0) -> 12328 | W8: -837 | X8: -0.06789422453 | Y8: =RANK(W8,$W$7:$W$322,0) -> 167 | Z8: 0 | AB8: 5300060 | AC8: ADNA
A9: =VLOOKUP(B9,CCDDD!$A$3:$B$319,2,FALSE) -> 22017 | B9: 5300090 | C9: ALMIRA | D9: 0 | E9: 0 | F9: =VLOOKUP(B9,'24-25 Adjusted Formula counts'!$A$3:$L$320,8,FALSE) -> 98 | G9: =ROUND((F9/$F$5*Assumptions!$C$22*Assumptions!$C$30),0) -> 527 | H9: =VLOOKUP(B9,'24-25 Adjusted Formula counts'!$A$3:$L$320,9,FALSE) -> 6 | I9: =ROUND((H9/$H$5*Assumptions!$C$22*Assumptions!$C$31),0) -> 1189 | K9: 1716 | N9: 1716 | O9: 0 | P9: =+K9+O9+M10 -> 1716 | R9: 0 | S9: 1716 | U9: =IFERROR(VLOOKUP($A9, 'Allocation 2023-24 Final'!$A$7:$S$323,19,FALSE),0) -> 2069 | W9: -353 | X9: -0.1706138231 | Y9: 149 | Z9: 0 | AB9: 5300090 | AC9: ALMIRA
A10: =VLOOKUP(B10,CCDDD!$A$3:$B$319,2,FALSE) -> 29103 | B10: 5300150 | C10: ANACORTES | D10: 0 | E10: 0 | F10: =VLOOKUP(B10,'24-25 Adjusted Formula counts'!$A$3:$L$320,8,FALSE) -> 2828 | G10: =ROUND((F10/$F$5*Assumptions!$C$22*Assumptions!$C$30),0) -> 15204 | H10: =VLOOKUP(B10,'24-25 Adjusted Formula counts'!$A$3:$L$320,9,FALSE) -> 255 | I10: =ROUND((H10/$H$5*Assumptions!$C$22*Assumptions!$C$31),0) -> 50522 | K10: 65726 | N10: 65726 | O10: 0 | P10: =+K10+O10+M11 -> 65726 | R10: 0 | S10: 65726 | U10: =IFERROR(VLOOKUP($A10, 'Allocation 2023-24 Final'!$A$7:$S$323,19,FALSE),0) -> 70129 | W10: -4403 | X10: -0.06278429751 | Y10: 230 | Z10: 0 | AB10: 5300150 | AC10: ANACORTES
A11: =VLOOKUP(B11,CCDDD!$A$3:$B$319,2,FALSE) -> 31016 | B11: 5300240 | C11: ARLINGTON | D11: 0 | E11: 0 | F11: =VLOOKUP(B11,'24-25 Adjusted Formula counts'!$A$3:$L$320,8,FALSE) -> 5915 | G11: =ROUND((F11/$F$5*Assumptions!$C$22*Assumptions!$C$30),0) -> 31801 | H11: =VLOOKUP(B11,'24-25 Adjusted Formula counts'!$A$3:$L$320,9,FALSE) -> 554 | I11: =ROUND((H11/$H$5*Assumptions!$C$22*Assumptions!$C$31),0) -> 109761 | K11: 141562 | N11: 141562 | O11: 0 | P11: 141562 | R11: 0 | S11: 141562 | U11: =IFERROR(VLOOKUP($A11, 'Allocation 2023-24 Final'!$A$7:$S$323,19,FALSE),0) -> 122786 | W11: 18776 | X11: 0.1529164563 | Y11: 20 | Z11: 0 | AB11: 5300240 | AC11: ARLINGTON
A12: =VLOOKUP(B12,CCDDD!$A$3:$B$319,2,FALSE) -> 02420 | B12: 5300280 | C12: ASOTIN-ANATONE | D12: 0 | E12: 0 | F12: =VLOOKUP(B12,'24-25 Adjusted Formula counts'!$A$3:$L$320,8,FALSE) -> 493 | G12: =ROUND((F12/$F$5*Assumptions!$C$22*Assumptions!$C$30),0) -> 2651 | H12: =VLOOKUP(B12,'24-25 Adjusted Formula counts'!$A$3:$L$320,9,FALSE) -> 48 | I12: =ROUND((H12/$H$5*Assumptions!$C$22*Assumptions!$C$31),0) -> 9510 | K12: 12161 | N12: 12161 | O12: 0 | P12: 12161 | R12: 0 | S12: 12161 | U12: =IFERROR(VLOOKUP($A12, 'Allocation 2023-24 Final'!$A$7:$S$323,19,FALSE),0) -> 15196 | W12: -3035 | X12: -0.1997236115 | Y12: 210 | Z12: 0 | AB12: 5300280 | AC12: ASOTIN-ANATONE
A13: =VLOOKUP(B13,CCDDD!$A$3:$B$319,2,FALSE) -> 17408 | B13: 5300300 | C13: AUBURN | D13: 0 | E13: 0 | F13: =VLOOKUP(B13,'24-25 Adjusted Formula counts'!$A$3:$L$320,8,FALSE) -> 18293 | G13: =ROUND((F13/$F$5*Assumptions!$C$22*Assumptions!$C$30),0) -> 98351 | H13: =VLOOKUP(B13,'24-25 Adjusted Formula counts'!$A$3:$L$320,9,FALSE) -> 2918 | I13: =ROUND((H13/$H$5*Assumptions!$C$22*Assumptions!$C$31),0) -> 578127 | K13: 676478 | N13: 676478 | O13: 0 | P13: 676478 | R13: 0 | S13: 676478 | U13: =IFERROR(VLOOKUP($A13, 'Allocation 2023-24 Final'!$A$7:$S$323,19,FALSE),0) -> 643224 | W13: 33254 | X13: 0.05169894158 | Y13: 11 | Z13: 0 | AB13: 5300300 | AC13: AUBURN
A14: =VLOOKUP(B14,CCDDD!$A$3:$B$319,2,FALSE) -> 18303 | B14: 5300330 | C14: BAINBRIDGE ISLAND | D14: 0 | E14: 0 | F14: =VLOOKUP(B14,'24-25 Adjusted Formula counts'!$A$3:$L$320,8,FALSE) -> 3975 | G14: =ROUND((F14/$F$5*Assumptions!$C$22*Assumptions!$C$30),0) -> 21371 | H14: =VLOOKUP(B14,'24-25 Adjusted Formula counts'!$A$3:$L$320,9,FALSE) -> 141 | I14: =ROUND((H14/$H$5*Assumptions!$C$22*Assumptions!$C$31),0) -> 27936 | K14: 49307 | N14: 49307 | O14: 0 | P14: 49307 | R14: 0 | S14: 49307 | U14: =IFERROR(VLOOKUP($A14, 'Allocation 2023-24 Final'!$A$7:$S$323,19,FALSE),0) -> 52648 | W14: -3341 | X14: -0.06345920073 | Y14: 216 | Z14: 0 | AB14: 5300330 | AC14: BAINBRIDGE ISLAND
A15: =VLOOKUP(B15,CCDDD!$A$3:$B$319,2,FALSE) -> 06119 | B15: 5300380 | C15: BATTLE GROUND | D15: 0 | E15: 0 | F15: =VLOOKUP(B15,'24-25 Adjusted Formula counts'!$A$3:$L$320,8,FALSE) -> 15822 | G15: =ROUND((F15/$F$5*Assumptions!$C$22*Assumptions!$C$30),0) -> 85066 | H15: =VLOOKUP(B15,'24-25 Adjusted Formula counts'!$A$3:$L$320,9,FALSE) -> 788 | I15: =ROUND((H15/$H$5*Assumptions!$C$22*Assumptions!$C$31),0) -> 156122 | K15: 241188 | N15: 241188 | O15: 0 | P15: 241188 | R15: 0 | S15: 241188 | U15: =IFERROR(VLOOKUP($A15, 'Allocation 2023-24 Final'!$A$7:$S$323,19,FALSE),0) -> 300725 | W15: -59537 | X15: -0.1979782193 | Y15: 309 | Z15: 0 | AB15: 5300380 | AC15: BATTLE GROUND
A16: =VLOOKUP(B16,CCDDD!$A$3:$B$319,2,FALSE) -> 17405 | B16: 5300390 | C16: BELLEVUE | D16: 0 | E16: 0 | F16: =VLOOKUP(B16,'24-25 Adjusted Formula counts'!$A$3:$L$320,8,FALSE) -> 22393 | G16: =ROUND((F16/$F$5*Assumptions!$C$22*Assumptions!$C$30),0) -> 120394 | H16: =VLOOKUP(B16,'24-25 Adjusted Formula counts'!$A$3:$L$320,9,FALSE) -> 1339 | I16: =ROUND((H16/$H$5*Assumptions!$C$22*Assumptions!$C$31),0) -> 265289 | K16: 385683 | N16: 385683 | O16: 0 | P16: 385683 | R16: 0 | S16: 385683 | U16: =IFERROR(VLOOKUP($A16, 'Allocation 2023-24 Final'!$A$7:$S$323,19,FALSE),0) -> 434128 | W16: -48445 | X16: -0.1115915122 | Y16: 308 | Z16: 0 | AB16: 5300390 | AC16: BELLEVUE
A17: =VLOOKUP(B17,CCDDD!$A$3:$B$319,2,FALSE) -> 37501 | B17: 5300420 | C17: BELLINGHAM | D17: 0 | E17: 0 | F17: =VLOOKUP(B17,'24-25 Adjusted Formula counts'!$A$3:$L$320,8,FALSE) -> 12465.09868 | G17: =ROUND((F17/$F$5*Assumptions!$C$22*Assumptions!$C$30),0) -> 67018 | H17: =VLOOKUP(B17,'24-25 Adjusted Formula counts'!$A$3:$L$320,9,FALSE) -> 1329.014243 | I17: =ROUND((H17/$H$5*Assumptions!$C$22*Assumptions!$C$31),0) -> 263310 | K17: 330328 | N17: 330328 | O17: 0 | P17: 330328 | R17: 0 | S17: 330328 | U17: =IFERROR(VLOOKUP($A17, 'Allocation 2023-24 Final'!$A$7:$S$323,19,FALSE),0) -> 409562 | W17: -79234 | X17: -0.1934603308 | Y17: 315 | Z17: 0 | AB17: 5300420 | AC17: BELLINGHAM
A18: =VLOOKUP(B18,CCDDD!$A$3:$B$319,2,FALSE) -> 01122 | B18: 5300450 | C18: BENGE | D18: 0 | E18: 0 | F18: =VLOOKUP(B18,'24-25 Adjusted Formula counts'!$A$3:$L$320,8,FALSE) -> 16 | G18: =ROUND((F18/$F$5*Assumptions!$C$22*Assumptions!$C$30),0) -> 86 | H18: =VLOOKUP(B18,'24-25 Adjusted Formula counts'!$A$3:$L$320,9,FALSE) -> 1 | I18: =ROUND((H18/$H$5*Assumptions!$C$22*Assumptions!$C$31),0) -> 198 | K18: 284 | N18: 284 | O18: 0 | P18: 284 | R18: 0 | S18: 284 | U18: =IFERROR(VLOOKUP($A18, 'Allocation 2023-24 Final'!$A$7:$S$323,19,FALSE),0) -> 281 | W18: 3 | X18: 0.01067615658 | Y18: 137 | Z18: 0 | AB18: 5300450 | AC18: BENGE
A19: =VLOOKUP(B19,CCDDD!$A$3:$B$319,2,FALSE) -> 27403 | B19: 5300480 | C19: BETHEL | D19: 0 | E19: 0 | F19: =VLOOKUP(B19,'24-25 Adjusted Formula counts'!$A$3:$L$320,8,FALSE) -> 24134 | G19: =ROUND((F19/$F$5*Assumptions!$C$22*Assumptions!$C$30),0) -> 129754 | H19: =VLOOKUP(B19,'24-25 Adjusted Formula counts'!$A$3:$L$320,9,FALSE) -> 2228 | I19: =ROUND((H19/$H$5*Assumptions!$C$22*Assumptions!$C$31),0) -> 441421 | K19: 571175 | N19: 571175 | O19: 0 | P19: 571175 | R19: 0 | S19: 571175 | U19: =IFERROR(VLOOKUP($A19, 'Allocation 2023-24 Final'!$A$7:$S$323,19,FALSE),0) -> 570239 | W19: 936 | X19: 0.00164141702 | Y19: 102 | Z19: 0 | AB19: 5300480 | AC19: BETHEL
A20: =VLOOKUP(B20,CCDDD!$A$3:$B$319,2,FALSE) -> 20203 | B20: 5300510 | C20: BICKLETON | D20: 0 | E20: 0 | F20: =VLOOKUP(B20,'24-25 Adjusted Formula counts'!$A$3:$L$320,8,FALSE) -> 78 | G20: =ROUND((F20/$F$5*Assumptions!$C$22*Assumptions!$C$30),0) -> 419 | H20: =VLOOKUP(B20,'24-25 Adjusted Formula counts'!$A$3:$L$320,9,FALSE) -> 12 | I20: =ROUND((H20/$H$5*Assumptions!$C$22*Assumptions!$C$31),0) -> 2377 | K20: 2796 | N20: 2796 | O20: 0 | P20: 2796 | R20: 0 | S20: 2796 | U20: =IFERROR(VLOOKUP($A20, 'Allocation 2023-24 Final'!$A$7:$S$323,19,FALSE),0) -> 3347 | W20: -551 | X20: -0.1646250373 | Y20: 156 | Z20: 0 | AB20: 5300510 | AC20: BICKLETON
A21: =VLOOKUP(B21,CCDDD!$A$3:$B$319,2,FALSE) -> 37503 | B21: 5300570 | C21: BLAINE | D21: 0 | E21: 0 | F21: =VLOOKUP(B21,'24-25 Adjusted Formula counts'!$A$3:$L$320,8,FALSE) -> 2473 | G21: =ROUND((F21/$F$5*Assumptions!$C$22*Assumptions!$C$30),0) -> 13296 | H21: =VLOOKUP(B21,'24-25 Adjusted Formula counts'!$A$3:$L$320,9,FALSE) -> 265 | I21: =ROUND((H21/$H$5*Assumptions!$C$22*Assumptions!$C$31),0) -> 52503 | K21: 65799 | N21: 65799 | O21: 0 | P21: 65799 | R21: 0 | S21: 65799 | U21: =IFERROR(VLOOKUP($A21, 'Allocation 2023-24 Final'!$A$7:$S$323,19,FALSE),0) -> 88535 | W21: -22736 | X21: -0.2568023945 | Y21: 294 | Z21: 0 | AB21: 5300570 | AC21: BLAINE
A22: =VLOOKUP(B22,CCDDD!$A$3:$B$319,2,FALSE) -> 21234 | B22: 5300630 | C22: BOISTFORT | D22: 0 | E22: 0 | F22: =VLOOKUP(B22,'24-25 Adjusted Formula counts'!$A$3:$L$320,8,FALSE) -> 215 | G22: =ROUND((F22/$F$5*Assumptions!$C$22*Assumptions!$C$30),0) -> 1156 | H22: =VLOOKUP(B22,'24-25 Adjusted Formula counts'!$A$3:$L$320,9,FALSE) -> 28 | I22: =ROUND((H22/$H$5*Assumptions!$C$22*Assumptions!$C$31),0) -> 5547 | K22: 6703 | N22: 6703 | O22: 0 | P22: 6703 | R22: 0 | S22: 6703 | U22: =IFERROR(VLOOKUP($A22, 'Allocation 2023-24 Final'!$A$7:$S$323,19,FALSE),0) -> 6415 | W22: 288 | X22: 0.04489477786 | Y22: 119 | Z22: 0 | AB22: 5300630 | AC22: BOISTFORT
A23: =VLOOKUP(B23,CCDDD!$A$3:$B$319,2,FALSE) -> 18100 | B23: 5300660 | C23: BREMERTON | D23: 0 | E23: 0 | F23: =VLOOKUP(B23,'24-25 Adjusted Formula counts'!$A$3:$L$320,8,FALSE) -> 4867.243829 | G23: =ROUND((F23/$F$5*Assumptions!$C$22*Assumptions!$C$30),0) -> 26168 | H23: =VLOOKUP(B23,'24-25 Adjusted Formula counts'!$A$3:$L$320,9,FALSE) -> 923.916791 | I23: =ROUND((H23/$H$5*Assumptions!$C$22*Assumptions!$C$31),0) -> 183050 | K23: 209218 | N23: 209218 | O23: 0 | P23: 209218 | R23: 0 | S23: 209218 | U23: =IFERROR(VLOOKUP($A23, 'Allocation 2023-24 Final'!$A$7:$S$323,19,FALSE),0) -> 184723 | W23: 24495 | X23: 0.1326039529 | Y23: 14 | Z23: 0 | AB23: 5300660 | AC23: BREMERTON
A24: =VLOOKUP(B24,CCDDD!$A$3:$B$319,2,FALSE) -> 24111 | B24: 5300690 | C24: BREWSTER | D24: 0 | E24: 0 | F24: =VLOOKUP(B24,'24-25 Adjusted Formula counts'!$A$3:$L$320,8,FALSE) -> 968 | G24: =ROUND((F24/$F$5*Assumptions!$C$22*Assumptions!$C$30),0) -> 5204 | H24: =VLOOKUP(B24,'24-25 Adjusted Formula counts'!$A$3:$L$320,9,FALSE) -> 178 | I24: =ROUND((H24/$H$5*Assumptions!$C$22*Assumptions!$C$31),0) -> 35266 | K24: 40470 | N24: 40470 | O24: 0 | P24: 40470 | R24: 0 | S24: 40470 | U24: =IFERROR(VLOOKUP($A24, 'Allocation 2023-24 Final'!$A$7:$S$323,19,FALSE),0) -> 41277 | W24: -807 | X24: -0.01955083945 | Y24: 166 | Z24: 0 | AB24: 5300690 | AC24: BREWSTER
A25: =VLOOKUP(B25,CCDDD!$A$3:$B$319,2,FALSE) -> 09075 | B25: 5300720 | C25: BRIDGEPORT | D25: 0 | E25: 0 | F25: =VLOOKUP(B25,'24-25 Adjusted Formula counts'!$A$3:$L$320,8,FALSE) -> 677 | G25: =ROUND((F25/$F$5*Assumptions!$C$22*Assumptions!$C$30),0) -> 3640 | H25: =VLOOKUP(B25,'24-25 Adjusted Formula counts'!$A$3:$L$320,9,FALSE) -> 163 | I25: =ROUND((H25/$H$5*Assumptions!$C$22*Assumptions!$C$31),0) -> 32294 | K25: 35934 | N25: 35934 | O25: 0 | P25: 35934 | R25: 0 | S25: 35934 | U25: =IFERROR(VLOOKUP($A25, 'Allocation 2023-24 Final'!$A$7:$S$323,19,FALSE),0) -> 43503 | W25: -7569 | X25: -0.1739880008 | Y25: 253 | Z25: 0 | AB25: 5300720 | AC25: BRIDGEPORT
A26: =VLOOKUP(B26,CCDDD!$A$3:$B$319,2,FALSE) -> 16046 | B26: 5300750 | C26: BRINNON | D26: 0 | E26: 0 | F26: =VLOOKUP(B26,'24-25 Adjusted Formula counts'!$A$3:$L$320,8,FALSE) -> 116 | G26: =ROUND((F26/$F$5*Assumptions!$C$22*Assumptions!$C$30),0) -> 624 | H26: =VLOOKUP(B26,'24-25 Adjusted Formula counts'!$A$3:$L$320,9,FALSE) -> 27 | I26: =ROUND((H26/$H$5*Assumptions!$C$22*Assumptions!$C$31),0) -> 5349 | K26: 5973 | N26: 5973 | O26: 0 | P26: 5973 | R26: 0 | S26: 5973 | U26: =IFERROR(VLOOKUP($A26, 'Allocation 2023-24 Final'!$A$7:$S$323,19,FALSE),0) -> 6868 | W26: -895 | X26: -0.130314502 | Y26: 169 | Z26: 0 | AB26: 5300750 | AC26: BRINNON
A27: =VLOOKUP(B27,CCDDD!$A$3:$B$319,2,FALSE) -> 29100 | B27: 5300780 | C27: BURLINGTON-EDISON | D27: 0 | E27: 0 | F27: =VLOOKUP(B27,'24-25 Adjusted Formula counts'!$A$3:$L$320,8,FALSE) -> 3721 | G27: =ROUND((F27/$F$5*Assumptions!$C$22*Assumptions!$C$30),0) -> 20006 | H27: =VLOOKUP(B27,'24-25 Adjusted Formula counts'!$A$3:$L$320,9,FALSE) -> 390 | I27: =ROUND((H27/$H$5*Assumptions!$C$22*Assumptions!$C$31),0) -> 77269 | K27: 97275 | N27: 97275 | O27: 0 | P27: 97275 | R27: 0 | S27: 97275 | U27: =IFERROR(VLOOKUP($A27, 'Allocation 2023-24 Final'!$A$7:$S$323,19,FALSE),0) -> 116875 | W27: -19600 | X27: -0.1677005348 | Y27: 291 | Z27: 0 | AB27: 5300780 | AC27: BURLINGTON-EDISON
A28: =VLOOKUP(B28,CCDDD!$A$3:$B$319,2,FALSE) -> 06117 | B28: 5300810 | C28: CAMAS | D28: 0 | E28: 0 | F28: =VLOOKUP(B28,'24-25 Adjusted Formula counts'!$A$3:$L$320,8,FALSE) -> 7408 | G28: =ROUND((F28/$F$5*Assumptions!$C$22*Assumptions!$C$30),0) -> 39828 | H28: =VLOOKUP(B28,'24-25 Adjusted Formula counts'!$A$3:$L$320,9,FALSE) -> 246 | I28: =ROUND((H28/$H$5*Assumptions!$C$22*Assumptions!$C$31),0) -> 48739 | K28: 88567 | N28: 88567 | O28: 0 | P28: 88567 | R28: 0 | S28: 88567 | U28: =IFERROR(VLOOKUP($A28, 'Allocation 2023-24 Final'!$A$7:$S$323,19,FALSE),0) -> 103377 | W28: -14810 | X28: -0.1432620409 | Y28: 279 | Z28: 0 | AB28: 5300810 | AC28: CAMAS
A29: =VLOOKUP(B29,CCDDD!$A$3:$B$319,2,FALSE) -> 05401 | B29: 5300840 | C29: CAPE FLATTERY | D29: 0 | E29: 0 | F29: =VLOOKUP(B29,'24-25 Adjusted Formula counts'!$A$3:$L$320,8,FALSE) -> 550 | G29: =ROUND((F29/$F$5*Assumptions!$C$22*Assumptions!$C$30),0) -> 2957 | H29: =VLOOKUP(B29,'24-25 Adjusted Formula counts'!$A$3:$L$320,9,FALSE) -> 112 | I29: =ROUND((H29/$H$5*Assumptions!$C$22*Assumptions!$C$31),0) -> 22190 | K29: 25147 | N29: 25147 | O29: 0 | P29: 25147 | R29: 0 | S29: 25147 | U29: =IFERROR(VLOOKUP($A29, 'Allocation 2023-24 Final'!$A$7:$S$323,19,FALSE),0) -> 28187 | W29: -3040 | X29: -0.107851137 | Y29: 211 | Z29: 0 | AB29: 5300840 | AC29: CAPE FLATTERY
A30: =VLOOKUP(B30,CCDDD!$A$3:$B$319,2,FALSE) -> 27019 | B30: 5300870 | C30: CARBONADO | D30: 0 | E30: 0 | F30: =VLOOKUP(B30,'24-25 Adjusted Formula counts'!$A$3:$L$320,8,FALSE) -> 208 | G30: =ROUND((F30/$F$5*Assumptions!$C$22*Assumptions!$C$30),0) -> 1118 | H30: =VLOOKUP(B30,'24-25 Adjusted Formula counts'!$A$3:$L$320,9,FALSE) -> 7 | I30: =ROUND((H30/$H$5*Assumptions!$C$22*Assumptions!$C$31),0) -> 1387 | K30: 2505 | N30: 2505 | O30: 0 | P30: 2505 | R30: 0 | S30: 2505 | U30: =IFERROR(VLOOKUP($A30, 'Allocation 2023-24 Final'!$A$7:$S$323,19,FALSE),0) -> 4840 | W30: -2335 | X30: -0.4824380165 | Y30: 201 | Z30: 0 | AB30: 5300870 | AC30: CARBONADO
A31: =VLOOKUP(B31,CCDDD!$A$3:$B$319,2,FALSE) -> 04228 | B31: 5300950 | C31: CASCADE | D31: 0 | E31: 0 | F31: =VLOOKUP(B31,'24-25 Adjusted Formula counts'!$A$3:$L$320,8,FALSE) -> 1554 | G31: =ROUND((F31/$F$5*Assumptions!$C$22*Assumptions!$C$30),0) -> 8355 | H31: =VLOOKUP(B31,'24-25 Adjusted Formula counts'!$A$3:$L$320,9,FALSE) -> 176 | I31: =ROUND((H31/$H$5*Assumptions!$C$22*Assumptions!$C$31),0) -> 34870 | K31: 43225 | N31: 43225 | O31: 0 | P31: 43225 | R31: 0 | S31: 43225 | U31: =IFERROR(VLOOKUP($A31, 'Allocation 2023-24 Final'!$A$7:$S$323,19,FALSE),0) -> 42628 | W31: 597 | X31: 0.01400487942 | Y31: 111 | Z31: 0 | AB31: 5300950 | AC31: CASCADE
A32: =VLOOKUP(B32,CCDDD!$A$3:$B$319,2,FALSE) -> 04222 | B32: 5300960 | C32: CASHMERE | D32: 0 | E32: 0 | F32: =VLOOKUP(B32,'24-25 Adjusted Formula counts'!$A$3:$L$320,8,FALSE) -> 1496 | G32: =ROUND((F32/$F$5*Assumptions!$C$22*Assumptions!$C$30),0) -> 8043 | H32: =VLOOKUP(B32,'24-25 Adjusted Formula counts'!$A$3:$L$320,9,FALSE) -> 161 | I32: =ROUND((H32/$H$5*Assumptions!$C$22*Assumptions!$C$31),0) -> 31898 | K32: 39941 | N32: 39941 | O32: 0 | P32: 39941 | R32: 0 | S32: 39941 | U32: =IFERROR(VLOOKUP($A32, 'Allocation 2023-24 Final'!$A$7:$S$323,19,FALSE),0) -> 45814 | W32: -5873 | X32: -0.1281922556 | Y32: 241 | Z32: 0 | AB32: 5300960 | AC32: CASHMERE
A33: =VLOOKUP(B33,CCDDD!$A$3:$B$319,2,FALSE) -> 08401 | B33: 5300990 | C33: CASTLE ROCK | D33: 0 | E33: 0 | F33: =VLOOKUP(B33,'24-25 Adjusted Formula counts'!$A$3:$L$320,8,FALSE) -> 1636 | G33: =ROUND((F33/$F$5*Assumptions!$C$22*Assumptions!$C$30),0) -> 8796 | H33: =VLOOKUP(B33,'24-25 Adjusted Formula counts'!$A$3:$L$320,9,FALSE) -> 181 | I33: =ROUND((H33/$H$5*Assumptions!$C$22*Assumptions!$C$31),0) -> 35861 | K33: 44657 | N33: 44657 | O33: 0 | P33: 44657 | R33: 0 | S33: 44657 | U33: =IFERROR(VLOOKUP($A33, 'Allocation 2023-24 Final'!$A$7:$S$323,19,FALSE),0) -> 46810 | W33: -2153 | X33: -0.04599444563 | Y33: 196 | Z33: 0 | AB33: 5300990 | AC33: CASTLE ROCK
A34: =VLOOKUP(B34,CCDDD!$A$3:$B$319,2,FALSE) -> 18901 | B34: 5301000 | C34: CATALYST BREMERTON CHARTER | D34: 0 | E34: 0 | F34: =VLOOKUP(B34,'24-25 Adjusted Formula counts'!$A$3:$L$320,8,FALSE) -> 610.778246 | G34: =ROUND((F34/$F$5*Assumptions!$C$22*Assumptions!$C$30),0) -> 3284 | H34: =VLOOKUP(B34,'24-25 Adjusted Formula counts'!$A$3:$L$320,9,FALSE) -> 85.07238806 | I34: =ROUND((H34/$H$5*Assumptions!$C$22*Assumptions!$C$31),0) -> 16855 | K34: 20139 | N34: 20139 | O34: 0 | P34: 20139 | R34: 0 | S34: 20139 | U34: =IFERROR(VLOOKUP($A34, 'Allocation 2023-24 Final'!$A$7:$S$323,19,FALSE),0) -> 15463 | W34: 4676 | X34: 0.3023992757 | Y34: 47 | Z34: 0 | AB34: 5301000 | AC34: CATALYST BREMERTON CHARTER
A35: =VLOOKUP(B35,CCDDD!$A$3:$B$319,2,FALSE) -> 20215 | B35: 5301050 | C35: CENTERVILLE | D35: 0 | E35: 0 | F35: =VLOOKUP(B35,'24-25 Adjusted Formula counts'!$A$3:$L$320,8,FALSE) -> 93 | G35: =ROUND((F35/$F$5*Assumptions!$C$22*Assumptions!$C$30),0) -> 500 | H35: =VLOOKUP(B35,'24-25 Adjusted Formula counts'!$A$3:$L$320,9,FALSE) -> 27 | I35: =ROUND((H35/$H$5*Assumptions!$C$22*Assumptions!$C$31),0) -> 5349 | K35: 5849 | N35: 5849 | O35: 0 | P35: 5849 | R35: 0 | S35: 5849 | U35: =IFERROR(VLOOKUP($A35, 'Allocation 2023-24 Final'!$A$7:$S$323,19,FALSE),0) -> 3043 | W35: 2806 | X35: 0.9221163326 | Y35: 66 | Z35: 0 | AB35: 5301050 | AC35: CENTERVILLE
A36: =VLOOKUP(B36,CCDDD!$A$3:$B$319,2,FALSE) -> 18401 | B36: 5301080 | C36: CENTRAL KITSAP | D36: 0 | E36: 0 | F36: =VLOOKUP(B36,'24-25 Adjusted Formula counts'!$A$3:$L$320,8,FALSE) -> 11148 | G36: =ROUND((F36/$F$5*Assumptions!$C$22*Assumptions!$C$30),0) -> 59936 | H36: =VLOOKUP(B36,'24-25 Adjusted Formula counts'!$A$3:$L$320,9,FALSE) -> 853 | I36: =ROUND((H36/$H$5*Assumptions!$C$22*Assumptions!$C$31),0) -> 169000 | K36: 228936 | N36: 228936 | O36: 0 | P36: 228936 | R36: 0 | S36: 228936 | U36: =IFERROR(VLOOKUP($A36, 'Allocation 2023-24 Final'!$A$7:$S$323,19,FALSE),0) -> 238653 | W36: -9717 | X36: -0.04071601865 | Y36: 264 | Z36: 0 | AB36: 5301080 | AC36: CENTRAL KITSAP
A37: =VLOOKUP(B37,CCDDD!$A$3:$B$319,2,FALSE) -> 32356 | B37: 5301110 | C37: CENTRAL VALLEY | D37: 0 | E37: 0 | F37: =VLOOKUP(B37,'24-25 Adjusted Formula counts'!$A$3:$L$320,8,FALSE) -> 17019 | G37: =ROUND((F37/$F$5*Assumptions!$C$22*Assumptions!$C$30),0) -> 91501 | H37: =VLOOKUP(B37,'24-25 Adjusted Formula counts'!$A$3:$L$320,9,FALSE) -> 1806 | I37: =ROUND((H37/$H$5*Assumptions!$C$22*Assumptions!$C$31),0) -> 357813 | K37: 449314 | N37: 449314 | O37: 0 | P37: 449314 | R37: 0 | S37: 449314 | U37: =IFERROR(VLOOKUP($A37, 'Allocation 2023-24 Final'!$A$7:$S$323,19,FALSE),0) -> 398834 | W37: 50480 | X37: 0.1265689485 | Y37: 7 | Z37: 0 | AB37: 5301110 | AC37: CENTRAL VALLEY
A38: =VLOOKUP(B38,CCDDD!$A$3:$B$319,2,FALSE) -> 21401 | B38: 5301140 | C38: CENTRALIA | D38: 0 | E38: 0 | F38: =VLOOKUP(B38,'24-25 Adjusted Formula counts'!$A$3:$L$320,8,FALSE) -> 4274 | G38: =ROUND((F38/$F$5*Assumptions!$C$22*Assumptions!$C$30),0) -> 22979 | H38: =VLOOKUP(B38,'24-25 Adjusted Formula counts'!$A$3:$L$320,9,FALSE) -> 748 | I38: =ROUND((H38/$H$5*Assumptions!$C$22*Assumptions!$C$31),0) -> 148197 | K38: 171176 | N38: 171176 | O38: 0 | P38: 171176 | R38: 0 | S38: 171176 | U38: =IFERROR(VLOOKUP($A38, 'Allocation 2023-24 Final'!$A$7:$S$323,19,FALSE),0) -> 181133 | W38: -9957 | X38: -0.05497065692 | Y38: 268 | Z38: 0 | AB38: 5301140 | AC38: CENTRALIA
A39: =VLOOKUP(B39,CCDDD!$A$3:$B$319,2,FALSE) -> 21302 | B39: 5301170 | C39: CHEHALIS | D39: 0 | E39: 0 | F39: =VLOOKUP(B39,'24-25 Adjusted Formula counts'!$A$3:$L$320,8,FALSE) -> 2864 | G39: =ROUND((F39/$F$5*Assumptions!$C$22*Assumptions!$C$30),0) -> 15398 | H39: =VLOOKUP(B39,'24-25 Adjusted Formula counts'!$A$3:$L$320,9,FALSE) -> 249 | I39: =ROUND((H39/$H$5*Assumptions!$C$22*Assumptions!$C$31),0) -> 49333 | K39: 64731 | N39: 64731 | O39: 0 | P39: 64731 | R39: 0 | S39: 64731 | U39: =IFERROR(VLOOKUP($A39, 'Allocation 2023-24 Final'!$A$7:$S$323,19,FALSE),0) -> 82572 | W39: -17841 | X39: -0.2160659788 | Y39: 288 | Z39: 0 | AB39: 5301170 | AC39: CHEHALIS
A40: =VLOOKUP(B40,CCDDD!$A$3:$B$319,2,FALSE) -> 32360 | B40: 5301230 | C40: CHENEY | D40: 0 | E40: 0 | F40: =VLOOKUP(B40,'24-25 Adjusted Formula counts'!$A$3:$L$320,8,FALSE) -> 6241 | G40: =ROUND((F40/$F$5*Assumptions!$C$22*Assumptions!$C$30),0) -> 33554 | H40: =VLOOKUP(B40,'24-25 Adjusted Formula counts'!$A$3:$L$320,9,FALSE) -> 860 | I40: =ROUND((H40/$H$5*Assumptions!$C$22*Assumptions!$C$31),0) -> 170387 | K40: 203941 | N40: 203941 | O40: 0 | P40: 203941 | R40: 0 | S40: 203941 | U40: =IFERROR(VLOOKUP($A40, 'Allocation 2023-24 Final'!$A$7:$S$323,19,FALSE),0) -> 186563 | W40: 17378 | X40: 0.09314815907 | Y40: 22 | Z40: 0 | AB40: 5301230 | AC40: CHENEY
A41: =VLOOKUP(B41,CCDDD!$A$3:$B$319,2,FALSE) -> 33036 | B41: 5301260 | C41: CHEWELAH | D41: 0 | E41: 0 | F41: =VLOOKUP(B41,'24-25 Adjusted Formula counts'!$A$3:$L$320,8,FALSE) -> 938 | G41: =ROUND((F41/$F$5*Assumptions!$C$22*Assumptions!$C$30),0) -> 5043 | H41: =VLOOKUP(B41,'24-25 Adjusted Formula counts'!$A$3:$L$320,9,FALSE) -> 160 | I41: =ROUND((H41/$H$5*Assumptions!$C$22*Assumptions!$C$31),0) -> 31700 | K41: 36743 | N41: 36743 | O41: 0 | P41: 36743 | R41: 0 | S41: 36743 | U41: =IFERROR(VLOOKUP($A41, 'Allocation 2023-24 Final'!$A$7:$S$323,19,FALSE),0) -> 42101 | W41: -5358 | X41: -0.1272653856 | Y41: 237 | Z41: 0 | AB41: 5301260 | AC41: CHEWELAH
A42: =VLOOKUP(B42,CCDDD!$A$3:$B$319,2,FALSE) -> 16049 | B42: 5301290 | C42: CHIMACUM | D42: 0 | E42: 0 | F42: =VLOOKUP(B42,'24-25 Adjusted Formula counts'!$A$3:$L$320,8,FALSE) -> 1152 | G42: =ROUND((F42/$F$5*Assumptions!$C$22*Assumptions!$C$30),0) -> 6194 | H42: =VLOOKUP(B42,'24-25 Adjusted Formula counts'!$A$3:$L$320,9,FALSE) -> 170 | I42: =ROUND((H42/$H$5*Assumptions!$C$22*Assumptions!$C$31),0) -> 33681 | K42: 39875 | N42: 39875 | O42: 0 | P42: 39875 | R42: 0 | S42: 39875 | U42: =IFERROR(VLOOKUP($A42, 'Allocation 2023-24 Final'!$A$7:$S$323,19,FALSE),0) -> 46079 | W42: -6204 | X42: -0.1346383385 | Y42: 243 | Z42: 0 | AB42: 5301290 | AC42: CHIMACUM
A43: =VLOOKUP(B43,CCDDD!$A$3:$B$319,2,FALSE) -> 02250 | B43: 5301320 | C43: CLARKSTON | D43: 0 | E43: 0 | F43: =VLOOKUP(B43,'24-25 Adjusted Formula counts'!$A$3:$L$320,8,FALSE) -> 2795 | G43: =ROUND((F43/$F$5*Assumptions!$C$22*Assumptions!$C$30),0) -> 15027 | H43: =VLOOKUP(B43,'24-25 Adjusted Formula counts'!$A$3:$L$320,9,FALSE) -> 584 | I43: =ROUND((H43/$H$5*Assumptions!$C$22*Assumptions!$C$31),0) -> 115705 | K43: 130732 | N43: 130732 | O43: 0 | P43: 130732 | R43: 0 | S43: 130732 | U43: =IFERROR(VLOOKUP($A43, 'Allocation 2023-24 Final'!$A$7:$S$323,19,FALSE),0) -> 128060 | W43: 2672 | X43: 0.02086521943 | Y43: 68 | Z43: 0 | AB43: 5301320 | AC43: CLARKSTON
A44: =VLOOKUP(B44,CCDDD!$A$3:$B$319,2,FALSE) -> 19404 | B44: 5301350 | C44: CLE ELUM-ROSLYN | D44: 0 | E44: 0 | F44: =VLOOKUP(B44,'24-25 Adjusted Formula counts'!$A$3:$L$320,8,FALSE) -> 1062 | G44: =ROUND((F44/$F$5*Assumptions!$C$22*Assumptions!$C$30),0) -> 5710 | H44: =VLOOKUP(B44,'24-25 Adjusted Formula counts'!$A$3:$L$320,9,FALSE) -> 148 | I44: =ROUND((H44/$H$5*Assumptions!$C$22*Assumptions!$C$31),0) -> 29322 | K44: 35032 | N44: 35032 | O44: 0 | P44: 35032 | R44: 0 | S44: 35032 | U44: =IFERROR(VLOOKUP($A44, 'Allocation 2023-24 Final'!$A$7:$S$323,19,FALSE),0) -> 30525 | W44: 4507 | X44: 0.1476494676 | Y44: 49 | Z44: 0 | AB44: 5301350 | AC44: CLE ELUM-ROSLYN
A45: =VLOOKUP(B45,CCDDD!$A$3:$B$319,2,FALSE) -> 27400 | B45: 5301410 | C45: CLOVER PARK | D45: 0 | E45: 0 | F45: =VLOOKUP(B45,'24-25 Adjusted Formula counts'!$A$3:$L$320,8,FALSE) -> 13680 | G45: =ROUND((F45/$F$5*Assumptions!$C$22*Assumptions!$C$30),0) -> 73549 | H45: =VLOOKUP(B45,'24-25 Adjusted Formula counts'!$A$3:$L$320,9,FALSE) -> 1961 | I45: =ROUND((H45/$H$5*Assumptions!$C$22*Assumptions!$C$31),0) -> 388522 | K45: 462071 | N45: 462071 | O45: 0 | P45: 462071 | R45: 0 | S45: 462071 | U45: =IFERROR(VLOOKUP($A45, 'Allocation 2023-24 Final'!$A$7:$S$323,19,FALSE),0) -> 442496 | W45: 19575 | X45: 0.04423768802 | Y45: 19 | Z45: 0 | AB45: 5301410 | AC45: CLOVER PARK
A46: =VLOOKUP(B46,CCDDD!$A$3:$B$319,2,FALSE) -> 38300 | B46: 5301440 | C46: COLFAX | D46: 0 | E46: 0 | F46: =VLOOKUP(B46,'24-25 Adjusted Formula counts'!$A$3:$L$320,8,FALSE) -> 597 | G46: =ROUND((F46/$F$5*Assumptions!$C$22*Assumptions!$C$30),0) -> 3210 | H46: =VLOOKUP(B46,'24-25 Adjusted Formula counts'!$A$3:$L$320,9,FALSE) -> 45 | I46: =ROUND((H46/$H$5*Assumptions!$C$22*Assumptions!$C$31),0) -> 8916 | K46: 12126 | N46: 12126 | O46: 0 | P46: 12126 | R46: 0 | S46: 12126 | U46: =IFERROR(VLOOKUP($A46, 'Allocation 2023-24 Final'!$A$7:$S$323,19,FALSE),0) -> 13178 | W46: -1052 | X46: -0.07983001973 | Y46: 178 | Z46: 0 | AB46: 5301440 | AC46: COLFAX
A47: =VLOOKUP(B47,CCDDD!$A$3:$B$319,2,FALSE) -> 36250 | B47: 5301470 | C47: COLLEGE PLACE | D47: 0 | E47: 0 | F47: =VLOOKUP(B47,'24-25 Adjusted Formula counts'!$A$3:$L$320,8,FALSE) -> 2035 | G47: =ROUND((F47/$F$5*Assumptions!$C$22*Assumptions!$C$30),0) -> 10941 | H47: =VLOOKUP(B47,'24-25 Adjusted Formula counts'!$A$3:$L$320,9,FALSE) -> 208 | I47: =ROUND((H47/$H$5*Assumptions!$C$22*Assumptions!$C$31),0) -> 41210 | K47: 52151 | N47: 52151 | O47: 0 | P47: 52151 | R47: 0 | S47: 52151 | U47: =IFERROR(VLOOKUP($A47, 'Allocation 2023-24 Final'!$A$7:$S$323,19,FALSE),0) -> 58831 | W47: -6680 | X47: -0.1135455797 | Y47: 248 | Z47: 0 | AB47: 5301470 | AC47: COLLEGE PLACE
A48: =VLOOKUP(B48,CCDDD!$A$3:$B$319,2,FALSE) -> 38306 | B48: 5301500 | C48: COLTON | D48: 0 | E48: 0 | F48: =VLOOKUP(B48,'24-25 Adjusted Formula counts'!$A$3:$L$320,8,FALSE) -> 240 | G48: =ROUND((F48/$F$5*Assumptions!$C$22*Assumptions!$C$30),0) -> 1290 | H48: =VLOOKUP(B48,'24-25 Adjusted Formula counts'!$A$3:$L$320,9,FALSE) -> 17 | I48: =ROUND((H48/$H$5*Assumptions!$C$22*Assumptions!$C$31),0) -> 3368 | K48: 4658 | N48: 4658 | O48: 0 | P48: 4658 | R48: 0 | S48: 4658 | U48: =IFERROR(VLOOKUP($A48, 'Allocation 2023-24 Final'!$A$7:$S$323,19,FALSE),0) -> 5201 | W48: -543 | X48: -0.1044029994 | Y48: 155 | Z48: 0 | AB48: 5301500 | AC48: COLTON
A49: =VLOOKUP(B49,CCDDD!$A$3:$B$319,2,FALSE) -> 33206 | B49: 5301560 | C49: COLUMBIA (STEV) | D49: 0 | E49: 0 | F49: =VLOOKUP(B49,'24-25 Adjusted Formula counts'!$A$3:$L$320,8,FALSE) -> 205 | G49: =ROUND((F49/$F$5*Assumptions!$C$22*Assumptions!$C$30),0) -> 1102 | H49: =VLOOKUP(B49,'24-25 Adjusted Formula counts'!$A$3:$L$320,9,FALSE) -> 42 | I49: =ROUND((H49/$H$5*Assumptions!$C$22*Assumptions!$C$31),0) -> 8321 | K49: 9423 | N49: 9423 | O49: 0 | P49: 9423 | R49: 0 | S49: 9423 | U49: =IFERROR(VLOOKUP($A49, 'Allocation 2023-24 Final'!$A$7:$S$323,19,FALSE),0) -> 9489 | W49: -66 | X49: -0.006955422068 | Y49: 139 | Z49: 0 | AB49: 5301560 | AC49: COLUMBIA (STEV)
A50: =VLOOKUP(B50,CCDDD!$A$3:$B$319,2,FALSE) -> 36400 | B50: 5301590 | C50: COLUMBIA (WALLA) | D50: 0 | E50: 0 | F50: =VLOOKUP(B50,'24-25 Adjusted Formula counts'!$A$3:$L$320,8,FALSE) -> 756 | G50: =ROUND((F50/$F$5*Assumptions!$C$22*Assumptions!$C$30),0) -> 4065 | H50: =VLOOKUP(B50,'24-25 Adjusted Formula counts'!$A$3:$L$320,9,FALSE) -> 98 | I50: =ROUND((H50/$H$5*Assumptions!$C$22*Assumptions!$C$31),0) -> 19416 | K50: 23481 | N50: 23481 | O50: 0 | P50: 23481 | R50: 0 | S50: 23481 | U50: =IFERROR(VLOOKUP($A50, 'Allocation 2023-24 Final'!$A$7:$S$323,19,FALSE),0) -> 21726 | W50: 1755 | X50: 0.08077879039 | Y50: 83 | Z50: 0 | AB50: 5301590 | AC50: COLUMBIA (WALLA)
A51: =VLOOKUP(B51,CCDDD!$A$3:$B$319,2,FALSE) -> 33115 | B51: 5301630 | C51: COLVILLE | D51: 0 | E51: 0 | F51: =VLOOKUP(B51,'24-25 Adjusted Formula counts'!$A$3:$L$320,8,FALSE) -> 1998 | G51: =ROUND((F51/$F$5*Assumptions!$C$22*Assumptions!$C$30),0) -> 10742 | H51: =VLOOKUP(B51,'24-25 Adjusted Formula counts'!$A$3:$L$320,9,FALSE) -> 318 | I51: =ROUND((H51/$H$5*Assumptions!$C$22*Assumptions!$C$31),0) -> 63004 | K51: 73746 | N51: 73746 | O51: 0 | P51: 73746 | R51: 0 | S51: 73746 | U51: =IFERROR(VLOOKUP($A51, 'Allocation 2023-24 Final'!$A$7:$S$323,19,FALSE),0) -> 79985 | W51: -6239 | X51: -0.0780021254 | Y51: 244 | Z51: 0 | AB51: 5301630 | AC51: COLVILLE
A52: =VLOOKUP(B52,CCDDD!$A$3:$B$319,2,FALSE) -> 29011 | B52: 5301660 | C52: CONCRETE | D52: 0 | E52: 0 | F52: =VLOOKUP(B52,'24-25 Adjusted Formula counts'!$A$3:$L$320,8,FALSE) -> 716 | G52: =ROUND((F52/$F$5*Assumptions!$C$22*Assumptions!$C$30),0) -> 3850 | H52: =VLOOKUP(B52,'24-25 Adjusted Formula counts'!$A$3:$L$320,9,FALSE) -> 140 | I52: =ROUND((H52/$H$5*Assumptions!$C$22*Assumptions!$C$31),0) -> 27737 | K52: 31587 | N52: 31587 | O52: 0 | P52: 31587 | R52: 0 | S52: 31587 | U52: =IFERROR(VLOOKUP($A52, 'Allocation 2023-24 Final'!$A$7:$S$323,19,FALSE),0) -> 32537 | W52: -950 | X52: -0.02919752897 | Y52: 174 | Z52: 0 | AB52: 5301660 | AC52: CONCRETE
A53: =VLOOKUP(B53,CCDDD!$A$3:$B$319,2,FALSE) -> 29317 | B53: 5301680 | C53: CONWAY | D53: 0 | E53: 0 | F53: =VLOOKUP(B53,'24-25 Adjusted Formula counts'!$A$3:$L$320,8,FALSE) -> 542 | G53: =ROUND((F53/$F$5*Assumptions!$C$22*Assumptions!$C$30),0) -> 2914 | H53: =VLOOKUP(B53,'24-25 Adjusted Formula counts'!$A$3:$L$320,9,FALSE) -> 58 | I53: =ROUND((H53/$H$5*Assumptions!$C$22*Assumptions!$C$31),0) -> 11491 | K53: 14405 | N53: 14405 | O53: 0 | P53: 14405 | R53: 0 | S53: 14405 | U53: =IFERROR(VLOOKUP($A53, 'Allocation 2023-24 Final'!$A$7:$S$323,19,FALSE),0) -> 12108 | W53: 2297 | X53: 0.1897092831 | Y53: 73 | Z53: 0 | AB53: 5301680 | AC53: CONWAY
A54: =VLOOKUP(B54,CCDDD!$A$3:$B$319,2,FALSE) -> 14099 | B54: 5301710 | C54: COSMOPOLIS | D54: 0 | E54: 0 | F54: =VLOOKUP(B54,'24-25 Adjusted Formula counts'!$A$3:$L$320,8,FALSE) -> 315 | G54: =ROUND((F54/$F$5*Assumptions!$C$22*Assumptions!$C$30),0) -> 1694 | H54: =VLOOKUP(B54,'24-25 Adjusted Formula counts'!$A$3:$L$320,9,FALSE) -> 48 | I54: =ROUND((H54/$H$5*Assumptions!$C$22*Assumptions!$C$31),0) -> 9510 | K54: 11204 | N54: 11204 | O54: 0 | P54: 11204 | R54: 0 | S54: 11204 | U54: =IFERROR(VLOOKUP($A54, 'Allocation 2023-24 Final'!$A$7:$S$323,19,FALSE),0) -> 6978 | W54: 4226 | X54: 0.6056176555 | Y54: 50 | Z54: 0 | AB54: 5301710 | AC54: COSMOPOLIS
A55: =VLOOKUP(B55,CCDDD!$A$3:$B$319,2,FALSE) -> 13151 | B55: 5303440 | C55: COULEE-HARTLINE | D55: 0 | E55: 0 | F55: =VLOOKUP(B55,'24-25 Adjusted Formula counts'!$A$3:$L$320,8,FALSE) -> 247 | G55: =ROUND((F55/$F$5*Assumptions!$C$22*Assumptions!$C$30),0) -> 1328 | H55: =VLOOKUP(B55,'24-25 Adjusted Formula counts'!$A$3:$L$320,9,FALSE) -> 40 | I55: =ROUND((H55/$H$5*Assumptions!$C$22*Assumptions!$C$31),0) -> 7925 | K55: 9253 | N55: 9253 | O55: 0 | P55: 9253 | R55: 0 | S55: 9253 | U55: =IFERROR(VLOOKUP($A55, 'Allocation 2023-24 Final'!$A$7:$S$323,19,FALSE),0) -> 7593 | W55: 1660 | X55: 0.2186224154 | Y55: 85 | Z55: 0 | AB55: 5303440 | AC55: COULEE-HARTLINE
A56: =VLOOKUP(B56,CCDDD!$A$3:$B$319,2,FALSE) -> 15204 | B56: 5301800 | C56: COUPEVILLE | D56: 0 | E56: 0 | F56: =VLOOKUP(B56,'24-25 Adjusted Formula counts'!$A$3:$L$320,8,FALSE) -> 1094 | G56: =ROUND((F56/$F$5*Assumptions!$C$22*Assumptions!$C$30),0) -> 5882 | H56: =VLOOKUP(B56,'24-25 Adjusted Formula counts'!$A$3:$L$320,9,FALSE) -> 95 | I56: =ROUND((H56/$H$5*Assumptions!$C$22*Assumptions!$C$31),0) -> 18822 | K56: 24704 | N56: 24704 | O56: 0 | P56: 24704 | R56: 0 | S56: 24704 | U56: =IFERROR(VLOOKUP($A56, 'Allocation 2023-24 Final'!$A$7:$S$323,19,FALSE),0) -> 29753 | W56: -5049 | X56: -0.1696971734 | Y56: 234 | Z56: 0 | AB56: 5301800 | AC56: COUPEVILLE
A57: =VLOOKUP(B57,CCDDD!$A$3:$B$319,2,FALSE) -> 05313 | B57: 5301830 | C57: CRESCENT | D57: 0 | E57: 0 | F57: =VLOOKUP(B57,'24-25 Adjusted Formula counts'!$A$3:$L$320,8,FALSE) -> 345 | G57: =ROUND((F57/$F$5*Assumptions!$C$22*Assumptions!$C$30),0) -> 1855 | H57: =VLOOKUP(B57,'24-25 Adjusted Formula counts'!$A$3:$L$320,9,FALSE) -> 62 | I57: =ROUND((H57/$H$5*Assumptions!$C$22*Assumptions!$C$31),0) -> 12284 | K57: 14139 | N57: 14139 | O57: 0 | P57: 14139 | R57: 0 | S57: 14139 | U57: =IFERROR(VLOOKUP($A57, 'Allocation 2023-24 Final'!$A$7:$S$323,19,FALSE),0) -> 10684 | W57: 3455 | X57: 0.3233807563 | Y57: 57 | Z57: 0 | AB57: 5301830 | AC57: CRESCENT
A58: =VLOOKUP(B58,CCDDD!$A$3:$B$319,2,FALSE) -> 22073 | B58: 5301860 | C58: CRESTON | D58: 0 | E58: 0 | F58: =VLOOKUP(B58,'24-25 Adjusted Formula counts'!$A$3:$L$320,8,FALSE) -> 114 | G58: =ROUND((F58/$F$5*Assumptions!$C$22*Assumptions!$C$30),0) -> 613 | H58: =VLOOKUP(B58,'24-25 Adjusted Formula counts'!$A$3:$L$320,9,FALSE) -> 13 | I58: =ROUND((H58/$H$5*Assumptions!$C$22*Assumptions!$C$31),0) -> 2576 | K58: 3189 | N58: 3189 | O58: 0 | P58: 3189 | R58: 0 | S58: 3189 | U58: =IFERROR(VLOOKUP($A58, 'Allocation 2023-24 Final'!$A$7:$S$323,19,FALSE),0) -> 4292 | W58: -1103 | X58: -0.2569897484 | Y58: 180 | Z58: 0 | AB58: 5301860 | AC58: CRESTON
A59: =VLOOKUP(B59,CCDDD!$A$3:$B$319,2,FALSE) -> 10050 | B59: 5301890 | C59: CURLEW | D59: 0 | E59: 0 | F59: =VLOOKUP(B59,'24-25 Adjusted Formula counts'!$A$3:$L$320,8,FALSE) -> 158 | G59: =ROUND((F59/$F$5*Assumptions!$C$22*Assumptions!$C$30),0) -> 849 | H59: =VLOOKUP(B59,'24-25 Adjusted Formula counts'!$A$3:$L$320,9,FALSE) -> 41 | I59: =ROUND((H59/$H$5*Assumptions!$C$22*Assumptions!$C$31),0) -> 8123 | K59: 8972 | N59: 8972 | O59: 0 | P59: 8972 | R59: 0 | S59: 8972 | U59: =IFERROR(VLOOKUP($A59, 'Allocation 2023-24 Final'!$A$7:$S$323,19,FALSE),0) -> 9584 | W59: -612 | X59: -0.06385642738 | Y59: 160 | Z59: 0 | AB59: 5301890 | AC59: CURLEW
A60: =VLOOKUP(B60,CCDDD!$A$3:$B$319,2,FALSE) -> 26059 | B60: 5301920 | C60: CUSICK | D60: 0 | E60: 0 | F60: =VLOOKUP(B60,'24-25 Adjusted Formula counts'!$A$3:$L$320,8,FALSE) -> 316 | G60: =ROUND((F60/$F$5*Assumptions!$C$22*Assumptions!$C$30),0) -> 1699 | H60: =VLOOKUP(B60,'24-25 Adjusted Formula counts'!$A$3:$L$320,9,FALSE) -> 70 | I60: =ROUND((H60/$H$5*Assumptions!$C$22*Assumptions!$C$31),0) -> 13869 | K60: 15568 | N60: 15568 | O60: 0 | P60: 15568 | R60: 0 | S60: 15568 | U60: =IFERROR(VLOOKUP($A60, 'Allocation 2023-24 Final'!$A$7:$S$323,19,FALSE),0) -> 13901 | W60: 1667 | X60: 0.1199194303 | Y60: 84 | Z60: 0 | AB60: 5301920 | AC60: CUSICK
A61: =VLOOKUP(B61,CCDDD!$A$3:$B$319,2,FALSE) -> 19007 | B61: 5301950 | C61: DAMMAN | D61: 0 | E61: 0 | F61: =VLOOKUP(B61,'24-25 Adjusted Formula counts'!$A$3:$L$320,8,FALSE) -> 111 | G61: =ROUND((F61/$F$5*Assumptions!$C$22*Assumptions!$C$30),0) -> 597 | H61: =VLOOKUP(B61,'24-25 Adjusted Formula counts'!$A$3:$L$320,9,FALSE) -> 2 | I61: =ROUND((H61/$H$5*Assumptions!$C$22*Assumptions!$C$31),0) -> 396 | K61: 993 | N61: 993 | O61: 0 | P61: 993 | R61: 0 | S61: 993 | U61: =IFERROR(VLOOKUP($A61, 'Allocation 2023-24 Final'!$A$7:$S$323,19,FALSE),0) -> 975 | W61: 18 | X61: 0.01846153846 | Y61: 136 | Z61: 0 | AB61: 5301950 | AC61: DAMMAN
A62: =VLOOKUP(B62,CCDDD!$A$3:$B$319,2,FALSE) -> 31330 | B62: 5301980 | C62: DARRINGTON | D62: 0 | E62: 0 | F62: =VLOOKUP(B62,'24-25 Adjusted Formula counts'!$A$3:$L$320,8,FALSE) -> 504 | G62: =ROUND((F62/$F$5*Assumptions!$C$22*Assumptions!$C$30),0) -> 2710 | H62: =VLOOKUP(B62,'24-25 Adjusted Formula counts'!$A$3:$L$320,9,FALSE) -> 61 | I62: =ROUND((H62/$H$5*Assumptions!$C$22*Assumptions!$C$31),0) -> 12086 | K62: 14796 | N62: 14796 | O62: 0 | P62: 14796 | R62: 0 | S62: 14796 | U62: =IFERROR(VLOOKUP($A62, 'Allocation 2023-24 Final'!$A$7:$S$323,19,FALSE),0) -> 18129 | W62: -3333 | X62: -0.1838490816 | Y62: 215 | Z62: 0 | AB62: 5301980 | AC62: DARRINGTON
A63: =VLOOKUP(B63,CCDDD!$A$3:$B$319,2,FALSE) -> 22207 | B63: 5302010 | C63: DAVENPORT | D63: 0 | E63: 0 | F63: =VLOOKUP(B63,'24-25 Adjusted Formula counts'!$A$3:$L$320,8,FALSE) -> 588 | G63: =ROUND((F63/$F$5*Assumptions!$C$22*Assumptions!$C$30),0) -> 3161 | H63: =VLOOKUP(B63,'24-25 Adjusted Formula counts'!$A$3:$L$320,9,FALSE) -> 80 | I63: =ROUND((H63/$H$5*Assumptions!$C$22*Assumptions!$C$31),0) -> 15850 | K63: 19011 | N63: 19011 | O63: 0 | P63: 19011 | R63: 0 | S63: 19011 | U63: =IFERROR(VLOOKUP($A63, 'Allocation 2023-24 Final'!$A$7:$S$323,19,FALSE),0) -> 16113 | W63: 2898 | X63: 0.1798547756 | Y63: 64 | Z63: 0 | AB63: 5302010 | AC63: DAVENPORT
A64: =VLOOKUP(B64,CCDDD!$A$3:$B$319,2,FALSE) -> 07002 | B64: 5302040 | C64: DAYTON | D64: 0 | E64: 0 | F64: =VLOOKUP(B64,'24-25 Adjusted Formula counts'!$A$3:$L$320,8,FALSE) -> 505 | G64: =ROUND((F64/$F$5*Assumptions!$C$22*Assumptions!$C$30),0) -> 2715 | H64: =VLOOKUP(B64,'24-25 Adjusted Formula counts'!$A$3:$L$320,9,FALSE) -> 72 | I64: =ROUND((H64/$H$5*Assumptions!$C$22*Assumptions!$C$31),0) -> 14265 | K64: 16980 | N64: 16980 | O64: 0 | P64: 16980 | R64: 0 | S64: 16980 | U64: =IFERROR(VLOOKUP($A64, 'Allocation 2023-24 Final'!$A$7:$S$323,19,FALSE),0) -> 21716 | W64: -4736 | X64: -0.2180880457 | Y64: 232 | Z64: 0 | AB64: 5302040 | AC64: DAYTON
A65: =VLOOKUP(B65,CCDDD!$A$3:$B$319,2,FALSE) -> 32414 | B65: 5302070 | C65: DEER PARK | D65: 0 | E65: 0 | F65: =VLOOKUP(B65,'24-25 Adjusted Formula counts'!$A$3:$L$320,8,FALSE) -> 2369 | G65: =ROUND((F65/$F$5*Assumptions!$C$22*Assumptions!$C$30),0) -> 12737 | H65: =VLOOKUP(B65,'24-25 Adjusted Formula counts'!$A$3:$L$320,9,FALSE) -> 329 | I65: =ROUND((H65/$H$5*Assumptions!$C$22*Assumptions!$C$31),0) -> 65183 | K65: 77920 | N65: 77920 | O65: 0 | P65: 77920 | R65: 0 | S65: 77920 | U65: =IFERROR(VLOOKUP($A65, 'Allocation 2023-24 Final'!$A$7:$S$323,19,FALSE),0) -> 80298 | W65: -2378 | X65: -0.0296146853 | Y65: 202 | Z65: 0 | AB65: 5302070 | AC65: DEER PARK
A66: =VLOOKUP(B66,CCDDD!$A$3:$B$319,2,FALSE) -> 27343 | B66: 5302130 | C66: DIERINGER | D66: 0 | E66: 0 | F66: =VLOOKUP(B66,'24-25 Adjusted Formula counts'!$A$3:$L$320,8,FALSE) -> 2275 | G66: =ROUND((F66/$F$5*Assumptions!$C$22*Assumptions!$C$30),0) -> 12231 | H66: =VLOOKUP(B66,'24-25 Adjusted Formula counts'!$A$3:$L$320,9,FALSE) -> 87 | I66: =ROUND((H66/$H$5*Assumptions!$C$22*Assumptions!$C$31),0) -> 17237 | K66: 29468 | N66: 29468 | O66: 0 | P66: 29468 | R66: 0 | S66: 29468 | U66: =IFERROR(VLOOKUP($A66, 'Allocation 2023-24 Final'!$A$7:$S$323,19,FALSE),0) -> 31701 | W66: -2233 | X66: -0.07043941831 | Y66: 198 | Z66: 0 | AB66: 5302130 | AC66: DIERINGER
A67: =VLOOKUP(B67,CCDDD!$A$3:$B$319,2,FALSE) -> 36101 | B67: 5302160 | C67: DIXIE | D67: 0 | E67: 0 | F67: =VLOOKUP(B67,'24-25 Adjusted Formula counts'!$A$3:$L$320,8,FALSE) -> 74 | G67: =ROUND((F67/$F$5*Assumptions!$C$22*Assumptions!$C$30),0) -> 398 | H67: =VLOOKUP(B67,'24-25 Adjusted Formula counts'!$A$3:$L$320,9,FALSE) -> 2 | I67: =ROUND((H67/$H$5*Assumptions!$C$22*Assumptions!$C$31),0) -> 396 | K67: 794 | N67: 794 | O67: 0 | P67: 794 | R67: 0 | S67: 794 | U67: =IFERROR(VLOOKUP($A67, 'Allocation 2023-24 Final'!$A$7:$S$323,19,FALSE),0) -> 2361 | W67: -1567 | X67: -0.6637018213 | Y67: 188 | Z67: 0 | AB67: 5302160 | AC67: DIXIE
A68: =VLOOKUP(B68,CCDDD!$A$3:$B$319,2,FALSE) -> 32361 | B68: 5302280 | C68: EAST VALLEY (SPK) | D68: 0 | E68: 0 | F68: =VLOOKUP(B68,'24-25 Adjusted Formula counts'!$A$3:$L$320,8,FALSE) -> 4679 | G68: =ROUND((F68/$F$5*Assumptions!$C$22*Assumptions!$C$30),0) -> 25156 | H68: =VLOOKUP(B68,'24-25 Adjusted Formula counts'!$A$3:$L$320,9,FALSE) -> 772 | I68: =ROUND((H68/$H$5*Assumptions!$C$22*Assumptions!$C$31),0) -> 152952 | K68: 178108 | N68: 178108 | O68: 0 | P68: 178108 | R68: 0 | S68: 178108 | U68: =IFERROR(VLOOKUP($A68, 'Allocation 2023-24 Final'!$A$7:$S$323,19,FALSE),0) -> 160127 | W68: 17981 | X68: 0.1122921181 | Y68: 21 | Z68: 0 | AB68: 5302280 | AC68: EAST VALLEY (SPK)
A69: =VLOOKUP(B69,CCDDD!$A$3:$B$319,2,FALSE) -> 39090 | B69: 5305370 | C69: EAST VALLEY (YAK) | D69: 0 | E69: 0 | F69: =VLOOKUP(B69,'24-25 Adjusted Formula counts'!$A$3:$L$320,8,FALSE) -> 3556 | G69: =ROUND((F69/$F$5*Assumptions!$C$22*Assumptions!$C$30),0) -> 19119 | H69: =VLOOKUP(B69,'24-25 Adjusted Formula counts'!$A$3:$L$320,9,FALSE) -> 411 | I69: =ROUND((H69/$H$5*Assumptions!$C$22*Assumptions!$C$31),0) -> 81429 | K69: 100548 | N69: 100548 | O69: 0 | P69: 100548 | R69: 0 | S69: 100548 | U69: =IFERROR(VLOOKUP($A69, 'Allocation 2023-24 Final'!$A$7:$S$323,19,FALSE),0) -> 107281 | W69: -6733 | X69: -0.06276041424 | Y69: 249 | Z69: 0 | AB69: 5305370 | AC69: EAST VALLEY (YAK)
A70: =VLOOKUP(B70,CCDDD!$A$3:$B$319,2,FALSE) -> 09206 | B70: 5302310 | C70: EASTMONT | D70: 0 | E70: 0 | F70: =VLOOKUP(B70,'24-25 Adjusted Formula counts'!$A$3:$L$320,8,FALSE) -> 6325 | G70: =ROUND((F70/$F$5*Assumptions!$C$22*Assumptions!$C$30),0) -> 34006 | H70: =VLOOKUP(B70,'24-25 Adjusted Formula counts'!$A$3:$L$320,9,FALSE) -> 597 | I70: =ROUND((H70/$H$5*Assumptions!$C$22*Assumptions!$C$31),0) -> 118280 | K70: 152286 | N70: 152286 | O70: 0 | P70: 152286 | R70: 0 | S70: 152286 | U70: =IFERROR(VLOOKUP($A70, 'Allocation 2023-24 Final'!$A$7:$S$323,19,FALSE),0) -> 165305 | W70: -13019 | X70: -0.07875744835 | Y70: 274 | Z70: 0 | AB70: 5302310 | AC70: EASTMONT
A71: =VLOOKUP(B71,CCDDD!$A$3:$B$319,2,FALSE) -> 19028 | B71: 5302340 | C71: EASTON | D71: 0 | E71: 0 | F71: =VLOOKUP(B71,'24-25 Adjusted Formula counts'!$A$3:$L$320,8,FALSE) -> 150 | G71: =ROUND((F71/$F$5*Assumptions!$C$22*Assumptions!$C$30),0) -> 806 | H71: =VLOOKUP(B71,'24-25 Adjusted Formula counts'!$A$3:$L$320,9,FALSE) -> 7 | I71: =ROUND((H71/$H$5*Assumptions!$C$22*Assumptions!$C$31),0) -> 1387 | K71: =ROUNDDOWN(+I71+G71+E71+D71+J71,0) -> 2193 | N71: =K71 -> 2193 | O71: =-ROUND(N71/$N$5*$M$5,0) -> 0 | P71: =+K71+O71+M71 -> 2193 | R71: =-1*(P71*Q71) -> 0 | S71: =+P71+R71 -> 2193 | U71: =IFERROR(VLOOKUP($A71, 'Allocation 2023-24 Final'!$A$7:$S$323,19,FALSE),0) -> 3121 | W71: =+S71-U71 -> -928 | X71: =IF(U71>0,W71/U71,0) -> -0.297340596 | Y71: 172 | Z71: =(SUM(D71:E71)/S71) -> 0 | AB71: =+B71 -> 5302340 | AC71: EASTON
A72: =VLOOKUP(B72,CCDDD!$A$3:$B$319,2,FALSE) -> 27404 | B72: 5302370 | C72: EATONVILLE | D72: 0 | E72: 0 | F72: =VLOOKUP(B72,'24-25 Adjusted Formula counts'!$A$3:$L$320,8,FALSE) -> 2204 | G72: =ROUND((F72/$F$5*Assumptions!$C$22*Assumptions!$C$30),0) -> 11850 | H72: =VLOOKUP(B72,'24-25 Adjusted Formula counts'!$A$3:$L$320,9,FALSE) -> 180 | I72: =ROUND((H72/$H$5*Assumptions!$C$22*Assumptions!$C$31),0) -> 35662 | K72: 47512 | N72: 47512 | O72: 0 | P72: 47512 | R72: 0 | S72: 47512 | U72: =IFERROR(VLOOKUP($A72, 'Allocation 2023-24 Final'!$A$7:$S$323,19,FALSE),0) -> 52936 | W72: -5424 | X72: -0.102463352 | Y72: =RANK(W72,$W$7:$W$322,0) -> 238 | Z72: 0 | AB72: 5302370 | AC72: EATONVILLE
A73: =VLOOKUP(B73,CCDDD!$A$3:$B$319,2,FALSE) -> 31015 | B73: 5302400 | C73: EDMONDS | D73: 0 | E73: 0 | F73: =VLOOKUP(B73,'24-25 Adjusted Formula counts'!$A$3:$L$320,8,FALSE) -> 24249 | G73: =ROUND((F73/$F$5*Assumptions!$C$22*Assumptions!$C$30),0) -> 130373 | H73: =VLOOKUP(B73,'24-25 Adjusted Formula counts'!$A$3:$L$320,9,FALSE) -> 2088 | I73: =ROUND((H73/$H$5*Assumptions!$C$22*Assumptions!$C$31),0) -> 413684 | K73: 544057 | N73: 544057 | O73: 0 | P73: 544057 | R73: 0 | S73: 544057 | U73: =IFERROR(VLOOKUP($A73, 'Allocation 2023-24 Final'!$A$7:$S$323,19,FALSE),0) -> 504290 | W73: 39767 | X73: 0.07885740348 | Y73: 10 | Z73: 0 | AB73: 5302400 | AC73: EDMONDS
A74: =VLOOKUP(B74,CCDDD!$A$3:$B$319,2,FALSE) -> 19401 | B74: 5302460 | C74: ELLENSBURG | D74: 0 | E74: 0 | F74: =VLOOKUP(B74,'24-25 Adjusted Formula counts'!$A$3:$L$320,8,FALSE) -> 3543 | G74: =ROUND((F74/$F$5*Assumptions!$C$22*Assumptions!$C$30),0) -> 19049 | H74: =VLOOKUP(B74,'24-25 Adjusted Formula counts'!$A$3:$L$320,9,FALSE) -> 377 | I74: =ROUND((H74/$H$5*Assumptions!$C$22*Assumptions!$C$31),0) -> 74693 | K74: 93742 | N74: 93742 | O74: 0 | P74: 93742 | R74: 0 | S74: 93742 | U74: =IFERROR(VLOOKUP($A74, 'Allocation 2023-24 Final'!$A$7:$S$323,19,FALSE),0) -> 103006 | W74: -9264 | X74: -0.08993650855 | Y74: 260 | Z74: 0 | AB74: 5302460 | AC74: ELLENSBURG
A75: =VLOOKUP(B75,CCDDD!$A$3:$B$319,2,FALSE) -> 14068 | B75: 5302490 | C75: ELMA | D75: 0 | E75: 0 | F75: =VLOOKUP(B75,'24-25 Adjusted Formula counts'!$A$3:$L$320,8,FALSE) -> 1588 | G75: =ROUND((F75/$F$5*Assumptions!$C$22*Assumptions!$C$30),0) -> 8538 | H75: =VLOOKUP(B75,'24-25 Adjusted Formula counts'!$A$3:$L$320,9,FALSE) -> 325 | I75: =ROUND((H75/$H$5*Assumptions!$C$22*Assumptions!$C$31),0) -> 64390 | K75: 72928 | N75: 72928 | O75: 0 | P75: 72928 | R75: 0 | S75: 72928 | U75: =IFERROR(VLOOKUP($A75, 'Allocation 2023-24 Final'!$A$7:$S$323,19,FALSE),0) -> 63968 | W75: 8960 | X75: 0.140070035 | Y75: 34 | Z75: 0 | AB75: 5302490 | AC75: ELMA
A76: =VLOOKUP(B76,CCDDD!$A$3:$B$319,2,FALSE) -> 38308 | B76: 5302520 | C76: ENDICOTT | D76: 0 | E76: 0 | F76: =VLOOKUP(B76,'24-25 Adjusted Formula counts'!$A$3:$L$320,8,FALSE) -> 87 | G76: =ROUND((F76/$F$5*Assumptions!$C$22*Assumptions!$C$30),0) -> 468 | H76: =VLOOKUP(B76,'24-25 Adjusted Formula counts'!$A$3:$L$320,9,FALSE) -> 17 | I76: =ROUND((H76/$H$5*Assumptions!$C$22*Assumptions!$C$31),0) -> 3368 | K76: 3836 | N76: 3836 | O76: 0 | P76: 3836 | R76: 0 | S76: 3836 | U76: =IFERROR(VLOOKUP($A76, 'Allocation 2023-24 Final'!$A$7:$S$323,19,FALSE),0) -> 3974 | W76: -138 | X76: -0.03472571716 | Y76: 142 | Z76: 0 | AB76: 5302520 | AC76: ENDICOTT
A77: =VLOOKUP(B77,CCDDD!$A$3:$B$319,2,FALSE) -> 04127 | B77: 5302550 | C77: ENTIAT | D77: 0 | E77: 0 | F77: =VLOOKUP(B77,'24-25 Adjusted Formula counts'!$A$3:$L$320,8,FALSE) -> 406 | G77: =ROUND((F77/$F$5*Assumptions!$C$22*Assumptions!$C$30),0) -> 2183 | H77: =VLOOKUP(B77,'24-25 Adjusted Formula counts'!$A$3:$L$320,9,FALSE) -> 66 | I77: =ROUND((H77/$H$5*Assumptions!$C$22*Assumptions!$C$31),0) -> 13076 | K77: 15259 | N77: 15259 | O77: 0 | P77: 15259 | R77: 0 | S77: 15259 | U77: =IFERROR(VLOOKUP($A77, 'Allocation 2023-24 Final'!$A$7:$S$323,19,FALSE),0) -> 14117 | W77: 1142 | X77: 0.08089537437 | Y77: 96 | Z77: 0 | AB77: 5302550 | AC77: ENTIAT
A78: =VLOOKUP(B78,CCDDD!$A$3:$B$319,2,FALSE) -> 17216 | B78: 5300001 | C78: ENUMCLAW | D78: 0 | E78: 0 | F78: =VLOOKUP(B78,'24-25 Adjusted Formula counts'!$A$3:$L$320,8,FALSE) -> 4662 | G78: =ROUND((F78/$F$5*Assumptions!$C$22*Assumptions!$C$30),0) -> 25065 | H78: =VLOOKUP(B78,'24-25 Adjusted Formula counts'!$A$3:$L$320,9,FALSE) -> 282 | I78: =ROUND((H78/$H$5*Assumptions!$C$22*Assumptions!$C$31),0) -> 55871 | K78: 80936 | N78: 80936 | O78: 0 | P78: 80936 | R78: 0 | S78: 80936 | U78: =IFERROR(VLOOKUP($A78, 'Allocation 2023-24 Final'!$A$7:$S$323,19,FALSE),0) -> 91652 | W78: -10716 | X78: -0.1169205255 | Y78: 270 | Z78: 0 | AB78: 5300001 | AC78: ENUMCLAW
A79: =VLOOKUP(B79,CCDDD!$A$3:$B$319,2,FALSE) -> 13165 | B79: 5302610 | C79: EPHRATA | D79: 0 | E79: 0 | F79: =VLOOKUP(B79,'24-25 Adjusted Formula counts'!$A$3:$L$320,8,FALSE) -> 2905 | G79: =ROUND((F79/$F$5*Assumptions!$C$22*Assumptions!$C$30),0) -> 15618 | H79: =VLOOKUP(B79,'24-25 Adjusted Formula counts'!$A$3:$L$320,9,FALSE) -> 461 | I79: =ROUND((H79/$H$5*Assumptions!$C$22*Assumptions!$C$31),0) -> 91335 | K79: 106953 | N79: 106953 | O79: 0 | P79: 106953 | R79: 0 | S79: 106953 | U79: =IFERROR(VLOOKUP($A79, 'Allocation 2023-24 Final'!$A$7:$S$323,19,FALSE),0) -> 82097 | W79: 24856 | X79: 0.3027638038 | Y79: 13 | Z79: 0 | AB79: 5302610 | AC79: EPHRATA
A80: =VLOOKUP(B80,CCDDD!$A$3:$B$319,2,FALSE) -> 21036 | B80: 5302640 | C80: EVALINE | D80: 0 | E80: 0 | F80: =VLOOKUP(B80,'24-25 Adjusted Formula counts'!$A$3:$L$320,8,FALSE) -> 128 | G80: =ROUND((F80/$F$5*Assumptions!$C$22*Assumptions!$C$30),0) -> 688 | H80: =VLOOKUP(B80,'24-25 Adjusted Formula counts'!$A$3:$L$320,9,FALSE) -> 22 | I80: =ROUND((H80/$H$5*Assumptions!$C$22*Assumptions!$C$31),0) -> 4359 | K80: 5047 | N80: 5047 | O80: 0 | P80: 5047 | R80: 0 | S80: 5047 | U80: =IFERROR(VLOOKUP($A80, 'Allocation 2023-24 Final'!$A$7:$S$323,19,FALSE),0) -> 4194 | W80: 853 | X80: 0.2033857892 | Y80: 104 | Z80: 0 | AB80: 5302640 | AC80: EVALINE
A81: =VLOOKUP(B81,CCDDD!$A$3:$B$319,2,FALSE) -> 31002 | B81: 5302670 | C81: EVERETT | D81: 0 | E81: 0 | F81: =VLOOKUP(B81,'24-25 Adjusted Formula counts'!$A$3:$L$320,8,FALSE) -> 22803 | G81: =ROUND((F81/$F$5*Assumptions!$C$22*Assumptions!$C$30),0) -> 122598 | H81: =VLOOKUP(B81,'24-25 Adjusted Formula counts'!$A$3:$L$320,9,FALSE) -> 2315 | I81: =ROUND((H81/$H$5*Assumptions!$C$22*Assumptions!$C$31),0) -> 458658 | K81: 581256 | N81: 581256 | O81: 0 | P81: 581256 | R81: 0 | S81: 581256 | U81: =IFERROR(VLOOKUP($A81, 'Allocation 2023-24 Final'!$A$7:$S$323,19,FALSE),0) -> 493305 | W81: 87951 | X81: 0.1782892936 | Y81: 4 | Z81: 0 | AB81: 5302670 | AC81: EVERETT
A82: =VLOOKUP(B82,CCDDD!$A$3:$B$319,2,FALSE) -> 06114 | B82: 5302700 | C82: EVERGREEN (CLARK) | D82: 0 | E82: 0 | F82: =VLOOKUP(B82,'24-25 Adjusted Formula counts'!$A$3:$L$320,8,FALSE) -> 26645 | G82: =ROUND((F82/$F$5*Assumptions!$C$22*Assumptions!$C$30),0) -> 143255 | H82: =VLOOKUP(B82,'24-25 Adjusted Formula counts'!$A$3:$L$320,9,FALSE) -> 2599 | I82: =ROUND((H82/$H$5*Assumptions!$C$22*Assumptions!$C$31),0) -> 514925 | K82: 658180 | N82: 658180 | O82: 0 | P82: 658180 | R82: 0 | S82: 658180 | U82: =IFERROR(VLOOKUP($A82, 'Allocation 2023-24 Final'!$A$7:$S$323,19,FALSE),0) -> 724637 | W82: -66457 | X82: -0.09171074621 | Y82: 311 | Z82: 0 | AB82: 5302700 | AC82: EVERGREEN (CLARK)
A83: =VLOOKUP(B83,CCDDD!$A$3:$B$319,2,FALSE) -> 33205 | B83: 5302730 | C83: EVERGREEN (STEV) | D83: 0 | E83: 0 | F83: =VLOOKUP(B83,'24-25 Adjusted Formula counts'!$A$3:$L$320,8,FALSE) -> 56 | G83: =ROUND((F83/$F$5*Assumptions!$C$22*Assumptions!$C$30),0) -> 301 | H83: =VLOOKUP(B83,'24-25 Adjusted Formula counts'!$A$3:$L$320,9,FALSE) -> 14 | I83: =ROUND((H83/$H$5*Assumptions!$C$22*Assumptions!$C$31),0) -> 2774 | K83: 3075 | N83: 3075 | O83: 0 | P83: 3075 | R83: 0 | S83: 3075 | U83: =IFERROR(VLOOKUP($A83, 'Allocation 2023-24 Final'!$A$7:$S$323,19,FALSE),0) -> 3813 | W83: -738 | X83: -0.1935483871 | Y83: 163 | Z83: 0 | AB83: 5302730 | AC83: EVERGREEN (STEV)
A84: =VLOOKUP(B84,CCDDD!$A$3:$B$319,2,FALSE) -> 17210 | B84: 5302820 | C84: FEDERAL WAY | D84: 0 | E84: 0 | F84: =VLOOKUP(B84,'24-25 Adjusted Formula counts'!$A$3:$L$320,8,FALSE) -> 24062 | G84: =ROUND((F84/$F$5*Assumptions!$C$22*Assumptions!$C$30),0) -> 129367 | H84: =VLOOKUP(B84,'24-25 Adjusted Formula counts'!$A$3:$L$320,9,FALSE) -> 4207 | I84: =ROUND((H84/$H$5*Assumptions!$C$22*Assumptions!$C$31),0) -> 833509 | K84: 962876 | N84: 962876 | O84: 0 | P84: 962876 | R84: 0 | S84: 962876 | U84: =IFERROR(VLOOKUP($A84, 'Allocation 2023-24 Final'!$A$7:$S$323,19,FALSE),0) -> 916747 | W84: 46129 | X84: 0.05031813576 | Y84: 8 | Z84: 0 | AB84: 5302820 | AC84: FEDERAL WAY
A85: =VLOOKUP(B85,CCDDD!$A$3:$B$319,2,FALSE) -> 37502 | B85: 5302850 | C85: FERNDALE | D85: 0 | E85: 0 | F85: =VLOOKUP(B85,'24-25 Adjusted Formula counts'!$A$3:$L$320,8,FALSE) -> 6171 | G85: =ROUND((F85/$F$5*Assumptions!$C$22*Assumptions!$C$30),0) -> 33178 | H85: =VLOOKUP(B85,'24-25 Adjusted Formula counts'!$A$3:$L$320,9,FALSE) -> 768 | I85: =ROUND((H85/$H$5*Assumptions!$C$22*Assumptions!$C$31),0) -> 152160 | K85: 185338 | N85: 185338 | O85: 0 | P85: 185338 | R85: 0 | S85: 185338 | U85: =IFERROR(VLOOKUP($A85, 'Allocation 2023-24 Final'!$A$7:$S$323,19,FALSE),0) -> 230528 | W85: -45190 | X85: -0.1960282482 | Y85: 307 | Z85: 0 | AB85: 5302850 | AC85: FERNDALE
A86: =VLOOKUP(B86,CCDDD!$A$3:$B$319,2,FALSE) -> 27417 | B86: 5302880 | C86: FIFE | D86: 0 | E86: 0 | F86: =VLOOKUP(B86,'24-25 Adjusted Formula counts'!$A$3:$L$320,8,FALSE) -> 4064 | G86: =ROUND((F86/$F$5*Assumptions!$C$22*Assumptions!$C$30),0) -> 21850 | H86: =VLOOKUP(B86,'24-25 Adjusted Formula counts'!$A$3:$L$320,9,FALSE) -> 357 | I86: =ROUND((H86/$H$5*Assumptions!$C$22*Assumptions!$C$31),0) -> 70730 | K86: 92580 | N86: 92580 | O86: 0 | P86: 92580 | R86: 0 | S86: 92580 | U86: =IFERROR(VLOOKUP($A86, 'Allocation 2023-24 Final'!$A$7:$S$323,19,FALSE),0) -> 100925 | W86: -8345 | X86: -0.08268516225 | Y86: 257 | Z86: 0 | AB86: 5302880 | AC86: FIFE
A87: =VLOOKUP(B87,CCDDD!$A$3:$B$319,2,FALSE) -> 03053 | B87: 5302910 | C87: FINLEY | D87: 0 | E87: 0 | F87: =VLOOKUP(B87,'24-25 Adjusted Formula counts'!$A$3:$L$320,8,FALSE) -> 905 | G87: =ROUND((F87/$F$5*Assumptions!$C$22*Assumptions!$C$30),0) -> 4866 | H87: =VLOOKUP(B87,'24-25 Adjusted Formula counts'!$A$3:$L$320,9,FALSE) -> 118 | I87: =ROUND((H87/$H$5*Assumptions!$C$22*Assumptions!$C$31),0) -> 23379 | K87: 28245 | N87: 28245 | O87: 0 | P87: 28245 | R87: 0 | S87: 28245 | U87: =IFERROR(VLOOKUP($A87, 'Allocation 2023-24 Final'!$A$7:$S$323,19,FALSE),0) -> 31170 | W87: -2925 | X87: -0.09384023099 | Y87: 208 | Z87: 0 | AB87: 5302910 | AC87: FINLEY
A88: =VLOOKUP(B88,CCDDD!$A$3:$B$319,2,FALSE) -> 27402 | B88: 5302940 | C88: FRANKLIN PIERCE | D88: 0 | E88: 0 | F88: =VLOOKUP(B88,'24-25 Adjusted Formula counts'!$A$3:$L$320,8,FALSE) -> 9266 | G88: =ROUND((F88/$F$5*Assumptions!$C$22*Assumptions!$C$30),0) -> 49818 | H88: =VLOOKUP(B88,'24-25 Adjusted Formula counts'!$A$3:$L$320,9,FALSE) -> 1208 | I88: =ROUND((H88/$H$5*Assumptions!$C$22*Assumptions!$C$31),0) -> 239334 | K88: 289152 | N88: 289152 | O88: 0 | P88: 289152 | R88: 0 | S88: 289152 | U88: =IFERROR(VLOOKUP($A88, 'Allocation 2023-24 Final'!$A$7:$S$323,19,FALSE),0) -> 291380 | W88: -2228 | X88: -0.007646372435 | Y88: 197 | Z88: 0 | AB88: 5302940 | AC88: FRANKLIN PIERCE
A89: =VLOOKUP(B89,CCDDD!$A$3:$B$319,2,FALSE) -> 32358 | B89: 5302970 | C89: FREEMAN | D89: 0 | E89: 0 | F89: =VLOOKUP(B89,'24-25 Adjusted Formula counts'!$A$3:$L$320,8,FALSE) -> 994 | G89: =ROUND((F89/$F$5*Assumptions!$C$22*Assumptions!$C$30),0) -> 5344 | H89: =VLOOKUP(B89,'24-25 Adjusted Formula counts'!$A$3:$L$320,9,FALSE) -> 49 | I89: =ROUND((H89/$H$5*Assumptions!$C$22*Assumptions!$C$31),0) -> 9708 | K89: 15052 | N89: 15052 | O89: 0 | P89: 15052 | R89: 0 | S89: 15052 | U89: =IFERROR(VLOOKUP($A89, 'Allocation 2023-24 Final'!$A$7:$S$323,19,FALSE),0) -> 16521 | W89: -1469 | X89: -0.08891713577 | Y89: 187 | Z89: 0 | AB89: 5302970 | AC89: FREEMAN
A90: =VLOOKUP(B90,CCDDD!$A$3:$B$319,2,FALSE) -> 38302 | B90: 5303000 | C90: GARFIELD | D90: 0 | E90: 0 | F90: =VLOOKUP(B90,'24-25 Adjusted Formula counts'!$A$3:$L$320,8,FALSE) -> 127 | G90: =ROUND((F90/$F$5*Assumptions!$C$22*Assumptions!$C$30),0) -> 683 | H90: =VLOOKUP(B90,'24-25 Adjusted Formula counts'!$A$3:$L$320,9,FALSE) -> 35 | I90: =ROUND((H90/$H$5*Assumptions!$C$22*Assumptions!$C$31),0) -> 6934 | K90: 7617 | N90: 7617 | O90: 0 | P90: 7617 | R90: 0 | S90: 7617 | U90: =IFERROR(VLOOKUP($A90, 'Allocation 2023-24 Final'!$A$7:$S$323,19,FALSE),0) -> 5168 | W90: 2449 | X90: 0.473877709 | Y90: 69 | Z90: 0 | AB90: 5303000 | AC90: GARFIELD
A91: =VLOOKUP(B91,CCDDD!$A$3:$B$319,2,FALSE) -> 20401 | B91: 5303030 | C91: GLENWOOD | D91: 0 | E91: 0 | F91: =VLOOKUP(B91,'24-25 Adjusted Formula counts'!$A$3:$L$320,8,FALSE) -> 60 | G91: =ROUND((F91/$F$5*Assumptions!$C$22*Assumptions!$C$30),0) -> 323 | H91: =VLOOKUP(B91,'24-25 Adjusted Formula counts'!$A$3:$L$320,9,FALSE) -> 13 | I91: =ROUND((H91/$H$5*Assumptions!$C$22*Assumptions!$C$31),0) -> 2576 | K91: 2899 | N91: 2899 | O91: 0 | P91: 2899 | R91: 0 | S91: 2899 | U91: =IFERROR(VLOOKUP($A91, 'Allocation 2023-24 Final'!$A$7:$S$323,19,FALSE),0) -> 3450 | W91: -551 | X91: -0.1597101449 | Y91: 156 | Z91: 0 | AB91: 5303030 | AC91: GLENWOOD
A92: =VLOOKUP(B92,CCDDD!$A$3:$B$319,2,FALSE) -> 20404 | B92: 5303090 | C92: GOLDENDALE | D92: 0 | E92: 0 | F92: =VLOOKUP(B92,'24-25 Adjusted Formula counts'!$A$3:$L$320,8,FALSE) -> 1055 | G92: =ROUND((F92/$F$5*Assumptions!$C$22*Assumptions!$C$30),0) -> 5672 | H92: =VLOOKUP(B92,'24-25 Adjusted Formula counts'!$A$3:$L$320,9,FALSE) -> 216 | I92: =ROUND((H92/$H$5*Assumptions!$C$22*Assumptions!$C$31),0) -> 42795 | K92: 48467 | N92: 48467 | O92: 0 | P92: 48467 | R92: 0 | S92: 48467 | U92: =IFERROR(VLOOKUP($A92, 'Allocation 2023-24 Final'!$A$7:$S$323,19,FALSE),0) -> 52735 | W92: -4268 | X92: -0.08093296672 | Y92: 229 | Z92: 0 | AB92: 5303090 | AC92: GOLDENDALE
A93: =VLOOKUP(B93,CCDDD!$A$3:$B$319,2,FALSE) -> 13301 | B93: 5303130 | C93: GRAND COULEE | D93: 0 | E93: 0 | F93: =VLOOKUP(B93,'24-25 Adjusted Formula counts'!$A$3:$L$320,8,FALSE) -> 679 | G93: =ROUND((F93/$F$5*Assumptions!$C$22*Assumptions!$C$30),0) -> 3651 | H93: =VLOOKUP(B93,'24-25 Adjusted Formula counts'!$A$3:$L$320,9,FALSE) -> 101 | I93: =ROUND((H93/$H$5*Assumptions!$C$22*Assumptions!$C$31),0) -> 20011 | K93: 23662 | N93: 23662 | O93: 0 | P93: 23662 | R93: 0 | S93: 23662 | U93: =IFERROR(VLOOKUP($A93, 'Allocation 2023-24 Final'!$A$7:$S$323,19,FALSE),0) -> 20827 | W93: 2835 | X93: 0.1361213809 | Y93: 65 | Z93: 0 | AB93: 5303130 | AC93: GRAND COULEE
A94: =VLOOKUP(B94,CCDDD!$A$3:$B$319,2,FALSE) -> 39200 | B94: 5303150 | C94: GRANDVIEW | D94: 0 | E94: 0 | F94: =VLOOKUP(B94,'24-25 Adjusted Formula counts'!$A$3:$L$320,8,FALSE) -> 3732 | G94: =ROUND((F94/$F$5*Assumptions!$C$22*Assumptions!$C$30),0) -> 20065 | H94: =VLOOKUP(B94,'24-25 Adjusted Formula counts'!$A$3:$L$320,9,FALSE) -> 651 | I94: =ROUND((H94/$H$5*Assumptions!$C$22*Assumptions!$C$31),0) -> 128979 | K94: 149044 | N94: 149044 | O94: 0 | P94: 149044 | R94: 0 | S94: 149044 | U94: =IFERROR(VLOOKUP($A94, 'Allocation 2023-24 Final'!$A$7:$S$323,19,FALSE),0) -> 141348 | W94: 7696 | X94: 0.05444718001 | Y94: 37 | Z94: 0 | AB94: 5303150 | AC94: GRANDVIEW
A95: =VLOOKUP(B95,CCDDD!$A$3:$B$319,2,FALSE) -> 39204 | B95: 5303180 | C95: GRANGER | D95: 0 | E95: 0 | F95: =VLOOKUP(B95,'24-25 Adjusted Formula counts'!$A$3:$L$320,8,FALSE) -> 1587 | G95: =ROUND((F95/$F$5*Assumptions!$C$22*Assumptions!$C$30),0) -> 8532 | H95: =VLOOKUP(B95,'24-25 Adjusted Formula counts'!$A$3:$L$320,9,FALSE) -> 368 | I95: =ROUND((H95/$H$5*Assumptions!$C$22*Assumptions!$C$31),0) -> 72910 | K95: 81442 | N95: 81442 | O95: 0 | P95: 81442 | R95: 0 | S95: 81442 | U95: =IFERROR(VLOOKUP($A95, 'Allocation 2023-24 Final'!$A$7:$S$323,19,FALSE),0) -> 77438 | W95: 4004 | X95: 0.05170588083 | Y95: 52 | Z95: 0 | AB95: 5303180 | AC95: GRANGER
A96: =VLOOKUP(B96,CCDDD!$A$3:$B$319,2,FALSE) -> 31332 | B96: 5303210 | C96: GRANITE FALLS | D96: 0 | E96: 0 | F96: =VLOOKUP(B96,'24-25 Adjusted Formula counts'!$A$3:$L$320,8,FALSE) -> 2798 | G96: =ROUND((F96/$F$5*Assumptions!$C$22*Assumptions!$C$30),0) -> 15043 | H96: =VLOOKUP(B96,'24-25 Adjusted Formula counts'!$A$3:$L$320,9,FALSE) -> 214 | I96: =ROUND((H96/$H$5*Assumptions!$C$22*Assumptions!$C$31),0) -> 42399 | K96: 57442 | N96: 57442 | O96: 0 | P96: 57442 | R96: 0 | S96: 57442 | U96: =IFERROR(VLOOKUP($A96, 'Allocation 2023-24 Final'!$A$7:$S$323,19,FALSE),0) -> 55945 | W96: 1497 | X96: 0.02675842345 | Y96: 90 | Z96: 0 | AB96: 5303210 | AC96: GRANITE FALLS
A97: =VLOOKUP(B97,CCDDD!$A$3:$B$319,2,FALSE) -> 23054 | B97: 5303240 | C97: GRAPEVIEW | D97: 0 | E97: 0 | F97: =VLOOKUP(B97,'24-25 Adjusted Formula counts'!$A$3:$L$320,8,FALSE) -> 338 | G97: =ROUND((F97/$F$5*Assumptions!$C$22*Assumptions!$C$30),0) -> 1817 | H97: =VLOOKUP(B97,'24-25 Adjusted Formula counts'!$A$3:$L$320,9,FALSE) -> 26 | I97: =ROUND((H97/$H$5*Assumptions!$C$22*Assumptions!$C$31),0) -> 5151 | K97: 6968 | N97: 6968 | O97: 0 | P97: 6968 | R97: 0 | S97: 6968 | U97: =IFERROR(VLOOKUP($A97, 'Allocation 2023-24 Final'!$A$7:$S$323,19,FALSE),0) -> 10793 | W97: -3825 | X97: -0.354396368 | Y97: 221 | Z97: 0 | AB97: 5303240 | AC97: GRAPEVIEW
A98: =VLOOKUP(B98,CCDDD!$A$3:$B$319,2,FALSE) -> 32312 | B98: 5303270 | C98: GREAT NORTHERN | D98: 0 | E98: 0 | F98: =VLOOKUP(B98,'24-25 Adjusted Formula counts'!$A$3:$L$320,8,FALSE) -> 187 | G98: =ROUND((F98/$F$5*Assumptions!$C$22*Assumptions!$C$30),0) -> 1005 | H98: =VLOOKUP(B98,'24-25 Adjusted Formula counts'!$A$3:$L$320,9,FALSE) -> 43 | I98: =ROUND((H98/$H$5*Assumptions!$C$22*Assumptions!$C$31),0) -> 8519 | K98: 9524 | N98: 9524 | O98: 0 | P98: 9524 | R98: 0 | S98: 9524 | U98: =IFERROR(VLOOKUP($A98, 'Allocation 2023-24 Final'!$A$7:$S$323,19,FALSE),0) -> 9587 | W98: -63 | X98: -0.006571398769 | Y98: 138 | Z98: 0 | AB98: 5303270 | AC98: GREAT NORTHERN
A99: =VLOOKUP(B99,CCDDD!$A$3:$B$319,2,FALSE) -> 17910 | B99: 5303280 | C99: RAINIER VALLEY CHARTER | D99: 0 | E99: 0 | F99: =VLOOKUP(B99,'24-25 Adjusted Formula counts'!$A$3:$L$320,8,FALSE) -> 308.06056 | G99: =ROUND((F99/$F$5*Assumptions!$C$22*Assumptions!$C$30),0) -> 1656 | H99: =VLOOKUP(B99,'24-25 Adjusted Formula counts'!$A$3:$L$320,9,FALSE) -> 76.24089086 | I99: =ROUND((H99/$H$5*Assumptions!$C$22*Assumptions!$C$31),0) -> 15105 | K99: 16761 | N99: 16761 | O99: 0 | P99: 16761 | R99: 0 | S99: 16761 | U99: =IFERROR(VLOOKUP($A99, 'Allocation 2023-24 Final'!$A$7:$S$323,19,FALSE),0) -> 10859 | W99: 5902 | X99: 0.5435122939 | Y99: 43 | Z99: 0 | AB99: 5303280 | AC99: RAINIER VALLEY CHARTER
A100: =VLOOKUP(B100,CCDDD!$A$3:$B$319,2,FALSE) -> 06103 | B100: 5303300 | C100: GREEN MOUNTAIN | D100: 0 | E100: 0 | F100: =VLOOKUP(B100,'24-25 Adjusted Formula counts'!$A$3:$L$320,8,FALSE) -> 205 | G100: =ROUND((F100/$F$5*Assumptions!$C$22*Assumptions!$C$30),0) -> 1102 | H100: =VLOOKUP(B100,'24-25 Adjusted Formula counts'!$A$3:$L$320,9,FALSE) -> 16 | I100: =ROUND((H100/$H$5*Assumptions!$C$22*Assumptions!$C$31),0) -> 3170 | K100: 4272 | N100: 4272 | O100: 0 | P100: 4272 | R100: 0 | S100: 4272 | U100: =IFERROR(VLOOKUP($A100, 'Allocation 2023-24 Final'!$A$7:$S$323,19,FALSE),0) -> 4629 | W100: -357 | X100: -0.07712248866 | Y100: 150 | Z100: 0 | AB100: 5303300 | AC100: GREEN MOUNTAIN
A101: =VLOOKUP(B101,CCDDD!$A$3:$B$319,2,FALSE) -> 34324 | B101: 5303330 | C101: GRIFFIN | D101: 0 | E101: 0 | F101: =VLOOKUP(B101,'24-25 Adjusted Formula counts'!$A$3:$L$320,8,FALSE) -> 897 | G101: =ROUND((F101/$F$5*Assumptions!$C$22*Assumptions!$C$30),0) -> 4823 | H101: =VLOOKUP(B101,'24-25 Adjusted Formula counts'!$A$3:$L$320,9,FALSE) -> 42 | I101: =ROUND((H101/$H$5*Assumptions!$C$22*Assumptions!$C$31),0) -> 8321 | K101: 13144 | N101: 13144 | O101: 0 | P101: 13144 | R101: 0 | S101: 13144 | U101: =IFERROR(VLOOKUP($A101, 'Allocation 2023-24 Final'!$A$7:$S$323,19,FALSE),0) -> 17758 | W101: -4614 | X101: -0.259826557 | Y101: 231 | Z101: 0 | AB101: 5303330 | AC101: GRIFFIN
A102: =VLOOKUP(B102,CCDDD!$A$3:$B$319,2,FALSE) -> 22204 | B102: 5303360 | C102: HARRINGTON | D102: 0 | E102: 0 | F102: =VLOOKUP(B102,'24-25 Adjusted Formula counts'!$A$3:$L$320,8,FALSE) -> 145 | G102: =ROUND((F102/$F$5*Assumptions!$C$22*Assumptions!$C$30),0) -> 780 | H102: =VLOOKUP(B102,'24-25 Adjusted Formula counts'!$A$3:$L$320,9,FALSE) -> 12 | I102: =ROUND((H102/$H$5*Assumptions!$C$22*Assumptions!$C$31),0) -> 2377 | K102: 3157 | N102: 3157 | O102: 0 | P102: 3157 | R102: 0 | S102: 3157 | U102: =IFERROR(VLOOKUP($A102, 'Allocation 2023-24 Final'!$A$7:$S$323,19,FALSE),0) -> 4264 | W102: -1107 | X102: -0.2596153846 | Y102: 181 | Z102: 0 | AB102: 5303360 | AC102: HARRINGTON
A103: =VLOOKUP(B103,CCDDD!$A$3:$B$319,2,FALSE) -> 39203 | B103: 5303510 | C103: HIGHLAND | D103: 0 | E103: 0 | F103: =VLOOKUP(B103,'24-25 Adjusted Formula counts'!$A$3:$L$320,8,FALSE) -> 1272 | G103: =ROUND((F103/$F$5*Assumptions!$C$22*Assumptions!$C$30),0) -> 6839 | H103: =VLOOKUP(B103,'24-25 Adjusted Formula counts'!$A$3:$L$320,9,FALSE) -> 234 | I103: =ROUND((H103/$H$5*Assumptions!$C$22*Assumptions!$C$31),0) -> 46361 | K103: 53200 | N103: 53200 | O103: 0 | P103: 53200 | R103: 0 | S103: 53200 | U103: =IFERROR(VLOOKUP($A103, 'Allocation 2023-24 Final'!$A$7:$S$323,19,FALSE),0) -> 50777 | W103: 2423 | X103: 0.04771845521 | Y103: 70 | Z103: 0 | AB103: 5303510 | AC103: HIGHLAND
A104: =VLOOKUP(B104,CCDDD!$A$3:$B$319,2,FALSE) -> 17401 | B104: 5303540 | C104: HIGHLINE | D104: 0 | E104: 0 | F104: =VLOOKUP(B104,'24-25 Adjusted Formula counts'!$A$3:$L$320,8,FALSE) -> 19449.95997 | G104: =ROUND((F104/$F$5*Assumptions!$C$22*Assumptions!$C$30),0) -> 104571 | H104: =VLOOKUP(B104,'24-25 Adjusted Formula counts'!$A$3:$L$320,9,FALSE) -> 2972.07576 | I104: =ROUND((H104/$H$5*Assumptions!$C$22*Assumptions!$C$31),0) -> 588841 | K104: 693412 | N104: 693412 | O104: 0 | P104: 693412 | R104: 0 | S104: 693412 | U104: =IFERROR(VLOOKUP($A104, 'Allocation 2023-24 Final'!$A$7:$S$323,19,FALSE),0) -> 761314 | W104: -67902 | X104: -0.08919053111 | Y104: 312 | Z104: 0 | AB104: 5303540 | AC104: HIGHLINE
A105: =VLOOKUP(B105,CCDDD!$A$3:$B$319,2,FALSE) -> 06098 | B105: 5303570 | C105: HOCKINSON | D105: 0 | E105: 0 | F105: =VLOOKUP(B105,'24-25 Adjusted Formula counts'!$A$3:$L$320,8,FALSE) -> 2170 | G105: =ROUND((F105/$F$5*Assumptions!$C$22*Assumptions!$C$30),0) -> 11667 | H105: =VLOOKUP(B105,'24-25 Adjusted Formula counts'!$A$3:$L$320,9,FALSE) -> 92 | I105: =ROUND((H105/$H$5*Assumptions!$C$22*Assumptions!$C$31),0) -> 18227 | K105: 29894 | N105: 29894 | O105: 0 | P105: 29894 | R105: 0 | S105: 29894 | U105: =IFERROR(VLOOKUP($A105, 'Allocation 2023-24 Final'!$A$7:$S$323,19,FALSE),0) -> 39770 | W105: -9876 | X105: -0.2483278853 | Y105: 266 | Z105: 0 | AB105: 5303570 | AC105: HOCKINSON
A106: =VLOOKUP(B106,CCDDD!$A$3:$B$319,2,FALSE) -> 23404 | B106: 5303600 | C106: HOOD CANAL | D106: 0 | E106: 0 | F106: =VLOOKUP(B106,'24-25 Adjusted Formula counts'!$A$3:$L$320,8,FALSE) -> 695 | G106: =ROUND((F106/$F$5*Assumptions!$C$22*Assumptions!$C$30),0) -> 3737 | H106: =VLOOKUP(B106,'24-25 Adjusted Formula counts'!$A$3:$L$320,9,FALSE) -> 114 | I106: =ROUND((H106/$H$5*Assumptions!$C$22*Assumptions!$C$31),0) -> 22586 | K106: 26323 | N106: 26323 | O106: 0 | P106: 26323 | R106: 0 | S106: 26323 | U106: =IFERROR(VLOOKUP($A106, 'Allocation 2023-24 Final'!$A$7:$S$323,19,FALSE),0) -> 30449 | W106: -4126 | X106: -0.1355052711 | Y106: 224 | Z106: 0 | AB106: 5303600 | AC106: HOOD CANAL
A107: =VLOOKUP(B107,CCDDD!$A$3:$B$319,2,FALSE) -> 14028 | B107: 5303660 | C107: HOQUIAM | D107: 0 | E107: 0 | F107: =VLOOKUP(B107,'24-25 Adjusted Formula counts'!$A$3:$L$320,8,FALSE) -> 1816 | G107: =ROUND((F107/$F$5*Assumptions!$C$22*Assumptions!$C$30),0) -> 9764 | H107: =VLOOKUP(B107,'24-25 Adjusted Formula counts'!$A$3:$L$320,9,FALSE) -> 484 | I107: =ROUND((H107/$H$5*Assumptions!$C$22*Assumptions!$C$31),0) -> 95892 | K107: 105656 | N107: 105656 | O107: 0 | P107: 105656 | R107: 0 | S107: 105656 | U107: =IFERROR(VLOOKUP($A107, 'Allocation 2023-24 Final'!$A$7:$S$323,19,FALSE),0) -> 88393 | W107: 17263 | X107: 0.1952982702 | Y107: 23 | Z107: 0 | AB107: 5303660 | AC107: HOQUIAM
A108: =VLOOKUP(B108,CCDDD!$A$3:$B$319,2,FALSE) -> 27902 | B108: 5303705 | C108: IMPACT COMMENCEMENT BAY CHARTER | D108: 0 | E108: 0 | F108: =VLOOKUP(B108,'24-25 Adjusted Formula counts'!$A$3:$L$320,8,FALSE) -> 366.6171113 | G108: =ROUND((F108/$F$5*Assumptions!$C$22*Assumptions!$C$30),0) -> 1971 | H108: =VLOOKUP(B108,'24-25 Adjusted Formula counts'!$A$3:$L$320,9,FALSE) -> 55.13991666 | I108: =ROUND((H108/$H$5*Assumptions!$C$22*Assumptions!$C$31),0) -> 10925 | K108: 12896 | N108: 12896 | O108: 0 | P108: 12896 | R108: 0 | S108: 12896 | U108: =IFERROR(VLOOKUP($A108, 'Allocation 2023-24 Final'!$A$7:$S$323,19,FALSE),0) -> 12812 | W108: 84 | X108: 0.006556353419 | Y108: 130 | Z108: 0 | AB108: 5303705 | AC108: IMPACT COMMENCEMENT BAY CHARTER
A109: =VLOOKUP(B109,CCDDD!$A$3:$B$319,2,FALSE) -> 17911 | B109: 5303700 | C109: IMPACT PUGET SOUND CHARTER | D109: 0 | E109: 0 | F109: =VLOOKUP(B109,'24-25 Adjusted Formula counts'!$A$3:$L$320,8,FALSE) -> 398.5749862 | G109: =ROUND((F109/$F$5*Assumptions!$C$22*Assumptions!$C$30),0) -> 2143 | H109: =VLOOKUP(B109,'24-25 Adjusted Formula counts'!$A$3:$L$320,9,FALSE) -> 72.40561622 | I109: =ROUND((H109/$H$5*Assumptions!$C$22*Assumptions!$C$31),0) -> 14345 | K109: 16488 | N109: 16488 | O109: 0 | P109: 16488 | R109: 0 | S109: 16488 | U109: =IFERROR(VLOOKUP($A109, 'Allocation 2023-24 Final'!$A$7:$S$323,19,FALSE),0) -> 22753 | W109: -6265 | X109: -0.2753483057 | Y109: 245 | Z109: 0 | AB109: 5303700 | AC109: IMPACT PUGET SOUND CHARTER
A110: =VLOOKUP(B110,CCDDD!$A$3:$B$319,2,FALSE) -> 17916 | B110: 5303710 | C110: IMPACT SALISH SEA CHARTER | D110: 0 | E110: 0 | F110: =VLOOKUP(B110,'24-25 Adjusted Formula counts'!$A$3:$L$320,8,FALSE) -> 342.6923077 | G110: =ROUND((F110/$F$5*Assumptions!$C$22*Assumptions!$C$30),0) -> 1842 | H110: =VLOOKUP(B110,'24-25 Adjusted Formula counts'!$A$3:$L$320,9,FALSE) -> 51.87597504 | I110: =ROUND((H110/$H$5*Assumptions!$C$22*Assumptions!$C$31),0) -> 10278 | K110: 12120 | N110: 12120 | O110: 0 | P110: 12120 | R110: 0 | S110: 12120 | U110: =IFERROR(VLOOKUP($A110, 'Allocation 2023-24 Final'!$A$7:$S$323,19,FALSE),0) -> 12529 | W110: -409 | X110: -0.0326442653 | Y110: 153 | Z110: 0 | AB110: 5303710 | AC110: IMPACT SALISH SEA CHARTER
A111: =VLOOKUP(B111,CCDDD!$A$3:$B$319,2,FALSE) -> 10070 | B111: 5300002 | C111: INCHELIUM | D111: 0 | E111: 0 | F111: =VLOOKUP(B111,'24-25 Adjusted Formula counts'!$A$3:$L$320,8,FALSE) -> 189 | G111: =ROUND((F111/$F$5*Assumptions!$C$22*Assumptions!$C$30),0) -> 1016 | H111: =VLOOKUP(B111,'24-25 Adjusted Formula counts'!$A$3:$L$320,9,FALSE) -> 44 | I111: =ROUND((H111/$H$5*Assumptions!$C$22*Assumptions!$C$31),0) -> 8717 | K111: 9733 | N111: 9733 | O111: 0 | P111: 9733 | R111: 0 | S111: 9733 | U111: =IFERROR(VLOOKUP($A111, 'Allocation 2023-24 Final'!$A$7:$S$323,19,FALSE),0) -> 9550 | W111: 183 | X111: 0.01916230366 | Y111: 125 | Z111: 0 | AB111: 5300002 | AC111: INCHELIUM
A112: =VLOOKUP(B112,CCDDD!$A$3:$B$319,2,FALSE) -> 31063 | B112: 5303720 | C112: INDEX | D112: 0 | E112: 0 | F112: =VLOOKUP(B112,'24-25 Adjusted Formula counts'!$A$3:$L$320,8,FALSE) -> 54 | G112: =ROUND((F112/$F$5*Assumptions!$C$22*Assumptions!$C$30),0) -> 290 | H112: =VLOOKUP(B112,'24-25 Adjusted Formula counts'!$A$3:$L$320,9,FALSE) -> 9 | I112: =ROUND((H112/$H$5*Assumptions!$C$22*Assumptions!$C$31),0) -> 1783 | K112: 2073 | N112: 2073 | O112: 0 | P112: 2073 | R112: 0 | S112: 2073 | U112: =IFERROR(VLOOKUP($A112, 'Allocation 2023-24 Final'!$A$7:$S$323,19,FALSE),0) -> 2049 | W112: 24 | X112: 0.01171303075 | Y112: 133 | Z112: 0 | AB112: 5303720 | AC112: INDEX
A113: =VLOOKUP(B113,CCDDD!$A$3:$B$319,2,FALSE) -> 17411 | B113: 5303750 | C113: ISSAQUAH | D113: 0 | E113: 0 | F113: =VLOOKUP(B113,'24-25 Adjusted Formula counts'!$A$3:$L$320,8,FALSE) -> 22715 | G113: =ROUND((F113/$F$5*Assumptions!$C$22*Assumptions!$C$30),0) -> 122125 | H113: =VLOOKUP(B113,'24-25 Adjusted Formula counts'!$A$3:$L$320,9,FALSE) -> 847 | I113: =ROUND((H113/$H$5*Assumptions!$C$22*Assumptions!$C$31),0) -> 167811 | K113: 289936 | N113: 289936 | O113: 0 | P113: 289936 | R113: 0 | S113: 289936 | U113: =IFERROR(VLOOKUP($A113, 'Allocation 2023-24 Final'!$A$7:$S$323,19,FALSE),0) -> 307105 | W113: -17169 | X113: -0.0559059605 | Y113: 287 | Z113: 0 | AB113: 5303750 | AC113: ISSAQUAH
A114: =VLOOKUP(B114,CCDDD!$A$3:$B$319,2,FALSE) -> 11056 | B114: 5303780 | C114: KAHLOTUS | D114: 0 | E114: 0 | F114: =VLOOKUP(B114,'24-25 Adjusted Formula counts'!$A$3:$L$320,8,FALSE) -> 60 | G114: =ROUND((F114/$F$5*Assumptions!$C$22*Assumptions!$C$30),0) -> 323 | H114: =VLOOKUP(B114,'24-25 Adjusted Formula counts'!$A$3:$L$320,9,FALSE) -> 22 | I114: =ROUND((H114/$H$5*Assumptions!$C$22*Assumptions!$C$31),0) -> 4359 | K114: 4682 | N114: 4682 | O114: 0 | P114: 4682 | R114: 0 | S114: 4682 | U114: =IFERROR(VLOOKUP($A114, 'Allocation 2023-24 Final'!$A$7:$S$323,19,FALSE),0) -> 3055 | W114: 1627 | X114: 0.5325695581 | Y114: 86 | Z114: 0 | AB114: 5303780 | AC114: KAHLOTUS
A115: =VLOOKUP(B115,CCDDD!$A$3:$B$319,2,FALSE) -> 08402 | B115: 5303810 | C115: KALAMA | D115: 0 | E115: 0 | F115: =VLOOKUP(B115,'24-25 Adjusted Formula counts'!$A$3:$L$320,8,FALSE) -> 1354 | G115: =ROUND((F115/$F$5*Assumptions!$C$22*Assumptions!$C$30),0) -> 7280 | H115: =VLOOKUP(B115,'24-25 Adjusted Formula counts'!$A$3:$L$320,9,FALSE) -> 111 | I115: =ROUND((H115/$H$5*Assumptions!$C$22*Assumptions!$C$31),0) -> 21992 | K115: 29272 | N115: 29272 | O115: 0 | P115: 29272 | R115: 0 | S115: 29272 | U115: =IFERROR(VLOOKUP($A115, 'Allocation 2023-24 Final'!$A$7:$S$323,19,FALSE),0) -> 31068 | W115: -1796 | X115: -0.05780867774 | Y115: 189 | Z115: 0 | AB115: 5303810 | AC115: KALAMA
A116: =VLOOKUP(B116,CCDDD!$A$3:$B$319,2,FALSE) -> 10003 | B116: 5303870 | C116: KELLER | D116: 0 | E116: 0 | F116: =VLOOKUP(B116,'24-25 Adjusted Formula counts'!$A$3:$L$320,8,FALSE) -> 103 | G116: =ROUND((F116/$F$5*Assumptions!$C$22*Assumptions!$C$30),0) -> 554 | H116: =VLOOKUP(B116,'24-25 Adjusted Formula counts'!$A$3:$L$320,9,FALSE) -> 31 | I116: =ROUND((H116/$H$5*Assumptions!$C$22*Assumptions!$C$31),0) -> 6142 | K116: 6696 | N116: 6696 | O116: 0 | P116: 6696 | R116: 0 | S116: 6696 | U116: =IFERROR(VLOOKUP($A116, 'Allocation 2023-24 Final'!$A$7:$S$323,19,FALSE),0) -> 6382 | W116: 314 | X116: 0.04920087747 | Y116: 116 | Z116: 0 | AB116: 5303870 | AC116: KELLER
A117: =VLOOKUP(B117,CCDDD!$A$3:$B$319,2,FALSE) -> 08458 | B117: 5300003 | C117: KELSO | D117: 0 | E117: 0 | F117: =VLOOKUP(B117,'24-25 Adjusted Formula counts'!$A$3:$L$320,8,FALSE) -> 5470 | G117: =ROUND((F117/$F$5*Assumptions!$C$22*Assumptions!$C$30),0) -> 29409 | H117: =VLOOKUP(B117,'24-25 Adjusted Formula counts'!$A$3:$L$320,9,FALSE) -> 899 | I117: =ROUND((H117/$H$5*Assumptions!$C$22*Assumptions!$C$31),0) -> 178114 | K117: 207523 | N117: 207523 | O117: 0 | P117: 207523 | R117: 0 | S117: 207523 | U117: =IFERROR(VLOOKUP($A117, 'Allocation 2023-24 Final'!$A$7:$S$323,19,FALSE),0) -> 196084 | W117: 11439 | X117: 0.05833724322 | Y117: 27 | Z117: 0 | AB117: 5300003 | AC117: KELSO
A118: =VLOOKUP(B118,CCDDD!$A$3:$B$319,2,FALSE) -> 03017 | B118: 5303930 | C118: KENNEWICK | D118: 0 | E118: 0 | F118: =VLOOKUP(B118,'24-25 Adjusted Formula counts'!$A$3:$L$320,8,FALSE) -> 20412 | G118: =ROUND((F118/$F$5*Assumptions!$C$22*Assumptions!$C$30),0) -> 109743 | H118: =VLOOKUP(B118,'24-25 Adjusted Formula counts'!$A$3:$L$320,9,FALSE) -> 2775 | I118: =ROUND((H118/$H$5*Assumptions!$C$22*Assumptions!$C$31),0) -> 549795 | K118: 659538 | N118: 659538 | O118: 0 | P118: 659538 | R118: 0 | S118: 659538 | U118: =IFERROR(VLOOKUP($A118, 'Allocation 2023-24 Final'!$A$7:$S$323,19,FALSE),0) -> 608176 | W118: 51362 | X118: 0.0844525269 | Y118: 5 | Z118: 0 | AB118: 5303930 | AC118: KENNEWICK
A119: =VLOOKUP(B119,CCDDD!$A$3:$B$319,2,FALSE) -> 17415 | B119: 5303960 | C119: KENT | D119: 0 | E119: 0 | F119: =VLOOKUP(B119,'24-25 Adjusted Formula counts'!$A$3:$L$320,8,FALSE) -> 29989 | G119: =ROUND((F119/$F$5*Assumptions!$C$22*Assumptions!$C$30),0) -> 161233 | H119: =VLOOKUP(B119,'24-25 Adjusted Formula counts'!$A$3:$L$320,9,FALSE) -> 4261 | I119: =ROUND((H119/$H$5*Assumptions!$C$22*Assumptions!$C$31),0) -> 844208 | K119: 1005441 | N119: 1005441 | O119: 0 | P119: 1005441 | R119: 0 | S119: 1005441 | U119: =IFERROR(VLOOKUP($A119, 'Allocation 2023-24 Final'!$A$7:$S$323,19,FALSE),0) -> 1038529 | W119: -33088 | X119: -0.03186044877 | Y119: 304 | Z119: 0 | AB119: 5303960 | AC119: KENT
A120: =VLOOKUP(B120,CCDDD!$A$3:$B$319,2,FALSE) -> 33212 | B120: 5303990 | C120: KETTLE FALLS | D120: 0 | E120: 0 | F120: =VLOOKUP(B120,'24-25 Adjusted Formula counts'!$A$3:$L$320,8,FALSE) -> 936 | G120: =ROUND((F120/$F$5*Assumptions!$C$22*Assumptions!$C$30),0) -> 5032 | H120: =VLOOKUP(B120,'24-25 Adjusted Formula counts'!$A$3:$L$320,9,FALSE) -> 144 | I120: =ROUND((H120/$H$5*Assumptions!$C$22*Assumptions!$C$31),0) -> 28530 | K120: 33562 | N120: 33562 | O120: 0 | P120: 33562 | R120: 0 | S120: 33562 | U120: =IFERROR(VLOOKUP($A120, 'Allocation 2023-24 Final'!$A$7:$S$323,19,FALSE),0) -> 37192 | W120: -3630 | X120: -0.09760163476 | Y120: 219 | Z120: 0 | AB120: 5303990 | AC120: KETTLE FALLS
A121: =VLOOKUP(B121,CCDDD!$A$3:$B$319,2,FALSE) -> 03052 | B121: 5304020 | C121: KIONA-BENTON | D121: 0 | E121: 0 | F121: =VLOOKUP(B121,'24-25 Adjusted Formula counts'!$A$3:$L$320,8,FALSE) -> 1729 | G121: =ROUND((F121/$F$5*Assumptions!$C$22*Assumptions!$C$30),0) -> 9296 | H121: =VLOOKUP(B121,'24-25 Adjusted Formula counts'!$A$3:$L$320,9,FALSE) -> 241 | I121: =ROUND((H121/$H$5*Assumptions!$C$22*Assumptions!$C$31),0) -> 47748 | K121: 57044 | N121: 57044 | O121: 0 | P121: 57044 | R121: 0 | S121: 57044 | U121: =IFERROR(VLOOKUP($A121, 'Allocation 2023-24 Final'!$A$7:$S$323,19,FALSE),0) -> 61127 | W121: -4083 | X121: -0.06679536048 | Y121: 223 | Z121: 0 | AB121: 5304020 | AC121: KIONA-BENTON
A122: =VLOOKUP(B122,CCDDD!$A$3:$B$319,2,FALSE) -> 19403 | B122: 5304050 | C122: KITTITAS | D122: 0 | E122: 0 | F122: =VLOOKUP(B122,'24-25 Adjusted Formula counts'!$A$3:$L$320,8,FALSE) -> 736 | G122: =ROUND((F122/$F$5*Assumptions!$C$22*Assumptions!$C$30),0) -> 3957 | H122: =VLOOKUP(B122,'24-25 Adjusted Formula counts'!$A$3:$L$320,9,FALSE) -> 57 | I122: =ROUND((H122/$H$5*Assumptions!$C$22*Assumptions!$C$31),0) -> 11293 | K122: 15250 | N122: 15250 | O122: 0 | P122: 15250 | R122: 0 | S122: 15250 | U122: =IFERROR(VLOOKUP($A122, 'Allocation 2023-24 Final'!$A$7:$S$323,19,FALSE),0) -> 15175 | W122: 75 | X122: 0.004942339374 | Y122: 131 | Z122: 0 | AB122: 5304050 | AC122: KITTITAS
A123: =VLOOKUP(B123,CCDDD!$A$3:$B$319,2,FALSE) -> 20402 | B123: 5304080 | C123: KLICKITAT | D123: 0 | E123: 0 | F123: =VLOOKUP(B123,'24-25 Adjusted Formula counts'!$A$3:$L$320,8,FALSE) -> 80 | G123: =ROUND((F123/$F$5*Assumptions!$C$22*Assumptions!$C$30),0) -> 430 | H123: =VLOOKUP(B123,'24-25 Adjusted Formula counts'!$A$3:$L$320,9,FALSE) -> 13 | I123: =ROUND((H123/$H$5*Assumptions!$C$22*Assumptions!$C$31),0) -> 2576 | K123: 3006 | N123: 3006 | O123: 0 | P123: 3006 | R123: 0 | S123: 3006 | U123: =IFERROR(VLOOKUP($A123, 'Allocation 2023-24 Final'!$A$7:$S$323,19,FALSE),0) -> 2778 | W123: 228 | X123: 0.08207343413 | Y123: 123 | Z123: 0 | AB123: 5304080 | AC123: KLICKITAT
A124: =VLOOKUP(B124,CCDDD!$A$3:$B$319,2,FALSE) -> 06101 | B124: 5304170 | C124: LA CENTER | D124: 0 | E124: 0 | F124: =VLOOKUP(B124,'24-25 Adjusted Formula counts'!$A$3:$L$320,8,FALSE) -> 1926 | G124: =ROUND((F124/$F$5*Assumptions!$C$22*Assumptions!$C$30),0) -> 10355 | H124: =VLOOKUP(B124,'24-25 Adjusted Formula counts'!$A$3:$L$320,9,FALSE) -> 98 | I124: =ROUND((H124/$H$5*Assumptions!$C$22*Assumptions!$C$31),0) -> 19416 | K124: 29771 | N124: 29771 | O124: 0 | P124: 29771 | R124: 0 | S124: 29771 | U124: =IFERROR(VLOOKUP($A124, 'Allocation 2023-24 Final'!$A$7:$S$323,19,FALSE),0) -> 37848 | W124: -8077 | X124: -0.2134062566 | Y124: 255 | Z124: 0 | AB124: 5304170 | AC124: LA CENTER
A125: =VLOOKUP(B125,CCDDD!$A$3:$B$319,2,FALSE) -> 29311 | B125: 5304110 | C125: LA CONNER | D125: 0 | E125: 0 | F125: =VLOOKUP(B125,'24-25 Adjusted Formula counts'!$A$3:$L$320,8,FALSE) -> 595 | G125: =ROUND((F125/$F$5*Assumptions!$C$22*Assumptions!$C$30),0) -> 3199 | H125: =VLOOKUP(B125,'24-25 Adjusted Formula counts'!$A$3:$L$320,9,FALSE) -> 91 | I125: =ROUND((H125/$H$5*Assumptions!$C$22*Assumptions!$C$31),0) -> 18029 | K125: 21228 | N125: 21228 | O125: 0 | P125: 21228 | R125: 0 | S125: 21228 | U125: =IFERROR(VLOOKUP($A125, 'Allocation 2023-24 Final'!$A$7:$S$323,19,FALSE),0) -> 29338 | W125: -8110 | X125: -0.2764332947 | Y125: 256 | Z125: 0 | AB125: 5304110 | AC125: LA CONNER
A126: =VLOOKUP(B126,CCDDD!$A$3:$B$319,2,FALSE) -> 38126 | B126: 5304150 | C126: LACROSSE | D126: 0 | E126: 0 | F126: =VLOOKUP(B126,'24-25 Adjusted Formula counts'!$A$3:$L$320,8,FALSE) -> 87 | G126: =ROUND((F126/$F$5*Assumptions!$C$22*Assumptions!$C$30),0) -> 468 | H126: =VLOOKUP(B126,'24-25 Adjusted Formula counts'!$A$3:$L$320,9,FALSE) -> 18 | I126: =ROUND((H126/$H$5*Assumptions!$C$22*Assumptions!$C$31),0) -> 3566 | K126: 4034 | N126: 4034 | O126: 0 | P126: 4034 | R126: 0 | S126: 4034 | U126: =IFERROR(VLOOKUP($A126, 'Allocation 2023-24 Final'!$A$7:$S$323,19,FALSE),0) -> 2221 | W126: 1813 | X126: 0.8162989644 | Y126: 82 | Z126: 0 | AB126: 5304150 | AC126: LACROSSE
A127: =VLOOKUP(B127,CCDDD!$A$3:$B$319,2,FALSE) -> 04129 | B127: 5301200 | C127: LAKE CHELAN | D127: 0 | E127: 0 | F127: =VLOOKUP(B127,'24-25 Adjusted Formula counts'!$A$3:$L$320,8,FALSE) -> 1236 | G127: =ROUND((F127/$F$5*Assumptions!$C$22*Assumptions!$C$30),0) -> 6645 | H127: =VLOOKUP(B127,'24-25 Adjusted Formula counts'!$A$3:$L$320,9,FALSE) -> 163 | I127: =ROUND((H127/$H$5*Assumptions!$C$22*Assumptions!$C$31),0) -> 32294 | K127: 38939 | N127: 38939 | O127: 0 | P127: 38939 | R127: 0 | S127: 38939 | U127: =IFERROR(VLOOKUP($A127, 'Allocation 2023-24 Final'!$A$7:$S$323,19,FALSE),0) -> 39905 | W127: -966 | X127: -0.0242074928 | Y127: 176 | Z127: 0 | AB127: 5301200 | AC127: LAKE CHELAN
A128: =VLOOKUP(B128,CCDDD!$A$3:$B$319,2,FALSE) -> 14097 | B128: 5307050 | C128: QUINAULT | D128: 0 | E128: 0 | F128: =VLOOKUP(B128,'24-25 Adjusted Formula counts'!$A$3:$L$320,8,FALSE) -> 174 | G128: =ROUND((F128/$F$5*Assumptions!$C$22*Assumptions!$C$30),0) -> 935 | H128: =VLOOKUP(B128,'24-25 Adjusted Formula counts'!$A$3:$L$320,9,FALSE) -> 40 | I128: =ROUND((H128/$H$5*Assumptions!$C$22*Assumptions!$C$31),0) -> 7925 | K128: 8860 | N128: 8860 | O128: 0 | P128: 8860 | R128: 0 | S128: 8860 | U128: =IFERROR(VLOOKUP($A128, 'Allocation 2023-24 Final'!$A$7:$S$323,19,FALSE),0) -> 8932 | W128: -72 | X128: -0.008060904613 | Y128: 140 | Z128: 0 | AB128: 5307050 | AC128: QUINAULT
A129: =VLOOKUP(B129,CCDDD!$A$3:$B$319,2,FALSE) -> 31004 | B129: 5304200 | C129: LAKE STEVENS | D129: 0 | E129: 0 | F129: =VLOOKUP(B129,'24-25 Adjusted Formula counts'!$A$3:$L$320,8,FALSE) -> 10259 | G129: =ROUND((F129/$F$5*Assumptions!$C$22*Assumptions!$C$30),0) -> 55157 | H129: =VLOOKUP(B129,'24-25 Adjusted Formula counts'!$A$3:$L$320,9,FALSE) -> 567 | I129: =ROUND((H129/$H$5*Assumptions!$C$22*Assumptions!$C$31),0) -> 112337 | K129: 167494 | N129: 167494 | O129: 0 | P129: 167494 | R129: 0 | S129: 167494 | U129: =IFERROR(VLOOKUP($A129, 'Allocation 2023-24 Final'!$A$7:$S$323,19,FALSE),0) -> 157340 | W129: 10154 | X129: 0.06453540104 | Y129: 30 | Z129: 0 | AB129: 5304200 | AC129: LAKE STEVENS
A130: =VLOOKUP(B130,CCDDD!$A$3:$B$319,2,FALSE) -> 17414 | B130: 5304230 | C130: LAKE WASHINGTON | D130: 0 | E130: 0 | F130: =VLOOKUP(B130,'24-25 Adjusted Formula counts'!$A$3:$L$320,8,FALSE) -> 35606 | G130: =ROUND((F130/$F$5*Assumptions!$C$22*Assumptions!$C$30),0) -> 191433 | H130: =VLOOKUP(B130,'24-25 Adjusted Formula counts'!$A$3:$L$320,9,FALSE) -> 1390 | I130: =ROUND((H130/$H$5*Assumptions!$C$22*Assumptions!$C$31),0) -> 275393 | K130: 466826 | N130: 466826 | O130: 0 | P130: 466826 | R130: 0 | S130: 466826 | U130: =IFERROR(VLOOKUP($A130, 'Allocation 2023-24 Final'!$A$7:$S$323,19,FALSE),0) -> 493246 | W130: -26420 | X130: -0.05356353625 | Y130: 300 | Z130: 0 | AB130: 5304230 | AC130: LAKE WASHINGTON
A131: =VLOOKUP(B131,CCDDD!$A$3:$B$319,2,FALSE) -> 31306 | B131: 5304260 | C131: LAKEWOOD | D131: 0 | E131: 0 | F131: =VLOOKUP(B131,'24-25 Adjusted Formula counts'!$A$3:$L$320,8,FALSE) -> 2643 | G131: =ROUND((F131/$F$5*Assumptions!$C$22*Assumptions!$C$30),0) -> 14210 | H131: =VLOOKUP(B131,'24-25 Adjusted Formula counts'!$A$3:$L$320,9,FALSE) -> 351 | I131: =ROUND((H131/$H$5*Assumptions!$C$22*Assumptions!$C$31),0) -> 69542 | K131: 83752 | N131: 83752 | O131: 0 | P131: 83752 | R131: 0 | S131: 83752 | U131: =IFERROR(VLOOKUP($A131, 'Allocation 2023-24 Final'!$A$7:$S$323,19,FALSE),0) -> 72249 | W131: 11503 | X131: 0.1592132763 | Y131: 26 | Z131: 0 | AB131: 5304260 | AC131: LAKEWOOD
A132: =VLOOKUP(B132,CCDDD!$A$3:$B$319,2,FALSE) -> 38264 | B132: 5304290 | C132: LAMONT | D132: 0 | E132: 0 | F132: =VLOOKUP(B132,'24-25 Adjusted Formula counts'!$A$3:$L$320,8,FALSE) -> 27 | G132: =ROUND((F132/$F$5*Assumptions!$C$22*Assumptions!$C$30),0) -> 145 | H132: =VLOOKUP(B132,'24-25 Adjusted Formula counts'!$A$3:$L$320,9,FALSE) -> 9 | I132: =ROUND((H132/$H$5*Assumptions!$C$22*Assumptions!$C$31),0) -> 1783 | K132: 1928 | N132: 1928 | O132: 0 | P132: 1928 | R132: 0 | S132: 1928 | U132: =IFERROR(VLOOKUP($A132, 'Allocation 2023-24 Final'!$A$7:$S$323,19,FALSE),0) -> 1904 | W132: 24 | X132: 0.01260504202 | Y132: 133 | Z132: 0 | AB132: 5304290 | AC132: LAMONT
A133: =VLOOKUP(B133,CCDDD!$A$3:$B$319,2,FALSE) -> 32362 | B133: 5304380 | C133: LIBERTY | D133: 0 | E133: 0 | F133: =VLOOKUP(B133,'24-25 Adjusted Formula counts'!$A$3:$L$320,8,FALSE) -> 827 | G133: =ROUND((F133/$F$5*Assumptions!$C$22*Assumptions!$C$30),0) -> 4446 | H133: =VLOOKUP(B133,'24-25 Adjusted Formula counts'!$A$3:$L$320,9,FALSE) -> 77 | I133: =ROUND((H133/$H$5*Assumptions!$C$22*Assumptions!$C$31),0) -> 15256 | K133: 19702 | N133: 19702 | O133: 0 | P133: 19702 | R133: 0 | S133: 19702 | U133: =IFERROR(VLOOKUP($A133, 'Allocation 2023-24 Final'!$A$7:$S$323,19,FALSE),0) -> 17556 | W133: 2146 | X133: 0.1222374117 | Y133: 77 | Z133: 0 | AB133: 5304380 | AC133: LIBERTY
A134: =VLOOKUP(B134,CCDDD!$A$3:$B$319,2,FALSE) -> 01158 | B134: 5304410 | C134: LIND | D134: 0 | E134: 0 | F134: =VLOOKUP(B134,'24-25 Adjusted Formula counts'!$A$3:$L$320,8,FALSE) -> 307 | G134: =ROUND((F134/$F$5*Assumptions!$C$22*Assumptions!$C$30),0) -> 1651 | H134: =VLOOKUP(B134,'24-25 Adjusted Formula counts'!$A$3:$L$320,9,FALSE) -> 81 | I134: =ROUND((H134/$H$5*Assumptions!$C$22*Assumptions!$C$31),0) -> 16048 | K134: 17699 | N134: 17699 | O134: 0 | P134: 17699 | R134: 0 | S134: 17699 | U134: =IFERROR(VLOOKUP($A134, 'Allocation 2023-24 Final'!$A$7:$S$323,19,FALSE),0) -> 14523 | W134: 3176 | X134: 0.218687599 | Y134: 59 | Z134: 0 | AB134: 5304410 | AC134: LIND
A135: =VLOOKUP(B135,CCDDD!$A$3:$B$319,2,FALSE) -> 08122 | B135: 5304470 | C135: LONGVIEW | D135: 0 | E135: 0 | F135: =VLOOKUP(B135,'24-25 Adjusted Formula counts'!$A$3:$L$320,8,FALSE) -> 7214 | G135: =ROUND((F135/$F$5*Assumptions!$C$22*Assumptions!$C$30),0) -> 38785 | H135: =VLOOKUP(B135,'24-25 Adjusted Formula counts'!$A$3:$L$320,9,FALSE) -> 1316 | I135: =ROUND((H135/$H$5*Assumptions!$C$22*Assumptions!$C$31),0) -> 260732 | K135: =ROUNDDOWN(+I135+G135+E135+D135+J135,0) -> 299517 | N135: =K135 -> 299517 | O135: =-ROUND(N135/$N$5*$M$5,0) -> 0 | P135: =+K135+O135+M135 -> 299517 | R135: =-1*(P135*Q135) -> 0 | S135: =+P135+R135 -> 299517 | U135: =IFERROR(VLOOKUP($A135, 'Allocation 2023-24 Final'!$A$7:$S$323,19,FALSE),0) -> 269982 | W135: =+S135-U135 -> 29535 | X135: =IF(U135>0,W135/U135,0) -> 0.109396182 | Y135: 12 | Z135: =(SUM(D135:E135)/S135) -> 0 | AB135: =+B135 -> 5304470 | AC135: LONGVIEW
A136: =VLOOKUP(B136,CCDDD!$A$3:$B$319,2,FALSE) -> 33183 | B136: 5304500 | C136: LOON LAKE | D136: 0 | E136: 0 | F136: =VLOOKUP(B136,'24-25 Adjusted Formula counts'!$A$3:$L$320,8,FALSE) -> 255 | G136: =ROUND((F136/$F$5*Assumptions!$C$22*Assumptions!$C$30),0) -> 1371 | H136: =VLOOKUP(B136,'24-25 Adjusted Formula counts'!$A$3:$L$320,9,FALSE) -> 50 | I136: =ROUND((H136/$H$5*Assumptions!$C$22*Assumptions!$C$31),0) -> 9906 | K136: 11277 | N136: 11277 | O136: 0 | P136: 11277 | R136: 0 | S136: 11277 | U136: =IFERROR(VLOOKUP($A136, 'Allocation 2023-24 Final'!$A$7:$S$323,19,FALSE),0) -> 9952 | W136: 1325 | X136: 0.1331390675 | Y136: =RANK(W136,$W$7:$W$322,0) -> 92 | Z136: 0 | AB136: 5304500 | AC136: LOON LAKE
A137: =VLOOKUP(B137,CCDDD!$A$3:$B$319,2,FALSE) -> 28144 | B137: 5304530 | C137: LOPEZ | D137: 0 | E137: 0 | F137: =VLOOKUP(B137,'24-25 Adjusted Formula counts'!$A$3:$L$320,8,FALSE) -> 286 | G137: =ROUND((F137/$F$5*Assumptions!$C$22*Assumptions!$C$30),0) -> 1538 | H137: =VLOOKUP(B137,'24-25 Adjusted Formula counts'!$A$3:$L$320,9,FALSE) -> 47 | I137: =ROUND((H137/$H$5*Assumptions!$C$22*Assumptions!$C$31),0) -> 9312 | K137: 10850 | N137: 10850 | O137: 0 | P137: 10850 | R137: 0 | S137: 10850 | U137: =IFERROR(VLOOKUP($A137, 'Allocation 2023-24 Final'!$A$7:$S$323,19,FALSE),0) -> 12657 | W137: -1807 | X137: -0.1427668484 | Y137: 190 | Z137: 0 | AB137: 5304530 | AC137: LOPEZ
A138: =VLOOKUP(B138,CCDDD!$A$3:$B$319,2,FALSE) -> 32903 | B138: 5304550 | C138: LUMEN CHARTER | D138: 0 | E138: 0 | F138: =VLOOKUP(B138,'24-25 Adjusted Formula counts'!$A$3:$L$320,8,FALSE) -> 35.79770402 | G138: =ROUND((F138/$F$5*Assumptions!$C$22*Assumptions!$C$30),0) -> 192 | H138: =VLOOKUP(B138,'24-25 Adjusted Formula counts'!$A$3:$L$320,9,FALSE) -> 8.733484941 | I138: =ROUND((H138/$H$5*Assumptions!$C$22*Assumptions!$C$31),0) -> 1730 | K138: 1922 | N138: 1922 | O138: 0 | P138: 1922 | R138: 0 | S138: 1922 | U138: =IFERROR(VLOOKUP($A138, 'Allocation 2023-24 Final'!$A$7:$S$323,19,FALSE),0) -> 2008 | W138: -86 | X138: -0.04282868526 | Y138: 141 | Z138: 0 | AB138: 5304550 | AC138: LUMEN CHARTER
A139: =VLOOKUP(B139,CCDDD!$A$3:$B$319,2,FALSE) -> 20406 | B139: 5304590 | C139: LYLE | D139: 0 | E139: 0 | F139: =VLOOKUP(B139,'24-25 Adjusted Formula counts'!$A$3:$L$320,8,FALSE) -> 410 | G139: =ROUND((F139/$F$5*Assumptions!$C$22*Assumptions!$C$30),0) -> 2204 | H139: =VLOOKUP(B139,'24-25 Adjusted Formula counts'!$A$3:$L$320,9,FALSE) -> 72 | I139: =ROUND((H139/$H$5*Assumptions!$C$22*Assumptions!$C$31),0) -> 14265 | K139: 16469 | N139: 16469 | O139: 0 | P139: 16469 | R139: 0 | S139: 16469 | U139: =IFERROR(VLOOKUP($A139, 'Allocation 2023-24 Final'!$A$7:$S$323,19,FALSE),0) -> 15692 | W139: 777 | X139: 0.04951567678 | Y139: 107 | Z139: 0 | AB139: 5304590 | AC139: LYLE
A140: =VLOOKUP(B140,CCDDD!$A$3:$B$319,2,FALSE) -> 37504 | B140: 5304620 | C140: LYNDEN | D140: 0 | E140: 0 | F140: =VLOOKUP(B140,'24-25 Adjusted Formula counts'!$A$3:$L$320,8,FALSE) -> 4352 | G140: =ROUND((F140/$F$5*Assumptions!$C$22*Assumptions!$C$30),0) -> 23398 | H140: =VLOOKUP(B140,'24-25 Adjusted Formula counts'!$A$3:$L$320,9,FALSE) -> 303 | I140: =ROUND((H140/$H$5*Assumptions!$C$22*Assumptions!$C$31),0) -> 60032 | K140: 83430 | N140: 83430 | O140: 0 | P140: 83430 | R140: 0 | S140: 83430 | U140: =IFERROR(VLOOKUP($A140, 'Allocation 2023-24 Final'!$A$7:$S$323,19,FALSE),0) -> 104656 | W140: -21226 | X140: -0.2028168476 | Y140: 293 | Z140: 0 | AB140: 5304620 | AC140: LYNDEN
A141: =VLOOKUP(B141,CCDDD!$A$3:$B$319,2,FALSE) -> 39120 | B141: 5304650 | C141: MABTON | D141: 0 | E141: 0 | F141: =VLOOKUP(B141,'24-25 Adjusted Formula counts'!$A$3:$L$320,8,FALSE) -> 770 | G141: =ROUND((F141/$F$5*Assumptions!$C$22*Assumptions!$C$30),0) -> 4140 | H141: =VLOOKUP(B141,'24-25 Adjusted Formula counts'!$A$3:$L$320,9,FALSE) -> 191 | I141: =ROUND((H141/$H$5*Assumptions!$C$22*Assumptions!$C$31),0) -> 37842 | K141: 41982 | N141: 41982 | O141: 0 | P141: 41982 | R141: 0 | S141: 41982 | U141: =IFERROR(VLOOKUP($A141, 'Allocation 2023-24 Final'!$A$7:$S$323,19,FALSE),0) -> 36155 | W141: 5827 | X141: 0.1611671968 | Y141: 44 | Z141: 0 | AB141: 5304650 | AC141: MABTON
A142: =VLOOKUP(B142,CCDDD!$A$3:$B$319,2,FALSE) -> 09207 | B142: 5304710 | C142: MANSFIELD | D142: 0 | E142: 0 | F142: =VLOOKUP(B142,'24-25 Adjusted Formula counts'!$A$3:$L$320,8,FALSE) -> 85 | G142: =ROUND((F142/$F$5*Assumptions!$C$22*Assumptions!$C$30),0) -> 457 | H142: =VLOOKUP(B142,'24-25 Adjusted Formula counts'!$A$3:$L$320,9,FALSE) -> 16 | I142: =ROUND((H142/$H$5*Assumptions!$C$22*Assumptions!$C$31),0) -> 3170 | K142: 3627 | N142: 3627 | O142: 0 | P142: 3627 | R142: 0 | S142: 3627 | U142: =IFERROR(VLOOKUP($A142, 'Allocation 2023-24 Final'!$A$7:$S$323,19,FALSE),0) -> 5733 | W142: -2106 | X142: -0.3673469388 | Y142: 195 | Z142: 0 | AB142: 5304710 | AC142: MANSFIELD
A143: =VLOOKUP(B143,CCDDD!$A$3:$B$319,2,FALSE) -> 04019 | B143: 5304740 | C143: MANSON | D143: 0 | E143: 0 | F143: =VLOOKUP(B143,'24-25 Adjusted Formula counts'!$A$3:$L$320,8,FALSE) -> 609 | G143: =ROUND((F143/$F$5*Assumptions!$C$22*Assumptions!$C$30),0) -> 3274 | H143: =VLOOKUP(B143,'24-25 Adjusted Formula counts'!$A$3:$L$320,9,FALSE) -> 120 | I143: =ROUND((H143/$H$5*Assumptions!$C$22*Assumptions!$C$31),0) -> 23775 | K143: 27049 | N143: 27049 | O143: 0 | P143: 27049 | R143: 0 | S143: 27049 | U143: =IFERROR(VLOOKUP($A143, 'Allocation 2023-24 Final'!$A$7:$S$323,19,FALSE),0) -> 23996 | W143: 3053 | X143: 0.1272295383 | Y143: 61 | Z143: 0 | AB143: 5304740 | AC143: MANSON
A144: =VLOOKUP(B144,CCDDD!$A$3:$B$319,2,FALSE) -> 23311 | B144: 5304800 | C144: MARY M KNIGHT | D144: 0 | E144: 0 | F144: =VLOOKUP(B144,'24-25 Adjusted Formula counts'!$A$3:$L$320,8,FALSE) -> 206 | G144: =ROUND((F144/$F$5*Assumptions!$C$22*Assumptions!$C$30),0) -> 1108 | H144: =VLOOKUP(B144,'24-25 Adjusted Formula counts'!$A$3:$L$320,9,FALSE) -> 33 | I144: =ROUND((H144/$H$5*Assumptions!$C$22*Assumptions!$C$31),0) -> 6538 | K144: 7646 | N144: 7646 | O144: 0 | P144: 7646 | R144: 0 | S144: 7646 | U144: =IFERROR(VLOOKUP($A144, 'Allocation 2023-24 Final'!$A$7:$S$323,19,FALSE),0) -> 7541 | W144: 105 | X144: 0.01392388277 | Y144: 126 | Z144: 0 | AB144: 5304800 | AC144: MARY M KNIGHT
A145: =VLOOKUP(B145,CCDDD!$A$3:$B$319,2,FALSE) -> 33207 | B145: 5304830 | C145: MARY WALKER | D145: 0 | E145: 0 | F145: =VLOOKUP(B145,'24-25 Adjusted Formula counts'!$A$3:$L$320,8,FALSE) -> 640 | G145: =ROUND((F145/$F$5*Assumptions!$C$22*Assumptions!$C$30),0) -> 3441 | H145: =VLOOKUP(B145,'24-25 Adjusted Formula counts'!$A$3:$L$320,9,FALSE) -> 146 | I145: =ROUND((H145/$H$5*Assumptions!$C$22*Assumptions!$C$31),0) -> 28926 | K145: 32367 | N145: 32367 | O145: 0 | P145: 32367 | R145: 0 | S145: 32367 | U145: =IFERROR(VLOOKUP($A145, 'Allocation 2023-24 Final'!$A$7:$S$323,19,FALSE),0) -> 32693 | W145: -326 | X145: -0.009971553544 | Y145: 148 | Z145: 0 | AB145: 5304830 | AC145: MARY WALKER
A146: =VLOOKUP(B146,CCDDD!$A$3:$B$319,2,FALSE) -> 31025 | B146: 5304860 | C146: MARYSVILLE | D146: 0 | E146: 0 | F146: =VLOOKUP(B146,'24-25 Adjusted Formula counts'!$A$3:$L$320,8,FALSE) -> 12544 | G146: =ROUND((F146/$F$5*Assumptions!$C$22*Assumptions!$C$30),0) -> 67442 | H146: =VLOOKUP(B146,'24-25 Adjusted Formula counts'!$A$3:$L$320,9,FALSE) -> 1469 | I146: =ROUND((H146/$H$5*Assumptions!$C$22*Assumptions!$C$31),0) -> 291045 | K146: 358487 | N146: 358487 | O146: 0 | P146: 358487 | R146: 0 | S146: 358487 | U146: =IFERROR(VLOOKUP($A146, 'Allocation 2023-24 Final'!$A$7:$S$323,19,FALSE),0) -> 307129 | W146: 51358 | X146: 0.1672196374 | Y146: 6 | Z146: 0 | AB146: 5304860 | AC146: MARYSVILLE
A147: =VLOOKUP(B147,CCDDD!$A$3:$B$319,2,FALSE) -> 14065 | B147: 5304890 | C147: MCCLEARY | D147: 0 | E147: 0 | F147: =VLOOKUP(B147,'24-25 Adjusted Formula counts'!$A$3:$L$320,8,FALSE) -> 572 | G147: =ROUND((F147/$F$5*Assumptions!$C$22*Assumptions!$C$30),0) -> 3075 | H147: =VLOOKUP(B147,'24-25 Adjusted Formula counts'!$A$3:$L$320,9,FALSE) -> 72 | I147: =ROUND((H147/$H$5*Assumptions!$C$22*Assumptions!$C$31),0) -> 14265 | K147: 17340 | N147: 17340 | O147: 0 | P147: 17340 | R147: 0 | S147: 17340 | U147: =IFERROR(VLOOKUP($A147, 'Allocation 2023-24 Final'!$A$7:$S$323,19,FALSE),0) -> 15771 | W147: 1569 | X147: 0.09948639909 | Y147: 88 | Z147: 0 | AB147: 5304890 | AC147: MCCLEARY
A148: =VLOOKUP(B148,CCDDD!$A$3:$B$319,2,FALSE) -> 32354 | B148: 5304920 | C148: MEAD | D148: 0 | E148: 0 | F148: =VLOOKUP(B148,'24-25 Adjusted Formula counts'!$A$3:$L$320,8,FALSE) -> 12016 | G148: =ROUND((F148/$F$5*Assumptions!$C$22*Assumptions!$C$30),0) -> 64603 | H148: =VLOOKUP(B148,'24-25 Adjusted Formula counts'!$A$3:$L$320,9,FALSE) -> 1000 | I148: =ROUND((H148/$H$5*Assumptions!$C$22*Assumptions!$C$31),0) -> 198124 | K148: 262727 | N148: 262727 | O148: 0 | P148: 262727 | R148: 0 | S148: 262727 | U148: =IFERROR(VLOOKUP($A148, 'Allocation 2023-24 Final'!$A$7:$S$323,19,FALSE),0) -> 257398 | W148: 5329 | X148: 0.02070334657 | Y148: 45 | Z148: 0 | AB148: 5304920 | AC148: MEAD
A149: =VLOOKUP(B149,CCDDD!$A$3:$B$319,2,FALSE) -> 32326 | B149: 5304950 | C149: MEDICAL LAKE | D149: 0 | E149: 0 | F149: =VLOOKUP(B149,'24-25 Adjusted Formula counts'!$A$3:$L$320,8,FALSE) -> 1801 | G149: =ROUND((F149/$F$5*Assumptions!$C$22*Assumptions!$C$30),0) -> 9683 | H149: =VLOOKUP(B149,'24-25 Adjusted Formula counts'!$A$3:$L$320,9,FALSE) -> 208 | I149: =ROUND((H149/$H$5*Assumptions!$C$22*Assumptions!$C$31),0) -> 41210 | K149: 50893 | N149: 50893 | O149: 0 | P149: 50893 | R149: 0 | S149: 50893 | U149: =IFERROR(VLOOKUP($A149, 'Allocation 2023-24 Final'!$A$7:$S$323,19,FALSE),0) -> 43522 | W149: 7371 | X149: 0.1693626212 | Y149: 39 | Z149: 0 | AB149: 5304950 | AC149: MEDICAL LAKE
A150: =VLOOKUP(B150,CCDDD!$A$3:$B$319,2,FALSE) -> 17400 | B150: 5304980 | C150: MERCER ISLAND | D150: 0 | E150: 0 | F150: =VLOOKUP(B150,'24-25 Adjusted Formula counts'!$A$3:$L$320,8,FALSE) -> 4878 | G150: =ROUND((F150/$F$5*Assumptions!$C$22*Assumptions!$C$30),0) -> 26226 | H150: =VLOOKUP(B150,'24-25 Adjusted Formula counts'!$A$3:$L$320,9,FALSE) -> 118 | I150: =ROUND((H150/$H$5*Assumptions!$C$22*Assumptions!$C$31),0) -> 23379 | K150: 49605 | N150: 49605 | O150: 0 | P150: 49605 | R150: 0 | S150: 49605 | U150: =IFERROR(VLOOKUP($A150, 'Allocation 2023-24 Final'!$A$7:$S$323,19,FALSE),0) -> 62638 | W150: -13033 | X150: -0.2080685846 | Y150: 275 | Z150: 0 | AB150: 5304980 | AC150: MERCER ISLAND
A151: =VLOOKUP(B151,CCDDD!$A$3:$B$319,2,FALSE) -> 37505 | B151: 5305010 | C151: MERIDIAN | D151: 0 | E151: 0 | F151: =VLOOKUP(B151,'24-25 Adjusted Formula counts'!$A$3:$L$320,8,FALSE) -> 1705 | G151: =ROUND((F151/$F$5*Assumptions!$C$22*Assumptions!$C$30),0) -> 9167 | H151: =VLOOKUP(B151,'24-25 Adjusted Formula counts'!$A$3:$L$320,9,FALSE) -> 204 | I151: =ROUND((H151/$H$5*Assumptions!$C$22*Assumptions!$C$31),0) -> 40417 | K151: 49584 | N151: 49584 | O151: 0 | P151: 49584 | R151: 0 | S151: 49584 | U151: =IFERROR(VLOOKUP($A151, 'Allocation 2023-24 Final'!$A$7:$S$323,19,FALSE),0) -> 55497 | W151: -5913 | X151: -0.1065462998 | Y151: 242 | Z151: 0 | AB151: 5305010 | AC151: MERIDIAN
A152: =VLOOKUP(B152,CCDDD!$A$3:$B$319,2,FALSE) -> 24350 | B152: 5305020 | C152: METHOW VALLEY | D152: 0 | E152: 0 | F152: =VLOOKUP(B152,'24-25 Adjusted Formula counts'!$A$3:$L$320,8,FALSE) -> 859 | G152: =ROUND((F152/$F$5*Assumptions!$C$22*Assumptions!$C$30),0) -> 4618 | H152: =VLOOKUP(B152,'24-25 Adjusted Formula counts'!$A$3:$L$320,9,FALSE) -> 70 | I152: =ROUND((H152/$H$5*Assumptions!$C$22*Assumptions!$C$31),0) -> 13869 | K152: 18487 | N152: 18487 | O152: 0 | P152: 18487 | R152: 0 | S152: 18487 | U152: =IFERROR(VLOOKUP($A152, 'Allocation 2023-24 Final'!$A$7:$S$323,19,FALSE),0) -> 24294 | W152: -5807 | X152: -0.2390302132 | Y152: 240 | Z152: 0 | AB152: 5305020 | AC152: METHOW VALLEY
A153: =VLOOKUP(B153,CCDDD!$A$3:$B$319,2,FALSE) -> 30031 | B153: 5305040 | C153: MILL A | D153: 0 | E153: 0 | F153: =VLOOKUP(B153,'24-25 Adjusted Formula counts'!$A$3:$L$320,8,FALSE) -> 74 | G153: =ROUND((F153/$F$5*Assumptions!$C$22*Assumptions!$C$30),0) -> 398 | H153: =VLOOKUP(B153,'24-25 Adjusted Formula counts'!$A$3:$L$320,9,FALSE) -> 18 | I153: =ROUND((H153/$H$5*Assumptions!$C$22*Assumptions!$C$31),0) -> 3566 | K153: 3964 | N153: 3964 | O153: 0 | P153: 3964 | R153: 0 | S153: 3964 | U153: =IFERROR(VLOOKUP($A153, 'Allocation 2023-24 Final'!$A$7:$S$323,19,FALSE),0) -> 2735 | W153: 1229 | X153: 0.4493601463 | Y153: 94 | Z153: 0 | AB153: 5305040 | AC153: MILL A
A154: =VLOOKUP(B154,CCDDD!$A$3:$B$319,2,FALSE) -> 31103 | B154: 5305130 | C154: MONROE | D154: 0 | E154: 0 | F154: =VLOOKUP(B154,'24-25 Adjusted Formula counts'!$A$3:$L$320,8,FALSE) -> 6648 | G154: =ROUND((F154/$F$5*Assumptions!$C$22*Assumptions!$C$30),0) -> 35742 | H154: =VLOOKUP(B154,'24-25 Adjusted Formula counts'!$A$3:$L$320,9,FALSE) -> 430 | I154: =ROUND((H154/$H$5*Assumptions!$C$22*Assumptions!$C$31),0) -> 85193 | K154: 120935 | N154: 120935 | O154: 0 | P154: 120935 | R154: 0 | S154: 120935 | U154: =IFERROR(VLOOKUP($A154, 'Allocation 2023-24 Final'!$A$7:$S$323,19,FALSE),0) -> 113719 | W154: 7216 | X154: 0.06345465577 | Y154: 41 | Z154: 0 | AB154: 5305130 | AC154: MONROE
A155: =VLOOKUP(B155,CCDDD!$A$3:$B$319,2,FALSE) -> 14066 | B155: 5305160 | C155: MONTESANO | D155: 0 | E155: 0 | F155: =VLOOKUP(B155,'24-25 Adjusted Formula counts'!$A$3:$L$320,8,FALSE) -> 1334 | G155: =ROUND((F155/$F$5*Assumptions!$C$22*Assumptions!$C$30),0) -> 7172 | H155: =VLOOKUP(B155,'24-25 Adjusted Formula counts'!$A$3:$L$320,9,FALSE) -> 206 | I155: =ROUND((H155/$H$5*Assumptions!$C$22*Assumptions!$C$31),0) -> 40814 | K155: 47986 | N155: 47986 | O155: 0 | P155: 47986 | R155: 0 | S155: 47986 | U155: =IFERROR(VLOOKUP($A155, 'Allocation 2023-24 Final'!$A$7:$S$323,19,FALSE),0) -> 38229 | W155: 9757 | X155: 0.2552250909 | Y155: 31 | Z155: 0 | AB155: 5305160 | AC155: MONTESANO
A156: =VLOOKUP(B156,CCDDD!$A$3:$B$319,2,FALSE) -> 21214 | B156: 5305190 | C156: MORTON | D156: 0 | E156: 0 | F156: =VLOOKUP(B156,'24-25 Adjusted Formula counts'!$A$3:$L$320,8,FALSE) -> 333 | G156: =ROUND((F156/$F$5*Assumptions!$C$22*Assumptions!$C$30),0) -> 1790 | H156: =VLOOKUP(B156,'24-25 Adjusted Formula counts'!$A$3:$L$320,9,FALSE) -> 44 | I156: =ROUND((H156/$H$5*Assumptions!$C$22*Assumptions!$C$31),0) -> 8717 | K156: 10507 | N156: 10507 | O156: 0 | P156: 10507 | R156: 0 | S156: 10507 | U156: =IFERROR(VLOOKUP($A156, 'Allocation 2023-24 Final'!$A$7:$S$323,19,FALSE),0) -> 14641 | W156: -4134 | X156: -0.2823577624 | Y156: 226 | Z156: 0 | AB156: 5305190 | AC156: MORTON
A157: =VLOOKUP(B157,CCDDD!$A$3:$B$319,2,FALSE) -> 13161 | B157: 5305220 | C157: MOSES LAKE | D157: 0 | E157: 0 | F157: =VLOOKUP(B157,'24-25 Adjusted Formula counts'!$A$3:$L$320,8,FALSE) -> 9756 | G157: =ROUND((F157/$F$5*Assumptions!$C$22*Assumptions!$C$30),0) -> 52452 | H157: =VLOOKUP(B157,'24-25 Adjusted Formula counts'!$A$3:$L$320,9,FALSE) -> 1341 | I157: =ROUND((H157/$H$5*Assumptions!$C$22*Assumptions!$C$31),0) -> 265685 | K157: 318137 | N157: 318137 | O157: 0 | P157: 318137 | R157: 0 | S157: 318137 | U157: =IFERROR(VLOOKUP($A157, 'Allocation 2023-24 Final'!$A$7:$S$323,19,FALSE),0) -> 295221 | W157: 22916 | X157: 0.07762320431 | Y157: 15 | Z157: 0 | AB157: 5305220 | AC157: MOSES LAKE
A158: =VLOOKUP(B158,CCDDD!$A$3:$B$319,2,FALSE) -> 21206 | B158: 5305250 | C158: MOSSYROCK | D158: 0 | E158: 0 | F158: =VLOOKUP(B158,'24-25 Adjusted Formula counts'!$A$3:$L$320,8,FALSE) -> 699 | G158: =ROUND((F158/$F$5*Assumptions!$C$22*Assumptions!$C$30),0) -> 3758 | H158: =VLOOKUP(B158,'24-25 Adjusted Formula counts'!$A$3:$L$320,9,FALSE) -> 124 | I158: =ROUND((H158/$H$5*Assumptions!$C$22*Assumptions!$C$31),0) -> 24567 | K158: 28325 | N158: 28325 | O158: 0 | P158: 28325 | R158: 0 | S158: 28325 | U158: =IFERROR(VLOOKUP($A158, 'Allocation 2023-24 Final'!$A$7:$S$323,19,FALSE),0) -> 24399 | W158: 3926 | X158: 0.1609082339 | Y158: 53 | Z158: 0 | AB158: 5305250 | AC158: MOSSYROCK
A159: =VLOOKUP(B159,CCDDD!$A$3:$B$319,2,FALSE) -> 39209 | B159: 5305280 | C159: MOUNT ADAMS | D159: 0 | E159: 0 | F159: =VLOOKUP(B159,'24-25 Adjusted Formula counts'!$A$3:$L$320,8,FALSE) -> 998 | G159: =ROUND((F159/$F$5*Assumptions!$C$22*Assumptions!$C$30),0) -> 5366 | H159: =VLOOKUP(B159,'24-25 Adjusted Formula counts'!$A$3:$L$320,9,FALSE) -> 259 | I159: =ROUND((H159/$H$5*Assumptions!$C$22*Assumptions!$C$31),0) -> 51314 | K159: 56680 | N159: 56680 | O159: 0 | P159: 56680 | R159: 0 | S159: 56680 | U159: =IFERROR(VLOOKUP($A159, 'Allocation 2023-24 Final'!$A$7:$S$323,19,FALSE),0) -> 53572 | W159: 3108 | X159: 0.05801538117 | Y159: 60 | Z159: 0 | AB159: 5305280 | AC159: MOUNT ADAMS
A160: =VLOOKUP(B160,CCDDD!$A$3:$B$319,2,FALSE) -> 37507 | B160: 5305310 | C160: MOUNT BAKER | D160: 0 | E160: 0 | F160: =VLOOKUP(B160,'24-25 Adjusted Formula counts'!$A$3:$L$320,8,FALSE) -> 2435 | G160: =ROUND((F160/$F$5*Assumptions!$C$22*Assumptions!$C$30),0) -> 13092 | H160: =VLOOKUP(B160,'24-25 Adjusted Formula counts'!$A$3:$L$320,9,FALSE) -> 278 | I160: =ROUND((H160/$H$5*Assumptions!$C$22*Assumptions!$C$31),0) -> 55079 | K160: 68171 | N160: 68171 | O160: 0 | P160: 68171 | R160: 0 | S160: 68171 | U160: =IFERROR(VLOOKUP($A160, 'Allocation 2023-24 Final'!$A$7:$S$323,19,FALSE),0) -> 94366 | W160: -26195 | X160: -0.277589386 | Y160: 299 | Z160: 0 | AB160: 5305310 | AC160: MOUNT BAKER
A161: =VLOOKUP(B161,CCDDD!$A$3:$B$319,2,FALSE) -> 30029 | B161: 5305340 | C161: MOUNT PLEASANT | D161: 0 | E161: 0 | F161: =VLOOKUP(B161,'24-25 Adjusted Formula counts'!$A$3:$L$320,8,FALSE) -> 41 | G161: =ROUND((F161/$F$5*Assumptions!$C$22*Assumptions!$C$30),0) -> 220 | H161: =VLOOKUP(B161,'24-25 Adjusted Formula counts'!$A$3:$L$320,9,FALSE) -> 3 | I161: =ROUND((H161/$H$5*Assumptions!$C$22*Assumptions!$C$31),0) -> 594 | K161: 814 | N161: 814 | O161: 0 | P161: 814 | R161: 0 | S161: 814 | U161: =IFERROR(VLOOKUP($A161, 'Allocation 2023-24 Final'!$A$7:$S$323,19,FALSE),0) -> 1389 | W161: -575 | X161: -0.4139668826 | Y161: 159 | Z161: 0 | AB161: 5305340 | AC161: MOUNT PLEASANT
A162: =VLOOKUP(B162,CCDDD!$A$3:$B$319,2,FALSE) -> 29320 | B162: 5305400 | C162: MOUNT VERNON | D162: 0 | E162: 0 | F162: =VLOOKUP(B162,'24-25 Adjusted Formula counts'!$A$3:$L$320,8,FALSE) -> 6839 | G162: =ROUND((F162/$F$5*Assumptions!$C$22*Assumptions!$C$30),0) -> 36769 | H162: =VLOOKUP(B162,'24-25 Adjusted Formula counts'!$A$3:$L$320,9,FALSE) -> 917 | I162: =ROUND((H162/$H$5*Assumptions!$C$22*Assumptions!$C$31),0) -> 181680 | K162: 218449 | N162: 218449 | O162: 0 | P162: 218449 | R162: 0 | S162: 218449 | U162: =IFERROR(VLOOKUP($A162, 'Allocation 2023-24 Final'!$A$7:$S$323,19,FALSE),0) -> 221899 | W162: -3450 | X162: -0.015547614 | Y162: 217 | Z162: 0 | AB162: 5305400 | AC162: MOUNT VERNON
A163: =VLOOKUP(B163,CCDDD!$A$3:$B$319,2,FALSE) -> 31006 | B163: 5305430 | C163: MUKILTEO | D163: 0 | E163: 0 | F163: =VLOOKUP(B163,'24-25 Adjusted Formula counts'!$A$3:$L$320,8,FALSE) -> 16936 | G163: =ROUND((F163/$F$5*Assumptions!$C$22*Assumptions!$C$30),0) -> 91055 | H163: =VLOOKUP(B163,'24-25 Adjusted Formula counts'!$A$3:$L$320,9,FALSE) -> 2310 | I163: =ROUND((H163/$H$5*Assumptions!$C$22*Assumptions!$C$31),0) -> 457667 | K163: 548722 | N163: 548722 | O163: 0 | P163: 548722 | R163: 0 | S163: 548722 | U163: =IFERROR(VLOOKUP($A163, 'Allocation 2023-24 Final'!$A$7:$S$323,19,FALSE),0) -> 458653 | W163: 90069 | X163: 0.1963772176 | Y163: 3 | Z163: 0 | AB163: 5305430 | AC163: MUKILTEO
A164: =VLOOKUP(B164,CCDDD!$A$3:$B$319,2,FALSE) -> 39003 | B164: 5305460 | C164: NACHES VALLEY | D164: 0 | E164: 0 | F164: =VLOOKUP(B164,'24-25 Adjusted Formula counts'!$A$3:$L$320,8,FALSE) -> 1613 | G164: =ROUND((F164/$F$5*Assumptions!$C$22*Assumptions!$C$30),0) -> 8672 | H164: =VLOOKUP(B164,'24-25 Adjusted Formula counts'!$A$3:$L$320,9,FALSE) -> 218 | I164: =ROUND((H164/$H$5*Assumptions!$C$22*Assumptions!$C$31),0) -> 43191 | K164: 51863 | N164: 51863 | O164: 0 | P164: 51863 | R164: 0 | S164: 51863 | U164: =IFERROR(VLOOKUP($A164, 'Allocation 2023-24 Final'!$A$7:$S$323,19,FALSE),0) -> 48158 | W164: 3705 | X164: 0.07693425807 | Y164: 54 | Z164: 0 | AB164: 5305460 | AC164: NACHES VALLEY
A165: =VLOOKUP(B165,CCDDD!$A$3:$B$319,2,FALSE) -> 21014 | B165: 5305490 | C165: NAPAVINE | D165: 0 | E165: 0 | F165: =VLOOKUP(B165,'24-25 Adjusted Formula counts'!$A$3:$L$320,8,FALSE) -> 774 | G165: =ROUND((F165/$F$5*Assumptions!$C$22*Assumptions!$C$30),0) -> 4161 | H165: =VLOOKUP(B165,'24-25 Adjusted Formula counts'!$A$3:$L$320,9,FALSE) -> 65 | I165: =ROUND((H165/$H$5*Assumptions!$C$22*Assumptions!$C$31),0) -> 12878 | K165: 17039 | N165: 17039 | O165: 0 | P165: 17039 | R165: 0 | S165: 17039 | U165: =IFERROR(VLOOKUP($A165, 'Allocation 2023-24 Final'!$A$7:$S$323,19,FALSE),0) -> 19350 | W165: -2311 | X165: -0.1194315245 | Y165: 199 | Z165: 0 | AB165: 5305490 | AC165: NAPAVINE
A166: =VLOOKUP(B166,CCDDD!$A$3:$B$319,2,FALSE) -> 25155 | B166: 5305520 | C166: NASELLE-GRAYS | D166: 0 | E166: 0 | F166: =VLOOKUP(B166,'24-25 Adjusted Formula counts'!$A$3:$L$320,8,FALSE) -> 340 | G166: =ROUND((F166/$F$5*Assumptions!$C$22*Assumptions!$C$30),0) -> 1828 | H166: =VLOOKUP(B166,'24-25 Adjusted Formula counts'!$A$3:$L$320,9,FALSE) -> 35 | I166: =ROUND((H166/$H$5*Assumptions!$C$22*Assumptions!$C$31),0) -> 6934 | K166: 8762 | N166: 8762 | O166: 0 | P166: 8762 | R166: 0 | S166: 8762 | U166: =IFERROR(VLOOKUP($A166, 'Allocation 2023-24 Final'!$A$7:$S$323,19,FALSE),0) -> 11193 | W166: -2431 | X166: -0.2171893148 | Y166: 203 | Z166: 0 | AB166: 5305520 | AC166: NASELLE-GRAYS
A167: =VLOOKUP(B167,CCDDD!$A$3:$B$319,2,FALSE) -> 24014 | B167: 5305550 | C167: NESPELEM | D167: 0 | E167: 0 | F167: =VLOOKUP(B167,'24-25 Adjusted Formula counts'!$A$3:$L$320,8,FALSE) -> 253 | G167: =ROUND((F167/$F$5*Assumptions!$C$22*Assumptions!$C$30),0) -> 1360 | H167: =VLOOKUP(B167,'24-25 Adjusted Formula counts'!$A$3:$L$320,9,FALSE) -> 68 | I167: =ROUND((H167/$H$5*Assumptions!$C$22*Assumptions!$C$31),0) -> 13472 | K167: 14832 | N167: 14832 | O167: 0 | P167: 14832 | R167: 0 | S167: 14832 | U167: =IFERROR(VLOOKUP($A167, 'Allocation 2023-24 Final'!$A$7:$S$323,19,FALSE),0) -> 12464 | W167: 2368 | X167: 0.189987163 | Y167: 72 | Z167: 0 | AB167: 5305550 | AC167: NESPELEM
A168: =VLOOKUP(B168,CCDDD!$A$3:$B$319,2,FALSE) -> 26056 | B168: 5305610 | C168: NEWPORT | D168: 0 | E168: 0 | F168: =VLOOKUP(B168,'24-25 Adjusted Formula counts'!$A$3:$L$320,8,FALSE) -> 1399 | G168: =ROUND((F168/$F$5*Assumptions!$C$22*Assumptions!$C$30),0) -> 7522 | H168: =VLOOKUP(B168,'24-25 Adjusted Formula counts'!$A$3:$L$320,9,FALSE) -> 268 | I168: =ROUND((H168/$H$5*Assumptions!$C$22*Assumptions!$C$31),0) -> 53097 | K168: 60619 | N168: 60619 | O168: 0 | P168: 60619 | R168: 0 | S168: 60619 | U168: =IFERROR(VLOOKUP($A168, 'Allocation 2023-24 Final'!$A$7:$S$323,19,FALSE),0) -> 67600 | W168: -6981 | X168: -0.1032692308 | Y168: 250 | Z168: 0 | AB168: 5305610 | AC168: NEWPORT
A169: =VLOOKUP(B169,CCDDD!$A$3:$B$319,2,FALSE) -> 32325 | B169: 5305640 | C169: NINE MILE FALLS | D169: 0 | E169: 0 | F169: =VLOOKUP(B169,'24-25 Adjusted Formula counts'!$A$3:$L$320,8,FALSE) -> 1563 | G169: =ROUND((F169/$F$5*Assumptions!$C$22*Assumptions!$C$30),0) -> 8403 | H169: =VLOOKUP(B169,'24-25 Adjusted Formula counts'!$A$3:$L$320,9,FALSE) -> 104 | I169: =ROUND((H169/$H$5*Assumptions!$C$22*Assumptions!$C$31),0) -> 20605 | K169: 29008 | N169: 29008 | O169: 0 | P169: 29008 | R169: 0 | S169: 29008 | U169: =IFERROR(VLOOKUP($A169, 'Allocation 2023-24 Final'!$A$7:$S$323,19,FALSE),0) -> 37510 | W169: -8502 | X169: -0.2266595575 | Y169: 258 | Z169: 0 | AB169: 5305640 | AC169: NINE MILE FALLS
A170: =VLOOKUP(B170,CCDDD!$A$3:$B$319,2,FALSE) -> 37506 | B170: 5305670 | C170: NOOKSACK VALLEY | D170: 0 | E170: 0 | F170: =VLOOKUP(B170,'24-25 Adjusted Formula counts'!$A$3:$L$320,8,FALSE) -> 2210 | G170: =ROUND((F170/$F$5*Assumptions!$C$22*Assumptions!$C$30),0) -> 11882 | H170: =VLOOKUP(B170,'24-25 Adjusted Formula counts'!$A$3:$L$320,9,FALSE) -> 200 | I170: =ROUND((H170/$H$5*Assumptions!$C$22*Assumptions!$C$31),0) -> 39625 | K170: 51507 | N170: 51507 | O170: 0 | P170: 51507 | R170: 0 | S170: 51507 | U170: =IFERROR(VLOOKUP($A170, 'Allocation 2023-24 Final'!$A$7:$S$323,19,FALSE),0) -> 69367 | W170: -17860 | X170: -0.2574711318 | Y170: 289 | Z170: 0 | AB170: 5305670 | AC170: NOOKSACK VALLEY
A171: =VLOOKUP(B171,CCDDD!$A$3:$B$319,2,FALSE) -> 14064 | B171: 5305700 | C171: NORTH BEACH | D171: 0 | E171: 0 | F171: =VLOOKUP(B171,'24-25 Adjusted Formula counts'!$A$3:$L$320,8,FALSE) -> 703 | G171: =ROUND((F171/$F$5*Assumptions!$C$22*Assumptions!$C$30),0) -> 3780 | H171: =VLOOKUP(B171,'24-25 Adjusted Formula counts'!$A$3:$L$320,9,FALSE) -> 157 | I171: =ROUND((H171/$H$5*Assumptions!$C$22*Assumptions!$C$31),0) -> 31106 | K171: 34886 | N171: 34886 | O171: 0 | P171: 34886 | R171: 0 | S171: 34886 | U171: =IFERROR(VLOOKUP($A171, 'Allocation 2023-24 Final'!$A$7:$S$323,19,FALSE),0) -> 35195 | W171: -309 | X171: -0.008779656201 | Y171: 147 | Z171: 0 | AB171: 5305700 | AC171: NORTH BEACH
A172: =VLOOKUP(B172,CCDDD!$A$3:$B$319,2,FALSE) -> 11051 | B172: 5305730 | C172: NORTH FRANKLIN | D172: 0 | E172: 0 | F172: =VLOOKUP(B172,'24-25 Adjusted Formula counts'!$A$3:$L$320,8,FALSE) -> 2211 | G172: =ROUND((F172/$F$5*Assumptions!$C$22*Assumptions!$C$30),0) -> 11887 | H172: =VLOOKUP(B172,'24-25 Adjusted Formula counts'!$A$3:$L$320,9,FALSE) -> 414 | I172: =ROUND((H172/$H$5*Assumptions!$C$22*Assumptions!$C$31),0) -> 82023 | K172: 93910 | N172: 93910 | O172: 0 | P172: 93910 | R172: 0 | S172: 93910 | U172: =IFERROR(VLOOKUP($A172, 'Allocation 2023-24 Final'!$A$7:$S$323,19,FALSE),0) -> 72842 | W172: 21068 | X172: 0.2892287417 | Y172: 16 | Z172: 0 | AB172: 5305730 | AC172: NORTH FRANKLIN
A173: =VLOOKUP(B173,CCDDD!$A$3:$B$319,2,FALSE) -> 18400 | B173: 5305760 | C173: NORTH KITSAP | D173: 0 | E173: 0 | F173: =VLOOKUP(B173,'24-25 Adjusted Formula counts'!$A$3:$L$320,8,FALSE) -> 7166 | G173: =ROUND((F173/$F$5*Assumptions!$C$22*Assumptions!$C$30),0) -> 38527 | H173: =VLOOKUP(B173,'24-25 Adjusted Formula counts'!$A$3:$L$320,9,FALSE) -> 548 | I173: =ROUND((H173/$H$5*Assumptions!$C$22*Assumptions!$C$31),0) -> 108572 | K173: 147099 | N173: 147099 | O173: 0 | P173: 147099 | R173: 0 | S173: 147099 | U173: =IFERROR(VLOOKUP($A173, 'Allocation 2023-24 Final'!$A$7:$S$323,19,FALSE),0) -> 156158 | W173: -9059 | X173: -0.05801175732 | Y173: 259 | Z173: 0 | AB173: 5305760 | AC173: NORTH KITSAP
A174: =VLOOKUP(B174,CCDDD!$A$3:$B$319,2,FALSE) -> 23403 | B174: 5305790 | C174: NORTH MASON | D174: 0 | E174: 0 | F174: =VLOOKUP(B174,'24-25 Adjusted Formula counts'!$A$3:$L$320,8,FALSE) -> 2444 | G174: =ROUND((F174/$F$5*Assumptions!$C$22*Assumptions!$C$30),0) -> 13140 | H174: =VLOOKUP(B174,'24-25 Adjusted Formula counts'!$A$3:$L$320,9,FALSE) -> 339 | I174: =ROUND((H174/$H$5*Assumptions!$C$22*Assumptions!$C$31),0) -> 67164 | K174: 80304 | N174: 80304 | O174: 0 | P174: 80304 | R174: 0 | S174: 80304 | U174: =IFERROR(VLOOKUP($A174, 'Allocation 2023-24 Final'!$A$7:$S$323,19,FALSE),0) -> 89994 | W174: -9690 | X174: -0.1076738449 | Y174: 263 | Z174: 0 | AB174: 5305790 | AC174: NORTH MASON
A175: =VLOOKUP(B175,CCDDD!$A$3:$B$319,2,FALSE) -> 25200 | B175: 5305820 | C175: NORTH RIVER | D175: 0 | E175: 0 | F175: =VLOOKUP(B175,'24-25 Adjusted Formula counts'!$A$3:$L$320,8,FALSE) -> 52 | G175: =ROUND((F175/$F$5*Assumptions!$C$22*Assumptions!$C$30),0) -> 280 | H175: =VLOOKUP(B175,'24-25 Adjusted Formula counts'!$A$3:$L$320,9,FALSE) -> 7 | I175: =ROUND((H175/$H$5*Assumptions!$C$22*Assumptions!$C$31),0) -> 1387 | K175: 1667 | N175: 1667 | O175: 0 | P175: 1667 | R175: 0 | S175: 1667 | U175: =IFERROR(VLOOKUP($A175, 'Allocation 2023-24 Final'!$A$7:$S$323,19,FALSE),0) -> 1849 | W175: -182 | X175: -0.09843158464 | Y175: 145 | Z175: 0 | AB175: 5305820 | AC175: NORTH RIVER
A176: =VLOOKUP(B176,CCDDD!$A$3:$B$319,2,FALSE) -> 34003 | B176: 5305850 | C176: NORTH THURSTON | D176: 0 | E176: 0 | F176: =VLOOKUP(B176,'24-25 Adjusted Formula counts'!$A$3:$L$320,8,FALSE) -> 17009 | G176: =ROUND((F176/$F$5*Assumptions!$C$22*Assumptions!$C$30),0) -> 91447 | H176: =VLOOKUP(B176,'24-25 Adjusted Formula counts'!$A$3:$L$320,9,FALSE) -> 1459 | I176: =ROUND((H176/$H$5*Assumptions!$C$22*Assumptions!$C$31),0) -> 289063 | K176: 380510 | N176: 380510 | O176: 0 | P176: 380510 | R176: 0 | S176: 380510 | U176: =IFERROR(VLOOKUP($A176, 'Allocation 2023-24 Final'!$A$7:$S$323,19,FALSE),0) -> 441555 | W176: -61045 | X176: -0.1382500481 | Y176: 310 | Z176: 0 | AB176: 5305850 | AC176: NORTH THURSTON
A177: =VLOOKUP(B177,CCDDD!$A$3:$B$319,2,FALSE) -> 33211 | B177: 5305880 | C177: NORTHPORT | D177: 0 | E177: 0 | F177: =VLOOKUP(B177,'24-25 Adjusted Formula counts'!$A$3:$L$320,8,FALSE) -> 225 | G177: =ROUND((F177/$F$5*Assumptions!$C$22*Assumptions!$C$30),0) -> 1210 | H177: =VLOOKUP(B177,'24-25 Adjusted Formula counts'!$A$3:$L$320,9,FALSE) -> 70 | I177: =ROUND((H177/$H$5*Assumptions!$C$22*Assumptions!$C$31),0) -> 13869 | K177: 15079 | N177: 15079 | O177: 0 | P177: 15079 | R177: 0 | S177: 15079 | U177: =IFERROR(VLOOKUP($A177, 'Allocation 2023-24 Final'!$A$7:$S$323,19,FALSE),0) -> 12908 | W177: 2171 | X177: 0.1681902696 | Y177: 75 | Z177: 0 | AB177: 5305880 | AC177: NORTHPORT
A178: =VLOOKUP(B178,CCDDD!$A$3:$B$319,2,FALSE) -> 17417 | B178: 5305910 | C178: NORTHSHORE | D178: 0 | E178: 0 | F178: =VLOOKUP(B178,'24-25 Adjusted Formula counts'!$A$3:$L$320,8,FALSE) -> 26236 | G178: =ROUND((F178/$F$5*Assumptions!$C$22*Assumptions!$C$30),0) -> 141056 | H178: =VLOOKUP(B178,'24-25 Adjusted Formula counts'!$A$3:$L$320,9,FALSE) -> 974 | I178: =ROUND((H178/$H$5*Assumptions!$C$22*Assumptions!$C$31),0) -> 192973 | K178: 334029 | N178: 334029 | O178: 0 | P178: 334029 | R178: 0 | S178: 334029 | U178: =IFERROR(VLOOKUP($A178, 'Allocation 2023-24 Final'!$A$7:$S$323,19,FALSE),0) -> 343780 | W178: -9751 | X178: -0.02836407004 | Y178: 265 | Z178: 0 | AB178: 5305910 | AC178: NORTHSHORE
A179: =VLOOKUP(B179,CCDDD!$A$3:$B$319,2,FALSE) -> 15201 | B179: 5305940 | C179: OAK HARBOR | D179: 0 | E179: 0 | F179: =VLOOKUP(B179,'24-25 Adjusted Formula counts'!$A$3:$L$320,8,FALSE) -> 6006 | G179: =ROUND((F179/$F$5*Assumptions!$C$22*Assumptions!$C$30),0) -> 32291 | H179: =VLOOKUP(B179,'24-25 Adjusted Formula counts'!$A$3:$L$320,9,FALSE) -> 409 | I179: =ROUND((H179/$H$5*Assumptions!$C$22*Assumptions!$C$31),0) -> 81033 | K179: 113324 | N179: 113324 | O179: 0 | P179: 113324 | R179: 0 | S179: 113324 | U179: =IFERROR(VLOOKUP($A179, 'Allocation 2023-24 Final'!$A$7:$S$323,19,FALSE),0) -> 140819 | W179: -27495 | X179: -0.1952506409 | Y179: 302 | Z179: 0 | AB179: 5305940 | AC179: OAK HARBOR
A180: =VLOOKUP(B180,CCDDD!$A$3:$B$319,2,FALSE) -> 38324 | B180: 5305970 | C180: OAKESDALE | D180: 0 | E180: 0 | F180: =VLOOKUP(B180,'24-25 Adjusted Formula counts'!$A$3:$L$320,8,FALSE) -> 126 | G180: =ROUND((F180/$F$5*Assumptions!$C$22*Assumptions!$C$30),0) -> 677 | H180: =VLOOKUP(B180,'24-25 Adjusted Formula counts'!$A$3:$L$320,9,FALSE) -> 17 | I180: =ROUND((H180/$H$5*Assumptions!$C$22*Assumptions!$C$31),0) -> 3368 | K180: 4045 | N180: 4045 | O180: 0 | P180: 4045 | R180: 0 | S180: 4045 | U180: =IFERROR(VLOOKUP($A180, 'Allocation 2023-24 Final'!$A$7:$S$323,19,FALSE),0) -> 3020 | W180: 1025 | X180: 0.3394039735 | Y180: 100 | Z180: 0 | AB180: 5305970 | AC180: OAKESDALE
A181: =VLOOKUP(B181,CCDDD!$A$3:$B$319,2,FALSE) -> 14400 | B181: 5306000 | C181: OAKVILLE | D181: 0 | E181: 0 | F181: =VLOOKUP(B181,'24-25 Adjusted Formula counts'!$A$3:$L$320,8,FALSE) -> 450 | G181: =ROUND((F181/$F$5*Assumptions!$C$22*Assumptions!$C$30),0) -> 2419 | H181: =VLOOKUP(B181,'24-25 Adjusted Formula counts'!$A$3:$L$320,9,FALSE) -> 108 | I181: =ROUND((H181/$H$5*Assumptions!$C$22*Assumptions!$C$31),0) -> 21397 | K181: 23816 | N181: 23816 | O181: 0 | P181: 23816 | R181: 0 | S181: 23816 | U181: =IFERROR(VLOOKUP($A181, 'Allocation 2023-24 Final'!$A$7:$S$323,19,FALSE),0) -> 16475 | W181: 7341 | X181: 0.4455842185 | Y181: 40 | Z181: 0 | AB181: 5306000 | AC181: OAKVILLE
A182: =VLOOKUP(B182,CCDDD!$A$3:$B$319,2,FALSE) -> 25101 | B182: 5306060 | C182: OCEAN BEACH | D182: 0 | E182: 0 | F182: =VLOOKUP(B182,'24-25 Adjusted Formula counts'!$A$3:$L$320,8,FALSE) -> 1047 | G182: =ROUND((F182/$F$5*Assumptions!$C$22*Assumptions!$C$30),0) -> 5629 | H182: =VLOOKUP(B182,'24-25 Adjusted Formula counts'!$A$3:$L$320,9,FALSE) -> 189 | I182: =ROUND((H182/$H$5*Assumptions!$C$22*Assumptions!$C$31),0) -> 37446 | K182: 43075 | N182: 43075 | O182: 0 | P182: 43075 | R182: 0 | S182: 43075 | U182: =IFERROR(VLOOKUP($A182, 'Allocation 2023-24 Final'!$A$7:$S$323,19,FALSE),0) -> 46636 | W182: -3561 | X182: -0.07635732052 | Y182: 218 | Z182: 0 | AB182: 5306060 | AC182: OCEAN BEACH
A183: =VLOOKUP(B183,CCDDD!$A$3:$B$319,2,FALSE) -> 14172 | B183: 5306090 | C183: OCOSTA | D183: 0 | E183: 0 | F183: =VLOOKUP(B183,'24-25 Adjusted Formula counts'!$A$3:$L$320,8,FALSE) -> 660 | G183: =ROUND((F183/$F$5*Assumptions!$C$22*Assumptions!$C$30),0) -> 3548 | H183: =VLOOKUP(B183,'24-25 Adjusted Formula counts'!$A$3:$L$320,9,FALSE) -> 195 | I183: =ROUND((H183/$H$5*Assumptions!$C$22*Assumptions!$C$31),0) -> 38634 | K183: 42182 | N183: 42182 | O183: 0 | P183: 42182 | R183: 0 | S183: 42182 | U183: =IFERROR(VLOOKUP($A183, 'Allocation 2023-24 Final'!$A$7:$S$323,19,FALSE),0) -> 40999 | W183: 1183 | X183: 0.0288543623 | Y183: 95 | Z183: 0 | AB183: 5306090 | AC183: OCOSTA
A184: =VLOOKUP(B184,CCDDD!$A$3:$B$319,2,FALSE) -> 22105 | B184: 5306120 | C184: ODESSA | D184: 0 | E184: 0 | F184: =VLOOKUP(B184,'24-25 Adjusted Formula counts'!$A$3:$L$320,8,FALSE) -> 310 | G184: =ROUND((F184/$F$5*Assumptions!$C$22*Assumptions!$C$30),0) -> 1667 | H184: =VLOOKUP(B184,'24-25 Adjusted Formula counts'!$A$3:$L$320,9,FALSE) -> 32 | I184: =ROUND((H184/$H$5*Assumptions!$C$22*Assumptions!$C$31),0) -> 6340 | K184: 8007 | N184: 8007 | O184: 0 | P184: 8007 | R184: 0 | S184: 8007 | U184: =IFERROR(VLOOKUP($A184, 'Allocation 2023-24 Final'!$A$7:$S$323,19,FALSE),0) -> 9424 | W184: -1417 | X184: -0.150360781 | Y184: 185 | Z184: 0 | AB184: 5306120 | AC184: ODESSA
A185: =VLOOKUP(B185,CCDDD!$A$3:$B$319,2,FALSE) -> 24105 | B185: 5306150 | C185: OKANOGAN | D185: 0 | E185: 0 | F185: =VLOOKUP(B185,'24-25 Adjusted Formula counts'!$A$3:$L$320,8,FALSE) -> 980 | G185: =ROUND((F185/$F$5*Assumptions!$C$22*Assumptions!$C$30),0) -> 5269 | H185: =VLOOKUP(B185,'24-25 Adjusted Formula counts'!$A$3:$L$320,9,FALSE) -> 172 | I185: =ROUND((H185/$H$5*Assumptions!$C$22*Assumptions!$C$31),0) -> 34077 | K185: 39346 | N185: 39346 | O185: 0 | P185: 39346 | R185: 0 | S185: 39346 | U185: =IFERROR(VLOOKUP($A185, 'Allocation 2023-24 Final'!$A$7:$S$323,19,FALSE),0) -> 37808 | W185: 1538 | X185: 0.04067922133 | Y185: 89 | Z185: 0 | AB185: 5306150 | AC185: OKANOGAN
A186: =VLOOKUP(B186,CCDDD!$A$3:$B$319,2,FALSE) -> 34111 | B186: 5306180 | C186: OLYMPIA | D186: 0 | E186: 0 | F186: =VLOOKUP(B186,'24-25 Adjusted Formula counts'!$A$3:$L$320,8,FALSE) -> 10394 | G186: =ROUND((F186/$F$5*Assumptions!$C$22*Assumptions!$C$30),0) -> 55882 | H186: =VLOOKUP(B186,'24-25 Adjusted Formula counts'!$A$3:$L$320,9,FALSE) -> 1070 | I186: =ROUND((H186/$H$5*Assumptions!$C$22*Assumptions!$C$31),0) -> 211993 | K186: 267875 | N186: 267875 | O186: 0 | P186: 267875 | R186: 0 | S186: 267875 | U186: =IFERROR(VLOOKUP($A186, 'Allocation 2023-24 Final'!$A$7:$S$323,19,FALSE),0) -> 282639 | W186: -14764 | X186: -0.05223624482 | Y186: 278 | Z186: 0 | AB186: 5306180 | AC186: OLYMPIA
A187: =VLOOKUP(B187,CCDDD!$A$3:$B$319,2,FALSE) -> 24019 | B187: 5306220 | C187: OMAK | D187: 0 | E187: 0 | F187: =VLOOKUP(B187,'24-25 Adjusted Formula counts'!$A$3:$L$320,8,FALSE) -> 1930 | G187: =ROUND((F187/$F$5*Assumptions!$C$22*Assumptions!$C$30),0) -> 10376 | H187: =VLOOKUP(B187,'24-25 Adjusted Formula counts'!$A$3:$L$320,9,FALSE) -> 371 | I187: =ROUND((H187/$H$5*Assumptions!$C$22*Assumptions!$C$31),0) -> 73504 | K187: 83880 | N187: 83880 | O187: 0 | P187: 83880 | R187: 0 | S187: 83880 | U187: =IFERROR(VLOOKUP($A187, 'Allocation 2023-24 Final'!$A$7:$S$323,19,FALSE),0) -> 90256 | W187: -6376 | X187: -0.07064350293 | Y187: 246 | Z187: 0 | AB187: 5306220 | AC187: OMAK
A188: =VLOOKUP(B188,CCDDD!$A$3:$B$319,2,FALSE) -> 21300 | B188: 5306240 | C188: ONALASKA | D188: 0 | E188: 0 | F188: =VLOOKUP(B188,'24-25 Adjusted Formula counts'!$A$3:$L$320,8,FALSE) -> 933 | G188: =ROUND((F188/$F$5*Assumptions!$C$22*Assumptions!$C$30),0) -> 5016 | H188: =VLOOKUP(B188,'24-25 Adjusted Formula counts'!$A$3:$L$320,9,FALSE) -> 127 | I188: =ROUND((H188/$H$5*Assumptions!$C$22*Assumptions!$C$31),0) -> 25162 | K188: 30178 | N188: 30178 | O188: 0 | P188: 30178 | R188: 0 | S188: 30178 | U188: =IFERROR(VLOOKUP($A188, 'Allocation 2023-24 Final'!$A$7:$S$323,19,FALSE),0) -> 32668 | W188: -2490 | X188: -0.07622137872 | Y188: 204 | Z188: 0 | AB188: 5306240 | AC188: ONALASKA
A189: =VLOOKUP(B189,CCDDD!$A$3:$B$319,2,FALSE) -> 33030 | B189: 5306270 | C189: ONION CREEK | D189: 0 | E189: 0 | F189: =VLOOKUP(B189,'24-25 Adjusted Formula counts'!$A$3:$L$320,8,FALSE) -> 62 | G189: =ROUND((F189/$F$5*Assumptions!$C$22*Assumptions!$C$30),0) -> 333 | H189: =VLOOKUP(B189,'24-25 Adjusted Formula counts'!$A$3:$L$320,9,FALSE) -> 19 | I189: =ROUND((H189/$H$5*Assumptions!$C$22*Assumptions!$C$31),0) -> 3764 | K189: 4097 | N189: 4097 | O189: 0 | P189: 4097 | R189: 0 | S189: 4097 | U189: =IFERROR(VLOOKUP($A189, 'Allocation 2023-24 Final'!$A$7:$S$323,19,FALSE),0) -> 3261 | W189: 836 | X189: 0.2563630788 | Y189: 106 | Z189: 0 | AB189: 5306270 | AC189: ONION CREEK
A190: =VLOOKUP(B190,CCDDD!$A$3:$B$319,2,FALSE) -> 28137 | B190: 5306300 | C190: ORCAS ISLAND | D190: 0 | E190: 0 | F190: =VLOOKUP(B190,'24-25 Adjusted Formula counts'!$A$3:$L$320,8,FALSE) -> 587 | G190: =ROUND((F190/$F$5*Assumptions!$C$22*Assumptions!$C$30),0) -> 3156 | H190: =VLOOKUP(B190,'24-25 Adjusted Formula counts'!$A$3:$L$320,9,FALSE) -> 79 | I190: =ROUND((H190/$H$5*Assumptions!$C$22*Assumptions!$C$31),0) -> 15652 | K190: 18808 | N190: 18808 | O190: 0 | P190: 18808 | R190: 0 | S190: 18808 | U190: =IFERROR(VLOOKUP($A190, 'Allocation 2023-24 Final'!$A$7:$S$323,19,FALSE),0) -> 19738 | W190: -930 | X190: -0.04711723579 | Y190: 173 | Z190: 0 | AB190: 5306300 | AC190: ORCAS ISLAND
A191: =VLOOKUP(B191,CCDDD!$A$3:$B$319,2,FALSE) -> 32123 | B191: 5306330 | C191: ORCHARD PRAIRIE | D191: 0 | E191: 0 | F191: =VLOOKUP(B191,'24-25 Adjusted Formula counts'!$A$3:$L$320,8,FALSE) -> 177 | G191: =ROUND((F191/$F$5*Assumptions!$C$22*Assumptions!$C$30),0) -> 952 | H191: =VLOOKUP(B191,'24-25 Adjusted Formula counts'!$A$3:$L$320,9,FALSE) -> 22 | I191: =ROUND((H191/$H$5*Assumptions!$C$22*Assumptions!$C$31),0) -> 4359 | K191: 5311 | N191: 5311 | O191: 0 | P191: 5311 | R191: 0 | S191: 5311 | U191: =IFERROR(VLOOKUP($A191, 'Allocation 2023-24 Final'!$A$7:$S$323,19,FALSE),0) -> 2330 | W191: 2981 | X191: 1.279399142 | Y191: 63 | Z191: 0 | AB191: 5306330 | AC191: ORCHARD PRAIRIE
A192: =VLOOKUP(B192,CCDDD!$A$3:$B$319,2,FALSE) -> 10065 | B192: 5306360 | C192: ORIENT | D192: 0 | E192: 0 | F192: =VLOOKUP(B192,'24-25 Adjusted Formula counts'!$A$3:$L$320,8,FALSE) -> 128 | G192: =ROUND((F192/$F$5*Assumptions!$C$22*Assumptions!$C$30),0) -> 688 | H192: =VLOOKUP(B192,'24-25 Adjusted Formula counts'!$A$3:$L$320,9,FALSE) -> 36 | I192: =ROUND((H192/$H$5*Assumptions!$C$22*Assumptions!$C$31),0) -> 7132 | K192: 7820 | N192: 7820 | O192: 0 | P192: 7820 | R192: 0 | S192: 7820 | U192: =IFERROR(VLOOKUP($A192, 'Allocation 2023-24 Final'!$A$7:$S$323,19,FALSE),0) -> 6722 | W192: 1098 | X192: 0.1633442428 | Y192: 98 | Z192: 0 | AB192: 5306360 | AC192: ORIENT
A193: =VLOOKUP(B193,CCDDD!$A$3:$B$319,2,FALSE) -> 09013 | B193: 5306390 | C193: ORONDO | D193: 0 | E193: 0 | F193: =VLOOKUP(B193,'24-25 Adjusted Formula counts'!$A$3:$L$320,8,FALSE) -> 261 | G193: =ROUND((F193/$F$5*Assumptions!$C$22*Assumptions!$C$30),0) -> 1403 | H193: =VLOOKUP(B193,'24-25 Adjusted Formula counts'!$A$3:$L$320,9,FALSE) -> 34 | I193: =ROUND((H193/$H$5*Assumptions!$C$22*Assumptions!$C$31),0) -> 6736 | K193: 8139 | N193: 8139 | O193: 0 | P193: 8139 | R193: 0 | S193: 8139 | U193: =IFERROR(VLOOKUP($A193, 'Allocation 2023-24 Final'!$A$7:$S$323,19,FALSE),0) -> 11386 | W193: -3247 | X193: -0.285174776 | Y193: 214 | Z193: 0 | AB193: 5306390 | AC193: ORONDO
A194: =VLOOKUP(B194,CCDDD!$A$3:$B$319,2,FALSE) -> 24410 | B194: 5306420 | C194: OROVILLE | D194: 0 | E194: 0 | F194: =VLOOKUP(B194,'24-25 Adjusted Formula counts'!$A$3:$L$320,8,FALSE) -> 710 | G194: =ROUND((F194/$F$5*Assumptions!$C$22*Assumptions!$C$30),0) -> 3817 | H194: =VLOOKUP(B194,'24-25 Adjusted Formula counts'!$A$3:$L$320,9,FALSE) -> 178 | I194: =ROUND((H194/$H$5*Assumptions!$C$22*Assumptions!$C$31),0) -> 35266 | K194: 39083 | N194: 39083 | O194: 0 | P194: 39083 | R194: 0 | S194: 39083 | U194: =IFERROR(VLOOKUP($A194, 'Allocation 2023-24 Final'!$A$7:$S$323,19,FALSE),0) -> 44347 | W194: -5264 | X194: -0.1187002503 | Y194: 236 | Z194: 0 | AB194: 5306420 | AC194: OROVILLE
A195: =VLOOKUP(B195,CCDDD!$A$3:$B$319,2,FALSE) -> 27344 | B195: 5306450 | C195: ORTING | D195: 0 | E195: 0 | F195: =VLOOKUP(B195,'24-25 Adjusted Formula counts'!$A$3:$L$320,8,FALSE) -> 3249 | G195: =ROUND((F195/$F$5*Assumptions!$C$22*Assumptions!$C$30),0) -> 17468 | H195: =VLOOKUP(B195,'24-25 Adjusted Formula counts'!$A$3:$L$320,9,FALSE) -> 168 | I195: =ROUND((H195/$H$5*Assumptions!$C$22*Assumptions!$C$31),0) -> 33285 | K195: 50753 | N195: 50753 | O195: 0 | P195: 50753 | R195: 0 | S195: 50753 | U195: =IFERROR(VLOOKUP($A195, 'Allocation 2023-24 Final'!$A$7:$S$323,19,FALSE),0) -> 56303 | W195: -5550 | X195: -0.09857378825 | Y195: 239 | Z195: 0 | AB195: 5306450 | AC195: ORTING
A196: =VLOOKUP(B196,CCDDD!$A$3:$B$319,2,FALSE) -> 01147 | B196: 5306480 | C196: OTHELLO | D196: 0 | E196: 0 | F196: =VLOOKUP(B196,'24-25 Adjusted Formula counts'!$A$3:$L$320,8,FALSE) -> 4618 | G196: =ROUND((F196/$F$5*Assumptions!$C$22*Assumptions!$C$30),0) -> 24828 | H196: =VLOOKUP(B196,'24-25 Adjusted Formula counts'!$A$3:$L$320,9,FALSE) -> 735 | I196: =ROUND((H196/$H$5*Assumptions!$C$22*Assumptions!$C$31),0) -> 145621 | K196: 170449 | N196: 170449 | O196: 0 | P196: 170449 | R196: 0 | S196: 170449 | U196: =IFERROR(VLOOKUP($A196, 'Allocation 2023-24 Final'!$A$7:$S$323,19,FALSE),0) -> 197053 | W196: -26604 | X196: -0.135009363 | Y196: 301 | Z196: 0 | AB196: 5306480 | AC196: OTHELLO
A197: =VLOOKUP(B197,CCDDD!$A$3:$B$319,2,FALSE) -> 09102 | B197: 5306510 | C197: PALISADES | D197: 0 | E197: 0 | F197: =VLOOKUP(B197,'24-25 Adjusted Formula counts'!$A$3:$L$320,8,FALSE) -> 46 | G197: =ROUND((F197/$F$5*Assumptions!$C$22*Assumptions!$C$30),0) -> 247 | H197: =VLOOKUP(B197,'24-25 Adjusted Formula counts'!$A$3:$L$320,9,FALSE) -> 10 | I197: =ROUND((H197/$H$5*Assumptions!$C$22*Assumptions!$C$31),0) -> 1981 | K197: 2228 | N197: 2228 | O197: 0 | P197: 2228 | R197: 0 | S197: 2228 | U197: =IFERROR(VLOOKUP($A197, 'Allocation 2023-24 Final'!$A$7:$S$323,19,FALSE),0) -> 2206 | W197: 22 | X197: 0.009972801451 | Y197: 135 | Z197: 0 | AB197: 5306510 | AC197: PALISADES
A198: =VLOOKUP(B198,CCDDD!$A$3:$B$319,2,FALSE) -> 38301 | B198: 5306540 | C198: PALOUSE | D198: 0 | E198: 0 | F198: =VLOOKUP(B198,'24-25 Adjusted Formula counts'!$A$3:$L$320,8,FALSE) -> 237 | G198: =ROUND((F198/$F$5*Assumptions!$C$22*Assumptions!$C$30),0) -> 1274 | H198: =VLOOKUP(B198,'24-25 Adjusted Formula counts'!$A$3:$L$320,9,FALSE) -> 11 | I198: =ROUND((H198/$H$5*Assumptions!$C$22*Assumptions!$C$31),0) -> 2179 | K198: 3453 | N198: 3453 | O198: 0 | P198: 3453 | R198: 0 | S198: 3453 | U198: =IFERROR(VLOOKUP($A198, 'Allocation 2023-24 Final'!$A$7:$S$323,19,FALSE),0) -> 5769 | W198: -2316 | X198: -0.4014560582 | Y198: 200 | Z198: 0 | AB198: 5306540 | AC198: PALOUSE
A199: =VLOOKUP(B199,CCDDD!$A$3:$B$319,2,FALSE) -> 11001 | B199: 5306570 | C199: PASCO | D199: 0 | E199: 0 | F199: =VLOOKUP(B199,'24-25 Adjusted Formula counts'!$A$3:$L$320,8,FALSE) -> 20405 | G199: =ROUND((F199/$F$5*Assumptions!$C$22*Assumptions!$C$30),0) -> 109706 | H199: =VLOOKUP(B199,'24-25 Adjusted Formula counts'!$A$3:$L$320,9,FALSE) -> 2379 | I199: =ROUND((H199/$H$5*Assumptions!$C$22*Assumptions!$C$31),0) -> 471338 | K199: =ROUNDDOWN(+I199+G199+E199+D199+J199,0) -> 581044 | N199: =K199 -> 581044 | O199: =-ROUND(N199/$N$5*$M$5,0) -> 0 | P199: =+K199+O199+M199 -> 581044 | R199: =-1*(P199*Q199) -> 0 | S199: =+P199+R199 -> 581044 | U199: =IFERROR(VLOOKUP($A199, 'Allocation 2023-24 Final'!$A$7:$S$323,19,FALSE),0) -> 649393 | W199: =+S199-U199 -> -68349 | X199: =IF(U199>0,W199/U199,0) -> -0.1052505956 | Y199: 313 | Z199: =(SUM(D199:E199)/S199) -> 0 | AB199: =+B199 -> 5306570 | AC199: PASCO
A200: =VLOOKUP(B200,CCDDD!$A$3:$B$319,2,FALSE) -> 24122 | B200: 5306600 | C200: PATEROS | D200: 0 | E200: 0 | F200: =VLOOKUP(B200,'24-25 Adjusted Formula counts'!$A$3:$L$320,8,FALSE) -> 294 | G200: =ROUND((F200/$F$5*Assumptions!$C$22*Assumptions!$C$30),0) -> 1581 | H200: =VLOOKUP(B200,'24-25 Adjusted Formula counts'!$A$3:$L$320,9,FALSE) -> 33 | I200: =ROUND((H200/$H$5*Assumptions!$C$22*Assumptions!$C$31),0) -> 6538 | K200: 8119 | N200: 8119 | O200: 0 | P200: 8119 | R200: 0 | S200: 8119 | U200: =IFERROR(VLOOKUP($A200, 'Allocation 2023-24 Final'!$A$7:$S$323,19,FALSE),0) -> 8597 | W200: -478 | X200: -0.05560079097 | Y200: =RANK(W200,$W$7:$W$322,0) -> 154 | Z200: 0 | AB200: 5306600 | AC200: PATEROS
... 122 more rows

Sheet 24-25 Adjusted Formula counts (hidden)
A1: Source: S:\Apportionment_NEW\Federal Funding & Allocations\Federal progran allocation\24-25\Title I-A prelim\Title IA 24-25-preliminary.xlsx, initial adjusted formula counts
A2: LEAID | B2: LEANAME | C2: SendingLEAid | D2: NEG. adj | E2: Adj DEL. | F2: Adj Foster | G2: Adj TANF | H2: Adj - 5-17 pop | I2: Adj poverty | J2: Adj Total formula count | K2: Total Formula Count DOE | L2: Adj poverty percentage
A3: 5300030 | B3: Aberdeen School District | D3: 0 | F3: 25 | G3: 0 | H3: 3494 | I3: 804 | J3: 829 | K3: 829 | L3: 0.2372638809
A4: 5300060 | B4: Adna School District | D4: 0 | F4: 1 | G4: 0 | H4: 737 | I4: 38 | J4: 39 | K4: 39 | L4: 0.05291723202
A5: 5300090 | B5: Almira School District | D5: 0 | F5: 0 | G5: 0 | H5: 98 | I5: 6 | J5: 6 | K5: 6 | L5: 0.0612244898
A6: 5300150 | B6: Anacortes School District | D6: 0 | F6: 7 | G6: 0 | H6: 2828 | I6: 255 | J6: 262 | K6: 262 | L6: 0.09264497878
A7: 5300240 | B7: Arlington School District | D7: 0 | F7: 21 | G7: 0 | H7: 5915 | I7: 554 | J7: 575 | K7: 575 | L7: 0.09721048183
A8: 5300280 | B8: Asotin-Anatone School District | D8: 0 | F8: 0 | G8: 0 | H8: 493 | I8: 48 | J8: 48 | K8: 48 | L8: 0.09736308316
A9: 5300300 | B9: Auburn School District | D9: 0 | F9: 51 | G9: 0 | H9: 18293 | I9: 2918 | J9: 2969 | K9: 2969 | L9: 0.1623025201
A10: 5300330 | B10: Bainbridge Island School District | D10: 0 | F10: 1 | G10: 0 | H10: 3975 | I10: 141 | J10: 142 | K10: 142 | L10: 0.03572327044
A11: 5300380 | B11: Battle Ground School District | D11: 0 | F11: 30 | G11: 0 | H11: 15822 | I11: 788 | J11: 818 | K11: 818 | L11: 0.05170016433
A12: 5300390 | B12: Bellevue School District | D12: 0 | F12: 12 | G12: 0 | H12: 22393 | I12: 1339 | J12: 1351 | K12: 1351 | L12: 0.06033135355
A13: 5300420 | B13: Bellingham | C13: 5300420 | D13: 0 | F13: 35 | G13: 0 | H13: 12465.09868 | I13: 1329.014243 | J13: 1364.014243 | K13: 1372 | L13: 0.1094266702
A14: 5300450 | B14: Benge School District | D14: 0 | F14: 0 | G14: 0 | H14: 16 | I14: 1 | J14: 1 | K14: 1 | L14: 0.0625
A15: 5300480 | B15: Bethel School District | D15: 0 | F15: 91 | G15: 0 | H15: 24134 | I15: 2228 | J15: 2319 | K15: 2319 | L15: 0.09608850584
A16: 5300510 | B16: Bickleton School District | D16: 0 | F16: 0 | G16: 0 | H16: 78 | I16: 12 | J16: 12 | K16: 12 | L16: 0.1538461538
A17: 5300570 | B17: Blaine School District | D17: 0 | F17: 4 | G17: 0 | H17: 2473 | I17: 265 | J17: 269 | K17: 269 | L17: 0.1087747675
A18: 5300630 | B18: Boistfort School District | D18: 0 | F18: 2 | G18: 0 | H18: 215 | I18: 28 | J18: 30 | K18: 30 | L18: 0.1395348837
A19: 5300660 | B19: Bremerton | C19: 5300660 | D19: 0 | F19: 25 | G19: 0 | H19: 4867.243829 | I19: 923.916791 | J19: 948.916791 | K19: 1052 | L19: 0.194959781
A20: 5300690 | B20: Brewster School District | D20: 0 | F20: 12 | G20: 0 | H20: 968 | I20: 178 | J20: 190 | K20: 190 | L20: 0.1962809917
A21: 5300720 | B21: Bridgeport School District | D21: 0 | F21: 0 | G21: 0 | H21: 677 | I21: 163 | J21: 163 | K21: 163 | L21: 0.2407680945
A22: 5300750 | B22: Brinnon School District | D22: 0 | F22: 0 | G22: 0 | H22: 116 | I22: 27 | J22: 27 | K22: 27 | L22: 0.2327586207
A23: 5300780 | B23: Burlington-Edison School District | D23: 0 | F23: 10 | G23: 0 | H23: 3721 | I23: 390 | J23: 400 | K23: 400 | L23: 0.1074979844
A24: 5300810 | B24: Camas School District | D24: 0 | F24: 8 | G24: 0 | H24: 7408 | I24: 246 | J24: 254 | K24: 254 | L24: 0.03428725702
A25: 5300840 | B25: Cape Flattery School District | D25: 0 | F25: 3 | G25: 0 | H25: 550 | I25: 112 | J25: 115 | K25: 115 | L25: 0.2090909091
A26: 5300870 | B26: Carbonado School District | D26: 0 | F26: 0 | G26: 0 | H26: 208 | I26: 7 | J26: 7 | K26: 7 | L26: 0.03365384615
A27: 5300950 | B27: Cascade School District | D27: 0 | F27: 1 | G27: 0 | H27: 1554 | I27: 176 | J27: 177 | K27: 177 | L27: 0.1138996139
A28: 5300960 | B28: Cashmere School District | D28: 0 | F28: 8 | G28: 0 | H28: 1496 | I28: 161 | J28: 169 | K28: 169 | L28: 0.1129679144
A29: 5300990 | B29: Castle Rock School District | D29: 0 | F29: 2 | G29: 0 | H29: 1636 | I29: 181 | J29: 183 | K29: 183 | L29: 0.1118581907
A30: 5301000 | B30: Catalyst Public Schools | C30: 5300660 | D30: 0 | E30: 0 | F30: 0 | G30: 0 | H30: 610.778246 | I30: 85.07238806 | J30: 85.07238806 | K30: 0 | L30: 0.1392852293
A31: 5301050 | B31: Centerville School District | D31: 0 | F31: 0 | G31: 0 | H31: 93 | I31: 27 | J31: 27 | K31: 27 | L31: 0.2903225806
A32: 5301080 | B32: Central Kitsap School District | D32: 0 | F32: 33 | G32: 0 | H32: 11148 | I32: 853 | J32: 886 | K32: 886 | L32: 0.07947613922
A33: 5301110 | B33: Central Valley School District | D33: 0 | F33: 78 | G33: 0 | H33: 17019 | I33: 1806 | J33: 1884 | K33: 1884 | L33: 0.1106998061
A34: 5301140 | B34: Centralia School District | D34: 0 | F34: 19 | G34: 0 | H34: 4274 | I34: 748 | J34: 767 | K34: 767 | L34: 0.179457183
A35: 5301170 | B35: Chehalis School District | D35: 0 | F35: 15 | G35: 0 | H35: 2864 | I35: 249 | J35: 264 | K35: 264 | L35: 0.09217877095
A36: 5301230 | B36: Cheney School District | D36: 0 | F36: 24 | G36: 0 | H36: 6241 | I36: 860 | J36: 884 | K36: 884 | L36: 0.1416439673
A37: 5301260 | B37: Chewelah School District | D37: 0 | F37: 1 | G37: 0 | H37: 938 | I37: 160 | J37: 161 | K37: 161 | L37: 0.171641791
A38: 5301290 | B38: Chimacum School District | D38: 0 | F38: 5 | G38: 0 | H38: 1152 | I38: 170 | J38: 175 | K38: 175 | L38: 0.1519097222
A39: 5301320 | B39: Clarkston School District | D39: 0 | F39: 12 | G39: 0 | H39: 2795 | I39: 584 | J39: 596 | K39: 596 | L39: 0.2132379249
A40: 5301350 | B40: Cle Elum-Roslyn School District | D40: 0 | F40: 7 | G40: 0 | H40: 1062 | I40: 148 | J40: 155 | K40: 155 | L40: 0.1459510358
A41: 5301410 | B41: Clover Park School District | D41: 0 | F41: 36 | G41: 0 | H41: 13680 | I41: 1961 | J41: 1997 | K41: 1997 | L41: 0.1459795322
A42: 5301440 | B42: Colfax School District | D42: 0 | F42: 0 | G42: 0 | H42: 597 | I42: 45 | J42: 45 | K42: 45 | L42: 0.07537688442
A43: 5301470 | B43: College Place School District | D43: 0 | F43: 6 | G43: 0 | H43: 2035 | I43: 208 | J43: 214 | K43: 214 | L43: 0.1051597052
A44: 5301500 | B44: Colton School District | D44: 0 | F44: 0 | G44: 0 | H44: 240 | I44: 17 | J44: 17 | K44: 17 | L44: 0.07083333333
A45: 5301560 | B45: Columbia (Stevens) School District | D45: 0 | F45: 0 | G45: 0 | H45: 205 | I45: 42 | J45: 42 | K45: 42 | L45: 0.2048780488
A46: 5301590 | B46: Columbia (Walla Walla) School District | D46: 0 | F46: 4 | G46: 0 | H46: 756 | I46: 98 | J46: 102 | K46: 102 | L46: 0.1349206349
A47: 5301630 | B47: Colville School District | D47: 0 | F47: 5 | G47: 0 | H47: 1998 | I47: 318 | J47: 323 | K47: 323 | L47: 0.1616616617
A48: 5301660 | B48: Concrete School District | D48: 0 | F48: 0 | G48: 0 | H48: 716 | I48: 140 | J48: 140 | K48: 140 | L48: 0.1955307263
A49: 5301680 | B49: Conway School District | D49: 0 | F49: 1 | G49: 0 | H49: 542 | I49: 58 | J49: 59 | K49: 59 | L49: 0.1088560886
A50: 5301710 | B50: Cosmopolis School District | D50: 0 | F50: 2 | G50: 0 | H50: 315 | I50: 48 | J50: 50 | K50: 50 | L50: 0.1587301587
A51: 5303440 | B51: Coulee-Hartline School District | D51: 0 | F51: 0 | G51: 0 | H51: 247 | I51: 40 | J51: 40 | K51: 40 | L51: 0.1619433198
A52: 5301800 | B52: Coupeville School District | D52: 0 | F52: 1 | G52: 0 | H52: 1094 | I52: 95 | J52: 96 | K52: 96 | L52: 0.08775137112
A53: 5301830 | B53: Crescent School District | D53: 0 | F53: 9 | G53: 0 | H53: 345 | I53: 62 | J53: 71 | K53: 71 | L53: 0.2057971014
A54: 5301860 | B54: Creston School District | D54: 0 | F54: 0 | G54: 0 | H54: 114 | I54: 13 | J54: 13 | K54: 13 | L54: 0.1140350877
A55: 5301890 | B55: Curlew School District | D55: 0 | F55: 0 | G55: 0 | H55: 158 | I55: 41 | J55: 41 | K55: 41 | L55: 0.2594936709
A56: 5301920 | B56: Cusick School District | D56: 0 | F56: 5 | G56: 0 | H56: 316 | I56: 70 | J56: 75 | K56: 75 | L56: 0.2373417722
A57: 5301950 | B57: Damman School District | D57: 0 | F57: 0 | G57: 0 | H57: 111 | I57: 2 | J57: 2 | K57: 2 | L57: 0.01801801802
A58: 5301980 | B58: Darrington School District | D58: 0 | F58: 4 | G58: 0 | H58: 504 | I58: 61 | J58: 65 | K58: 65 | L58: 0.128968254
A59: 5302010 | B59: Davenport School District | D59: 0 | F59: 1 | G59: 0 | H59: 588 | I59: 80 | J59: 81 | K59: 81 | L59: 0.137755102
A60: 5302040 | B60: Dayton School District | D60: 0 | F60: 4 | G60: 0 | H60: 505 | I60: 72 | J60: 76 | K60: 76 | L60: 0.1504950495
A61: 5302070 | B61: Deer Park School District | D61: 0 | F61: 12 | G61: 0 | H61: 2369 | I61: 329 | J61: 341 | K61: 341 | L61: 0.1439425918
A62: 5302130 | B62: Dieringer School District | D62: 0 | F62: 5 | G62: 0 | H62: 2275 | I62: 87 | J62: 92 | K62: 92 | L62: 0.04043956044
A63: 5302160 | B63: Dixie School District | D63: 0 | F63: 0 | G63: 0 | H63: 74 | I63: 2 | J63: 2 | K63: 2 | L63: 0.02702702703
A64: 5302280 | B64: East Valley School District (Spokane) | D64: 0 | F64: 54 | G64: 0 | H64: 4679 | I64: 772 | J64: 826 | K64: 826 | L64: 0.1765334473
A65: 5305370 | B65: East Valley School District (Yakima) | D65: 0 | F65: 6 | G65: 0 | H65: 3556 | I65: 411 | J65: 417 | K65: 417 | L65: 0.1172665917
A66: 5302310 | B66: Eastmont School District | D66: 0 | F66: 13 | G66: 0 | H66: 6325 | I66: 597 | J66: 610 | K66: 610 | L66: 0.09644268775
A67: 5302340 | B67: Easton School District | D67: 0 | F67: 0 | G67: 0 | H67: 150 | I67: 7 | J67: 7 | K67: 7 | L67: 0.04666666667
A68: 5302370 | B68: Eatonville School District | D68: 0 | F68: 7 | G68: 0 | H68: 2204 | I68: 180 | J68: 187 | K68: 187 | L68: 0.08484573503
A69: 5302400 | B69: Edmonds School District | D69: 0 | F69: 23 | G69: 0 | H69: 24249 | I69: 2088 | J69: 2111 | K69: 2111 | L69: 0.08705513629
A70: 5302460 | B70: Ellensburg School District | D70: 0 | F70: 21 | G70: 0 | H70: 3543 | I70: 377 | J70: 398 | K70: 398 | L70: 0.1123341801
A71: 5302490 | B71: Elma School District | D71: 0 | F71: 8 | G71: 0 | H71: 1588 | I71: 325 | J71: 333 | K71: 333 | L71: 0.209697733
A72: 5302520 | B72: Endicott School District | D72: 0 | F72: 0 | G72: 0 | H72: 87 | I72: 17 | J72: 17 | K72: 17 | L72: 0.1954022989
A73: 5302550 | B73: Entiat School District | D73: 0 | F73: 6 | G73: 0 | H73: 406 | I73: 66 | J73: 72 | K73: 72 | L73: 0.1773399015
A74: 5300001 | B74: Enumclaw School District | D74: 0 | F74: 15 | G74: 0 | H74: 4662 | I74: 282 | J74: 297 | K74: 297 | L74: 0.06370656371
A75: 5302610 | B75: Ephrata School District | D75: 0 | F75: 11 | G75: 0 | H75: 2905 | I75: 461 | J75: 472 | K75: 472 | L75: 0.1624784854
A76: 5302640 | B76: Evaline School District | D76: 0 | F76: 0 | G76: 0 | H76: 128 | I76: 22 | J76: 22 | K76: 22 | L76: 0.171875
A77: 5302670 | B77: Everett School District | D77: 0 | F77: 36 | G77: 0 | H77: 22803 | I77: 2315 | J77: 2351 | K77: 2351 | L77: 0.1031004692
A78: 5302700 | B78: Evergreen School District (Clark) | D78: 0 | F78: 58 | G78: 0 | H78: 26645 | I78: 2599 | J78: 2657 | K78: 2657 | L78: 0.0997185213
A79: 5302730 | B79: Evergreen School District (Stevens) | D79: 0 | F79: 0 | G79: 0 | H79: 56 | I79: 14 | J79: 14 | K79: 14 | L79: 0.25
A80: 5302820 | B80: Federal Way School District | D80: 0 | F80: 58 | G80: 0 | H80: 24062 | I80: 4207 | J80: 4265 | K80: 4265 | L80: 0.1772504364
A81: 5302850 | B81: Ferndale School District | D81: 0 | F81: 21 | G81: 0 | H81: 6171 | I81: 768 | J81: 789 | K81: 789 | L81: 0.1278561011
A82: 5302880 | B82: Fife Public Schools | D82: 0 | F82: 4 | G82: 0 | H82: 4064 | I82: 357 | J82: 361 | K82: 361 | L82: 0.08882874016
A83: 5302910 | B83: Finley School District | D83: 0 | F83: 10 | G83: 0 | H83: 905 | I83: 118 | J83: 128 | K83: 128 | L83: 0.1414364641
A84: 5302940 | B84: Franklin Pierce School District | D84: 0 | F84: 43 | G84: 0 | H84: 9266 | I84: 1208 | J84: 1251 | K84: 1251 | L84: 0.1350097129
A85: 5302970 | B85: Freeman School District | D85: 0 | F85: 1 | G85: 0 | H85: 994 | I85: 49 | J85: 50 | K85: 50 | L85: 0.05030181087
A86: 5303000 | B86: Garfield School District | D86: 0 | F86: 0 | G86: 0 | H86: 127 | I86: 35 | J86: 35 | K86: 35 | L86: 0.2755905512
A87: 5303030 | B87: Glenwood School District | D87: 0 | F87: 0 | G87: 0 | H87: 60 | I87: 13 | J87: 13 | K87: 13 | L87: 0.2166666667
A88: 5303090 | B88: Goldendale School District | D88: 0 | F88: 9 | G88: 0 | H88: 1055 | I88: 216 | J88: 225 | K88: 225 | L88: 0.2132701422
A89: 5303130 | B89: Grand Coulee Dam School District | D89: 0 | F89: 5 | G89: 0 | H89: 679 | I89: 101 | J89: 106 | K89: 106 | L89: 0.1561119293
A90: 5303150 | B90: Grandview School District | D90: 0 | F90: 10 | G90: 0 | H90: 3732 | I90: 651 | J90: 661 | K90: 661 | L90: 0.1771168274
A91: 5303180 | B91: Granger School District | D91: 0 | F91: 4 | G91: 0 | H91: 1587 | I91: 368 | J91: 372 | K91: 372 | L91: 0.2344045369
A92: 5303210 | B92: Granite Falls School District | D92: 0 | F92: 6 | G92: 0 | H92: 2798 | I92: 214 | J92: 220 | K92: 220 | L92: 0.07862759114
A93: 5303240 | B93: Grapeview School District | D93: 0 | F93: 2 | G93: 0 | H93: 338 | I93: 26 | J93: 28 | K93: 28 | L93: 0.08284023669
A94: 5303270 | B94: Great Northern School District | D94: 0 | F94: 0 | G94: 0 | H94: 187 | I94: 43 | J94: 43 | K94: 43 | L94: 0.2299465241
A95: 5303300 | B95: Green Mountain School District | D95: 0 | F95: 0 | G95: 0 | H95: 205 | I95: 16 | J95: 16 | K95: 16 | L95: 0.07804878049
A96: 5303330 | B96: Griffin School District | D96: 0 | F96: 5 | G96: 0 | H96: 897 | I96: 42 | J96: 47 | K96: 47 | L96: 0.05239687848
A97: 5303360 | B97: Harrington School District | D97: 0 | F97: 0 | G97: 0 | H97: 145 | I97: 12 | J97: 12 | K97: 12 | L97: 0.08275862069
A98: 5303510 | B98: Highland School District | D98: 0 | F98: 2 | G98: 0 | H98: 1272 | I98: 234 | J98: 236 | K98: 236 | L98: 0.1855345912
A99: 5303540 | B99: Highline | C99: 5303540 | D99: 0 | F99: 46 | G99: 0 | H99: 19449.95997 | I99: 2972.07576 | J99: 3018.07576 | K99: 3121 | L99: 0.1551713096
A100: 5303570 | B100: Hockinson School District | D100: 0 | F100: 5 | G100: 0 | H100: 2170 | I100: 92 | J100: 97 | K100: 97 | L100: 0.04470046083
A101: 5303600 | B101: Hood Canal School District | D101: 0 | F101: 3 | G101: 0 | H101: 695 | I101: 114 | J101: 117 | K101: 117 | L101: 0.1683453237
A102: 5303660 | B102: Hoquiam School District | D102: 0 | F102: 12 | G102: 0 | H102: 1816 | I102: 484 | J102: 496 | K102: 496 | L102: 0.2731277533
A103: 5303700 | B103: Impact Puget Sound (Public Schools) | C103: 5308130 | D103: 0 | E103: 0 | F103: 0 | G103: 0 | H103: 398.5749862 | I103: 72.40561622 | J103: 72.40561622 | K103: 0 | L103: 0.1816612149
A104: 5307790 | B104: Impact Renton | C104: 5307230 | D104: 0 | E104: 0 | F104: 0 | G104: 0 | H104: 302.5169066 | I104: 45.3205856 | J104: 45.3205856 | K104: 0 | L104: 0.1498117448
A105: 5303710 | B105: Impact Salish Sea | C105: 5308130 | D105: 0 | E105: 0 | F105: 0 | G105: 0 | H105: 342.6923077 | I105: 51.87597504 | J105: 51.87597504 | K105: 0 | L105: 0.1513777049
A106: 5303705 | B106: Impact Tacoma (Commencement Bay) | C106: 5308700 | D106: 0 | E106: 0 | F106: 0 | G106: 0 | H106: 366.6171113 | I106: 55.13991666 | J106: 55.13991666 | K106: 0 | L106: 0.1504019178
A107: 5300002 | B107: Inchelium School District | D107: 0 | F107: 1 | G107: 0 | H107: 189 | I107: 44 | J107: 45 | K107: 45 | L107: 0.2380952381
A108: 5303720 | B108: Index School District | D108: 0 | F108: 0 | G108: 0 | H108: 54 | I108: 9 | J108: 9 | K108: 9 | L108: 0.1666666667
A109: 5303750 | B109: Issaquah School District | D109: 0 | F109: 9 | G109: 0 | H109: 22715 | I109: 847 | J109: 856 | K109: 856 | L109: 0.03768434955
A110: 5303780 | B110: Kahlotus School District | D110: 0 | F110: 0 | G110: 0 | H110: 60 | I110: 22 | J110: 22 | K110: 22 | L110: 0.3666666667
A111: 5303810 | B111: Kalama School District | D111: 0 | F111: 4 | G111: 0 | H111: 1354 | I111: 111 | J111: 115 | K111: 115 | L111: 0.08493353028
A112: 5303870 | B112: Keller School District | D112: 0 | F112: 1 | G112: 0 | H112: 103 | I112: 31 | J112: 32 | K112: 32 | L112: 0.3106796117
A113: 5300003 | B113: Kelso School District | D113: 0 | F113: 37 | G113: 0 | H113: 5470 | I113: 899 | J113: 936 | K113: 936 | L113: 0.1711151737
A114: 5303930 | B114: Kennewick School District | D114: 0 | F114: 70 | G114: 0 | H114: 20412 | I114: 2775 | J114: 2845 | K114: 2845 | L114: 0.1393787968
A115: 5303960 | B115: Kent School District | D115: 0 | F115: 52 | G115: 0 | H115: 29989 | I115: 4261 | J115: 4313 | K115: 4313 | L115: 0.1438194004
A116: 5303990 | B116: Kettle Falls School District | D116: 0 | F116: 4 | G116: 0 | H116: 936 | I116: 144 | J116: 148 | K116: 148 | L116: 0.1581196581
A117: 5304020 | B117: Kiona-Benton City School District | D117: 0 | F117: 8 | G117: 0 | H117: 1729 | I117: 241 | J117: 249 | K117: 249 | L117: 0.1440138809
A118: 5304050 | B118: Kittitas School District | D118: 0 | F118: 0 | G118: 0 | H118: 736 | I118: 57 | J118: 57 | K118: 57 | L118: 0.07744565217
A119: 5304080 | B119: Klickitat School District | D119: 0 | F119: 4 | G119: 0 | H119: 80 | I119: 13 | J119: 17 | K119: 17 | L119: 0.2125
A120: 5304170 | B120: La Center School District | D120: 0 | F120: 16 | G120: 0 | H120: 1926 | I120: 98 | J120: 114 | K120: 114 | L120: 0.05919003115
A121: 5304110 | B121: La Conner School District | D121: 0 | F121: 3 | G121: 0 | H121: 595 | I121: 91 | J121: 94 | K121: 94 | L121: 0.1579831933
A122: 5304150 | B122: LaCrosse School District | D122: 0 | F122: 0 | G122: 0 | H122: 87 | I122: 18 | J122: 18 | K122: 18 | L122: 0.2068965517
A123: 5301200 | B123: Lake Chelan School District | D123: 0 | F123: 1 | G123: 0 | H123: 1236 | I123: 163 | J123: 164 | K123: 164 | L123: 0.1326860841
A124: 5307050 | B124: Lake Quinault School District | D124: 0 | F124: 0 | G124: 0 | H124: 174 | I124: 40 | J124: 40 | K124: 40 | L124: 0.2298850575
A125: 5304200 | B125: Lake Stevens School District | D125: 0 | F125: 15 | G125: 0 | H125: 10259 | I125: 567 | J125: 582 | K125: 582 | L125: 0.0567306755
A126: 5304230 | B126: Lake Washington School District | D126: 0 | F126: 23 | G126: 0 | H126: 35606 | I126: 1390 | J126: 1413 | K126: 1413 | L126: 0.03968432287
A127: 5304260 | B127: Lakewood School District | D127: 0 | F127: 12 | G127: 0 | H127: 2643 | I127: 351 | J127: 363 | K127: 363 | L127: 0.1373439274
A128: 5304290 | B128: Lamont School District | D128: 0 | F128: 0 | G128: 0 | H128: 27 | I128: 9 | J128: 9 | K128: 9 | L128: 0.3333333333
A129: 5304380 | B129: Liberty School District | D129: 0 | F129: 1 | G129: 0 | H129: 827 | I129: 77 | J129: 78 | K129: 78 | L129: 0.09431680774
A130: 5304410 | B130: Lind School District | D130: 0 | F130: 1 | G130: 0 | H130: 307 | I130: 81 | J130: 82 | K130: 82 | L130: 0.2671009772
A131: 5304470 | B131: Longview Public Schools | D131: 0 | F131: 28 | G131: 0 | H131: 7214 | I131: 1316 | J131: 1344 | K131: 1344 | L131: 0.1863044081
A132: 5304500 | B132: Loon Lake School District | D132: 0 | F132: 9 | G132: 0 | H132: 255 | I132: 50 | J132: 59 | K132: 59 | L132: 0.231372549
A133: 5304530 | B133: Lopez School District | D133: 0 | F133: 0 | G133: 0 | H133: 286 | I133: 47 | J133: 47 | K133: 47 | L133: 0.1643356643
A134: 5304550 | B134: Lumen High School | C134: 5308250 | D134: 0 | E134: 0 | F134: 0 | G134: 0 | H134: 35.79770402 | I134: 8.733484941 | J134: 8.733484941 | K134: 0 | L134: 0.2439677398
A135: 5304590 | B135: Lyle School District | D135: 0 | F135: 0 | G135: 0 | H135: 410 | I135: 72 | J135: 72 | K135: 72 | L135: 0.1756097561
A136: 5304620 | B136: Lynden School District | D136: 0 | F136: 5 | G136: 0 | H136: 4352 | I136: 303 | J136: 308 | K136: 308 | L136: 0.07077205882
A137: 5304650 | B137: Mabton School District | D137: 0 | F137: 0 | G137: 0 | H137: 770 | I137: 191 | J137: 191 | K137: 191 | L137: 0.2480519481
A138: 5304710 | B138: Mansfield School District | D138: 0 | F138: 0 | G138: 0 | H138: 85 | I138: 16 | J138: 16 | K138: 16 | L138: 0.1882352941
A139: 5304740 | B139: Manson School District | D139: 0 | F139: 2 | G139: 0 | H139: 609 | I139: 120 | J139: 122 | K139: 122 | L139: 0.2003284072
A140: 5304800 | B140: Mary M. Knight School District | D140: 0 | F140: 0 | G140: 0 | H140: 206 | I140: 33 | J140: 33 | K140: 33 | L140: 0.1601941748
A141: 5304830 | B141: Mary Walker School District | D141: 0 | F141: 8 | G141: 0 | H141: 640 | I141: 146 | J141: 154 | K141: 154 | L141: 0.240625
A142: 5304860 | B142: Marysville School District | D142: 0 | F142: 26 | G142: 0 | H142: 12544 | I142: 1469 | J142: 1495 | K142: 1495 | L142: 0.1191804847
A143: 5304890 | B143: McCleary School District | D143: 0 | F143: 2 | G143: 0 | H143: 572 | I143: 72 | J143: 74 | K143: 74 | L143: 0.1293706294
A144: 5304920 | B144: Mead School District | D144: 0 | F144: 31 | G144: 0 | H144: 12016 | I144: 1000 | J144: 1031 | K144: 1031 | L144: 0.08580226365
A145: 5304950 | B145: Medical Lake School District | D145: 0 | F145: 3 | G145: 0 | H145: 1801 | I145: 208 | J145: 211 | K145: 211 | L145: 0.1171571349
A146: 5304980 | B146: Mercer Island School District | D146: 0 | F146: 0 | G146: 0 | H146: 4878 | I146: 118 | J146: 118 | K146: 118 | L146: 0.0241902419
A147: 5305010 | B147: Meridian School District | D147: 0 | F147: 1 | G147: 0 | H147: 1705 | I147: 204 | J147: 205 | K147: 205 | L147: 0.1202346041
A148: 5305020 | B148: Methow Valley School District | D148: 0 | F148: 0 | G148: 0 | H148: 859 | I148: 70 | J148: 70 | K148: 70 | L148: 0.08149010477
A149: 5305040 | B149: Mill A School District | D149: 0 | F149: 0 | G149: 0 | H149: 74 | I149: 18 | J149: 18 | K149: 18 | L149: 0.2432432432
A150: 5305130 | B150: Monroe School District | D150: 0 | F150: 10 | G150: 0 | H150: 6648 | I150: 430 | J150: 440 | K150: 440 | L150: 0.06618531889
A151: 5305160 | B151: Montesano School District | D151: 0 | F151: 7 | G151: 0 | H151: 1334 | I151: 206 | J151: 213 | K151: 213 | L151: 0.1596701649
A152: 5305190 | B152: Morton School District | D152: 0 | F152: 0 | G152: 0 | H152: 333 | I152: 44 | J152: 44 | K152: 44 | L152: 0.1321321321
A153: 5305220 | B153: Moses Lake School District | D153: 0 | F153: 37 | G153: 0 | H153: 9756 | I153: 1341 | J153: 1378 | K153: 1378 | L153: 0.1412464125
A154: 5305250 | B154: Mossyrock School District | D154: 0 | F154: 2 | G154: 0 | H154: 699 | I154: 124 | J154: 126 | K154: 126 | L154: 0.1802575107
A155: 5305280 | B155: Mount Adams School District | D155: 0 | F155: 14 | G155: 0 | H155: 998 | I155: 259 | J155: 273 | K155: 273 | L155: 0.2735470942
A156: 5305310 | B156: Mount Baker School District | D156: 0 | F156: 8 | G156: 0 | H156: 2435 | I156: 278 | J156: 286 | K156: 286 | L156: 0.1174537988
A157: 5305340 | B157: Mount Pleasant School District | D157: 0 | F157: 0 | G157: 0 | H157: 41 | I157: 3 | J157: 3 | K157: 3 | L157: 0.07317073171
A158: 5305400 | B158: Mount Vernon School District | D158: 0 | F158: 7 | G158: 0 | H158: 6839 | I158: 917 | J158: 924 | K158: 924 | L158: 0.1351074719
A159: 5305430 | B159: Mukilteo School District | D159: 0 | F159: 19 | G159: 0 | H159: 16936 | I159: 2310 | J159: 2329 | K159: 2329 | L159: 0.1375177137
A160: 5305460 | B160: Naches Valley School District | D160: 0 | F160: 5 | G160: 0 | H160: 1613 | I160: 218 | J160: 223 | K160: 223 | L160: 0.1382517049
A161: 5305490 | B161: Napavine School District | D161: 0 | F161: 1 | G161: 0 | H161: 774 | I161: 65 | J161: 66 | K161: 66 | L161: 0.08527131783
A162: 5305520 | B162: Naselle-Grays River Valley School District | D162: 0 | F162: 0 | G162: 0 | H162: 340 | I162: 35 | J162: 35 | K162: 35 | L162: 0.1029411765
A163: 5305550 | B163: Nespelem School District | D163: 0 | F163: 2 | G163: 0 | H163: 253 | I163: 68 | J163: 70 | K163: 70 | L163: 0.2766798419
A164: 5305610 | B164: Newport School District | D164: 0 | F164: 4 | G164: 0 | H164: 1399 | I164: 268 | J164: 272 | K164: 272 | L164: 0.194424589
A165: 5305640 | B165: Nine Mile Falls School District | D165: 0 | F165: 3 | G165: 0 | H165: 1563 | I165: 104 | J165: 107 | K165: 107 | L165: 0.06845809341
A166: 5305670 | B166: Nooksack Valley School District | D166: 0 | F166: 8 | G166: 0 | H166: 2210 | I166: 200 | J166: 208 | K166: 208 | L166: 0.09411764706
A167: 5305700 | B167: North Beach School District | D167: 0 | F167: 9 | G167: 0 | H167: 703 | I167: 157 | J167: 166 | K167: 166 | L167: 0.2361308677
A168: 5305730 | B168: North Franklin School District | D168: 0 | F168: 0 | G168: 0 | H168: 2211 | I168: 414 | J168: 414 | K168: 414 | L168: 0.1872455902
A169: 5305760 | B169: North Kitsap School District | D169: 0 | F169: 29 | G169: 0 | H169: 7166 | I169: 548 | J169: 577 | K169: 577 | L169: 0.08051911806
A170: 5305790 | B170: North Mason School District | D170: 0 | F170: 8 | G170: 0 | H170: 2444 | I170: 339 | J170: 347 | K170: 347 | L170: 0.1419803601
A171: 5305820 | B171: North River School District | D171: 0 | F171: 0 | G171: 0 | H171: 52 | I171: 7 | J171: 7 | K171: 7 | L171: 0.1346153846
A172: 5305850 | B172: North Thurston Public Schools | D172: 0 | F172: 37 | G172: 0 | H172: 17009 | I172: 1459 | J172: 1496 | K172: 1496 | L172: 0.08795343642
A173: 5305880 | B173: Northport School District | D173: 0 | F173: 3 | G173: 0 | H173: 225 | I173: 70 | J173: 73 | K173: 73 | L173: 0.3244444444
A174: 5305910 | B174: Northshore School District | D174: 0 | F174: 17 | G174: 0 | H174: 26236 | I174: 974 | J174: 991 | K174: 991 | L174: 0.0377725263
A175: 5305940 | B175: Oak Harbor School District | D175: 0 | F175: 6 | G175: 0 | H175: 6006 | I175: 409 | J175: 415 | K175: 415 | L175: 0.0690975691
A176: 5305970 | B176: Oakesdale School District | D176: 0 | F176: 0 | G176: 0 | H176: 126 | I176: 17 | J176: 17 | K176: 17 | L176: 0.1349206349
A177: 5306000 | B177: Oakville School District | D177: 0 | F177: 6 | G177: 0 | H177: 450 | I177: 108 | J177: 114 | K177: 114 | L177: 0.2533333333
A178: 5306060 | B178: Ocean Beach School District | D178: 0 | F178: 2 | G178: 0 | H178: 1047 | I178: 189 | J178: 191 | K178: 191 | L178: 0.182425979
A179: 5306090 | B179: Ocosta School District | D179: 0 | F179: 4 | G179: 0 | H179: 660 | I179: 195 | J179: 199 | K179: 199 | L179: 0.3015151515
A180: 5306120 | B180: Odessa School District | D180: 0 | F180: 1 | G180: 0 | H180: 310 | I180: 32 | J180: 33 | K180: 33 | L180: 0.1064516129
A181: 5306150 | B181: Okanogan School District | D181: 0 | F181: 5 | G181: 0 | H181: 980 | I181: 172 | J181: 177 | K181: 177 | L181: 0.1806122449
A182: 5306180 | B182: Olympia School District | D182: 0 | F182: 31 | G182: 0 | H182: 10394 | I182: 1070 | J182: 1101 | K182: 1101 | L182: 0.1059264961
A183: 5306220 | B183: Omak School District | D183: 0 | F183: 8 | G183: 0 | H183: 1930 | I183: 371 | J183: 379 | K183: 379 | L183: 0.196373057
A184: 5306240 | B184: Onalaska School District | D184: 0 | F184: 4 | G184: 0 | H184: 933 | I184: 127 | J184: 131 | K184: 131 | L184: 0.1404072883
A185: 5306270 | B185: Onion Creek School District | D185: 0 | F185: 0 | G185: 0 | H185: 62 | I185: 19 | J185: 19 | K185: 19 | L185: 0.3064516129
A186: 5306300 | B186: Orcas Island School District | D186: 0 | F186: 0 | G186: 0 | H186: 587 | I186: 79 | J186: 79 | K186: 79 | L186: 0.1345826235
A187: 5306330 | B187: Orchard Prairie School District | D187: 0 | F187: 2 | G187: 0 | H187: 177 | I187: 22 | J187: 24 | K187: 24 | L187: 0.1355932203
A188: 5306360 | B188: Orient School District | D188: 0 | F188: 0 | G188: 0 | H188: 128 | I188: 36 | J188: 36 | K188: 36 | L188: 0.28125
A189: 5306390 | B189: Orondo School District | D189: 0 | F189: 0 | G189: 0 | H189: 261 | I189: 34 | J189: 34 | K189: 34 | L189: 0.1302681992
A190: 5306420 | B190: Oroville School District | D190: 0 | F190: 7 | G190: 0 | H190: 710 | I190: 178 | J190: 185 | K190: 185 | L190: 0.2605633803
A191: 5306450 | B191: Orting School District | D191: 0 | F191: 9 | G191: 0 | H191: 3249 | I191: 168 | J191: 177 | K191: 177 | L191: 0.05447830102
A192: 5306480 | B192: Othello School District | D192: 0 | F192: 15 | G192: 0 | H192: 4618 | I192: 735 | J192: 750 | K192: 750 | L192: 0.1624079688
A193: 5306510 | B193: Palisades School District | D193: 0 | F193: 0 | G193: 0 | H193: 46 | I193: 10 | J193: 10 | K193: 10 | L193: 0.2173913043
A194: 5306540 | B194: Palouse School District | D194: 0 | F194: 0 | G194: 0 | H194: 237 | I194: 11 | J194: 11 | K194: 11 | L194: 0.04641350211
A195: 5399999 | B195: PART D SUBPART 2 | D195: 0 | E195: 720 | F195: 0 | G195: 0 | H195: 720 | I195: 0 | J195: 720 | K195: 720 | L195: 1
A196: 5306570 | B196: Pasco School District | D196: 0 | F196: 42 | G196: 0 | H196: 20405 | I196: 2379 | J196: 2421 | K196: 2421 | L196: 0.1186473903
A197: 5306600 | B197: Pateros School District | D197: 0 | F197: 6 | G197: 0 | H197: 294 | I197: 33 | J197: 39 | K197: 39 | L197: 0.1326530612
A198: 5306630 | B198: Paterson School District | D198: 0 | F198: 0 | G198: 0 | H198: 87 | I198: 7 | J198: 7 | K198: 7 | L198: 0.08045977011
A199: 5306660 | B199: Pe Ell School District | D199: 0 | F199: 0 | G199: 0 | H199: 249 | I199: 30 | J199: 30 | K199: 30 | L199: 0.1204819277
A200: 5306690 | B200: Peninsula School District | D200: 0 | F200: 17 | G200: 0 | H200: 11683 | I200: 517 | J200: 534 | K200: 534 | L200: 0.04570743816
... 119 more rows

Sheet Assumptions (hidden)
A1: Assumptions and Factors — Title II Part A 2021-22 Final
B2: Caution: Yellow Cells below are inputs into the calculations in this model
B3: Section 2121 | C3: Preliminary | D3: Final | E3: Preliminary | F3: Final | G3: Preliminary | H3: Final | I3: Preliminary | J3: Final | K3: Preliminary | L3: Final | M3: Preliminary | N3: Final | O3: Preliminary | P3: 2nd Revised Final | Q3: Revised Final | R3: Final | S3: Preliminary | T3: 2nd Revised Final | U3: Revised Final | V3: Final | W3: Preliminary | X3: Final | Y3: Preliminary | Z3: Final | AA3: Preliminary | AB3: Final | AC3: Final | AD3: Re-Revised 012312 | AE3: Revised | AF3: Final
B4: Funding | C4: 2024-2025 | D4: 2023-2024 | E4: 2023-2024 | F4: 2022-23 | G4: 2022-23 | H4: 2021-22 | I4: 2021-22 | J4: 2020-21 | K4: 2020-21 | L4: 2019-20 | M4: 2019-20 | N4: 2018-19 | O4: 2018-19 | P4: 2017-18 | Q4: 2017-18 | R4: 2017-18 | S4: 2017-18 | T4: 2016-17 | U4: 2016-17 | V4: 2016-17 | W4: 2016-17 | X4: 2015-16 | Y4: 2015-16 | Z4: 2014-15 | AA4: 2014-15 | AB4: 2013-14 | AC4: 2012-13 | AD4: 2011-12 | AE4: 2011-12 | AF4: 2011-12 | AG4: 2010-11 | AH4: 2009-10 | AI4: 2008-09 | AJ4: 2007-08 | AK4: 2006-07
B5: Total State Allocation | C5: 35590627 | D5: 35045173 | E5: 35061559 | F5: 34114260 | G5: 33959443 | H5: 34561891 | I5: 34516008 | J5: 33915395 | K5: 33876016 | L5: 34072983 | M5: 34010371 | N5: 33288630 | O5: 33249165 | P5: 33521152 | Q5: 33328186 | R5: 33521152 | S5: 33504996 | T5: 36716833 | U5: 36578861 | V5: 36716833 | W5: 36710950 | X5: 37458839 | Y5: 36365865 | Z5: 37535132 | AA5: 37524189 | AB5: 37529639 | AC5: 39717936 | AD5: 39836692 | AE5: 39465046 | AF5: 39890148 | AG5: 47747805 | AH5: 48045249 | AI5: 48000430 | AJ5: 47422445 | AK5: 47044832
B6: State Admin - Higher Ed | C6: 0 | D6: 0 | E6: 0 | F6: 0 | G6: 0 | H6: 0 | I6: 0 | J6: 0 | K6: 0 | L6: 0 | M6: 0 | N6: 0 | O6: 0 | P6: 0 | Q6: 0 | R6: 0 | S6: 0 | T6: -57834 | U6: -57834 | V6: -57834 | W6: -57834 | X6: -57834 | Y6: -57834 | Z6: -57834 | AB6: -57834 | AC6: =Z51 -> -57834 | AD6: -57834 | AE6: -57834 | AF6: -57834 | AG6: =ROUNDDOWN(AG8*AD54*-1,0) -> -59087 | AH6: =ROUNDDOWN(AH8*AE54*-1,0) -> -59456
B7: State Admin - OSPI | C7: 0 | D7: 0 | E7: 0 | F7: 0 | G7: 0 | H7: 0 | I7: 0 | J7: 0 | K7: 0 | L7: 0 | M7: 0 | N7: 0 | O7: 0 | P7: 0 | Q7: 0 | R7: 0 | S7: 0 | T7: -309334 | U7: -307954 | V7: -309334 | W7: =W8-W6 -> -309276 | X7: =X8-X6 -> -316754 | Y7: -317373 | Z7: -317517 | AB7: -317462 | AC7: -339345 | AD7: -340532 | AE7: -336816 | AF7: -341067 | AG7: =ROUNDUP(AG8*AD55*-1,0) -> -418391 | AH7: =ROUNDUP(AH8*AE55*-1,0) -> -420996
A8: Note below | B8: Total reserve for State Admin 1% | C8: =ROUND(-C5*0.01,0) -> -355906 | D8: -350452 | E8: -350616 | F8: =ROUND(-F5*0.01,0) -> -341143 | G8: -339594 | H8: -345619 | I8: -345160 | J8: -339154 | K8: -338760 | L8: -340730 | M8: -340104 | N8: -332886 | O8: -332492 | P8: -335212 | Q8: -333282 | R8: -335212 | S8: -335050 | T8: -367168 | U8: -365789 | V8: -367168 | W8: -367110 | X8: -374588 | Y8: -363659 | Z8: -375351 | AA8: -375242 | AB8: -375296 | AC8: -397179 | AD8: =ROUND(-AD5*0.01,0)+1 -> -398366 | AE8: =ROUND(-AE5*0.01,0) -> -394650 | AF8: =ROUND(-AF5*0.01,0) -> -398901 | AG8: =ROUND(-AG5*0.01,0) -> -477478 | AH8: =ROUND(-AH5*0.01,0) -> -480452 | AI8: =ROUND(-AI5*0.01,0) -> -480004 | AJ8: -474224 | AK8: -470448
B9: Subtotal | C9: =+C8+C5 -> 35234721 | D9: 34694721 | E9: 34710943 | F9: =+F8+F5 -> 33773117 | G9: 33619849 | H9: 34216272 | I9: 34170848 | J9: 33576241 | K9: 33537256 | L9: 33732253 | M9: 33670267 | N9: 32955744 | O9: 32916673 | P9: 33185940 | Q9: 32994904 | R9: 33185940 | S9: 33169946 | T9: 36349665 | U9: 36213072 | V9: 36349665 | W9: 36343840 | X9: 37084251 | Y9: 36002206 | Z9: 37159781 | AA9: 37148947 | AB9: 37154343 | AC9: 39320757 | AD9: 39438326 | AE9: 39070396 | AF9: 39491247 | AG9: 47270327 | AH9: 47564797 | AI9: 47520426 | AJ9: 46948221 | AK9: 46574384
A10: 0.025 | B10: Reserve for SAHE (Subgrants) | O10: 0 | P10: 0 | Q10: 0 | R10: 0 | S10: 0 | T10: =ROUND(-T9*$A10,0) -> -908742 | U10: =ROUND(-U9*$A10,0) -> -905327 | V10: =ROUND(-V9*$A10,0) -> -908742 | W10: =ROUND(-W9*$A10,0) -> -908596 | X10: -927106 | Y10: =ROUND(-Y9*$A10,0) -> -900055 | Z10: =ROUND(-Z9*$A10,0) -> -928995 | AA10: =ROUND(-AA9*$A10,0) -> -928724 | AB10: =ROUND(-AB9*$A10,0) -> -928859 | AC10: -983019 | AD10: =ROUND(-AD9*$A10,0) -> -985958 | AE10: -976760 | AF10: -987281 | AG10: -1181758 | AH10: -1189120 | AI10: -1188011 | AJ10: -1173706 | AK10: -1164360
B11: Total OSPI Allocation (w/ Admin) | C11: =C5+C6+C10+C8 -> 35234721 | D11: 34694721 | E11: 34710943 | F11: 33773117 | G11: 33619849 | H11: 34216272 | I11: 34170848 | J11: 33576241 | K11: 33537256 | L11: 33732253 | M11: 33670267 | N11: 32955744 | O11: 32916673 | P11: 33185940 | Q11: 32994904 | R11: 33185940 | S11: =S5+S6+S10 -> 33504996 | T11: 35750257 | U11: 35615700 | V11: 35750257 | W11: 35744520 | X11: 36473899 | Y11: 35407976 | Z11: 36548303 | AA11: 36595465 | AB11: 36542946 | AC11: 38677083
A13: 0.04 | B13: Reserve for State Activities | C13: =-C5*$A13 -> -1423625.08 | D13: =ROUND(-D5*$A13,0) -> -1401807 | E13: -1402462 | F13: -1364570 | G13: -1358378 | H13: -1382476 | I13: -1380640 | J13: -1356616 | K13: -1355041 | L13: -1362919 | M13: -1360415 | N13: -1331545 | O13: -1329967 | P13: -1340846 | Q13: -1333127 | R13: -1340846 | S13: -1340200 | T13: =ROUND(-T9*$A13,0) -> -1453987 | U13: -1448523 | V13: -1453987 | W13: -1453754 | X13: -1483370 | Y13: -1440088 | Z13: -1486391 | AA13: -1485958 | AB13: -1486174 | AC13: -983019 | AD13: =ROUND(-AD9*$A13,0) -> -1577533 | AE13: -1562816 | AF13: -1579650 | AG13: -1890813 | AH13: -1902592 | AI13: -1900817 | AJ13: -1173706 | AK13: -1164360
B14: 95% for LEA's | C14: =SUM(C9,C10,C13) -> 33811095.92 | D14: =SUM(D9,D10,D13) -> 33292914 | E14: 33308481 | F14: 32408547 | G14: 32261471 | H14: 32833796 | I14: 32790208 | J14: 32219625 | K14: 32182215 | L14: 32369334 | M14: 32309852 | N14: 31624199 | O14: 31586706 | P14: 31845094 | Q14: 31661777 | R14: 31845094 | S14: 31829746 | T14: 33986936 | U14: 33859222 | V14: 33986936 | W14: 33981490 | X14: 34673775 | Y14: 33662063 | Z14: 34744395 | AA14: 34734265 | AB14: 34739310 | AC14: 37354719 | AD14: =SUM(AD9:AD13) -> 36874835 | AE14: 36530820 | AF14: 36924316 | AG14: 44197756 | AH14: 44473085 | AI14: 44431598 | AJ14: 44600809 | AK14: 44245664 | AM14: =X13+X6 -> -1541204
B15: Less: Hold harmless | AM15: =X6/AM14 -> 0.03752520756
B16: Eisenhower allocation 2001-02 | P16: 0 | Q16: 0 | R16: 0 | S16: 0 | T16: 0 | U16: =-'[1]Allocation 2009-10'!$C5 -> -5465310 | V16: =-'[1]Allocation 2009-10'!$C5 -> -5465310 | W16: =-'[1]Allocation 2009-10'!$C5 -> -5465310 | X16: =-'[1]Allocation 2009-10'!$C5 -> -5465310 | Y16: =-'[1]Allocation 2009-10'!$C5 -> -5465310 | Z16: =-'[1]Allocation 2009-10'!$C5 -> -5465310 | AA16: =-'[1]Allocation 2009-10'!$C5 -> -5465310 | AB16: =-'[1]Allocation 2009-10'!$C5 -> -5465310 | AC16: =-'[1]Allocation 2009-10'!$C5 -> -5465310 | AD16: =-'[1]Allocation 2009-10'!$C5 -> -5465310 | AE16: =-'[1]Allocation 2009-10'!$C5 -> -5465310 | AF16: =-'[1]Allocation 2009-10'!$C5 -> -5465310 | AG16: =-'[1]Allocation 2009-10'!$C5 -> -5465310 | AH16: =-'[1]Allocation 2009-10'!$C5 -> -5465310 | AI16: =-'[1]Allocation 2008-09'!$C5 -> -5465310 | AJ16: -5465310 | AK16: -5465310
B17: Classsize reduction 2001-02 | P17: 0 | Q17: 0 | R17: 0 | S17: 0 | T17: 0 | U17: =-'[1]Allocation 2009-10'!$D5 -> -26536963 | V17: =-'[1]Allocation 2009-10'!$D5 -> -26536963 | W17: =-'[1]Allocation 2009-10'!$D5 -> -26536963 | X17: =-'[1]Allocation 2009-10'!$D5 -> -26536963 | Y17: =-'[1]Allocation 2009-10'!$D5 -> -26536963 | Z17: =-'[1]Allocation 2009-10'!$D5 -> -26536963 | AA17: =-'[1]Allocation 2009-10'!$D5 -> -26536963 | AB17: =-'[1]Allocation 2009-10'!$D5 -> -26536963 | AC17: =-'[1]Allocation 2009-10'!$D5 -> -26536963 | AD17: =-'[1]Allocation 2009-10'!$D5 -> -26536963 | AE17: =-'[1]Allocation 2009-10'!$D5 -> -26536963 | AF17: =-'[1]Allocation 2009-10'!$D5 -> -26536963 | AG17: =-'[1]Allocation 2009-10'!$D5 -> -26536963 | AH17: =-'[1]Allocation 2009-10'!$D5 -> -26536963 | AI17: =-'[1]Allocation 2008-09'!$D5 -> -26536963 | AJ17: -26536963 | AK17: -26536963
B18: 3% for for Principal Support | C18: =C14*0.03*-1 -> -1014332.878
B20: MOE
B21: MOE Reduction | D21: ='Allocation 2023-24 Final'!R5 -> -682.51 | G21: 0 | H21: ='[1]Allocation 2021-22 Preliminary'!S5 -> 0 | I21: ='[1]Allocation 2021-22 Preliminary'!S5 -> 0 | J21: ='[1]Allocation 2020-21 Preliminary'!S5 -> 0 | K21: ='[1]Allocation 2020-21 Preliminary'!T5 -> 0 | L21: ='[1]Allocation 2019-20 Final'!T5 -> -64 | M21: ='[1]Allocation 2019-20 Preliminary'!T5 -> -64 | N21: -8893 | O21: -9395 | P21: -1050 | Q21: -1030 | R21: -1037
B22: =+"Amt avail for allocation- "&A28 -> Amt avail for allocation- Allocation sec. 2121 (a)(3) | C22: =ROUNDUP(SUM(C14,C16:C18,C21),0) -> 32796764 | D22: =SUM(D14,D16:D17,D21) -> 33292231.49 | E22: 33308481 | F22: 32408547 | G22: 32261471 | H22: 32833796 | I22: 32790208 | J22: 32219625 | K22: 32182215 | L22: 32369270 | M22: 32309788 | N22: 31615306 | O22: 31577311 | P22: 31844044 | Q22: 31660747 | R22: 31844057 | S22: =ROUND(SUM(S14,S16:S17),0) -> 31829746 | T22: 33986936 | U22: 1856949 | V22: 1984663 | W22: 1979217 | X22: 2671502 | Y22: 1659790 | Z22: 2742122 | AA22: 2731992 | AB22: 2737037 | AC22: 5352446 | AD22: =ROUND(SUM(AD14:AD17),0) -> 4872562 | AE22: =ROUND(SUM(AE14:AE17),0) -> 4528547 | AF22: =ROUND(SUM(AF14:AF17),0) -> 4922043 | AG22: =ROUND(SUM(AG14:AG17),0) -> 12195483 | AH22: =SUM(AH14:AH17) -> 12470812 | AI22: =SUM(AI14:AI17) -> 12429325 | AJ22: 12598536 | AK22: 12243391
B24: Per Allocation Calculation Sheet | V24: ='[1]Allocation 2015-16 Preliminary'!R5 -> 0 | W24: ='[1]Allocation 2015-16 Preliminary'!S5 -> 0 | X24: ='[1]Allocation 2015-16 Final'!U5 -> 35230039 | Y24: ='[1]Allocation 2015-16 Preliminary'!U5 -> 34202096 | Z24: ='[1]Allocation 2014-15 Final'!U5 -> 35301419 | AB24: ='[1]Allocation 2013-14 Prelim'!U5 -> 35289403 | AC24: ='[1]Allocation 2012-13'!R5 -> 37354719 | AD24: =+'[1]Allocation 2011-12 Rev 012312'!$J$5 -> 37466410 | AE24: =+'[1]Allocation 2011-12 Revised'!$J$5 -> 37116876 | AF24: =+'[1]Allocation 2011-12'!$J$5 -> 37516685 | AG24: =+'[1]Allocation 2010-11'!$J$5 -> 44905961 | AH24: =+'[1]Allocation 2009-10'!$J$5 -> 45186557 | AI24: =+'[1]Allocation 2008-09'!$J$5 -> 45144404 | AJ24: 44600809 | AK24: 44245664
AC25: =AC24-AC14 -> 0 | AD25: 591575 | AE25: 586056 | AF25: 592369 | AG25: 708205 | AH25: 713472 | AI25: 712806 | AJ25: 0 | AK25: 0
B26: Direct Grant Award to SAHE | C26: 0 | D26: 0 | E26: 0 | F26: 0 | G26: 0 | H26: 0 | I26: 0 | J26: 0 | K26: 0 | L26: 0 | M26: 0 | N26: 0 | O26: 0 | P26: 0 | Q26: 0 | R26: 0 | S26: 0 | T26: =(T10+T6)*-1 -> 966576 | U26: =(U10+U6)*-1 -> 963161 | V26: =(V10+V6)*-1 -> 966576 | AB26: =+AB5-AC5 -> -2188297 | AC26: =AC5-AD5 -> -118756 | AE26: =AE5-AF5 -> -425102 | AF26: =AF5-AG5 -> -7857657 | AG26: =AG5-AH5 -> -297444
B27: Direct Grant Award to OSPI | C27: =C11 -> 35234721 | D27: =D11 -> 34694721 | E27: 34710943 | F27: 33773117 | G27: 33619849 | H27: 34216272 | I27: 34170848 | J27: 33576241 | K27: 33537256 | L27: 33732253 | M27: 33670267 | N27: 32955744 | O27: 32916673 | P27: 33185940 | Q27: 32994904 | R27: 33185940 | S27: 33504996 | T27: 35750257 | U27: 35615700 | V27: 35750257 | Y27: =IF(V27=V11," ","not balanced") ->  | AB27: =+AB24-AC24 -> -2065316 | AC27: =AC24-AD24 -> -111691 | AE27: =AE24-AF24 -> -399809 | AF27: =AF24-AG24 -> -7389276 | AG27: =AG24-AH24 -> -280596
A28: Allocation sec. 2121 (a)(3)
A29: The amount exceeding the hold harmles is allocated as follows:
A30: 20% based upon the 5-17 population in the area (Census data) | C30: 0.2 | D30: 0.2 | E30: 0.2 | F30: 0.2 | G30: 0.2 | H30: 0.2 | I30: 0.2 | J30: 0.2 | K30: 0.2 | L30: 0.2 | M30: 0.2 | N30: 0.2 | O30: 0.2 | P30: 0.2 | Q30: 0.2 | R30: 0.2 | S30: 0.2 | T30: 0.2 | U30: 0.2 | V30: 0.2 | W30: 0.2 | X30: 0.2 | Y30: 0.2 | Z30: 0.2
A31: 80% based upon the 5-17 poverty population in the area (Census data) | C31: 0.8 | D31: 0.8 | E31: 0.8 | F31: 0.8 | G31: 0.8 | H31: 0.8 | I31: 0.8 | J31: 0.8 | K31: 0.8 | L31: 0.8 | M31: 0.8 | N31: 0.8 | O31: 0.8 | P31: 0.8 | Q31: 0.8 | R31: 0.8 | S31: 0.8 | T31: 0.8 | U31: 0.8 | V31: 0.8 | W31: 0.8 | X31: 0.8 | Y31: 0.8 | Z31: 0.8
A33: Hold harmless thresehold sec. 2121(a) (2)
B34: An Amount equal to what the district received in Eisenhower and Classsize Reduction for 2001-02
X35: Signature | Y35: Date
B36: Allocations Complete (Michelle Matakas)
B37: Program Supervisor (Maria Flores)
B38: Calculations Reviewed
B40: Preliminary
B41: Final
A44: NOTES:
B45: Revised per E-mail from Mary Jo Johnson dated 3/18/02: | X45: See Section 2113
B46: The allocation will need to be re-calculated in the following manner. The 1% admin comes off the top of the state allocation. Thus, the 95% for LEAs is calculated using 99% of the total funds. The 2.5% for state admin and SAHE is then calculated from the remaining funds. This is guidance that will be coming from the Dept. of Ed. Also, it appears that the admin for SAHE will be at hold harmless level as last year. Census data is the data to calculate 80/20.
B48: The P105 public and private are without pre-kindergarten per Mary Jo and Gayle Pauley 7/17/06.
B50: The State Administration amount is broken down as follows: | X50: 2013-14 Final | Z50: 2012-13 Final | AA50: 2011-12 Re-Revised | AB50: 2011-12 Revised | AC50: 2011-12 | AD50: 2010-11 | AE50: 2009-10 | AF50: 2008-09
B51: Higher Education | X51: -57834 | Z51: -57834 | AA51: -57834 | AB51: -57834 | AC51: -57834 | AD51: =AG8*AD54 -> 59087.9671 | AE51: 59456 | AF51: 59401
B52: State Administration | X52: -317462 | Z52: -339345 | AA52: -340532 | AB52: -336816 | AC52: -341067 | AD52: =AG8*AD55 -> 418390.0329 | AE52: 420996 | AF52: 420603
X54: =X51/SUM(X51:X52) -> 0.1541023619 | Z54: =Z51/SUM(Z51:Z52) -> 0.1456119281 | AA54: =AA51/SUM(AA51:AA52) -> 0.1451780523 | AB54: =AB51/SUM(AB51:AB52) -> 0.1465450399 | AC54: =AC51/SUM(AC51:AC52) -> 0.1449833417 | AD54: =AE54 -> -0.1237501353 | AE54: =AE51/AH8 -> -0.1237501353 | AF54: =AF51/AI8 -> -0.1237510521
X55: =X52/SUM(X51:X52) -> 0.8458976381 | Z55: =Z52/SUM(Z51:Z52) -> 0.8543880719 | AA55: =AA52/SUM(AA51:AA52) -> 0.8548219477 | AB55: =AB52/SUM(AB51:AB52) -> 0.8534549601 | AC55: =AC52/SUM(AC51:AC52) -> 0.8550166583 | AD55: =AE55 -> -0.8762498647 | AE55: =AE52/AH8 -> -0.8762498647 | AF55: =AF52/AI8 -> -0.8762489479

Sheet Allocation 2023-24 Final (hidden)
B1: 2023-24 | K1: =IF(K5=Assumptions!$D$14+J5,"Rounding OK","Rounding Error = "&FIXED(K5-Assumptions!$D$14-J5,TRUE)) -> Rounding OK | R1: =R5 -> -682.51 | S1: =IF(S5=Assumptions!$D14+R5,"Rounding OK","Rounding Error = "&FIXED(S5-(Assumptions!$D14+R5),TRUE)) -> Rounding OK
B2: ESEA -- Title 2 Distributions | K2: Allocation including private participation | S2: \
A3: 1 | B3: 2 | C3: 3 | D3: 4 | E3: 5 | F3: 6 | G3: 7 | H3: 8 | I3: 9 | J3: 10 | L3: 12 | M3: 13 | N3: 14 | O3: 15 | P3: 16 | Q3: 17 | R3: 18 | S3: 19 | U3: 18
A4: CCDDD | B4: LEAID | C4: District Name | D4: Eisenhower 2001-02 Allocations | E4: Class Size Reduction Allocations 2001-02 | F4: Census Population Ages 5-17 | G4: 20% based on Total Pop | H4: Census Poverty Ages 5-17 | I4: 80% based on Low Inc Pop | J4: MOE | K4: Total Final Allocation | M4: Alloc to non-Census LEA | N4: Realloc Pool | O4: Realloc | P4: Final Alloc Before MOE | Q4: MOE | R4: MOE Reduction | S4: Final Alloc | U4: Prior Year Allocation | Y4: Rank Order | AB4: do not delete Y & Z
C5: State Totals | D5: =SUM(D7:D308) -> 0 | E5: =SUM(E7:E308) -> 0 | F5: =SUM(F7:F322) -> 1240828.09 | G5: =SUM(G7:G322) -> 6658588 | H5: =SUM(H7:H322) -> 136700.562 | I5: =SUM(I7:I322) -> 26634335 | K5: =SUM(K7:K322) -> 33292914 | M5: =SUM(M7:M322) -> 0 | N5: =SUM(N7:N322) -> 33292914 | O5: =SUM(O7:O322) -> 0 | P5: =SUM(P7:P322) -> 33292914 | R5: =SUM(R7:R322) -> -682.51 | S5: =SUM(S7:S322) -> 33292231.49 | U5: =SUM(U7:U322) -> 0 | W5: =SUM(W7:W320) -> 33283493.49 | X5: =MIN(X7:X316) -> 0 | Y5: ="Lose = "& PROPER(VLOOKUP(X5,$X$7:$AC$316,6,FALSE)) -> Lose = Aberdeen | AB5: =+B5 -> 0 | AC5: =+C5 -> State Totals
X6: =MAX(X7:X309) -> 0 | Y6: ="Win = "&PROPER(VLOOKUP(X6,$X$7:$AC$309,6,FALSE)) -> Win = Aberdeen
A7: =VLOOKUP(B7,CCDDD!$A$3:$B$319,2,FALSE) -> 14005 | B7: 5300030 | C7: ABERDEEN | D7: 0 | E7: 0 | F7: =VLOOKUP(B7,'23-24 Adjusted Formula counts'!$A$2:$L$319,8,FALSE) -> 3541 | G7: =ROUND((F7/$F$5*Assumptions!$D$14*Assumptions!$D$30),0) -> 19002 | H7: =VLOOKUP(B7,'23-24 Adjusted Formula counts'!$A$2:$L$319,9,FALSE) -> 728 | I7: =ROUND((H7/$H$5*Assumptions!$D$14*Assumptions!$D$31),0) -> 141841 | K7: =ROUNDDOWN(+I7+G7+E7+D7+J7,0) -> 160843 | N7: =K7 -> 160843 | O7: =-ROUND(N7/$N$5*$M$5,0) -> 0 | P7: =+K7+O7+M7 -> 160843 | R7: =-1*(P7*Q7) -> 0 | S7: =+P7+R7 -> 160843 | U7: =IFERROR(VLOOKUP($A7,#REF!, 21,FALSE),0) -> 0 | W7: =+S7-U7 -> 160843 | X7: =IF(U7>0,W7/U7,0) -> 0 | Y7: =RANK(W7,$W$7:$W$322,0) -> 57 | Z7: =(SUM(D7:E7)/S7) -> 0 | AB7: =+B7 -> 5300030 | AC7: =+C7 -> ABERDEEN
A8: =VLOOKUP(B8,CCDDD!$A$3:$B$319,2,FALSE) -> 21226 | B8: 5300060 | C8: ADNA | D8: 0 | E8: 0 | F8: =VLOOKUP(B8,'23-24 Adjusted Formula counts'!$A$2:$L$319,8,FALSE) -> 736 | G8: =ROUND((F8/$F$5*Assumptions!$D$14*Assumptions!$D$30),0) -> 3950 | H8: =VLOOKUP(B8,'23-24 Adjusted Formula counts'!$A$2:$L$319,9,FALSE) -> 43 | I8: =ROUND((H8/$H$5*Assumptions!$D$14*Assumptions!$D$31),0) -> 8378 | K8: 12328 | N8: 12328 | O8: 0 | P8: =+K8+O8+M9 -> 12328 | R8: 0 | S8: 12328 | U8: =IFERROR(VLOOKUP($A8,#REF!, 21,FALSE),0) -> 0 | W8: 12328 | X8: 0 | Y8: =RANK(W8,$W$7:$W$322,0) -> 221 | Z8: 0 | AB8: 5300060 | AC8: ADNA
A9: =VLOOKUP(B9,CCDDD!$A$3:$B$319,2,FALSE) -> 22017 | B9: 5300090 | C9: ALMIRA | D9: 0 | E9: 0 | F9: =VLOOKUP(B9,'23-24 Adjusted Formula counts'!$A$2:$L$319,8,FALSE) -> 95 | G9: =ROUND((F9/$F$5*Assumptions!$D$14*Assumptions!$D$30),0) -> 510 | H9: =VLOOKUP(B9,'23-24 Adjusted Formula counts'!$A$2:$L$319,9,FALSE) -> 8 | I9: =ROUND((H9/$H$5*Assumptions!$D$14*Assumptions!$D$31),0) -> 1559 | K9: 2069 | N9: 2069 | O9: 0 | P9: =+K9+O9+M10 -> 2069 | R9: 0 | S9: 2069 | U9: =IFERROR(VLOOKUP($A9,#REF!, 21,FALSE),0) -> 0 | W9: 2069 | X9: 0 | Y9: 300 | Z9: 0 | AB9: 5300090 | AC9: ALMIRA
A10: =VLOOKUP(B10,CCDDD!$A$3:$B$319,2,FALSE) -> 29103 | B10: 5300150 | C10: ANACORTES | D10: 0 | E10: 0 | F10: =VLOOKUP(B10,'23-24 Adjusted Formula counts'!$A$2:$L$319,8,FALSE) -> 2866 | G10: =ROUND((F10/$F$5*Assumptions!$D$14*Assumptions!$D$30),0) -> 15380 | H10: =VLOOKUP(B10,'23-24 Adjusted Formula counts'!$A$2:$L$319,9,FALSE) -> 281 | I10: =ROUND((H10/$H$5*Assumptions!$D$14*Assumptions!$D$31),0) -> 54749 | K10: 70129 | N10: 70129 | O10: 0 | P10: =+K10+O10+M11 -> 70129 | R10: 0 | S10: 70129 | U10: =IFERROR(VLOOKUP($A10,#REF!, 21,FALSE),0) -> 0 | W10: 70129 | X10: 0 | Y10: 103 | Z10: 0 | AB10: 5300150 | AC10: ANACORTES
A11: =VLOOKUP(B11,CCDDD!$A$3:$B$319,2,FALSE) -> 31016 | B11: 5300240 | C11: ARLINGTON | D11: 0 | E11: 0 | F11: =VLOOKUP(B11,'23-24 Adjusted Formula counts'!$A$2:$L$319,8,FALSE) -> 5998 | G11: =ROUND((F11/$F$5*Assumptions!$D$14*Assumptions!$D$30),0) -> 32187 | H11: =VLOOKUP(B11,'23-24 Adjusted Formula counts'!$A$2:$L$319,9,FALSE) -> 465 | I11: =ROUND((H11/$H$5*Assumptions!$D$14*Assumptions!$D$31),0) -> 90599 | K11: 122786 | N11: 122786 | O11: 0 | P11: 122786 | R11: 0 | S11: 122786 | U11: =IFERROR(VLOOKUP($A11,#REF!, 21,FALSE),0) -> 0 | W11: 122786 | X11: 0 | Y11: 68 | Z11: 0 | AB11: 5300240 | AC11: ARLINGTON
A12: =VLOOKUP(B12,CCDDD!$A$3:$B$319,2,FALSE) -> 02420 | B12: 5300280 | C12: ASOTIN-ANATONE | D12: 0 | E12: 0 | F12: =VLOOKUP(B12,'23-24 Adjusted Formula counts'!$A$2:$L$319,8,FALSE) -> 508 | G12: =ROUND((F12/$F$5*Assumptions!$D$14*Assumptions!$D$30),0) -> 2726 | H12: =VLOOKUP(B12,'23-24 Adjusted Formula counts'!$A$2:$L$319,9,FALSE) -> 64 | I12: =ROUND((H12/$H$5*Assumptions!$D$14*Assumptions!$D$31),0) -> 12470 | K12: 15196 | N12: 15196 | O12: 0 | P12: 15196 | R12: 0 | S12: 15196 | U12: =IFERROR(VLOOKUP($A12,#REF!, 21,FALSE),0) -> 0 | W12: 15196 | X12: 0 | Y12: 205 | Z12: 0 | AB12: 5300280 | AC12: ASOTIN-ANATONE
A13: =VLOOKUP(B13,CCDDD!$A$3:$B$319,2,FALSE) -> 17408 | B13: 5300300 | C13: AUBURN | D13: 0 | E13: 0 | F13: =VLOOKUP(B13,'23-24 Adjusted Formula counts'!$A$2:$L$319,8,FALSE) -> 18711 | G13: =ROUND((F13/$F$5*Assumptions!$D$14*Assumptions!$D$30),0) -> 100408 | H13: =VLOOKUP(B13,'23-24 Adjusted Formula counts'!$A$2:$L$319,9,FALSE) -> 2786 | I13: =ROUND((H13/$H$5*Assumptions!$D$14*Assumptions!$D$31),0) -> 542816 | K13: 643224 | N13: 643224 | O13: 0 | P13: 643224 | R13: 0 | S13: 643224 | U13: =IFERROR(VLOOKUP($A13,#REF!, 21,FALSE),0) -> 0 | W13: 643224 | X13: 0 | Y13: 11 | Z13: 0 | AB13: 5300300 | AC13: AUBURN
A14: =VLOOKUP(B14,CCDDD!$A$3:$B$319,2,FALSE) -> 18303 | B14: 5300330 | C14: BAINBRIDGE ISLAND | D14: 0 | E14: 0 | F14: =VLOOKUP(B14,'23-24 Adjusted Formula counts'!$A$2:$L$319,8,FALSE) -> 4038 | G14: =ROUND((F14/$F$5*Assumptions!$D$14*Assumptions!$D$30),0) -> 21669 | H14: =VLOOKUP(B14,'23-24 Adjusted Formula counts'!$A$2:$L$319,9,FALSE) -> 159 | I14: =ROUND((H14/$H$5*Assumptions!$D$14*Assumptions!$D$31),0) -> 30979 | K14: 52648 | N14: 52648 | O14: 0 | P14: 52648 | R14: 0 | S14: 52648 | U14: =IFERROR(VLOOKUP($A14,#REF!, 21,FALSE),0) -> 0 | W14: 52648 | X14: 0 | Y14: 126 | Z14: 0 | AB14: 5300330 | AC14: BAINBRIDGE ISLAND
A15: =VLOOKUP(B15,CCDDD!$A$3:$B$319,2,FALSE) -> 06119 | B15: 5300380 | C15: BATTLE GROUND | D15: 0 | E15: 0 | F15: =VLOOKUP(B15,'23-24 Adjusted Formula counts'!$A$2:$L$319,8,FALSE) -> 16174 | G15: =ROUND((F15/$F$5*Assumptions!$D$14*Assumptions!$D$30),0) -> 86794 | H15: =VLOOKUP(B15,'23-24 Adjusted Formula counts'!$A$2:$L$319,9,FALSE) -> 1098 | I15: =ROUND((H15/$H$5*Assumptions!$D$14*Assumptions!$D$31),0) -> 213931 | K15: 300725 | N15: 300725 | O15: 0 | P15: 300725 | R15: 0 | S15: 300725 | U15: =IFERROR(VLOOKUP($A15,#REF!, 21,FALSE),0) -> 0 | W15: 300725 | X15: 0 | Y15: 29 | Z15: 0 | AB15: 5300380 | AC15: BATTLE GROUND
A16: =VLOOKUP(B16,CCDDD!$A$3:$B$319,2,FALSE) -> 17405 | B16: 5300390 | C16: BELLEVUE | D16: 0 | E16: 0 | F16: =VLOOKUP(B16,'23-24 Adjusted Formula counts'!$A$2:$L$319,8,FALSE) -> 22916 | G16: =ROUND((F16/$F$5*Assumptions!$D$14*Assumptions!$D$30),0) -> 122973 | H16: =VLOOKUP(B16,'23-24 Adjusted Formula counts'!$A$2:$L$319,9,FALSE) -> 1597 | I16: =ROUND((H16/$H$5*Assumptions!$D$14*Assumptions!$D$31),0) -> 311155 | K16: 434128 | N16: 434128 | O16: 0 | P16: 434128 | R16: 0 | S16: 434128 | U16: =IFERROR(VLOOKUP($A16,#REF!, 21,FALSE),0) -> 0 | W16: 434128 | X16: 0 | Y16: 22 | Z16: 0 | AB16: 5300390 | AC16: BELLEVUE
A17: =VLOOKUP(B17,CCDDD!$A$3:$B$319,2,FALSE) -> 37501 | B17: 5300420 | C17: BELLINGHAM | D17: 0 | E17: 0 | F17: =VLOOKUP(B17,'23-24 Adjusted Formula counts'!$A$2:$L$319,8,FALSE) -> 12668.72094 | G17: =ROUND((F17/$F$5*Assumptions!$D$14*Assumptions!$D$30),0) -> 67983 | H17: =VLOOKUP(B17,'23-24 Adjusted Formula counts'!$A$2:$L$319,9,FALSE) -> 1753.153846 | I17: =ROUND((H17/$H$5*Assumptions!$D$14*Assumptions!$D$31),0) -> 341579 | K17: 409562 | N17: 409562 | O17: 0 | P17: 409562 | R17: 0 | S17: 409562 | U17: =IFERROR(VLOOKUP($A17,#REF!, 21,FALSE),0) -> 0 | W17: 409562 | X17: 0 | Y17: 23 | Z17: 0 | AB17: 5300420 | AC17: BELLINGHAM
A18: =VLOOKUP(B18,CCDDD!$A$3:$B$319,2,FALSE) -> 01122 | B18: 5300450 | C18: BENGE | D18: 0 | E18: 0 | F18: =VLOOKUP(B18,'23-24 Adjusted Formula counts'!$A$2:$L$319,8,FALSE) -> 16 | G18: =ROUND((F18/$F$5*Assumptions!$D$14*Assumptions!$D$30),0) -> 86 | H18: =VLOOKUP(B18,'23-24 Adjusted Formula counts'!$A$2:$L$319,9,FALSE) -> 1 | I18: =ROUND((H18/$H$5*Assumptions!$D$14*Assumptions!$D$31),0) -> 195 | K18: 281 | N18: 281 | O18: 0 | P18: 281 | R18: 0 | S18: 281 | U18: =IFERROR(VLOOKUP($A18,#REF!, 21,FALSE),0) -> 0 | W18: 281 | X18: 0 | Y18: 316 | Z18: 0 | AB18: 5300450 | AC18: BENGE
A19: =VLOOKUP(B19,CCDDD!$A$3:$B$319,2,FALSE) -> 27403 | B19: 5300480 | C19: BETHEL | D19: 0 | E19: 0 | F19: =VLOOKUP(B19,'23-24 Adjusted Formula counts'!$A$2:$L$319,8,FALSE) -> 24535 | G19: =ROUND((F19/$F$5*Assumptions!$D$14*Assumptions!$D$30),0) -> 131661 | H19: =VLOOKUP(B19,'23-24 Adjusted Formula counts'!$A$2:$L$319,9,FALSE) -> 2251 | I19: =ROUND((H19/$H$5*Assumptions!$D$14*Assumptions!$D$31),0) -> 438578 | K19: 570239 | N19: 570239 | O19: 0 | P19: 570239 | R19: 0 | S19: 570239 | U19: =IFERROR(VLOOKUP($A19,#REF!, 21,FALSE),0) -> 0 | W19: 570239 | X19: 0 | Y19: 13 | Z19: 0 | AB19: 5300480 | AC19: BETHEL
A20: =VLOOKUP(B20,CCDDD!$A$3:$B$319,2,FALSE) -> 20203 | B20: 5300510 | C20: BICKLETON | D20: 0 | E20: 0 | F20: =VLOOKUP(B20,'23-24 Adjusted Formula counts'!$A$2:$L$319,8,FALSE) -> 79 | G20: =ROUND((F20/$F$5*Assumptions!$D$14*Assumptions!$D$30),0) -> 424 | H20: =VLOOKUP(B20,'23-24 Adjusted Formula counts'!$A$2:$L$319,9,FALSE) -> 15 | I20: =ROUND((H20/$H$5*Assumptions!$D$14*Assumptions!$D$31),0) -> 2923 | K20: 3347 | N20: 3347 | O20: 0 | P20: 3347 | R20: 0 | S20: 3347 | U20: =IFERROR(VLOOKUP($A20,#REF!, 21,FALSE),0) -> 0 | W20: 3347 | X20: 0 | Y20: 280 | Z20: 0 | AB20: 5300510 | AC20: BICKLETON
A21: =VLOOKUP(B21,CCDDD!$A$3:$B$319,2,FALSE) -> 37503 | B21: 5300570 | C21: BLAINE | D21: 0 | E21: 0 | F21: =VLOOKUP(B21,'23-24 Adjusted Formula counts'!$A$2:$L$319,8,FALSE) -> 2520 | G21: =ROUND((F21/$F$5*Assumptions!$D$14*Assumptions!$D$30),0) -> 13523 | H21: =VLOOKUP(B21,'23-24 Adjusted Formula counts'!$A$2:$L$319,9,FALSE) -> 385 | I21: =ROUND((H21/$H$5*Assumptions!$D$14*Assumptions!$D$31),0) -> 75012 | K21: 88535 | N21: 88535 | O21: 0 | P21: 88535 | R21: 0 | S21: 88535 | U21: =IFERROR(VLOOKUP($A21,#REF!, 21,FALSE),0) -> 0 | W21: 88535 | X21: 0 | Y21: 87 | Z21: 0 | AB21: 5300570 | AC21: BLAINE
A22: =VLOOKUP(B22,CCDDD!$A$3:$B$319,2,FALSE) -> 21234 | B22: 5300630 | C22: BOISTFORT | D22: 0 | E22: 0 | F22: =VLOOKUP(B22,'23-24 Adjusted Formula counts'!$A$2:$L$319,8,FALSE) -> 215 | G22: =ROUND((F22/$F$5*Assumptions!$D$14*Assumptions!$D$30),0) -> 1154 | H22: =VLOOKUP(B22,'23-24 Adjusted Formula counts'!$A$2:$L$319,9,FALSE) -> 27 | I22: =ROUND((H22/$H$5*Assumptions!$D$14*Assumptions!$D$31),0) -> 5261 | K22: 6415 | N22: 6415 | O22: 0 | P22: 6415 | R22: 0 | S22: 6415 | U22: =IFERROR(VLOOKUP($A22,#REF!, 21,FALSE),0) -> 0 | W22: 6415 | X22: 0 | Y22: 253 | Z22: 0 | AB22: 5300630 | AC22: BOISTFORT
A23: =VLOOKUP(B23,CCDDD!$A$3:$B$319,2,FALSE) -> 18100 | B23: 5300660 | C23: BREMERTON | D23: 0 | E23: 0 | F23: =VLOOKUP(B23,'23-24 Adjusted Formula counts'!$A$2:$L$319,8,FALSE) -> 5044.808397 | G23: =ROUND((F23/$F$5*Assumptions!$D$14*Assumptions!$D$30),0) -> 27072 | H23: =VLOOKUP(B23,'23-24 Adjusted Formula counts'!$A$2:$L$319,9,FALSE) -> 809.1450276 | I23: =ROUND((H23/$H$5*Assumptions!$D$14*Assumptions!$D$31),0) -> 157651 | K23: 184723 | N23: 184723 | O23: 0 | P23: 184723 | R23: 0 | S23: 184723 | U23: =IFERROR(VLOOKUP($A23,#REF!, 21,FALSE),0) -> 0 | W23: 184723 | X23: 0 | Y23: 47 | Z23: 0 | AB23: 5300660 | AC23: BREMERTON
A24: =VLOOKUP(B24,CCDDD!$A$3:$B$319,2,FALSE) -> 24111 | B24: 5300690 | C24: BREWSTER | D24: 0 | E24: 0 | F24: =VLOOKUP(B24,'23-24 Adjusted Formula counts'!$A$2:$L$319,8,FALSE) -> 975 | G24: =ROUND((F24/$F$5*Assumptions!$D$14*Assumptions!$D$30),0) -> 5232 | H24: =VLOOKUP(B24,'23-24 Adjusted Formula counts'!$A$2:$L$319,9,FALSE) -> 185 | I24: =ROUND((H24/$H$5*Assumptions!$D$14*Assumptions!$D$31),0) -> 36045 | K24: 41277 | N24: 41277 | O24: 0 | P24: 41277 | R24: 0 | S24: 41277 | U24: =IFERROR(VLOOKUP($A24,#REF!, 21,FALSE),0) -> 0 | W24: 41277 | X24: 0 | Y24: 141 | Z24: 0 | AB24: 5300690 | AC24: BREWSTER
A25: =VLOOKUP(B25,CCDDD!$A$3:$B$319,2,FALSE) -> 09075 | B25: 5300720 | C25: BRIDGEPORT | D25: 0 | E25: 0 | F25: =VLOOKUP(B25,'23-24 Adjusted Formula counts'!$A$2:$L$319,8,FALSE) -> 700 | G25: =ROUND((F25/$F$5*Assumptions!$D$14*Assumptions!$D$30),0) -> 3756 | H25: =VLOOKUP(B25,'23-24 Adjusted Formula counts'!$A$2:$L$319,9,FALSE) -> 204 | I25: =ROUND((H25/$H$5*Assumptions!$D$14*Assumptions!$D$31),0) -> 39747 | K25: 43503 | N25: 43503 | O25: 0 | P25: 43503 | R25: 0 | S25: 43503 | U25: =IFERROR(VLOOKUP($A25,#REF!, 21,FALSE),0) -> 0 | W25: 43503 | X25: 0 | Y25: 137 | Z25: 0 | AB25: 5300720 | AC25: BRIDGEPORT
A26: =VLOOKUP(B26,CCDDD!$A$3:$B$319,2,FALSE) -> 16046 | B26: 5300750 | C26: BRINNON | D26: 0 | E26: 0 | F26: =VLOOKUP(B26,'23-24 Adjusted Formula counts'!$A$2:$L$319,8,FALSE) -> 118 | G26: =ROUND((F26/$F$5*Assumptions!$D$14*Assumptions!$D$30),0) -> 633 | H26: =VLOOKUP(B26,'23-24 Adjusted Formula counts'!$A$2:$L$319,9,FALSE) -> 32 | I26: =ROUND((H26/$H$5*Assumptions!$D$14*Assumptions!$D$31),0) -> 6235 | K26: 6868 | N26: 6868 | O26: 0 | P26: 6868 | R26: 0 | S26: 6868 | U26: =IFERROR(VLOOKUP($A26,#REF!, 21,FALSE),0) -> 0 | W26: 6868 | X26: 0 | Y26: 251 | Z26: 0 | AB26: 5300750 | AC26: BRINNON
A27: =VLOOKUP(B27,CCDDD!$A$3:$B$319,2,FALSE) -> 29100 | B27: 5300780 | C27: BURLINGTON-EDISON | D27: 0 | E27: 0 | F27: =VLOOKUP(B27,'23-24 Adjusted Formula counts'!$A$2:$L$319,8,FALSE) -> 3771 | G27: =ROUND((F27/$F$5*Assumptions!$D$14*Assumptions!$D$30),0) -> 20236 | H27: =VLOOKUP(B27,'23-24 Adjusted Formula counts'!$A$2:$L$319,9,FALSE) -> 496 | I27: =ROUND((H27/$H$5*Assumptions!$D$14*Assumptions!$D$31),0) -> 96639 | K27: 116875 | N27: 116875 | O27: 0 | P27: 116875 | R27: 0 | S27: 116875 | U27: =IFERROR(VLOOKUP($A27,#REF!, 21,FALSE),0) -> 0 | W27: 116875 | X27: 0 | Y27: 71 | Z27: 0 | AB27: 5300780 | AC27: BURLINGTON-EDISON
A28: =VLOOKUP(B28,CCDDD!$A$3:$B$319,2,FALSE) -> 06117 | B28: 5300810 | C28: CAMAS | D28: 0 | E28: 0 | F28: =VLOOKUP(B28,'23-24 Adjusted Formula counts'!$A$2:$L$319,8,FALSE) -> 7573 | G28: =ROUND((F28/$F$5*Assumptions!$D$14*Assumptions!$D$30),0) -> 40639 | H28: =VLOOKUP(B28,'23-24 Adjusted Formula counts'!$A$2:$L$319,9,FALSE) -> 322 | I28: =ROUND((H28/$H$5*Assumptions!$D$14*Assumptions!$D$31),0) -> 62738 | K28: 103377 | N28: 103377 | O28: 0 | P28: 103377 | R28: 0 | S28: 103377 | U28: =IFERROR(VLOOKUP($A28,#REF!, 21,FALSE),0) -> 0 | W28: 103377 | X28: 0 | Y28: 79 | Z28: 0 | AB28: 5300810 | AC28: CAMAS
A29: =VLOOKUP(B29,CCDDD!$A$3:$B$319,2,FALSE) -> 05401 | B29: 5300840 | C29: CAPE FLATTERY | D29: 0 | E29: 0 | F29: =VLOOKUP(B29,'23-24 Adjusted Formula counts'!$A$2:$L$319,8,FALSE) -> 569 | G29: =ROUND((F29/$F$5*Assumptions!$D$14*Assumptions!$D$30),0) -> 3053 | H29: =VLOOKUP(B29,'23-24 Adjusted Formula counts'!$A$2:$L$319,9,FALSE) -> 129 | I29: =ROUND((H29/$H$5*Assumptions!$D$14*Assumptions!$D$31),0) -> 25134 | K29: 28187 | N29: 28187 | O29: 0 | P29: 28187 | R29: 0 | S29: 28187 | U29: =IFERROR(VLOOKUP($A29,#REF!, 21,FALSE),0) -> 0 | W29: 28187 | X29: 0 | Y29: 169 | Z29: 0 | AB29: 5300840 | AC29: CAPE FLATTERY
A30: =VLOOKUP(B30,CCDDD!$A$3:$B$319,2,FALSE) -> 27019 | B30: 5300870 | C30: CARBONADO | D30: 0 | E30: 0 | F30: =VLOOKUP(B30,'23-24 Adjusted Formula counts'!$A$2:$L$319,8,FALSE) -> 212 | G30: =ROUND((F30/$F$5*Assumptions!$D$14*Assumptions!$D$30),0) -> 1138 | H30: =VLOOKUP(B30,'23-24 Adjusted Formula counts'!$A$2:$L$319,9,FALSE) -> 19 | I30: =ROUND((H30/$H$5*Assumptions!$D$14*Assumptions!$D$31),0) -> 3702 | K30: 4840 | N30: 4840 | O30: 0 | P30: 4840 | R30: 0 | S30: 4840 | U30: =IFERROR(VLOOKUP($A30,#REF!, 21,FALSE),0) -> 0 | W30: 4840 | X30: 0 | Y30: 268 | Z30: 0 | AB30: 5300870 | AC30: CARBONADO
A31: =VLOOKUP(B31,CCDDD!$A$3:$B$319,2,FALSE) -> 04228 | B31: 5300950 | C31: CASCADE | D31: 0 | E31: 0 | F31: =VLOOKUP(B31,'23-24 Adjusted Formula counts'!$A$2:$L$319,8,FALSE) -> 1590 | G31: =ROUND((F31/$F$5*Assumptions!$D$14*Assumptions!$D$30),0) -> 8532 | H31: =VLOOKUP(B31,'23-24 Adjusted Formula counts'!$A$2:$L$319,9,FALSE) -> 175 | I31: =ROUND((H31/$H$5*Assumptions!$D$14*Assumptions!$D$31),0) -> 34096 | K31: 42628 | N31: 42628 | O31: 0 | P31: 42628 | R31: 0 | S31: 42628 | U31: =IFERROR(VLOOKUP($A31,#REF!, 21,FALSE),0) -> 0 | W31: 42628 | X31: 0 | Y31: 139 | Z31: 0 | AB31: 5300950 | AC31: CASCADE
A32: =VLOOKUP(B32,CCDDD!$A$3:$B$319,2,FALSE) -> 04222 | B32: 5300960 | C32: CASHMERE | D32: 0 | E32: 0 | F32: =VLOOKUP(B32,'23-24 Adjusted Formula counts'!$A$2:$L$319,8,FALSE) -> 1530 | G32: =ROUND((F32/$F$5*Assumptions!$D$14*Assumptions!$D$30),0) -> 8210 | H32: =VLOOKUP(B32,'23-24 Adjusted Formula counts'!$A$2:$L$319,9,FALSE) -> 193 | I32: =ROUND((H32/$H$5*Assumptions!$D$14*Assumptions!$D$31),0) -> 37604 | K32: 45814 | N32: 45814 | O32: 0 | P32: 45814 | R32: 0 | S32: 45814 | U32: =IFERROR(VLOOKUP($A32,#REF!, 21,FALSE),0) -> 0 | W32: 45814 | X32: 0 | Y32: 134 | Z32: 0 | AB32: 5300960 | AC32: CASHMERE
A33: =VLOOKUP(B33,CCDDD!$A$3:$B$319,2,FALSE) -> 08401 | B33: 5300990 | C33: CASTLE ROCK | D33: 0 | E33: 0 | F33: =VLOOKUP(B33,'23-24 Adjusted Formula counts'!$A$2:$L$319,8,FALSE) -> 1643 | G33: =ROUND((F33/$F$5*Assumptions!$D$14*Assumptions!$D$30),0) -> 8817 | H33: =VLOOKUP(B33,'23-24 Adjusted Formula counts'!$A$2:$L$319,9,FALSE) -> 195 | I33: =ROUND((H33/$H$5*Assumptions!$D$14*Assumptions!$D$31),0) -> 37993 | K33: 46810 | N33: 46810 | O33: 0 | P33: 46810 | R33: 0 | S33: 46810 | U33: =IFERROR(VLOOKUP($A33,#REF!, 21,FALSE),0) -> 0 | W33: 46810 | X33: 0 | Y33: 131 | Z33: 0 | AB33: 5300990 | AC33: CASTLE ROCK
A34: =VLOOKUP(B34,CCDDD!$A$3:$B$319,2,FALSE) -> 18901 | B34: 5301000 | C34: CATALYST BREMERTON CHARTER | D34: 0 | E34: 0 | F34: =VLOOKUP(B34,'23-24 Adjusted Formula counts'!$A$2:$L$319,8,FALSE) -> 510.6458119 | G34: =ROUND((F34/$F$5*Assumptions!$D$14*Assumptions!$D$30),0) -> 2740 | H34: =VLOOKUP(B34,'23-24 Adjusted Formula counts'!$A$2:$L$319,9,FALSE) -> 65.29834254 | I34: =ROUND((H34/$H$5*Assumptions!$D$14*Assumptions!$D$31),0) -> 12723 | K34: 15463 | N34: 15463 | O34: 0 | P34: 15463 | R34: 0 | S34: 15463 | U34: =IFERROR(VLOOKUP($A34,#REF!, 21,FALSE),0) -> 0 | W34: 15463 | X34: 0 | Y34: 203 | Z34: 0 | AB34: 5301000 | AC34: CATALYST BREMERTON CHARTER
A35: =VLOOKUP(B35,CCDDD!$A$3:$B$319,2,FALSE) -> 20215 | B35: 5301050 | C35: CENTERVILLE | D35: 0 | E35: 0 | F35: =VLOOKUP(B35,'23-24 Adjusted Formula counts'!$A$2:$L$319,8,FALSE) -> 95 | G35: =ROUND((F35/$F$5*Assumptions!$D$14*Assumptions!$D$30),0) -> 510 | H35: =VLOOKUP(B35,'23-24 Adjusted Formula counts'!$A$2:$L$319,9,FALSE) -> 13 | I35: =ROUND((H35/$H$5*Assumptions!$D$14*Assumptions!$D$31),0) -> 2533 | K35: 3043 | N35: 3043 | O35: 0 | P35: 3043 | R35: 0 | S35: 3043 | U35: =IFERROR(VLOOKUP($A35,#REF!, 21,FALSE),0) -> 0 | W35: 3043 | X35: 0 | Y35: 286 | Z35: 0 | AB35: 5301050 | AC35: CENTERVILLE
A36: =VLOOKUP(B36,CCDDD!$A$3:$B$319,2,FALSE) -> 18401 | B36: 5301080 | C36: CENTRAL KITSAP | D36: 0 | E36: 0 | F36: =VLOOKUP(B36,'23-24 Adjusted Formula counts'!$A$2:$L$319,8,FALSE) -> 11324 | G36: =ROUND((F36/$F$5*Assumptions!$D$14*Assumptions!$D$30),0) -> 60767 | H36: =VLOOKUP(B36,'23-24 Adjusted Formula counts'!$A$2:$L$319,9,FALSE) -> 913 | I36: =ROUND((H36/$H$5*Assumptions!$D$14*Assumptions!$D$31),0) -> 177886 | K36: 238653 | N36: 238653 | O36: 0 | P36: 238653 | R36: 0 | S36: 238653 | U36: =IFERROR(VLOOKUP($A36,#REF!, 21,FALSE),0) -> 0 | W36: 238653 | X36: 0 | Y36: 38 | Z36: 0 | AB36: 5301080 | AC36: CENTRAL KITSAP
A37: =VLOOKUP(B37,CCDDD!$A$3:$B$319,2,FALSE) -> 32356 | B37: 5301110 | C37: CENTRAL VALLEY | D37: 0 | E37: 0 | F37: =VLOOKUP(B37,'23-24 Adjusted Formula counts'!$A$2:$L$319,8,FALSE) -> 17283 | G37: =ROUND((F37/$F$5*Assumptions!$D$14*Assumptions!$D$30),0) -> 92745 | H37: =VLOOKUP(B37,'23-24 Adjusted Formula counts'!$A$2:$L$319,9,FALSE) -> 1571 | I37: =ROUND((H37/$H$5*Assumptions!$D$14*Assumptions!$D$31),0) -> 306089 | K37: 398834 | N37: 398834 | O37: 0 | P37: 398834 | R37: 0 | S37: 398834 | U37: =IFERROR(VLOOKUP($A37,#REF!, 21,FALSE),0) -> 0 | W37: 398834 | X37: 0 | Y37: 24 | Z37: 0 | AB37: 5301110 | AC37: CENTRAL VALLEY
A38: =VLOOKUP(B38,CCDDD!$A$3:$B$319,2,FALSE) -> 21401 | B38: 5301140 | C38: CENTRALIA | D38: 0 | E38: 0 | F38: =VLOOKUP(B38,'23-24 Adjusted Formula counts'!$A$2:$L$319,8,FALSE) -> 4272 | G38: =ROUND((F38/$F$5*Assumptions!$D$14*Assumptions!$D$30),0) -> 22925 | H38: =VLOOKUP(B38,'23-24 Adjusted Formula counts'!$A$2:$L$319,9,FALSE) -> 812 | I38: =ROUND((H38/$H$5*Assumptions!$D$14*Assumptions!$D$31),0) -> 158208 | K38: 181133 | N38: 181133 | O38: 0 | P38: 181133 | R38: 0 | S38: 181133 | U38: =IFERROR(VLOOKUP($A38,#REF!, 21,FALSE),0) -> 0 | W38: 181133 | X38: 0 | Y38: 49 | Z38: 0 | AB38: 5301140 | AC38: CENTRALIA
A39: =VLOOKUP(B39,CCDDD!$A$3:$B$319,2,FALSE) -> 21302 | B39: 5301170 | C39: CHEHALIS | D39: 0 | E39: 0 | F39: =VLOOKUP(B39,'23-24 Adjusted Formula counts'!$A$2:$L$319,8,FALSE) -> 2861 | G39: =ROUND((F39/$F$5*Assumptions!$D$14*Assumptions!$D$30),0) -> 15353 | H39: =VLOOKUP(B39,'23-24 Adjusted Formula counts'!$A$2:$L$319,9,FALSE) -> 345 | I39: =ROUND((H39/$H$5*Assumptions!$D$14*Assumptions!$D$31),0) -> 67219 | K39: 82572 | N39: 82572 | O39: 0 | P39: 82572 | R39: 0 | S39: 82572 | U39: =IFERROR(VLOOKUP($A39,#REF!, 21,FALSE),0) -> 0 | W39: 82572 | X39: 0 | Y39: 91 | Z39: 0 | AB39: 5301170 | AC39: CHEHALIS
A40: =VLOOKUP(B40,CCDDD!$A$3:$B$319,2,FALSE) -> 32360 | B40: 5301230 | C40: CHENEY | D40: 0 | E40: 0 | F40: =VLOOKUP(B40,'23-24 Adjusted Formula counts'!$A$2:$L$319,8,FALSE) -> 6337 | G40: =ROUND((F40/$F$5*Assumptions!$D$14*Assumptions!$D$30),0) -> 34006 | H40: =VLOOKUP(B40,'23-24 Adjusted Formula counts'!$A$2:$L$319,9,FALSE) -> 783 | I40: =ROUND((H40/$H$5*Assumptions!$D$14*Assumptions!$D$31),0) -> 152557 | K40: 186563 | N40: 186563 | O40: 0 | P40: 186563 | R40: 0 | S40: 186563 | U40: =IFERROR(VLOOKUP($A40,#REF!, 21,FALSE),0) -> 0 | W40: 186563 | X40: 0 | Y40: 45 | Z40: 0 | AB40: 5301230 | AC40: CHENEY
A41: =VLOOKUP(B41,CCDDD!$A$3:$B$319,2,FALSE) -> 33036 | B41: 5301260 | C41: CHEWELAH | D41: 0 | E41: 0 | F41: =VLOOKUP(B41,'23-24 Adjusted Formula counts'!$A$2:$L$319,8,FALSE) -> 947 | G41: =ROUND((F41/$F$5*Assumptions!$D$14*Assumptions!$D$30),0) -> 5082 | H41: =VLOOKUP(B41,'23-24 Adjusted Formula counts'!$A$2:$L$319,9,FALSE) -> 190 | I41: =ROUND((H41/$H$5*Assumptions!$D$14*Assumptions!$D$31),0) -> 37019 | K41: 42101 | N41: 42101 | O41: 0 | P41: 42101 | R41: 0 | S41: 42101 | U41: =IFERROR(VLOOKUP($A41,#REF!, 21,FALSE),0) -> 0 | W41: 42101 | X41: 0 | Y41: 140 | Z41: 0 | AB41: 5301260 | AC41: CHEWELAH
A42: =VLOOKUP(B42,CCDDD!$A$3:$B$319,2,FALSE) -> 16049 | B42: 5301290 | C42: CHIMACUM | D42: 0 | E42: 0 | F42: =VLOOKUP(B42,'23-24 Adjusted Formula counts'!$A$2:$L$319,8,FALSE) -> 1180 | G42: =ROUND((F42/$F$5*Assumptions!$D$14*Assumptions!$D$30),0) -> 6332 | H42: =VLOOKUP(B42,'23-24 Adjusted Formula counts'!$A$2:$L$319,9,FALSE) -> 204 | I42: =ROUND((H42/$H$5*Assumptions!$D$14*Assumptions!$D$31),0) -> 39747 | K42: 46079 | N42: 46079 | O42: 0 | P42: 46079 | R42: 0 | S42: 46079 | U42: =IFERROR(VLOOKUP($A42,#REF!, 21,FALSE),0) -> 0 | W42: 46079 | X42: 0 | Y42: 133 | Z42: 0 | AB42: 5301290 | AC42: CHIMACUM
A43: =VLOOKUP(B43,CCDDD!$A$3:$B$319,2,FALSE) -> 02250 | B43: 5301320 | C43: CLARKSTON | D43: 0 | E43: 0 | F43: =VLOOKUP(B43,'23-24 Adjusted Formula counts'!$A$2:$L$319,8,FALSE) -> 2878 | G43: =ROUND((F43/$F$5*Assumptions!$D$14*Assumptions!$D$30),0) -> 15444 | H43: =VLOOKUP(B43,'23-24 Adjusted Formula counts'!$A$2:$L$319,9,FALSE) -> 578 | I43: =ROUND((H43/$H$5*Assumptions!$D$14*Assumptions!$D$31),0) -> 112616 | K43: 128060 | N43: 128060 | O43: 0 | P43: 128060 | R43: 0 | S43: 128060 | U43: =IFERROR(VLOOKUP($A43,#REF!, 21,FALSE),0) -> 0 | W43: 128060 | X43: 0 | Y43: 67 | Z43: 0 | AB43: 5301320 | AC43: CLARKSTON
A44: =VLOOKUP(B44,CCDDD!$A$3:$B$319,2,FALSE) -> 19404 | B44: 5301350 | C44: CLE ELUM-ROSLYN | D44: 0 | E44: 0 | F44: =VLOOKUP(B44,'23-24 Adjusted Formula counts'!$A$2:$L$319,8,FALSE) -> 1041 | G44: =ROUND((F44/$F$5*Assumptions!$D$14*Assumptions!$D$30),0) -> 5586 | H44: =VLOOKUP(B44,'23-24 Adjusted Formula counts'!$A$2:$L$319,9,FALSE) -> 128 | I44: =ROUND((H44/$H$5*Assumptions!$D$14*Assumptions!$D$31),0) -> 24939 | K44: 30525 | N44: 30525 | O44: 0 | P44: 30525 | R44: 0 | S44: 30525 | U44: =IFERROR(VLOOKUP($A44,#REF!, 21,FALSE),0) -> 0 | W44: 30525 | X44: 0 | Y44: 163 | Z44: 0 | AB44: 5301350 | AC44: CLE ELUM-ROSLYN
A45: =VLOOKUP(B45,CCDDD!$A$3:$B$319,2,FALSE) -> 27400 | B45: 5301410 | C45: CLOVER PARK | D45: 0 | E45: 0 | F45: =VLOOKUP(B45,'23-24 Adjusted Formula counts'!$A$2:$L$319,8,FALSE) -> 13910 | G45: =ROUND((F45/$F$5*Assumptions!$D$14*Assumptions!$D$30),0) -> 74644 | H45: =VLOOKUP(B45,'23-24 Adjusted Formula counts'!$A$2:$L$319,9,FALSE) -> 1888 | I45: =ROUND((H45/$H$5*Assumptions!$D$14*Assumptions!$D$31),0) -> 367852 | K45: 442496 | N45: 442496 | O45: 0 | P45: 442496 | R45: 0 | S45: 442496 | U45: =IFERROR(VLOOKUP($A45,#REF!, 21,FALSE),0) -> 0 | W45: 442496 | X45: 0 | Y45: 20 | Z45: 0 | AB45: 5301410 | AC45: CLOVER PARK
A46: =VLOOKUP(B46,CCDDD!$A$3:$B$319,2,FALSE) -> 38300 | B46: 5301440 | C46: COLFAX | D46: 0 | E46: 0 | F46: =VLOOKUP(B46,'23-24 Adjusted Formula counts'!$A$2:$L$319,8,FALSE) -> 604 | G46: =ROUND((F46/$F$5*Assumptions!$D$14*Assumptions!$D$30),0) -> 3241 | H46: =VLOOKUP(B46,'23-24 Adjusted Formula counts'!$A$2:$L$319,9,FALSE) -> 51 | I46: =ROUND((H46/$H$5*Assumptions!$D$14*Assumptions!$D$31),0) -> 9937 | K46: 13178 | N46: 13178 | O46: 0 | P46: 13178 | R46: 0 | S46: 13178 | U46: =IFERROR(VLOOKUP($A46,#REF!, 21,FALSE),0) -> 0 | W46: 13178 | X46: 0 | Y46: 213 | Z46: 0 | AB46: 5301440 | AC46: COLFAX
A47: =VLOOKUP(B47,CCDDD!$A$3:$B$319,2,FALSE) -> 36250 | B47: 5301470 | C47: COLLEGE PLACE | D47: 0 | E47: 0 | F47: =VLOOKUP(B47,'23-24 Adjusted Formula counts'!$A$2:$L$319,8,FALSE) -> 2104 | G47: =ROUND((F47/$F$5*Assumptions!$D$14*Assumptions!$D$30),0) -> 11291 | H47: =VLOOKUP(B47,'23-24 Adjusted Formula counts'!$A$2:$L$319,9,FALSE) -> 244 | I47: =ROUND((H47/$H$5*Assumptions!$D$14*Assumptions!$D$31),0) -> 47540 | K47: 58831 | N47: 58831 | O47: 0 | P47: 58831 | R47: 0 | S47: 58831 | U47: =IFERROR(VLOOKUP($A47,#REF!, 21,FALSE),0) -> 0 | W47: 58831 | X47: 0 | Y47: 117 | Z47: 0 | AB47: 5301470 | AC47: COLLEGE PLACE
A48: =VLOOKUP(B48,CCDDD!$A$3:$B$319,2,FALSE) -> 38306 | B48: 5301500 | C48: COLTON | D48: 0 | E48: 0 | F48: =VLOOKUP(B48,'23-24 Adjusted Formula counts'!$A$2:$L$319,8,FALSE) -> 243 | G48: =ROUND((F48/$F$5*Assumptions!$D$14*Assumptions!$D$30),0) -> 1304 | H48: =VLOOKUP(B48,'23-24 Adjusted Formula counts'!$A$2:$L$319,9,FALSE) -> 20 | I48: =ROUND((H48/$H$5*Assumptions!$D$14*Assumptions!$D$31),0) -> 3897 | K48: 5201 | N48: 5201 | O48: 0 | P48: 5201 | R48: 0 | S48: 5201 | U48: =IFERROR(VLOOKUP($A48,#REF!, 21,FALSE),0) -> 0 | W48: 5201 | X48: 0 | Y48: 262 | Z48: 0 | AB48: 5301500 | AC48: COLTON
A49: =VLOOKUP(B49,CCDDD!$A$3:$B$319,2,FALSE) -> 33206 | B49: 5301560 | C49: COLUMBIA (STEV) | D49: 0 | E49: 0 | F49: =VLOOKUP(B49,'23-24 Adjusted Formula counts'!$A$2:$L$319,8,FALSE) -> 207 | G49: =ROUND((F49/$F$5*Assumptions!$D$14*Assumptions!$D$30),0) -> 1111 | H49: =VLOOKUP(B49,'23-24 Adjusted Formula counts'!$A$2:$L$319,9,FALSE) -> 43 | I49: =ROUND((H49/$H$5*Assumptions!$D$14*Assumptions!$D$31),0) -> 8378 | K49: 9489 | N49: 9489 | O49: 0 | P49: 9489 | R49: 0 | S49: 9489 | U49: =IFERROR(VLOOKUP($A49,#REF!, 21,FALSE),0) -> 0 | W49: 9489 | X49: 0 | Y49: 237 | Z49: 0 | AB49: 5301560 | AC49: COLUMBIA (STEV)
A50: =VLOOKUP(B50,CCDDD!$A$3:$B$319,2,FALSE) -> 36400 | B50: 5301590 | C50: COLUMBIA (WALLA) | D50: 0 | E50: 0 | F50: =VLOOKUP(B50,'23-24 Adjusted Formula counts'!$A$2:$L$319,8,FALSE) -> 781 | G50: =ROUND((F50/$F$5*Assumptions!$D$14*Assumptions!$D$30),0) -> 4191 | H50: =VLOOKUP(B50,'23-24 Adjusted Formula counts'!$A$2:$L$319,9,FALSE) -> 90 | I50: =ROUND((H50/$H$5*Assumptions!$D$14*Assumptions!$D$31),0) -> 17535 | K50: 21726 | N50: 21726 | O50: 0 | P50: 21726 | R50: 0 | S50: 21726 | U50: =IFERROR(VLOOKUP($A50,#REF!, 21,FALSE),0) -> 0 | W50: 21726 | X50: 0 | Y50: 182 | Z50: 0 | AB50: 5301590 | AC50: COLUMBIA (WALLA)
A51: =VLOOKUP(B51,CCDDD!$A$3:$B$319,2,FALSE) -> 33115 | B51: 5301630 | C51: COLVILLE | D51: 0 | E51: 0 | F51: =VLOOKUP(B51,'23-24 Adjusted Formula counts'!$A$2:$L$319,8,FALSE) -> 2016 | G51: =ROUND((F51/$F$5*Assumptions!$D$14*Assumptions!$D$30),0) -> 10818 | H51: =VLOOKUP(B51,'23-24 Adjusted Formula counts'!$A$2:$L$319,9,FALSE) -> 355 | I51: =ROUND((H51/$H$5*Assumptions!$D$14*Assumptions!$D$31),0) -> 69167 | K51: 79985 | N51: 79985 | O51: 0 | P51: 79985 | R51: 0 | S51: 79985 | U51: =IFERROR(VLOOKUP($A51,#REF!, 21,FALSE),0) -> 0 | W51: 79985 | X51: 0 | Y51: 97 | Z51: 0 | AB51: 5301630 | AC51: COLVILLE
A52: =VLOOKUP(B52,CCDDD!$A$3:$B$319,2,FALSE) -> 29011 | B52: 5301660 | C52: CONCRETE | D52: 0 | E52: 0 | F52: =VLOOKUP(B52,'23-24 Adjusted Formula counts'!$A$2:$L$319,8,FALSE) -> 726 | G52: =ROUND((F52/$F$5*Assumptions!$D$14*Assumptions!$D$30),0) -> 3896 | H52: =VLOOKUP(B52,'23-24 Adjusted Formula counts'!$A$2:$L$319,9,FALSE) -> 147 | I52: =ROUND((H52/$H$5*Assumptions!$D$14*Assumptions!$D$31),0) -> 28641 | K52: 32537 | N52: 32537 | O52: 0 | P52: 32537 | R52: 0 | S52: 32537 | U52: =IFERROR(VLOOKUP($A52,#REF!, 21,FALSE),0) -> 0 | W52: 32537 | X52: 0 | Y52: 159 | Z52: 0 | AB52: 5301660 | AC52: CONCRETE
A53: =VLOOKUP(B53,CCDDD!$A$3:$B$319,2,FALSE) -> 29317 | B53: 5301680 | C53: CONWAY | D53: 0 | E53: 0 | F53: =VLOOKUP(B53,'23-24 Adjusted Formula counts'!$A$2:$L$319,8,FALSE) -> 550 | G53: =ROUND((F53/$F$5*Assumptions!$D$14*Assumptions!$D$30),0) -> 2951 | H53: =VLOOKUP(B53,'23-24 Adjusted Formula counts'!$A$2:$L$319,9,FALSE) -> 47 | I53: =ROUND((H53/$H$5*Assumptions!$D$14*Assumptions!$D$31),0) -> 9157 | K53: 12108 | N53: 12108 | O53: 0 | P53: 12108 | R53: 0 | S53: 12108 | U53: =IFERROR(VLOOKUP($A53,#REF!, 21,FALSE),0) -> 0 | W53: 12108 | X53: 0 | Y53: 222 | Z53: 0 | AB53: 5301680 | AC53: CONWAY
A54: =VLOOKUP(B54,CCDDD!$A$3:$B$319,2,FALSE) -> 14099 | B54: 5301710 | C54: COSMOPOLIS | D54: 0 | E54: 0 | F54: =VLOOKUP(B54,'23-24 Adjusted Formula counts'!$A$2:$L$319,8,FALSE) -> 320 | G54: =ROUND((F54/$F$5*Assumptions!$D$14*Assumptions!$D$30),0) -> 1717 | H54: =VLOOKUP(B54,'23-24 Adjusted Formula counts'!$A$2:$L$319,9,FALSE) -> 27 | I54: =ROUND((H54/$H$5*Assumptions!$D$14*Assumptions!$D$31),0) -> 5261 | K54: 6978 | N54: 6978 | O54: 0 | P54: 6978 | R54: 0 | S54: 6978 | U54: =IFERROR(VLOOKUP($A54,#REF!, 21,FALSE),0) -> 0 | W54: 6978 | X54: 0 | Y54: 249 | Z54: 0 | AB54: 5301710 | AC54: COSMOPOLIS
A55: =VLOOKUP(B55,CCDDD!$A$3:$B$319,2,FALSE) -> 13151 | B55: 5303440 | C55: COULEE-HARTLINE | D55: 0 | E55: 0 | F55: =VLOOKUP(B55,'23-24 Adjusted Formula counts'!$A$2:$L$319,8,FALSE) -> 253 | G55: =ROUND((F55/$F$5*Assumptions!$D$14*Assumptions!$D$30),0) -> 1358 | H55: =VLOOKUP(B55,'23-24 Adjusted Formula counts'!$A$2:$L$319,9,FALSE) -> 32 | I55: =ROUND((H55/$H$5*Assumptions!$D$14*Assumptions!$D$31),0) -> 6235 | K55: 7593 | N55: 7593 | O55: 0 | P55: 7593 | R55: 0 | S55: 7593 | U55: =IFERROR(VLOOKUP($A55,#REF!, 21,FALSE),0) -> 0 | W55: 7593 | X55: 0 | Y55: 245 | Z55: 0 | AB55: 5303440 | AC55: COULEE-HARTLINE
A56: =VLOOKUP(B56,CCDDD!$A$3:$B$319,2,FALSE) -> 15204 | B56: 5301800 | C56: COUPEVILLE | D56: 0 | E56: 0 | F56: =VLOOKUP(B56,'23-24 Adjusted Formula counts'!$A$2:$L$319,8,FALSE) -> 1115 | G56: =ROUND((F56/$F$5*Assumptions!$D$14*Assumptions!$D$30),0) -> 5983 | H56: =VLOOKUP(B56,'23-24 Adjusted Formula counts'!$A$2:$L$319,9,FALSE) -> 122 | I56: =ROUND((H56/$H$5*Assumptions!$D$14*Assumptions!$D$31),0) -> 23770 | K56: 29753 | N56: 29753 | O56: 0 | P56: 29753 | R56: 0 | S56: 29753 | U56: =IFERROR(VLOOKUP($A56,#REF!, 21,FALSE),0) -> 0 | W56: 29753 | X56: 0 | Y56: 165 | Z56: 0 | AB56: 5301800 | AC56: COUPEVILLE
A57: =VLOOKUP(B57,CCDDD!$A$3:$B$319,2,FALSE) -> 05313 | B57: 5301830 | C57: CRESCENT | D57: 0 | E57: 0 | F57: =VLOOKUP(B57,'23-24 Adjusted Formula counts'!$A$2:$L$319,8,FALSE) -> 357 | G57: =ROUND((F57/$F$5*Assumptions!$D$14*Assumptions!$D$30),0) -> 1916 | H57: =VLOOKUP(B57,'23-24 Adjusted Formula counts'!$A$2:$L$319,9,FALSE) -> 45 | I57: =ROUND((H57/$H$5*Assumptions!$D$14*Assumptions!$D$31),0) -> 8768 | K57: 10684 | N57: 10684 | O57: 0 | P57: 10684 | R57: 0 | S57: 10684 | U57: =IFERROR(VLOOKUP($A57,#REF!, 21,FALSE),0) -> 0 | W57: 10684 | X57: 0 | Y57: 231 | Z57: 0 | AB57: 5301830 | AC57: CRESCENT
A58: =VLOOKUP(B58,CCDDD!$A$3:$B$319,2,FALSE) -> 22073 | B58: 5301860 | C58: CRESTON | D58: 0 | E58: 0 | F58: =VLOOKUP(B58,'23-24 Adjusted Formula counts'!$A$2:$L$319,8,FALSE) -> 110 | G58: =ROUND((F58/$F$5*Assumptions!$D$14*Assumptions!$D$30),0) -> 590 | H58: =VLOOKUP(B58,'23-24 Adjusted Formula counts'!$A$2:$L$319,9,FALSE) -> 19 | I58: =ROUND((H58/$H$5*Assumptions!$D$14*Assumptions!$D$31),0) -> 3702 | K58: 4292 | N58: 4292 | O58: 0 | P58: 4292 | R58: 0 | S58: 4292 | U58: =IFERROR(VLOOKUP($A58,#REF!, 21,FALSE),0) -> 0 | W58: 4292 | X58: 0 | Y58: 271 | Z58: 0 | AB58: 5301860 | AC58: CRESTON
A59: =VLOOKUP(B59,CCDDD!$A$3:$B$319,2,FALSE) -> 10050 | B59: 5301890 | C59: CURLEW | D59: 0 | E59: 0 | F59: =VLOOKUP(B59,'23-24 Adjusted Formula counts'!$A$2:$L$319,8,FALSE) -> 152 | G59: =ROUND((F59/$F$5*Assumptions!$D$14*Assumptions!$D$30),0) -> 816 | H59: =VLOOKUP(B59,'23-24 Adjusted Formula counts'!$A$2:$L$319,9,FALSE) -> 45 | I59: =ROUND((H59/$H$5*Assumptions!$D$14*Assumptions!$D$31),0) -> 8768 | K59: 9584 | N59: 9584 | O59: 0 | P59: 9584 | R59: 0 | S59: 9584 | U59: =IFERROR(VLOOKUP($A59,#REF!, 21,FALSE),0) -> 0 | W59: 9584 | X59: 0 | Y59: 235 | Z59: 0 | AB59: 5301890 | AC59: CURLEW
A60: =VLOOKUP(B60,CCDDD!$A$3:$B$319,2,FALSE) -> 26059 | B60: 5301920 | C60: CUSICK | D60: 0 | E60: 0 | F60: =VLOOKUP(B60,'23-24 Adjusted Formula counts'!$A$2:$L$319,8,FALSE) -> 303 | G60: =ROUND((F60/$F$5*Assumptions!$D$14*Assumptions!$D$30),0) -> 1626 | H60: =VLOOKUP(B60,'23-24 Adjusted Formula counts'!$A$2:$L$319,9,FALSE) -> 63 | I60: =ROUND((H60/$H$5*Assumptions!$D$14*Assumptions!$D$31),0) -> 12275 | K60: 13901 | N60: 13901 | O60: 0 | P60: 13901 | R60: 0 | S60: 13901 | U60: =IFERROR(VLOOKUP($A60,#REF!, 21,FALSE),0) -> 0 | W60: 13901 | X60: 0 | Y60: 211 | Z60: 0 | AB60: 5301920 | AC60: CUSICK
A61: =VLOOKUP(B61,CCDDD!$A$3:$B$319,2,FALSE) -> 19007 | B61: 5301950 | C61: DAMMAN | D61: 0 | E61: 0 | F61: =VLOOKUP(B61,'23-24 Adjusted Formula counts'!$A$2:$L$319,8,FALSE) -> 109 | G61: =ROUND((F61/$F$5*Assumptions!$D$14*Assumptions!$D$30),0) -> 585 | H61: =VLOOKUP(B61,'23-24 Adjusted Formula counts'!$A$2:$L$319,9,FALSE) -> 2 | I61: =ROUND((H61/$H$5*Assumptions!$D$14*Assumptions!$D$31),0) -> 390 | K61: 975 | N61: 975 | O61: 0 | P61: 975 | R61: 0 | S61: 975 | U61: =IFERROR(VLOOKUP($A61,#REF!, 21,FALSE),0) -> 0 | W61: 975 | X61: 0 | Y61: 313 | Z61: 0 | AB61: 5301950 | AC61: DAMMAN
A62: =VLOOKUP(B62,CCDDD!$A$3:$B$319,2,FALSE) -> 31330 | B62: 5301980 | C62: DARRINGTON | D62: 0 | E62: 0 | F62: =VLOOKUP(B62,'23-24 Adjusted Formula counts'!$A$2:$L$319,8,FALSE) -> 510 | G62: =ROUND((F62/$F$5*Assumptions!$D$14*Assumptions!$D$30),0) -> 2737 | H62: =VLOOKUP(B62,'23-24 Adjusted Formula counts'!$A$2:$L$319,9,FALSE) -> 79 | I62: =ROUND((H62/$H$5*Assumptions!$D$14*Assumptions!$D$31),0) -> 15392 | K62: 18129 | N62: 18129 | O62: 0 | P62: 18129 | R62: 0 | S62: 18129 | U62: =IFERROR(VLOOKUP($A62,#REF!, 21,FALSE),0) -> 0 | W62: 18129 | X62: 0 | Y62: 192 | Z62: 0 | AB62: 5301980 | AC62: DARRINGTON
A63: =VLOOKUP(B63,CCDDD!$A$3:$B$319,2,FALSE) -> 22207 | B63: 5302010 | C63: DAVENPORT | D63: 0 | E63: 0 | F63: =VLOOKUP(B63,'23-24 Adjusted Formula counts'!$A$2:$L$319,8,FALSE) -> 570 | G63: =ROUND((F63/$F$5*Assumptions!$D$14*Assumptions!$D$30),0) -> 3059 | H63: =VLOOKUP(B63,'23-24 Adjusted Formula counts'!$A$2:$L$319,9,FALSE) -> 67 | I63: =ROUND((H63/$H$5*Assumptions!$D$14*Assumptions!$D$31),0) -> 13054 | K63: 16113 | N63: 16113 | O63: 0 | P63: 16113 | R63: 0 | S63: 16113 | U63: =IFERROR(VLOOKUP($A63,#REF!, 21,FALSE),0) -> 0 | W63: 16113 | X63: 0 | Y63: 200 | Z63: 0 | AB63: 5302010 | AC63: DAVENPORT
A64: =VLOOKUP(B64,CCDDD!$A$3:$B$319,2,FALSE) -> 07002 | B64: 5302040 | C64: DAYTON | D64: 0 | E64: 0 | F64: =VLOOKUP(B64,'23-24 Adjusted Formula counts'!$A$2:$L$319,8,FALSE) -> 525 | G64: =ROUND((F64/$F$5*Assumptions!$D$14*Assumptions!$D$30),0) -> 2817 | H64: =VLOOKUP(B64,'23-24 Adjusted Formula counts'!$A$2:$L$319,9,FALSE) -> 97 | I64: =ROUND((H64/$H$5*Assumptions!$D$14*Assumptions!$D$31),0) -> 18899 | K64: 21716 | N64: 21716 | O64: 0 | P64: 21716 | R64: 0 | S64: 21716 | U64: =IFERROR(VLOOKUP($A64,#REF!, 21,FALSE),0) -> 0 | W64: 21716 | X64: 0 | Y64: 183 | Z64: 0 | AB64: 5302040 | AC64: DAYTON
A65: =VLOOKUP(B65,CCDDD!$A$3:$B$319,2,FALSE) -> 32414 | B65: 5302070 | C65: DEER PARK | D65: 0 | E65: 0 | F65: =VLOOKUP(B65,'23-24 Adjusted Formula counts'!$A$2:$L$319,8,FALSE) -> 2401 | G65: =ROUND((F65/$F$5*Assumptions!$D$14*Assumptions!$D$30),0) -> 12884 | H65: =VLOOKUP(B65,'23-24 Adjusted Formula counts'!$A$2:$L$319,9,FALSE) -> 346 | I65: =ROUND((H65/$H$5*Assumptions!$D$14*Assumptions!$D$31),0) -> 67414 | K65: 80298 | N65: 80298 | O65: 0 | P65: 80298 | R65: 0 | S65: 80298 | U65: =IFERROR(VLOOKUP($A65,#REF!, 21,FALSE),0) -> 0 | W65: 80298 | X65: 0 | Y65: 96 | Z65: 0 | AB65: 5302070 | AC65: DEER PARK
A66: =VLOOKUP(B66,CCDDD!$A$3:$B$319,2,FALSE) -> 27343 | B66: 5302130 | C66: DIERINGER | D66: 0 | E66: 0 | F66: =VLOOKUP(B66,'23-24 Adjusted Formula counts'!$A$2:$L$319,8,FALSE) -> 2313 | G66: =ROUND((F66/$F$5*Assumptions!$D$14*Assumptions!$D$30),0) -> 12412 | H66: =VLOOKUP(B66,'23-24 Adjusted Formula counts'!$A$2:$L$319,9,FALSE) -> 99 | I66: =ROUND((H66/$H$5*Assumptions!$D$14*Assumptions!$D$31),0) -> 19289 | K66: 31701 | N66: 31701 | O66: 0 | P66: 31701 | R66: 0 | S66: 31701 | U66: =IFERROR(VLOOKUP($A66,#REF!, 21,FALSE),0) -> 0 | W66: 31701 | X66: 0 | Y66: 160 | Z66: 0 | AB66: 5302130 | AC66: DIERINGER
A67: =VLOOKUP(B67,CCDDD!$A$3:$B$319,2,FALSE) -> 36101 | B67: 5302160 | C67: DIXIE | D67: 0 | E67: 0 | F67: =VLOOKUP(B67,'23-24 Adjusted Formula counts'!$A$2:$L$319,8,FALSE) -> 77 | G67: =ROUND((F67/$F$5*Assumptions!$D$14*Assumptions!$D$30),0) -> 413 | H67: =VLOOKUP(B67,'23-24 Adjusted Formula counts'!$A$2:$L$319,9,FALSE) -> 10 | I67: =ROUND((H67/$H$5*Assumptions!$D$14*Assumptions!$D$31),0) -> 1948 | K67: 2361 | N67: 2361 | O67: 0 | P67: 2361 | R67: 0 | S67: 2361 | U67: =IFERROR(VLOOKUP($A67,#REF!, 21,FALSE),0) -> 0 | W67: 2361 | X67: 0 | Y67: 293 | Z67: 0 | AB67: 5302160 | AC67: DIXIE
A68: =VLOOKUP(B68,CCDDD!$A$3:$B$319,2,FALSE) -> 32361 | B68: 5302280 | C68: EAST VALLEY (SPK) | D68: 0 | E68: 0 | F68: =VLOOKUP(B68,'23-24 Adjusted Formula counts'!$A$2:$L$319,8,FALSE) -> 4751 | G68: =ROUND((F68/$F$5*Assumptions!$D$14*Assumptions!$D$30),0) -> 25495 | H68: =VLOOKUP(B68,'23-24 Adjusted Formula counts'!$A$2:$L$319,9,FALSE) -> 691 | I68: =ROUND((H68/$H$5*Assumptions!$D$14*Assumptions!$D$31),0) -> 134632 | K68: 160127 | N68: 160127 | O68: 0 | P68: 160127 | R68: 0 | S68: 160127 | U68: =IFERROR(VLOOKUP($A68,#REF!, 21,FALSE),0) -> 0 | W68: 160127 | X68: 0 | Y68: 58 | Z68: 0 | AB68: 5302280 | AC68: EAST VALLEY (SPK)
A69: =VLOOKUP(B69,CCDDD!$A$3:$B$319,2,FALSE) -> 39090 | B69: 5305370 | C69: EAST VALLEY (YAK) | D69: 0 | E69: 0 | F69: =VLOOKUP(B69,'23-24 Adjusted Formula counts'!$A$2:$L$319,8,FALSE) -> 3617 | G69: =ROUND((F69/$F$5*Assumptions!$D$14*Assumptions!$D$30),0) -> 19410 | H69: =VLOOKUP(B69,'23-24 Adjusted Formula counts'!$A$2:$L$319,9,FALSE) -> 451 | I69: =ROUND((H69/$H$5*Assumptions!$D$14*Assumptions!$D$31),0) -> 87871 | K69: 107281 | N69: 107281 | O69: 0 | P69: 107281 | R69: 0 | S69: 107281 | U69: =IFERROR(VLOOKUP($A69,#REF!, 21,FALSE),0) -> 0 | W69: 107281 | X69: 0 | Y69: 76 | Z69: 0 | AB69: 5305370 | AC69: EAST VALLEY (YAK)
A70: =VLOOKUP(B70,CCDDD!$A$3:$B$319,2,FALSE) -> 09206 | B70: 5302310 | C70: EASTMONT | D70: 0 | E70: 0 | F70: =VLOOKUP(B70,'23-24 Adjusted Formula counts'!$A$2:$L$319,8,FALSE) -> 6551 | G70: =ROUND((F70/$F$5*Assumptions!$D$14*Assumptions!$D$30),0) -> 35154 | H70: =VLOOKUP(B70,'23-24 Adjusted Formula counts'!$A$2:$L$319,9,FALSE) -> 668 | I70: =ROUND((H70/$H$5*Assumptions!$D$14*Assumptions!$D$31),0) -> 130151 | K70: 165305 | N70: 165305 | O70: 0 | P70: 165305 | R70: 0 | S70: 165305 | U70: =IFERROR(VLOOKUP($A70,#REF!, 21,FALSE),0) -> 0 | W70: 165305 | X70: 0 | Y70: 56 | Z70: 0 | AB70: 5302310 | AC70: EASTMONT
A71: =VLOOKUP(B71,CCDDD!$A$3:$B$319,2,FALSE) -> 19028 | B71: 5302340 | C71: EASTON | D71: 0 | E71: 0 | F71: =VLOOKUP(B71,'23-24 Adjusted Formula counts'!$A$2:$L$319,8,FALSE) -> 146 | G71: =ROUND((F71/$F$5*Assumptions!$D$14*Assumptions!$D$30),0) -> 783 | H71: =VLOOKUP(B71,'23-24 Adjusted Formula counts'!$A$2:$L$319,9,FALSE) -> 12 | I71: =ROUND((H71/$H$5*Assumptions!$D$14*Assumptions!$D$31),0) -> 2338 | K71: =ROUNDDOWN(+I71+G71+E71+D71+J71,0) -> 3121 | N71: =K71 -> 3121 | O71: =-ROUND(N71/$N$5*$M$5,0) -> 0 | P71: =+K71+O71+M71 -> 3121 | R71: =-1*(P71*Q71) -> 0 | S71: =+P71+R71 -> 3121 | U71: =IFERROR(VLOOKUP($A71,#REF!, 21,FALSE),0) -> 0 | W71: =+S71-U71 -> 3121 | X71: =IF(U71>0,W71/U71,0) -> 0 | Y71: 284 | Z71: =(SUM(D71:E71)/S71) -> 0 | AB71: =+B71 -> 5302340 | AC71: =+C71 -> EASTON
A72: =VLOOKUP(B72,CCDDD!$A$3:$B$319,2,FALSE) -> 27404 | B72: 5302370 | C72: EATONVILLE | D72: 0 | E72: 0 | F72: =VLOOKUP(B72,'23-24 Adjusted Formula counts'!$A$2:$L$319,8,FALSE) -> 2240 | G72: =ROUND((F72/$F$5*Assumptions!$D$14*Assumptions!$D$30),0) -> 12020 | H72: =VLOOKUP(B72,'23-24 Adjusted Formula counts'!$A$2:$L$319,9,FALSE) -> 210 | I72: =ROUND((H72/$H$5*Assumptions!$D$14*Assumptions!$D$31),0) -> 40916 | K72: 52936 | N72: 52936 | O72: 0 | P72: 52936 | R72: 0 | S72: 52936 | U72: =IFERROR(VLOOKUP($A72,#REF!, 21,FALSE),0) -> 0 | W72: 52936 | X72: 0 | Y72: =RANK(W72,$W$7:$W$322,0) -> 124 | Z72: 0 | AB72: 5302370 | AC72: EATONVILLE
A73: =VLOOKUP(B73,CCDDD!$A$3:$B$319,2,FALSE) -> 31015 | B73: 5302400 | C73: EDMONDS | D73: 0 | E73: 0 | F73: =VLOOKUP(B73,'23-24 Adjusted Formula counts'!$A$2:$L$319,8,FALSE) -> 24590 | G73: =ROUND((F73/$F$5*Assumptions!$D$14*Assumptions!$D$30),0) -> 131956 | H73: =VLOOKUP(B73,'23-24 Adjusted Formula counts'!$A$2:$L$319,9,FALSE) -> 1911 | I73: =ROUND((H73/$H$5*Assumptions!$D$14*Assumptions!$D$31),0) -> 372334 | K73: 504290 | N73: 504290 | O73: 0 | P73: 504290 | R73: 0 | S73: 504290 | U73: =IFERROR(VLOOKUP($A73,#REF!, 21,FALSE),0) -> 0 | W73: 504290 | X73: 0 | Y73: 15 | Z73: 0 | AB73: 5302400 | AC73: EDMONDS
A74: =VLOOKUP(B74,CCDDD!$A$3:$B$319,2,FALSE) -> 19401 | B74: 5302460 | C74: ELLENSBURG | D74: 0 | E74: 0 | F74: =VLOOKUP(B74,'23-24 Adjusted Formula counts'!$A$2:$L$319,8,FALSE) -> 3474 | G74: =ROUND((F74/$F$5*Assumptions!$D$14*Assumptions!$D$30),0) -> 18642 | H74: =VLOOKUP(B74,'23-24 Adjusted Formula counts'!$A$2:$L$319,9,FALSE) -> 433 | I74: =ROUND((H74/$H$5*Assumptions!$D$14*Assumptions!$D$31),0) -> 84364 | K74: 103006 | N74: 103006 | O74: 0 | P74: 103006 | R74: 0 | S74: 103006 | U74: =IFERROR(VLOOKUP($A74,#REF!, 21,FALSE),0) -> 0 | W74: 103006 | X74: 0 | Y74: 80 | Z74: 0 | AB74: 5302460 | AC74: ELLENSBURG
A75: =VLOOKUP(B75,CCDDD!$A$3:$B$319,2,FALSE) -> 14068 | B75: 5302490 | C75: ELMA | D75: 0 | E75: 0 | F75: =VLOOKUP(B75,'23-24 Adjusted Formula counts'!$A$2:$L$319,8,FALSE) -> 1609 | G75: =ROUND((F75/$F$5*Assumptions!$D$14*Assumptions!$D$30),0) -> 8634 | H75: =VLOOKUP(B75,'23-24 Adjusted Formula counts'!$A$2:$L$319,9,FALSE) -> 284 | I75: =ROUND((H75/$H$5*Assumptions!$D$14*Assumptions!$D$31),0) -> 55334 | K75: 63968 | N75: 63968 | O75: 0 | P75: 63968 | R75: 0 | S75: 63968 | U75: =IFERROR(VLOOKUP($A75,#REF!, 21,FALSE),0) -> 0 | W75: 63968 | X75: 0 | Y75: 108 | Z75: 0 | AB75: 5302490 | AC75: ELMA
A76: =VLOOKUP(B76,CCDDD!$A$3:$B$319,2,FALSE) -> 38308 | B76: 5302520 | C76: ENDICOTT | D76: 0 | E76: 0 | F76: =VLOOKUP(B76,'23-24 Adjusted Formula counts'!$A$2:$L$319,8,FALSE) -> 87 | G76: =ROUND((F76/$F$5*Assumptions!$D$14*Assumptions!$D$30),0) -> 467 | H76: =VLOOKUP(B76,'23-24 Adjusted Formula counts'!$A$2:$L$319,9,FALSE) -> 18 | I76: =ROUND((H76/$H$5*Assumptions!$D$14*Assumptions!$D$31),0) -> 3507 | K76: 3974 | N76: 3974 | O76: 0 | P76: 3974 | R76: 0 | S76: 3974 | U76: =IFERROR(VLOOKUP($A76,#REF!, 21,FALSE),0) -> 0 | W76: 3974 | X76: 0 | Y76: 275 | Z76: 0 | AB76: 5302520 | AC76: ENDICOTT
A77: =VLOOKUP(B77,CCDDD!$A$3:$B$319,2,FALSE) -> 04127 | B77: 5302550 | C77: ENTIAT | D77: 0 | E77: 0 | F77: =VLOOKUP(B77,'23-24 Adjusted Formula counts'!$A$2:$L$319,8,FALSE) -> 416 | G77: =ROUND((F77/$F$5*Assumptions!$D$14*Assumptions!$D$30),0) -> 2232 | H77: =VLOOKUP(B77,'23-24 Adjusted Formula counts'!$A$2:$L$319,9,FALSE) -> 61 | I77: =ROUND((H77/$H$5*Assumptions!$D$14*Assumptions!$D$31),0) -> 11885 | K77: 14117 | N77: 14117 | O77: 0 | P77: 14117 | R77: 0 | S77: 14117 | U77: =IFERROR(VLOOKUP($A77,#REF!, 21,FALSE),0) -> 0 | W77: 14117 | X77: 0 | Y77: 210 | Z77: 0 | AB77: 5302550 | AC77: ENTIAT
A78: =VLOOKUP(B78,CCDDD!$A$3:$B$319,2,FALSE) -> 17216 | B78: 5300001 | C78: ENUMCLAW | D78: 0 | E78: 0 | F78: =VLOOKUP(B78,'23-24 Adjusted Formula counts'!$A$2:$L$319,8,FALSE) -> 4771 | G78: =ROUND((F78/$F$5*Assumptions!$D$14*Assumptions!$D$30),0) -> 25602 | H78: =VLOOKUP(B78,'23-24 Adjusted Formula counts'!$A$2:$L$319,9,FALSE) -> 339 | I78: =ROUND((H78/$H$5*Assumptions!$D$14*Assumptions!$D$31),0) -> 66050 | K78: 91652 | N78: 91652 | O78: 0 | P78: 91652 | R78: 0 | S78: 91652 | U78: =IFERROR(VLOOKUP($A78,#REF!, 21,FALSE),0) -> 0 | W78: 91652 | X78: 0 | Y78: 84 | Z78: 0 | AB78: 5300001 | AC78: ENUMCLAW
A79: =VLOOKUP(B79,CCDDD!$A$3:$B$319,2,FALSE) -> 13165 | B79: 5302610 | C79: EPHRATA | D79: 0 | E79: 0 | F79: =VLOOKUP(B79,'23-24 Adjusted Formula counts'!$A$2:$L$319,8,FALSE) -> 2954 | G79: =ROUND((F79/$F$5*Assumptions!$D$14*Assumptions!$D$30),0) -> 15852 | H79: =VLOOKUP(B79,'23-24 Adjusted Formula counts'!$A$2:$L$319,9,FALSE) -> 340 | I79: =ROUND((H79/$H$5*Assumptions!$D$14*Assumptions!$D$31),0) -> 66245 | K79: 82097 | N79: 82097 | O79: 0 | P79: 82097 | R79: 0 | S79: 82097 | U79: =IFERROR(VLOOKUP($A79,#REF!, 21,FALSE),0) -> 0 | W79: 82097 | X79: 0 | Y79: 92 | Z79: 0 | AB79: 5302610 | AC79: EPHRATA
A80: =VLOOKUP(B80,CCDDD!$A$3:$B$319,2,FALSE) -> 21036 | B80: 5302640 | C80: EVALINE | D80: 0 | E80: 0 | F80: =VLOOKUP(B80,'23-24 Adjusted Formula counts'!$A$2:$L$319,8,FALSE) -> 128 | G80: =ROUND((F80/$F$5*Assumptions!$D$14*Assumptions!$D$30),0) -> 687 | H80: =VLOOKUP(B80,'23-24 Adjusted Formula counts'!$A$2:$L$319,9,FALSE) -> 18 | I80: =ROUND((H80/$H$5*Assumptions!$D$14*Assumptions!$D$31),0) -> 3507 | K80: 4194 | N80: 4194 | O80: 0 | P80: 4194 | R80: 0 | S80: 4194 | U80: =IFERROR(VLOOKUP($A80,#REF!, 21,FALSE),0) -> 0 | W80: 4194 | X80: 0 | Y80: 273 | Z80: 0 | AB80: 5302640 | AC80: EVALINE
A81: =VLOOKUP(B81,CCDDD!$A$3:$B$319,2,FALSE) -> 31002 | B81: 5302670 | C81: EVERETT | D81: 0 | E81: 0 | F81: =VLOOKUP(B81,'23-24 Adjusted Formula counts'!$A$2:$L$319,8,FALSE) -> 23124 | G81: =ROUND((F81/$F$5*Assumptions!$D$14*Assumptions!$D$30),0) -> 124089 | H81: =VLOOKUP(B81,'23-24 Adjusted Formula counts'!$A$2:$L$319,9,FALSE) -> 1895 | I81: =ROUND((H81/$H$5*Assumptions!$D$14*Assumptions!$D$31),0) -> 369216 | K81: 493305 | N81: 493305 | O81: 0 | P81: 493305 | R81: 0 | S81: 493305 | U81: =IFERROR(VLOOKUP($A81,#REF!, 21,FALSE),0) -> 0 | W81: 493305 | X81: 0 | Y81: 17 | Z81: 0 | AB81: 5302670 | AC81: EVERETT
A82: =VLOOKUP(B82,CCDDD!$A$3:$B$319,2,FALSE) -> 06114 | B82: 5302700 | C82: EVERGREEN (CLARK) | D82: 0 | E82: 0 | F82: =VLOOKUP(B82,'23-24 Adjusted Formula counts'!$A$2:$L$319,8,FALSE) -> 27238 | G82: =ROUND((F82/$F$5*Assumptions!$D$14*Assumptions!$D$30),0) -> 146166 | H82: =VLOOKUP(B82,'23-24 Adjusted Formula counts'!$A$2:$L$319,9,FALSE) -> 2969 | I82: =ROUND((H82/$H$5*Assumptions!$D$14*Assumptions!$D$31),0) -> 578471 | K82: 724637 | N82: 724637 | O82: 0 | P82: 724637 | R82: 0 | S82: 724637 | U82: =IFERROR(VLOOKUP($A82,#REF!, 21,FALSE),0) -> 0 | W82: 724637 | X82: 0 | Y82: 9 | Z82: 0 | AB82: 5302700 | AC82: EVERGREEN (CLARK)
A83: =VLOOKUP(B83,CCDDD!$A$3:$B$319,2,FALSE) -> 33205 | B83: 5302730 | C83: EVERGREEN (STEV) | D83: 0 | E83: 0 | F83: =VLOOKUP(B83,'23-24 Adjusted Formula counts'!$A$2:$L$319,8,FALSE) -> 57 | G83: =ROUND((F83/$F$5*Assumptions!$D$14*Assumptions!$D$30),0) -> 306 | H83: =VLOOKUP(B83,'23-24 Adjusted Formula counts'!$A$2:$L$319,9,FALSE) -> 18 | I83: =ROUND((H83/$H$5*Assumptions!$D$14*Assumptions!$D$31),0) -> 3507 | K83: 3813 | N83: 3813 | O83: 0 | P83: 3813 | R83: 0 | S83: 3813 | U83: =IFERROR(VLOOKUP($A83,#REF!, 21,FALSE),0) -> 0 | W83: 3813 | X83: 0 | Y83: 277 | Z83: 0 | AB83: 5302730 | AC83: EVERGREEN (STEV)
A84: =VLOOKUP(B84,CCDDD!$A$3:$B$319,2,FALSE) -> 17210 | B84: 5302820 | C84: FEDERAL WAY | D84: 0 | E84: 0 | F84: =VLOOKUP(B84,'23-24 Adjusted Formula counts'!$A$2:$L$319,8,FALSE) -> 24624 | G84: =ROUND((F84/$F$5*Assumptions!$D$14*Assumptions!$D$30),0) -> 132138 | H84: =VLOOKUP(B84,'23-24 Adjusted Formula counts'!$A$2:$L$319,9,FALSE) -> 4027 | I84: =ROUND((H84/$H$5*Assumptions!$D$14*Assumptions!$D$31),0) -> 784609 | K84: 916747 | N84: 916747 | O84: 0 | P84: 916747 | R84: 0 | S84: 916747 | U84: =IFERROR(VLOOKUP($A84,#REF!, 21,FALSE),0) -> 0 | W84: 916747 | X84: 0 | Y84: 5 | Z84: 0 | AB84: 5302820 | AC84: FEDERAL WAY
A85: =VLOOKUP(B85,CCDDD!$A$3:$B$319,2,FALSE) -> 37502 | B85: 5302850 | C85: FERNDALE | D85: 0 | E85: 0 | F85: =VLOOKUP(B85,'23-24 Adjusted Formula counts'!$A$2:$L$319,8,FALSE) -> 6288 | G85: =ROUND((F85/$F$5*Assumptions!$D$14*Assumptions!$D$30),0) -> 33743 | H85: =VLOOKUP(B85,'23-24 Adjusted Formula counts'!$A$2:$L$319,9,FALSE) -> 1010 | I85: =ROUND((H85/$H$5*Assumptions!$D$14*Assumptions!$D$31),0) -> 196785 | K85: 230528 | N85: 230528 | O85: 0 | P85: 230528 | R85: 0 | S85: 230528 | U85: =IFERROR(VLOOKUP($A85,#REF!, 21,FALSE),0) -> 0 | W85: 230528 | X85: 0 | Y85: 39 | Z85: 0 | AB85: 5302850 | AC85: FERNDALE
A86: =VLOOKUP(B86,CCDDD!$A$3:$B$319,2,FALSE) -> 27417 | B86: 5302880 | C86: FIFE | D86: 0 | E86: 0 | F86: =VLOOKUP(B86,'23-24 Adjusted Formula counts'!$A$2:$L$319,8,FALSE) -> 4139 | G86: =ROUND((F86/$F$5*Assumptions!$D$14*Assumptions!$D$30),0) -> 22211 | H86: =VLOOKUP(B86,'23-24 Adjusted Formula counts'!$A$2:$L$319,9,FALSE) -> 404 | I86: =ROUND((H86/$H$5*Assumptions!$D$14*Assumptions!$D$31),0) -> 78714 | K86: 100925 | N86: 100925 | O86: 0 | P86: 100925 | R86: 0 | S86: 100925 | U86: =IFERROR(VLOOKUP($A86,#REF!, 21,FALSE),0) -> 0 | W86: 100925 | X86: 0 | Y86: 81 | Z86: 0 | AB86: 5302880 | AC86: FIFE
A87: =VLOOKUP(B87,CCDDD!$A$3:$B$319,2,FALSE) -> 03053 | B87: 5302910 | C87: FINLEY | D87: 0 | E87: 0 | F87: =VLOOKUP(B87,'23-24 Adjusted Formula counts'!$A$2:$L$319,8,FALSE) -> 907 | G87: =ROUND((F87/$F$5*Assumptions!$D$14*Assumptions!$D$30),0) -> 4867 | H87: =VLOOKUP(B87,'23-24 Adjusted Formula counts'!$A$2:$L$319,9,FALSE) -> 135 | I87: =ROUND((H87/$H$5*Assumptions!$D$14*Assumptions!$D$31),0) -> 26303 | K87: 31170 | N87: 31170 | O87: 0 | P87: 31170 | R87: 0 | S87: 31170 | U87: =IFERROR(VLOOKUP($A87,#REF!, 21,FALSE),0) -> 0 | W87: 31170 | X87: 0 | Y87: 161 | Z87: 0 | AB87: 5302910 | AC87: FINLEY
A88: =VLOOKUP(B88,CCDDD!$A$3:$B$319,2,FALSE) -> 27402 | B88: 5302940 | C88: FRANKLIN PIERCE | D88: 0 | E88: 0 | F88: =VLOOKUP(B88,'23-24 Adjusted Formula counts'!$A$2:$L$319,8,FALSE) -> 9422 | G88: =ROUND((F88/$F$5*Assumptions!$D$14*Assumptions!$D$30),0) -> 50561 | H88: =VLOOKUP(B88,'23-24 Adjusted Formula counts'!$A$2:$L$319,9,FALSE) -> 1236 | I88: =ROUND((H88/$H$5*Assumptions!$D$14*Assumptions!$D$31),0) -> 240819 | K88: 291380 | N88: 291380 | O88: 0 | P88: 291380 | R88: 0 | S88: 291380 | U88: =IFERROR(VLOOKUP($A88,#REF!, 21,FALSE),0) -> 0 | W88: 291380 | X88: 0 | Y88: 31 | Z88: 0 | AB88: 5302940 | AC88: FRANKLIN PIERCE
A89: =VLOOKUP(B89,CCDDD!$A$3:$B$319,2,FALSE) -> 32358 | B89: 5302970 | C89: FREEMAN | D89: 0 | E89: 0 | F89: =VLOOKUP(B89,'23-24 Adjusted Formula counts'!$A$2:$L$319,8,FALSE) -> 1009 | G89: =ROUND((F89/$F$5*Assumptions!$D$14*Assumptions!$D$30),0) -> 5415 | H89: =VLOOKUP(B89,'23-24 Adjusted Formula counts'!$A$2:$L$319,9,FALSE) -> 57 | I89: =ROUND((H89/$H$5*Assumptions!$D$14*Assumptions!$D$31),0) -> 11106 | K89: 16521 | N89: 16521 | O89: 0 | P89: 16521 | R89: 0 | S89: 16521 | U89: =IFERROR(VLOOKUP($A89,#REF!, 21,FALSE),0) -> 0 | W89: 16521 | X89: 0 | Y89: 197 | Z89: 0 | AB89: 5302970 | AC89: FREEMAN
A90: =VLOOKUP(B90,CCDDD!$A$3:$B$319,2,FALSE) -> 38302 | B90: 5303000 | C90: GARFIELD | D90: 0 | E90: 0 | F90: =VLOOKUP(B90,'23-24 Adjusted Formula counts'!$A$2:$L$319,8,FALSE) -> 128 | G90: =ROUND((F90/$F$5*Assumptions!$D$14*Assumptions!$D$30),0) -> 687 | H90: =VLOOKUP(B90,'23-24 Adjusted Formula counts'!$A$2:$L$319,9,FALSE) -> 23 | I90: =ROUND((H90/$H$5*Assumptions!$D$14*Assumptions!$D$31),0) -> 4481 | K90: 5168 | N90: 5168 | O90: 0 | P90: 5168 | R90: 0 | S90: 5168 | U90: =IFERROR(VLOOKUP($A90,#REF!, 21,FALSE),0) -> 0 | W90: 5168 | X90: 0 | Y90: 263 | Z90: 0 | AB90: 5303000 | AC90: GARFIELD
A91: =VLOOKUP(B91,CCDDD!$A$3:$B$319,2,FALSE) -> 20401 | B91: 5303030 | C91: GLENWOOD | D91: 0 | E91: 0 | F91: =VLOOKUP(B91,'23-24 Adjusted Formula counts'!$A$2:$L$319,8,FALSE) -> 62 | G91: =ROUND((F91/$F$5*Assumptions!$D$14*Assumptions!$D$30),0) -> 333 | H91: =VLOOKUP(B91,'23-24 Adjusted Formula counts'!$A$2:$L$319,9,FALSE) -> 16 | I91: =ROUND((H91/$H$5*Assumptions!$D$14*Assumptions!$D$31),0) -> 3117 | K91: 3450 | N91: 3450 | O91: 0 | P91: 3450 | R91: 0 | S91: 3450 | U91: =IFERROR(VLOOKUP($A91,#REF!, 21,FALSE),0) -> 0 | W91: 3450 | X91: 0 | Y91: 278 | Z91: 0 | AB91: 5303030 | AC91: GLENWOOD
A92: =VLOOKUP(B92,CCDDD!$A$3:$B$319,2,FALSE) -> 20404 | B92: 5303090 | C92: GOLDENDALE | D92: 0 | E92: 0 | F92: =VLOOKUP(B92,'23-24 Adjusted Formula counts'!$A$2:$L$319,8,FALSE) -> 1077 | G92: =ROUND((F92/$F$5*Assumptions!$D$14*Assumptions!$D$30),0) -> 5779 | H92: =VLOOKUP(B92,'23-24 Adjusted Formula counts'!$A$2:$L$319,9,FALSE) -> 241 | I92: =ROUND((H92/$H$5*Assumptions!$D$14*Assumptions!$D$31),0) -> 46956 | K92: 52735 | N92: 52735 | O92: 0 | P92: 52735 | R92: 0 | S92: 52735 | U92: =IFERROR(VLOOKUP($A92,#REF!, 21,FALSE),0) -> 0 | W92: 52735 | X92: 0 | Y92: 125 | Z92: 0 | AB92: 5303090 | AC92: GOLDENDALE
A93: =VLOOKUP(B93,CCDDD!$A$3:$B$319,2,FALSE) -> 13301 | B93: 5303130 | C93: GRAND COULEE | D93: 0 | E93: 0 | F93: =VLOOKUP(B93,'23-24 Adjusted Formula counts'!$A$2:$L$319,8,FALSE) -> 686 | G93: =ROUND((F93/$F$5*Assumptions!$D$14*Assumptions!$D$30),0) -> 3681 | H93: =VLOOKUP(B93,'23-24 Adjusted Formula counts'!$A$2:$L$319,9,FALSE) -> 88 | I93: =ROUND((H93/$H$5*Assumptions!$D$14*Assumptions!$D$31),0) -> 17146 | K93: 20827 | N93: 20827 | O93: 0 | P93: 20827 | R93: 0 | S93: 20827 | U93: =IFERROR(VLOOKUP($A93,#REF!, 21,FALSE),0) -> 0 | W93: 20827 | X93: 0 | Y93: 185 | Z93: 0 | AB93: 5303130 | AC93: GRAND COULEE
A94: =VLOOKUP(B94,CCDDD!$A$3:$B$319,2,FALSE) -> 39200 | B94: 5303150 | C94: GRANDVIEW | D94: 0 | E94: 0 | F94: =VLOOKUP(B94,'23-24 Adjusted Formula counts'!$A$2:$L$319,8,FALSE) -> 3793 | G94: =ROUND((F94/$F$5*Assumptions!$D$14*Assumptions!$D$30),0) -> 20354 | H94: =VLOOKUP(B94,'23-24 Adjusted Formula counts'!$A$2:$L$319,9,FALSE) -> 621 | I94: =ROUND((H94/$H$5*Assumptions!$D$14*Assumptions!$D$31),0) -> 120994 | K94: 141348 | N94: 141348 | O94: 0 | P94: 141348 | R94: 0 | S94: 141348 | U94: =IFERROR(VLOOKUP($A94,#REF!, 21,FALSE),0) -> 0 | W94: 141348 | X94: 0 | Y94: 64 | Z94: 0 | AB94: 5303150 | AC94: GRANDVIEW
A95: =VLOOKUP(B95,CCDDD!$A$3:$B$319,2,FALSE) -> 39204 | B95: 5303180 | C95: GRANGER | D95: 0 | E95: 0 | F95: =VLOOKUP(B95,'23-24 Adjusted Formula counts'!$A$2:$L$319,8,FALSE) -> 1614 | G95: =ROUND((F95/$F$5*Assumptions!$D$14*Assumptions!$D$30),0) -> 8661 | H95: =VLOOKUP(B95,'23-24 Adjusted Formula counts'!$A$2:$L$319,9,FALSE) -> 353 | I95: =ROUND((H95/$H$5*Assumptions!$D$14*Assumptions!$D$31),0) -> 68777 | K95: 77438 | N95: 77438 | O95: 0 | P95: 77438 | R95: 0 | S95: 77438 | U95: =IFERROR(VLOOKUP($A95,#REF!, 21,FALSE),0) -> 0 | W95: 77438 | X95: 0 | Y95: 99 | Z95: 0 | AB95: 5303180 | AC95: GRANGER
A96: =VLOOKUP(B96,CCDDD!$A$3:$B$319,2,FALSE) -> 31332 | B96: 5303210 | C96: GRANITE FALLS | D96: 0 | E96: 0 | F96: =VLOOKUP(B96,'23-24 Adjusted Formula counts'!$A$2:$L$319,8,FALSE) -> 2837 | G96: =ROUND((F96/$F$5*Assumptions!$D$14*Assumptions!$D$30),0) -> 15224 | H96: =VLOOKUP(B96,'23-24 Adjusted Formula counts'!$A$2:$L$319,9,FALSE) -> 209 | I96: =ROUND((H96/$H$5*Assumptions!$D$14*Assumptions!$D$31),0) -> 40721 | K96: 55945 | N96: 55945 | O96: 0 | P96: 55945 | R96: 0 | S96: 55945 | U96: =IFERROR(VLOOKUP($A96,#REF!, 21,FALSE),0) -> 0 | W96: 55945 | X96: 0 | Y96: 120 | Z96: 0 | AB96: 5303210 | AC96: GRANITE FALLS
A97: =VLOOKUP(B97,CCDDD!$A$3:$B$319,2,FALSE) -> 23054 | B97: 5303240 | C97: GRAPEVIEW | D97: 0 | E97: 0 | F97: =VLOOKUP(B97,'23-24 Adjusted Formula counts'!$A$2:$L$319,8,FALSE) -> 341 | G97: =ROUND((F97/$F$5*Assumptions!$D$14*Assumptions!$D$30),0) -> 1830 | H97: =VLOOKUP(B97,'23-24 Adjusted Formula counts'!$A$2:$L$319,9,FALSE) -> 46 | I97: =ROUND((H97/$H$5*Assumptions!$D$14*Assumptions!$D$31),0) -> 8963 | K97: 10793 | N97: 10793 | O97: 0 | P97: 10793 | R97: 0 | S97: 10793 | U97: =IFERROR(VLOOKUP($A97,#REF!, 21,FALSE),0) -> 0 | W97: 10793 | X97: 0 | Y97: 230 | Z97: 0 | AB97: 5303240 | AC97: GRAPEVIEW
A98: =VLOOKUP(B98,CCDDD!$A$3:$B$319,2,FALSE) -> 32312 | B98: 5303270 | C98: GREAT NORTHERN | D98: 0 | E98: 0 | F98: =VLOOKUP(B98,'23-24 Adjusted Formula counts'!$A$2:$L$319,8,FALSE) -> 189 | G98: =ROUND((F98/$F$5*Assumptions!$D$14*Assumptions!$D$30),0) -> 1014 | H98: =VLOOKUP(B98,'23-24 Adjusted Formula counts'!$A$2:$L$319,9,FALSE) -> 44 | I98: =ROUND((H98/$H$5*Assumptions!$D$14*Assumptions!$D$31),0) -> 8573 | K98: 9587 | N98: 9587 | O98: 0 | P98: 9587 | R98: 0 | S98: 9587 | U98: =IFERROR(VLOOKUP($A98,#REF!, 21,FALSE),0) -> 0 | W98: 9587 | X98: 0 | Y98: 234 | Z98: 0 | AB98: 5303270 | AC98: GREAT NORTHERN
A99: =VLOOKUP(B99,CCDDD!$A$3:$B$319,2,FALSE) -> 17910 | B99: 5303280 | C99: RAINIER VALLEY CHARTER | D99: 0 | E99: 0 | F99: =VLOOKUP(B99,'23-24 Adjusted Formula counts'!$A$2:$L$319,8,FALSE) -> 200.3237432 | G99: =ROUND((F99/$F$5*Assumptions!$D$14*Assumptions!$D$30),0) -> 1075 | H99: =VLOOKUP(B99,'23-24 Adjusted Formula counts'!$A$2:$L$319,9,FALSE) -> 50.21377223 | I99: =ROUND((H99/$H$5*Assumptions!$D$14*Assumptions!$D$31),0) -> 9784 | K99: 10859 | N99: 10859 | O99: 0 | P99: 10859 | R99: 0 | S99: 10859 | U99: =IFERROR(VLOOKUP($A99,#REF!, 21,FALSE),0) -> 0 | W99: 10859 | X99: 0 | Y99: 229 | Z99: 0 | AB99: 5303280 | AC99: RAINIER VALLEY CHARTER
A100: =VLOOKUP(B100,CCDDD!$A$3:$B$319,2,FALSE) -> 06103 | B100: 5303300 | C100: GREEN MOUNTAIN | D100: 0 | E100: 0 | F100: =VLOOKUP(B100,'23-24 Adjusted Formula counts'!$A$2:$L$319,8,FALSE) -> 209 | G100: =ROUND((F100/$F$5*Assumptions!$D$14*Assumptions!$D$30),0) -> 1122 | H100: =VLOOKUP(B100,'23-24 Adjusted Formula counts'!$A$2:$L$319,9,FALSE) -> 18 | I100: =ROUND((H100/$H$5*Assumptions!$D$14*Assumptions!$D$31),0) -> 3507 | K100: 4629 | N100: 4629 | O100: 0 | P100: 4629 | R100: 0 | S100: 4629 | U100: =IFERROR(VLOOKUP($A100,#REF!, 21,FALSE),0) -> 0 | W100: 4629 | X100: 0 | Y100: 269 | Z100: 0 | AB100: 5303300 | AC100: GREEN MOUNTAIN
A101: =VLOOKUP(B101,CCDDD!$A$3:$B$319,2,FALSE) -> 34324 | B101: 5303330 | C101: GRIFFIN | D101: 0 | E101: 0 | F101: =VLOOKUP(B101,'23-24 Adjusted Formula counts'!$A$2:$L$319,8,FALSE) -> 913 | G101: =ROUND((F101/$F$5*Assumptions!$D$14*Assumptions!$D$30),0) -> 4899 | H101: =VLOOKUP(B101,'23-24 Adjusted Formula counts'!$A$2:$L$319,9,FALSE) -> 66 | I101: =ROUND((H101/$H$5*Assumptions!$D$14*Assumptions!$D$31),0) -> 12859 | K101: 17758 | N101: 17758 | O101: 0 | P101: 17758 | R101: 0 | S101: 17758 | U101: =IFERROR(VLOOKUP($A101,#REF!, 21,FALSE),0) -> 0 | W101: 17758 | X101: 0 | Y101: 193 | Z101: 0 | AB101: 5303330 | AC101: GRIFFIN
A102: =VLOOKUP(B102,CCDDD!$A$3:$B$319,2,FALSE) -> 22204 | B102: 5303360 | C102: HARRINGTON | D102: 0 | E102: 0 | F102: =VLOOKUP(B102,'23-24 Adjusted Formula counts'!$A$2:$L$319,8,FALSE) -> 141 | G102: =ROUND((F102/$F$5*Assumptions!$D$14*Assumptions!$D$30),0) -> 757 | H102: =VLOOKUP(B102,'23-24 Adjusted Formula counts'!$A$2:$L$319,9,FALSE) -> 18 | I102: =ROUND((H102/$H$5*Assumptions!$D$14*Assumptions!$D$31),0) -> 3507 | K102: 4264 | N102: 4264 | O102: 0 | P102: 4264 | R102: 0 | S102: 4264 | U102: =IFERROR(VLOOKUP($A102,#REF!, 21,FALSE),0) -> 0 | W102: 4264 | X102: 0 | Y102: 272 | Z102: 0 | AB102: 5303360 | AC102: HARRINGTON
A103: =VLOOKUP(B103,CCDDD!$A$3:$B$319,2,FALSE) -> 39203 | B103: 5303510 | C103: HIGHLAND | D103: 0 | E103: 0 | F103: =VLOOKUP(B103,'23-24 Adjusted Formula counts'!$A$2:$L$319,8,FALSE) -> 1293 | G103: =ROUND((F103/$F$5*Assumptions!$D$14*Assumptions!$D$30),0) -> 6939 | H103: =VLOOKUP(B103,'23-24 Adjusted Formula counts'!$A$2:$L$319,9,FALSE) -> 225 | I103: =ROUND((H103/$H$5*Assumptions!$D$14*Assumptions!$D$31),0) -> 43838 | K103: 50777 | N103: 50777 | O103: 0 | P103: 50777 | R103: 0 | S103: 50777 | U103: =IFERROR(VLOOKUP($A103,#REF!, 21,FALSE),0) -> 0 | W103: 50777 | X103: 0 | Y103: 127 | Z103: 0 | AB103: 5303510 | AC103: HIGHLAND
A104: =VLOOKUP(B104,CCDDD!$A$3:$B$319,2,FALSE) -> 17401 | B104: 5303540 | C104: HIGHLINE | D104: 0 | E104: 0 | F104: =VLOOKUP(B104,'23-24 Adjusted Formula counts'!$A$2:$L$319,8,FALSE) -> 19915.90124 | G104: =ROUND((F104/$F$5*Assumptions!$D$14*Assumptions!$D$30),0) -> 106874 | H104: =VLOOKUP(B104,'23-24 Adjusted Formula counts'!$A$2:$L$319,9,FALSE) -> 3358.908737 | I104: =ROUND((H104/$H$5*Assumptions!$D$14*Assumptions!$D$31),0) -> 654440 | K104: 761314 | N104: 761314 | O104: 0 | P104: 761314 | R104: 0 | S104: 761314 | U104: =IFERROR(VLOOKUP($A104,#REF!, 21,FALSE),0) -> 0 | W104: 761314 | X104: 0 | Y104: 7 | Z104: 0 | AB104: 5303540 | AC104: HIGHLINE
A105: =VLOOKUP(B105,CCDDD!$A$3:$B$319,2,FALSE) -> 06098 | B105: 5303570 | C105: HOCKINSON | D105: 0 | E105: 0 | F105: =VLOOKUP(B105,'23-24 Adjusted Formula counts'!$A$2:$L$319,8,FALSE) -> 2219 | G105: =ROUND((F105/$F$5*Assumptions!$D$14*Assumptions!$D$30),0) -> 11908 | H105: =VLOOKUP(B105,'23-24 Adjusted Formula counts'!$A$2:$L$319,9,FALSE) -> 143 | I105: =ROUND((H105/$H$5*Assumptions!$D$14*Assumptions!$D$31),0) -> 27862 | K105: 39770 | N105: 39770 | O105: 0 | P105: 39770 | R105: 0 | S105: 39770 | U105: =IFERROR(VLOOKUP($A105,#REF!, 21,FALSE),0) -> 0 | W105: 39770 | X105: 0 | Y105: 144 | Z105: 0 | AB105: 5303570 | AC105: HOCKINSON
A106: =VLOOKUP(B106,CCDDD!$A$3:$B$319,2,FALSE) -> 23404 | B106: 5303600 | C106: HOOD CANAL | D106: 0 | E106: 0 | F106: =VLOOKUP(B106,'23-24 Adjusted Formula counts'!$A$2:$L$319,8,FALSE) -> 700 | G106: =ROUND((F106/$F$5*Assumptions!$D$14*Assumptions!$D$30),0) -> 3756 | H106: =VLOOKUP(B106,'23-24 Adjusted Formula counts'!$A$2:$L$319,9,FALSE) -> 137 | I106: =ROUND((H106/$H$5*Assumptions!$D$14*Assumptions!$D$31),0) -> 26693 | K106: 30449 | N106: 30449 | O106: 0 | P106: 30449 | R106: 0 | S106: 30449 | U106: =IFERROR(VLOOKUP($A106,#REF!, 21,FALSE),0) -> 0 | W106: 30449 | X106: 0 | Y106: 164 | Z106: 0 | AB106: 5303600 | AC106: HOOD CANAL
A107: =VLOOKUP(B107,CCDDD!$A$3:$B$319,2,FALSE) -> 14028 | B107: 5303660 | C107: HOQUIAM | D107: 0 | E107: 0 | F107: =VLOOKUP(B107,'23-24 Adjusted Formula counts'!$A$2:$L$319,8,FALSE) -> 1840 | G107: =ROUND((F107/$F$5*Assumptions!$D$14*Assumptions!$D$30),0) -> 9874 | H107: =VLOOKUP(B107,'23-24 Adjusted Formula counts'!$A$2:$L$319,9,FALSE) -> 403 | I107: =ROUND((H107/$H$5*Assumptions!$D$14*Assumptions!$D$31),0) -> 78519 | K107: 88393 | N107: 88393 | O107: 0 | P107: 88393 | R107: 0 | S107: 88393 | U107: =IFERROR(VLOOKUP($A107,#REF!, 21,FALSE),0) -> 0 | W107: 88393 | X107: 0 | Y107: 88 | Z107: 0 | AB107: 5303660 | AC107: HOQUIAM
A108: =VLOOKUP(B108,CCDDD!$A$3:$B$319,2,FALSE) -> 27902 | B108: 5303705 | C108: IMPACT COMMENCEMENT BAY CHARTER | D108: 0 | E108: 0 | F108: =VLOOKUP(B108,'23-24 Adjusted Formula counts'!$A$2:$L$319,8,FALSE) -> 401.1309524 | G108: =ROUND((F108/$F$5*Assumptions!$D$14*Assumptions!$D$30),0) -> 2153 | H108: =VLOOKUP(B108,'23-24 Adjusted Formula counts'!$A$2:$L$319,9,FALSE) -> 54.70697615 | I108: =ROUND((H108/$H$5*Assumptions!$D$14*Assumptions!$D$31),0) -> 10659 | K108: 12812 | N108: 12812 | O108: 0 | P108: 12812 | R108: 0 | S108: 12812 | U108: =IFERROR(VLOOKUP($A108,#REF!, 21,FALSE),0) -> 0 | W108: 12812 | X108: 0 | Y108: 217 | Z108: 0 | AB108: 5303705 | AC108: IMPACT COMMENCEMENT BAY CHARTER
A109: =VLOOKUP(B109,CCDDD!$A$3:$B$319,2,FALSE) -> 17911 | B109: 5303700 | C109: IMPACT PUGET SOUND CHARTER | D109: 0 | E109: 0 | F109: =VLOOKUP(B109,'23-24 Adjusted Formula counts'!$A$2:$L$319,8,FALSE) -> 511.0675259 | G109: =ROUND((F109/$F$5*Assumptions!$D$14*Assumptions!$D$30),0) -> 2743 | H109: =VLOOKUP(B109,'23-24 Adjusted Formula counts'!$A$2:$L$319,9,FALSE) -> 102.70357 | I109: =ROUND((H109/$H$5*Assumptions!$D$14*Assumptions!$D$31),0) -> 20010 | K109: 22753 | N109: 22753 | O109: 0 | P109: 22753 | R109: 0 | S109: 22753 | U109: =IFERROR(VLOOKUP($A109,#REF!, 21,FALSE),0) -> 0 | W109: 22753 | X109: 0 | Y109: 181 | Z109: 0 | AB109: 5303700 | AC109: IMPACT PUGET SOUND CHARTER
A110: =VLOOKUP(B110,CCDDD!$A$3:$B$319,2,FALSE) -> 17916 | B110: 5303710 | C110: IMPACT SALISH SEA CHARTER | D110: 0 | E110: 0 | F110: =VLOOKUP(B110,'23-24 Adjusted Formula counts'!$A$2:$L$319,8,FALSE) -> 298.9745027 | G110: =ROUND((F110/$F$5*Assumptions!$D$14*Assumptions!$D$30),0) -> 1604 | H110: =VLOOKUP(B110,'23-24 Adjusted Formula counts'!$A$2:$L$319,9,FALSE) -> 56.07059767 | I110: =ROUND((H110/$H$5*Assumptions!$D$14*Assumptions!$D$31),0) -> 10925 | K110: 12529 | N110: 12529 | O110: 0 | P110: 12529 | R110: 0 | S110: 12529 | U110: =IFERROR(VLOOKUP($A110,#REF!, 21,FALSE),0) -> 0 | W110: 12529 | X110: 0 | Y110: 219 | Z110: 0 | AB110: 5303710 | AC110: IMPACT SALISH SEA CHARTER
A111: =VLOOKUP(B111,CCDDD!$A$3:$B$319,2,FALSE) -> 10070 | B111: 5300002 | C111: INCHELIUM | D111: 0 | E111: 0 | F111: =VLOOKUP(B111,'23-24 Adjusted Formula counts'!$A$2:$L$319,8,FALSE) -> 182 | G111: =ROUND((F111/$F$5*Assumptions!$D$14*Assumptions!$D$30),0) -> 977 | H111: =VLOOKUP(B111,'23-24 Adjusted Formula counts'!$A$2:$L$319,9,FALSE) -> 44 | I111: =ROUND((H111/$H$5*Assumptions!$D$14*Assumptions!$D$31),0) -> 8573 | K111: 9550 | N111: 9550 | O111: 0 | P111: 9550 | R111: 0 | S111: 9550 | U111: =IFERROR(VLOOKUP($A111,#REF!, 21,FALSE),0) -> 0 | W111: 9550 | X111: 0 | Y111: 236 | Z111: 0 | AB111: 5300002 | AC111: INCHELIUM
A112: =VLOOKUP(B112,CCDDD!$A$3:$B$319,2,FALSE) -> 31063 | B112: 5303720 | C112: INDEX | D112: 0 | E112: 0 | F112: =VLOOKUP(B112,'23-24 Adjusted Formula counts'!$A$2:$L$319,8,FALSE) -> 55 | G112: =ROUND((F112/$F$5*Assumptions!$D$14*Assumptions!$D$30),0) -> 295 | H112: =VLOOKUP(B112,'23-24 Adjusted Formula counts'!$A$2:$L$319,9,FALSE) -> 9 | I112: =ROUND((H112/$H$5*Assumptions!$D$14*Assumptions!$D$31),0) -> 1754 | K112: 2049 | N112: 2049 | O112: 0 | P112: 2049 | R112: 0 | S112: 2049 | U112: =IFERROR(VLOOKUP($A112,#REF!, 21,FALSE),0) -> 0 | W112: 2049 | X112: 0 | Y112: 301 | Z112: 0 | AB112: 5303720 | AC112: INDEX
A113: =VLOOKUP(B113,CCDDD!$A$3:$B$319,2,FALSE) -> 17411 | B113: 5303750 | C113: ISSAQUAH | D113: 0 | E113: 0 | F113: =VLOOKUP(B113,'23-24 Adjusted Formula counts'!$A$2:$L$319,8,FALSE) -> 23245 | G113: =ROUND((F113/$F$5*Assumptions!$D$14*Assumptions!$D$30),0) -> 124738 | H113: =VLOOKUP(B113,'23-24 Adjusted Formula counts'!$A$2:$L$319,9,FALSE) -> 936 | I113: =ROUND((H113/$H$5*Assumptions!$D$14*Assumptions!$D$31),0) -> 182367 | K113: 307105 | N113: 307105 | O113: 0 | P113: 307105 | R113: 0 | S113: 307105 | U113: =IFERROR(VLOOKUP($A113,#REF!, 21,FALSE),0) -> 0 | W113: 307105 | X113: 0 | Y113: 28 | Z113: 0 | AB113: 5303750 | AC113: ISSAQUAH
A114: =VLOOKUP(B114,CCDDD!$A$3:$B$319,2,FALSE) -> 11056 | B114: 5303780 | C114: KAHLOTUS | D114: 0 | E114: 0 | F114: =VLOOKUP(B114,'23-24 Adjusted Formula counts'!$A$2:$L$319,8,FALSE) -> 61 | G114: =ROUND((F114/$F$5*Assumptions!$D$14*Assumptions!$D$30),0) -> 327 | H114: =VLOOKUP(B114,'23-24 Adjusted Formula counts'!$A$2:$L$319,9,FALSE) -> 14 | I114: =ROUND((H114/$H$5*Assumptions!$D$14*Assumptions!$D$31),0) -> 2728 | K114: 3055 | N114: 3055 | O114: 0 | P114: 3055 | R114: 0 | S114: 3055 | U114: =IFERROR(VLOOKUP($A114,#REF!, 21,FALSE),0) -> 0 | W114: 3055 | X114: 0 | Y114: 285 | Z114: 0 | AB114: 5303780 | AC114: KAHLOTUS
A115: =VLOOKUP(B115,CCDDD!$A$3:$B$319,2,FALSE) -> 08402 | B115: 5303810 | C115: KALAMA | D115: 0 | E115: 0 | F115: =VLOOKUP(B115,'23-24 Adjusted Formula counts'!$A$2:$L$319,8,FALSE) -> 1360 | G115: =ROUND((F115/$F$5*Assumptions!$D$14*Assumptions!$D$30),0) -> 7298 | H115: =VLOOKUP(B115,'23-24 Adjusted Formula counts'!$A$2:$L$319,9,FALSE) -> 122 | I115: =ROUND((H115/$H$5*Assumptions!$D$14*Assumptions!$D$31),0) -> 23770 | K115: 31068 | N115: 31068 | O115: 0 | P115: 31068 | R115: 0 | S115: 31068 | U115: =IFERROR(VLOOKUP($A115,#REF!, 21,FALSE),0) -> 0 | W115: 31068 | X115: 0 | Y115: 162 | Z115: 0 | AB115: 5303810 | AC115: KALAMA
A116: =VLOOKUP(B116,CCDDD!$A$3:$B$319,2,FALSE) -> 10003 | B116: 5303870 | C116: KELLER | D116: 0 | E116: 0 | F116: =VLOOKUP(B116,'23-24 Adjusted Formula counts'!$A$2:$L$319,8,FALSE) -> 100 | G116: =ROUND((F116/$F$5*Assumptions!$D$14*Assumptions!$D$30),0) -> 537 | H116: =VLOOKUP(B116,'23-24 Adjusted Formula counts'!$A$2:$L$319,9,FALSE) -> 30 | I116: =ROUND((H116/$H$5*Assumptions!$D$14*Assumptions!$D$31),0) -> 5845 | K116: 6382 | N116: 6382 | O116: 0 | P116: 6382 | R116: 0 | S116: 6382 | U116: =IFERROR(VLOOKUP($A116,#REF!, 21,FALSE),0) -> 0 | W116: 6382 | X116: 0 | Y116: 254 | Z116: 0 | AB116: 5303870 | AC116: KELLER
A117: =VLOOKUP(B117,CCDDD!$A$3:$B$319,2,FALSE) -> 08458 | B117: 5300003 | C117: KELSO | D117: 0 | E117: 0 | F117: =VLOOKUP(B117,'23-24 Adjusted Formula counts'!$A$2:$L$319,8,FALSE) -> 5497 | G117: =ROUND((F117/$F$5*Assumptions!$D$14*Assumptions!$D$30),0) -> 29498 | H117: =VLOOKUP(B117,'23-24 Adjusted Formula counts'!$A$2:$L$319,9,FALSE) -> 855 | I117: =ROUND((H117/$H$5*Assumptions!$D$14*Assumptions!$D$31),0) -> 166586 | K117: 196084 | N117: 196084 | O117: 0 | P117: 196084 | R117: 0 | S117: 196084 | U117: =IFERROR(VLOOKUP($A117,#REF!, 21,FALSE),0) -> 0 | W117: 196084 | X117: 0 | Y117: 43 | Z117: 0 | AB117: 5300003 | AC117: KELSO
A118: =VLOOKUP(B118,CCDDD!$A$3:$B$319,2,FALSE) -> 03017 | B118: 5303930 | C118: KENNEWICK | D118: 0 | E118: 0 | F118: =VLOOKUP(B118,'23-24 Adjusted Formula counts'!$A$2:$L$319,8,FALSE) -> 20458 | G118: =ROUND((F118/$F$5*Assumptions!$D$14*Assumptions!$D$30),0) -> 109783 | H118: =VLOOKUP(B118,'23-24 Adjusted Formula counts'!$A$2:$L$319,9,FALSE) -> 2558 | I118: =ROUND((H118/$H$5*Assumptions!$D$14*Assumptions!$D$31),0) -> 498393 | K118: 608176 | N118: 608176 | O118: 0 | P118: 608176 | R118: 0 | S118: 608176 | U118: =IFERROR(VLOOKUP($A118,#REF!, 21,FALSE),0) -> 0 | W118: 608176 | X118: 0 | Y118: 12 | Z118: 0 | AB118: 5303930 | AC118: KENNEWICK
A119: =VLOOKUP(B119,CCDDD!$A$3:$B$319,2,FALSE) -> 17415 | B119: 5303960 | C119: KENT | D119: 0 | E119: 0 | F119: =VLOOKUP(B119,'23-24 Adjusted Formula counts'!$A$2:$L$319,8,FALSE) -> 30689 | G119: =ROUND((F119/$F$5*Assumptions!$D$14*Assumptions!$D$30),0) -> 164685 | H119: =VLOOKUP(B119,'23-24 Adjusted Formula counts'!$A$2:$L$319,9,FALSE) -> 4485 | I119: =ROUND((H119/$H$5*Assumptions!$D$14*Assumptions!$D$31),0) -> 873844 | K119: 1038529 | N119: 1038529 | O119: 0 | P119: 1038529 | R119: 0 | S119: 1038529 | U119: =IFERROR(VLOOKUP($A119,#REF!, 21,FALSE),0) -> 0 | W119: 1038529 | X119: 0 | Y119: 3 | Z119: 0 | AB119: 5303960 | AC119: KENT
A120: =VLOOKUP(B120,CCDDD!$A$3:$B$319,2,FALSE) -> 33212 | B120: 5303990 | C120: KETTLE FALLS | D120: 0 | E120: 0 | F120: =VLOOKUP(B120,'23-24 Adjusted Formula counts'!$A$2:$L$319,8,FALSE) -> 940 | G120: =ROUND((F120/$F$5*Assumptions!$D$14*Assumptions!$D$30),0) -> 5044 | H120: =VLOOKUP(B120,'23-24 Adjusted Formula counts'!$A$2:$L$319,9,FALSE) -> 165 | I120: =ROUND((H120/$H$5*Assumptions!$D$14*Assumptions!$D$31),0) -> 32148 | K120: 37192 | N120: 37192 | O120: 0 | P120: 37192 | R120: 0 | S120: 37192 | U120: =IFERROR(VLOOKUP($A120,#REF!, 21,FALSE),0) -> 0 | W120: 37192 | X120: 0 | Y120: 151 | Z120: 0 | AB120: 5303990 | AC120: KETTLE FALLS
A121: =VLOOKUP(B121,CCDDD!$A$3:$B$319,2,FALSE) -> 03052 | B121: 5304020 | C121: KIONA-BENTON | D121: 0 | E121: 0 | F121: =VLOOKUP(B121,'23-24 Adjusted Formula counts'!$A$2:$L$319,8,FALSE) -> 1733 | G121: =ROUND((F121/$F$5*Assumptions!$D$14*Assumptions!$D$30),0) -> 9300 | H121: =VLOOKUP(B121,'23-24 Adjusted Formula counts'!$A$2:$L$319,9,FALSE) -> 266 | I121: =ROUND((H121/$H$5*Assumptions!$D$14*Assumptions!$D$31),0) -> 51827 | K121: 61127 | N121: 61127 | O121: 0 | P121: 61127 | R121: 0 | S121: 61127 | U121: =IFERROR(VLOOKUP($A121,#REF!, 21,FALSE),0) -> 0 | W121: 61127 | X121: 0 | Y121: 110 | Z121: 0 | AB121: 5304020 | AC121: KIONA-BENTON
A122: =VLOOKUP(B122,CCDDD!$A$3:$B$319,2,FALSE) -> 19403 | B122: 5304050 | C122: KITTITAS | D122: 0 | E122: 0 | F122: =VLOOKUP(B122,'23-24 Adjusted Formula counts'!$A$2:$L$319,8,FALSE) -> 722 | G122: =ROUND((F122/$F$5*Assumptions!$D$14*Assumptions!$D$30),0) -> 3874 | H122: =VLOOKUP(B122,'23-24 Adjusted Formula counts'!$A$2:$L$319,9,FALSE) -> 58 | I122: =ROUND((H122/$H$5*Assumptions!$D$14*Assumptions!$D$31),0) -> 11301 | K122: 15175 | N122: 15175 | O122: 0 | P122: 15175 | R122: 0 | S122: 15175 | U122: =IFERROR(VLOOKUP($A122,#REF!, 21,FALSE),0) -> 0 | W122: 15175 | X122: 0 | Y122: 206 | Z122: 0 | AB122: 5304050 | AC122: KITTITAS
A123: =VLOOKUP(B123,CCDDD!$A$3:$B$319,2,FALSE) -> 20402 | B123: 5304080 | C123: KLICKITAT | D123: 0 | E123: 0 | F123: =VLOOKUP(B123,'23-24 Adjusted Formula counts'!$A$2:$L$319,8,FALSE) -> 82 | G123: =ROUND((F123/$F$5*Assumptions!$D$14*Assumptions!$D$30),0) -> 440 | H123: =VLOOKUP(B123,'23-24 Adjusted Formula counts'!$A$2:$L$319,9,FALSE) -> 12 | I123: =ROUND((H123/$H$5*Assumptions!$D$14*Assumptions!$D$31),0) -> 2338 | K123: 2778 | N123: 2778 | O123: 0 | P123: 2778 | R123: 0 | S123: 2778 | U123: =IFERROR(VLOOKUP($A123,#REF!, 21,FALSE),0) -> 0 | W123: 2778 | X123: 0 | Y123: 289 | Z123: 0 | AB123: 5304080 | AC123: KLICKITAT
A124: =VLOOKUP(B124,CCDDD!$A$3:$B$319,2,FALSE) -> 06101 | B124: 5304170 | C124: LA CENTER | D124: 0 | E124: 0 | F124: =VLOOKUP(B124,'23-24 Adjusted Formula counts'!$A$2:$L$319,8,FALSE) -> 1970 | G124: =ROUND((F124/$F$5*Assumptions!$D$14*Assumptions!$D$30),0) -> 10571 | H124: =VLOOKUP(B124,'23-24 Adjusted Formula counts'!$A$2:$L$319,9,FALSE) -> 140 | I124: =ROUND((H124/$H$5*Assumptions!$D$14*Assumptions!$D$31),0) -> 27277 | K124: 37848 | N124: 37848 | O124: 0 | P124: 37848 | R124: 0 | S124: 37848 | U124: =IFERROR(VLOOKUP($A124,#REF!, 21,FALSE),0) -> 0 | W124: 37848 | X124: 0 | Y124: 147 | Z124: 0 | AB124: 5304170 | AC124: LA CENTER
A125: =VLOOKUP(B125,CCDDD!$A$3:$B$319,2,FALSE) -> 29311 | B125: 5304110 | C125: LA CONNER | D125: 0 | E125: 0 | F125: =VLOOKUP(B125,'23-24 Adjusted Formula counts'!$A$2:$L$319,8,FALSE) -> 602 | G125: =ROUND((F125/$F$5*Assumptions!$D$14*Assumptions!$D$30),0) -> 3230 | H125: =VLOOKUP(B125,'23-24 Adjusted Formula counts'!$A$2:$L$319,9,FALSE) -> 134 | I125: =ROUND((H125/$H$5*Assumptions!$D$14*Assumptions!$D$31),0) -> 26108 | K125: 29338 | N125: 29338 | O125: 0 | P125: 29338 | R125: 0 | S125: 29338 | U125: =IFERROR(VLOOKUP($A125,#REF!, 21,FALSE),0) -> 0 | W125: 29338 | X125: 0 | Y125: 166 | Z125: 0 | AB125: 5304110 | AC125: LA CONNER
A126: =VLOOKUP(B126,CCDDD!$A$3:$B$319,2,FALSE) -> 38126 | B126: 5304150 | C126: LACROSSE | D126: 0 | E126: 0 | F126: =VLOOKUP(B126,'23-24 Adjusted Formula counts'!$A$2:$L$319,8,FALSE) -> 87 | G126: =ROUND((F126/$F$5*Assumptions!$D$14*Assumptions!$D$30),0) -> 467 | H126: =VLOOKUP(B126,'23-24 Adjusted Formula counts'!$A$2:$L$319,9,FALSE) -> 9 | I126: =ROUND((H126/$H$5*Assumptions!$D$14*Assumptions!$D$31),0) -> 1754 | K126: 2221 | N126: 2221 | O126: 0 | P126: 2221 | R126: 0 | S126: 2221 | U126: =IFERROR(VLOOKUP($A126,#REF!, 21,FALSE),0) -> 0 | W126: 2221 | X126: 0 | Y126: 296 | Z126: 0 | AB126: 5304150 | AC126: LACROSSE
A127: =VLOOKUP(B127,CCDDD!$A$3:$B$319,2,FALSE) -> 04129 | B127: 5301200 | C127: LAKE CHELAN | D127: 0 | E127: 0 | F127: =VLOOKUP(B127,'23-24 Adjusted Formula counts'!$A$2:$L$319,8,FALSE) -> 1264 | G127: =ROUND((F127/$F$5*Assumptions!$D$14*Assumptions!$D$30),0) -> 6783 | H127: =VLOOKUP(B127,'23-24 Adjusted Formula counts'!$A$2:$L$319,9,FALSE) -> 170 | I127: =ROUND((H127/$H$5*Assumptions!$D$14*Assumptions!$D$31),0) -> 33122 | K127: 39905 | N127: 39905 | O127: 0 | P127: 39905 | R127: 0 | S127: 39905 | U127: =IFERROR(VLOOKUP($A127,#REF!, 21,FALSE),0) -> 0 | W127: 39905 | X127: 0 | Y127: 143 | Z127: 0 | AB127: 5301200 | AC127: LAKE CHELAN
A128: =VLOOKUP(B128,CCDDD!$A$3:$B$319,2,FALSE) -> 14097 | B128: 5307050 | C128: QUINAULT | D128: 0 | E128: 0 | F128: =VLOOKUP(B128,'23-24 Adjusted Formula counts'!$A$2:$L$319,8,FALSE) -> 176 | G128: =ROUND((F128/$F$5*Assumptions!$D$14*Assumptions!$D$30),0) -> 944 | H128: =VLOOKUP(B128,'23-24 Adjusted Formula counts'!$A$2:$L$319,9,FALSE) -> 41 | I128: =ROUND((H128/$H$5*Assumptions!$D$14*Assumptions!$D$31),0) -> 7988 | K128: 8932 | N128: 8932 | O128: 0 | P128: 8932 | R128: 0 | S128: 8932 | U128: =IFERROR(VLOOKUP($A128,#REF!, 21,FALSE),0) -> 0 | W128: 8932 | X128: 0 | Y128: 239 | Z128: 0 | AB128: 5307050 | AC128: QUINAULT
A129: =VLOOKUP(B129,CCDDD!$A$3:$B$319,2,FALSE) -> 31004 | B129: 5304200 | C129: LAKE STEVENS | D129: 0 | E129: 0 | F129: =VLOOKUP(B129,'23-24 Adjusted Formula counts'!$A$2:$L$319,8,FALSE) -> 10404 | G129: =ROUND((F129/$F$5*Assumptions!$D$14*Assumptions!$D$30),0) -> 55830 | H129: =VLOOKUP(B129,'23-24 Adjusted Formula counts'!$A$2:$L$319,9,FALSE) -> 521 | I129: =ROUND((H129/$H$5*Assumptions!$D$14*Assumptions!$D$31),0) -> 101510 | K129: 157340 | N129: 157340 | O129: 0 | P129: 157340 | R129: 0 | S129: 157340 | U129: =IFERROR(VLOOKUP($A129,#REF!, 21,FALSE),0) -> 0 | W129: 157340 | X129: 0 | Y129: 59 | Z129: 0 | AB129: 5304200 | AC129: LAKE STEVENS
A130: =VLOOKUP(B130,CCDDD!$A$3:$B$319,2,FALSE) -> 17414 | B130: 5304230 | C130: LAKE WASHINGTON | D130: 0 | E130: 0 | F130: =VLOOKUP(B130,'23-24 Adjusted Formula counts'!$A$2:$L$319,8,FALSE) -> 36438 | G130: =ROUND((F130/$F$5*Assumptions!$D$14*Assumptions!$D$30),0) -> 195535 | H130: =VLOOKUP(B130,'23-24 Adjusted Formula counts'!$A$2:$L$319,9,FALSE) -> 1528 | I130: =ROUND((H130/$H$5*Assumptions!$D$14*Assumptions!$D$31),0) -> 297711 | K130: 493246 | N130: 493246 | O130: 0 | P130: 493246 | R130: 0 | S130: 493246 | U130: =IFERROR(VLOOKUP($A130,#REF!, 21,FALSE),0) -> 0 | W130: 493246 | X130: 0 | Y130: 18 | Z130: 0 | AB130: 5304230 | AC130: LAKE WASHINGTON
A131: =VLOOKUP(B131,CCDDD!$A$3:$B$319,2,FALSE) -> 31306 | B131: 5304260 | C131: LAKEWOOD | D131: 0 | E131: 0 | F131: =VLOOKUP(B131,'23-24 Adjusted Formula counts'!$A$2:$L$319,8,FALSE) -> 2680 | G131: =ROUND((F131/$F$5*Assumptions!$D$14*Assumptions!$D$30),0) -> 14382 | H131: =VLOOKUP(B131,'23-24 Adjusted Formula counts'!$A$2:$L$319,9,FALSE) -> 297 | I131: =ROUND((H131/$H$5*Assumptions!$D$14*Assumptions!$D$31),0) -> 57867 | K131: 72249 | N131: 72249 | O131: 0 | P131: 72249 | R131: 0 | S131: 72249 | U131: =IFERROR(VLOOKUP($A131,#REF!, 21,FALSE),0) -> 0 | W131: 72249 | X131: 0 | Y131: 101 | Z131: 0 | AB131: 5304260 | AC131: LAKEWOOD
A132: =VLOOKUP(B132,CCDDD!$A$3:$B$319,2,FALSE) -> 38264 | B132: 5304290 | C132: LAMONT | D132: 0 | E132: 0 | F132: =VLOOKUP(B132,'23-24 Adjusted Formula counts'!$A$2:$L$319,8,FALSE) -> 28 | G132: =ROUND((F132/$F$5*Assumptions!$D$14*Assumptions!$D$30),0) -> 150 | H132: =VLOOKUP(B132,'23-24 Adjusted Formula counts'!$A$2:$L$319,9,FALSE) -> 9 | I132: =ROUND((H132/$H$5*Assumptions!$D$14*Assumptions!$D$31),0) -> 1754 | K132: 1904 | N132: 1904 | O132: 0 | P132: 1904 | R132: 0 | S132: 1904 | U132: =IFERROR(VLOOKUP($A132,#REF!, 21,FALSE),0) -> 0 | W132: 1904 | X132: 0 | Y132: 306 | Z132: 0 | AB132: 5304290 | AC132: LAMONT
A133: =VLOOKUP(B133,CCDDD!$A$3:$B$319,2,FALSE) -> 32362 | B133: 5304380 | C133: LIBERTY | D133: 0 | E133: 0 | F133: =VLOOKUP(B133,'23-24 Adjusted Formula counts'!$A$2:$L$319,8,FALSE) -> 839 | G133: =ROUND((F133/$F$5*Assumptions!$D$14*Assumptions!$D$30),0) -> 4502 | H133: =VLOOKUP(B133,'23-24 Adjusted Formula counts'!$A$2:$L$319,9,FALSE) -> 67 | I133: =ROUND((H133/$H$5*Assumptions!$D$14*Assumptions!$D$31),0) -> 13054 | K133: 17556 | N133: 17556 | O133: 0 | P133: 17556 | R133: 0 | S133: 17556 | U133: =IFERROR(VLOOKUP($A133,#REF!, 21,FALSE),0) -> 0 | W133: 17556 | X133: 0 | Y133: 194 | Z133: 0 | AB133: 5304380 | AC133: LIBERTY
A134: =VLOOKUP(B134,CCDDD!$A$3:$B$319,2,FALSE) -> 01158 | B134: 5304410 | C134: LIND | D134: 0 | E134: 0 | F134: =VLOOKUP(B134,'23-24 Adjusted Formula counts'!$A$2:$L$319,8,FALSE) -> 310 | G134: =ROUND((F134/$F$5*Assumptions!$D$14*Assumptions!$D$30),0) -> 1664 | H134: =VLOOKUP(B134,'23-24 Adjusted Formula counts'!$A$2:$L$319,9,FALSE) -> 66 | I134: =ROUND((H134/$H$5*Assumptions!$D$14*Assumptions!$D$31),0) -> 12859 | K134: 14523 | N134: 14523 | O134: 0 | P134: 14523 | R134: 0 | S134: 14523 | U134: =IFERROR(VLOOKUP($A134,#REF!, 21,FALSE),0) -> 0 | W134: 14523 | X134: 0 | Y134: 209 | Z134: 0 | AB134: 5304410 | AC134: LIND
A135: =VLOOKUP(B135,CCDDD!$A$3:$B$319,2,FALSE) -> 08122 | B135: 5304470 | C135: LONGVIEW | D135: 0 | E135: 0 | F135: =VLOOKUP(B135,'23-24 Adjusted Formula counts'!$A$2:$L$319,8,FALSE) -> 7250 | G135: =ROUND((F135/$F$5*Assumptions!$D$14*Assumptions!$D$30),0) -> 38905 | H135: =VLOOKUP(B135,'23-24 Adjusted Formula counts'!$A$2:$L$319,9,FALSE) -> 1186 | I135: =ROUND((H135/$H$5*Assumptions!$D$14*Assumptions!$D$31),0) -> 231077 | K135: =ROUNDDOWN(+I135+G135+E135+D135+J135,0) -> 269982 | N135: =K135 -> 269982 | O135: =-ROUND(N135/$N$5*$M$5,0) -> 0 | P135: =+K135+O135+M135 -> 269982 | R135: =-1*(P135*Q135) -> 0 | S135: =+P135+R135 -> 269982 | U135: =IFERROR(VLOOKUP($A135,#REF!, 21,FALSE),0) -> 0 | W135: =+S135-U135 -> 269982 | X135: =IF(U135>0,W135/U135,0) -> 0 | Y135: 34 | Z135: =(SUM(D135:E135)/S135) -> 0 | AB135: =+B135 -> 5304470 | AC135: =+C135 -> LONGVIEW
A136: =VLOOKUP(B136,CCDDD!$A$3:$B$319,2,FALSE) -> 33183 | B136: 5304500 | C136: LOON LAKE | D136: 0 | E136: 0 | F136: =VLOOKUP(B136,'23-24 Adjusted Formula counts'!$A$2:$L$319,8,FALSE) -> 257 | G136: =ROUND((F136/$F$5*Assumptions!$D$14*Assumptions!$D$30),0) -> 1379 | H136: =VLOOKUP(B136,'23-24 Adjusted Formula counts'!$A$2:$L$319,9,FALSE) -> 44 | I136: =ROUND((H136/$H$5*Assumptions!$D$14*Assumptions!$D$31),0) -> 8573 | K136: 9952 | N136: 9952 | O136: 0 | P136: 9952 | R136: 0 | S136: 9952 | U136: =IFERROR(VLOOKUP($A136,#REF!, 21,FALSE),0) -> 0 | W136: 9952 | X136: 0 | Y136: =RANK(W136,$W$7:$W$322,0) -> 233 | Z136: 0 | AB136: 5304500 | AC136: LOON LAKE
A137: =VLOOKUP(B137,CCDDD!$A$3:$B$319,2,FALSE) -> 28144 | B137: 5304530 | C137: LOPEZ | D137: 0 | E137: 0 | F137: =VLOOKUP(B137,'23-24 Adjusted Formula counts'!$A$2:$L$319,8,FALSE) -> 289 | G137: =ROUND((F137/$F$5*Assumptions!$D$14*Assumptions!$D$30),0) -> 1551 | H137: =VLOOKUP(B137,'23-24 Adjusted Formula counts'!$A$2:$L$319,9,FALSE) -> 57 | I137: =ROUND((H137/$H$5*Assumptions!$D$14*Assumptions!$D$31),0) -> 11106 | K137: 12657 | N137: 12657 | O137: 0 | P137: 12657 | R137: 0 | S137: 12657 | U137: =IFERROR(VLOOKUP($A137,#REF!, 21,FALSE),0) -> 0 | W137: 12657 | X137: 0 | Y137: 218 | Z137: 0 | AB137: 5304530 | AC137: LOPEZ
A138: =VLOOKUP(B138,CCDDD!$A$3:$B$319,2,FALSE) -> 32903 | B138: 5304550 | C138: LUMEN CHARTER | D138: 0 | E138: 0 | F138: =VLOOKUP(B138,'23-24 Adjusted Formula counts'!$A$2:$L$319,8,FALSE) -> 42.0794702 | G138: =ROUND((F138/$F$5*Assumptions!$D$14*Assumptions!$D$30),0) -> 226 | H138: =VLOOKUP(B138,'23-24 Adjusted Formula counts'!$A$2:$L$319,9,FALSE) -> 9.147524419 | I138: =ROUND((H138/$H$5*Assumptions!$D$14*Assumptions!$D$31),0) -> 1782 | K138: 2008 | N138: 2008 | O138: 0 | P138: 2008 | R138: 0 | S138: 2008 | U138: =IFERROR(VLOOKUP($A138,#REF!, 21,FALSE),0) -> 0 | W138: 2008 | X138: 0 | Y138: 304 | Z138: 0 | AB138: 5304550 | AC138: LUMEN CHARTER
A139: =VLOOKUP(B139,CCDDD!$A$3:$B$319,2,FALSE) -> 20406 | B139: 5304590 | C139: LYLE | D139: 0 | E139: 0 | F139: =VLOOKUP(B139,'23-24 Adjusted Formula counts'!$A$2:$L$319,8,FALSE) -> 419 | G139: =ROUND((F139/$F$5*Assumptions!$D$14*Assumptions!$D$30),0) -> 2248 | H139: =VLOOKUP(B139,'23-24 Adjusted Formula counts'!$A$2:$L$319,9,FALSE) -> 69 | I139: =ROUND((H139/$H$5*Assumptions!$D$14*Assumptions!$D$31),0) -> 13444 | K139: 15692 | N139: 15692 | O139: 0 | P139: 15692 | R139: 0 | S139: 15692 | U139: =IFERROR(VLOOKUP($A139,#REF!, 21,FALSE),0) -> 0 | W139: 15692 | X139: 0 | Y139: 202 | Z139: 0 | AB139: 5304590 | AC139: LYLE
A140: =VLOOKUP(B140,CCDDD!$A$3:$B$319,2,FALSE) -> 37504 | B140: 5304620 | C140: LYNDEN | D140: 0 | E140: 0 | F140: =VLOOKUP(B140,'23-24 Adjusted Formula counts'!$A$2:$L$319,8,FALSE) -> 4435 | G140: =ROUND((F140/$F$5*Assumptions!$D$14*Assumptions!$D$30),0) -> 23799 | H140: =VLOOKUP(B140,'23-24 Adjusted Formula counts'!$A$2:$L$319,9,FALSE) -> 415 | I140: =ROUND((H140/$H$5*Assumptions!$D$14*Assumptions!$D$31),0) -> 80857 | K140: 104656 | N140: 104656 | O140: 0 | P140: 104656 | R140: 0 | S140: 104656 | U140: =IFERROR(VLOOKUP($A140,#REF!, 21,FALSE),0) -> 0 | W140: 104656 | X140: 0 | Y140: 78 | Z140: 0 | AB140: 5304620 | AC140: LYNDEN
A141: =VLOOKUP(B141,CCDDD!$A$3:$B$319,2,FALSE) -> 39120 | B141: 5304650 | C141: MABTON | D141: 0 | E141: 0 | F141: =VLOOKUP(B141,'23-24 Adjusted Formula counts'!$A$2:$L$319,8,FALSE) -> 783 | G141: =ROUND((F141/$F$5*Assumptions!$D$14*Assumptions!$D$30),0) -> 4202 | H141: =VLOOKUP(B141,'23-24 Adjusted Formula counts'!$A$2:$L$319,9,FALSE) -> 164 | I141: =ROUND((H141/$H$5*Assumptions!$D$14*Assumptions!$D$31),0) -> 31953 | K141: 36155 | N141: 36155 | O141: 0 | P141: 36155 | R141: 0 | S141: 36155 | U141: =IFERROR(VLOOKUP($A141,#REF!, 21,FALSE),0) -> 0 | W141: 36155 | X141: 0 | Y141: 153 | Z141: 0 | AB141: 5304650 | AC141: MABTON
A142: =VLOOKUP(B142,CCDDD!$A$3:$B$319,2,FALSE) -> 09207 | B142: 5304710 | C142: MANSFIELD | D142: 0 | E142: 0 | F142: =VLOOKUP(B142,'23-24 Adjusted Formula counts'!$A$2:$L$319,8,FALSE) -> 88 | G142: =ROUND((F142/$F$5*Assumptions!$D$14*Assumptions!$D$30),0) -> 472 | H142: =VLOOKUP(B142,'23-24 Adjusted Formula counts'!$A$2:$L$319,9,FALSE) -> 27 | I142: =ROUND((H142/$H$5*Assumptions!$D$14*Assumptions!$D$31),0) -> 5261 | K142: 5733 | N142: 5733 | O142: 0 | P142: 5733 | R142: 0 | S142: 5733 | U142: =IFERROR(VLOOKUP($A142,#REF!, 21,FALSE),0) -> 0 | W142: 5733 | X142: 0 | Y142: 259 | Z142: 0 | AB142: 5304710 | AC142: MANSFIELD
A143: =VLOOKUP(B143,CCDDD!$A$3:$B$319,2,FALSE) -> 04019 | B143: 5304740 | C143: MANSON | D143: 0 | E143: 0 | F143: =VLOOKUP(B143,'23-24 Adjusted Formula counts'!$A$2:$L$319,8,FALSE) -> 623 | G143: =ROUND((F143/$F$5*Assumptions!$D$14*Assumptions!$D$30),0) -> 3343 | H143: =VLOOKUP(B143,'23-24 Adjusted Formula counts'!$A$2:$L$319,9,FALSE) -> 106 | I143: =ROUND((H143/$H$5*Assumptions!$D$14*Assumptions!$D$31),0) -> 20653 | K143: 23996 | N143: 23996 | O143: 0 | P143: 23996 | R143: 0 | S143: 23996 | U143: =IFERROR(VLOOKUP($A143,#REF!, 21,FALSE),0) -> 0 | W143: 23996 | X143: 0 | Y143: 176 | Z143: 0 | AB143: 5304740 | AC143: MANSON
A144: =VLOOKUP(B144,CCDDD!$A$3:$B$319,2,FALSE) -> 23311 | B144: 5304800 | C144: MARY M KNIGHT | D144: 0 | E144: 0 | F144: =VLOOKUP(B144,'23-24 Adjusted Formula counts'!$A$2:$L$319,8,FALSE) -> 207 | G144: =ROUND((F144/$F$5*Assumptions!$D$14*Assumptions!$D$30),0) -> 1111 | H144: =VLOOKUP(B144,'23-24 Adjusted Formula counts'!$A$2:$L$319,9,FALSE) -> 33 | I144: =ROUND((H144/$H$5*Assumptions!$D$14*Assumptions!$D$31),0) -> 6430 | K144: 7541 | N144: 7541 | O144: 0 | P144: 7541 | R144: 0 | S144: 7541 | U144: =IFERROR(VLOOKUP($A144,#REF!, 21,FALSE),0) -> 0 | W144: 7541 | X144: 0 | Y144: 246 | Z144: 0 | AB144: 5304800 | AC144: MARY M KNIGHT
A145: =VLOOKUP(B145,CCDDD!$A$3:$B$319,2,FALSE) -> 33207 | B145: 5304830 | C145: MARY WALKER | D145: 0 | E145: 0 | F145: =VLOOKUP(B145,'23-24 Adjusted Formula counts'!$A$2:$L$319,8,FALSE) -> 646 | G145: =ROUND((F145/$F$5*Assumptions!$D$14*Assumptions!$D$30),0) -> 3467 | H145: =VLOOKUP(B145,'23-24 Adjusted Formula counts'!$A$2:$L$319,9,FALSE) -> 150 | I145: =ROUND((H145/$H$5*Assumptions!$D$14*Assumptions!$D$31),0) -> 29226 | K145: 32693 | N145: 32693 | O145: 0 | P145: 32693 | R145: 0 | S145: 32693 | U145: =IFERROR(VLOOKUP($A145,#REF!, 21,FALSE),0) -> 0 | W145: 32693 | X145: 0 | Y145: 157 | Z145: 0 | AB145: 5304830 | AC145: MARY WALKER
A146: =VLOOKUP(B146,CCDDD!$A$3:$B$319,2,FALSE) -> 31025 | B146: 5304860 | C146: MARYSVILLE | D146: 0 | E146: 0 | F146: =VLOOKUP(B146,'23-24 Adjusted Formula counts'!$A$2:$L$319,8,FALSE) -> 12720 | G146: =ROUND((F146/$F$5*Assumptions!$D$14*Assumptions!$D$30),0) -> 68259 | H146: =VLOOKUP(B146,'23-24 Adjusted Formula counts'!$A$2:$L$319,9,FALSE) -> 1226 | I146: =ROUND((H146/$H$5*Assumptions!$D$14*Assumptions!$D$31),0) -> 238870 | K146: 307129 | N146: 307129 | O146: 0 | P146: 307129 | R146: 0 | S146: 307129 | U146: =IFERROR(VLOOKUP($A146,#REF!, 21,FALSE),0) -> 0 | W146: 307129 | X146: 0 | Y146: 27 | Z146: 0 | AB146: 5304860 | AC146: MARYSVILLE
A147: =VLOOKUP(B147,CCDDD!$A$3:$B$319,2,FALSE) -> 14065 | B147: 5304890 | C147: MCCLEARY | D147: 0 | E147: 0 | F147: =VLOOKUP(B147,'23-24 Adjusted Formula counts'!$A$2:$L$319,8,FALSE) -> 579 | G147: =ROUND((F147/$F$5*Assumptions!$D$14*Assumptions!$D$30),0) -> 3107 | H147: =VLOOKUP(B147,'23-24 Adjusted Formula counts'!$A$2:$L$319,9,FALSE) -> 65 | I147: =ROUND((H147/$H$5*Assumptions!$D$14*Assumptions!$D$31),0) -> 12664 | K147: 15771 | N147: 15771 | O147: 0 | P147: 15771 | R147: 0 | S147: 15771 | U147: =IFERROR(VLOOKUP($A147,#REF!, 21,FALSE),0) -> 0 | W147: 15771 | X147: 0 | Y147: 201 | Z147: 0 | AB147: 5304890 | AC147: MCCLEARY
A148: =VLOOKUP(B148,CCDDD!$A$3:$B$319,2,FALSE) -> 32354 | B148: 5304920 | C148: MEAD | D148: 0 | E148: 0 | F148: =VLOOKUP(B148,'23-24 Adjusted Formula counts'!$A$2:$L$319,8,FALSE) -> 12203 | G148: =ROUND((F148/$F$5*Assumptions!$D$14*Assumptions!$D$30),0) -> 65484 | H148: =VLOOKUP(B148,'23-24 Adjusted Formula counts'!$A$2:$L$319,9,FALSE) -> 985 | I148: =ROUND((H148/$H$5*Assumptions!$D$14*Assumptions!$D$31),0) -> 191914 | K148: 257398 | N148: 257398 | O148: 0 | P148: 257398 | R148: 0 | S148: 257398 | U148: =IFERROR(VLOOKUP($A148,#REF!, 21,FALSE),0) -> 0 | W148: 257398 | X148: 0 | Y148: 36 | Z148: 0 | AB148: 5304920 | AC148: MEAD
A149: =VLOOKUP(B149,CCDDD!$A$3:$B$319,2,FALSE) -> 32326 | B149: 5304950 | C149: MEDICAL LAKE | D149: 0 | E149: 0 | F149: =VLOOKUP(B149,'23-24 Adjusted Formula counts'!$A$2:$L$319,8,FALSE) -> 1829 | G149: =ROUND((F149/$F$5*Assumptions!$D$14*Assumptions!$D$30),0) -> 9815 | H149: =VLOOKUP(B149,'23-24 Adjusted Formula counts'!$A$2:$L$319,9,FALSE) -> 173 | I149: =ROUND((H149/$H$5*Assumptions!$D$14*Assumptions!$D$31),0) -> 33707 | K149: 43522 | N149: 43522 | O149: 0 | P149: 43522 | R149: 0 | S149: 43522 | U149: =IFERROR(VLOOKUP($A149,#REF!, 21,FALSE),0) -> 0 | W149: 43522 | X149: 0 | Y149: 136 | Z149: 0 | AB149: 5304950 | AC149: MEDICAL LAKE
A150: =VLOOKUP(B150,CCDDD!$A$3:$B$319,2,FALSE) -> 17400 | B150: 5304980 | C150: MERCER ISLAND | D150: 0 | E150: 0 | F150: =VLOOKUP(B150,'23-24 Adjusted Formula counts'!$A$2:$L$319,8,FALSE) -> 4992 | G150: =ROUND((F150/$F$5*Assumptions!$D$14*Assumptions!$D$30),0) -> 26788 | H150: =VLOOKUP(B150,'23-24 Adjusted Formula counts'!$A$2:$L$319,9,FALSE) -> 184 | I150: =ROUND((H150/$H$5*Assumptions!$D$14*Assumptions!$D$31),0) -> 35850 | K150: 62638 | N150: 62638 | O150: 0 | P150: 62638 | R150: 0 | S150: 62638 | U150: =IFERROR(VLOOKUP($A150,#REF!, 21,FALSE),0) -> 0 | W150: 62638 | X150: 0 | Y150: 109 | Z150: 0 | AB150: 5304980 | AC150: MERCER ISLAND
A151: =VLOOKUP(B151,CCDDD!$A$3:$B$319,2,FALSE) -> 37505 | B151: 5305010 | C151: MERIDIAN | D151: 0 | E151: 0 | F151: =VLOOKUP(B151,'23-24 Adjusted Formula counts'!$A$2:$L$319,8,FALSE) -> 1737 | G151: =ROUND((F151/$F$5*Assumptions!$D$14*Assumptions!$D$30),0) -> 9321 | H151: =VLOOKUP(B151,'23-24 Adjusted Formula counts'!$A$2:$L$319,9,FALSE) -> 237 | I151: =ROUND((H151/$H$5*Assumptions!$D$14*Assumptions!$D$31),0) -> 46176 | K151: 55497 | N151: 55497 | O151: 0 | P151: 55497 | R151: 0 | S151: 55497 | U151: =IFERROR(VLOOKUP($A151,#REF!, 21,FALSE),0) -> 0 | W151: 55497 | X151: 0 | Y151: 121 | Z151: 0 | AB151: 5305010 | AC151: MERIDIAN
A152: =VLOOKUP(B152,CCDDD!$A$3:$B$319,2,FALSE) -> 24350 | B152: 5305020 | C152: METHOW VALLEY | D152: 0 | E152: 0 | F152: =VLOOKUP(B152,'23-24 Adjusted Formula counts'!$A$2:$L$319,8,FALSE) -> 860 | G152: =ROUND((F152/$F$5*Assumptions!$D$14*Assumptions!$D$30),0) -> 4615 | H152: =VLOOKUP(B152,'23-24 Adjusted Formula counts'!$A$2:$L$319,9,FALSE) -> 101 | I152: =ROUND((H152/$H$5*Assumptions!$D$14*Assumptions!$D$31),0) -> 19679 | K152: 24294 | N152: 24294 | O152: 0 | P152: 24294 | R152: 0 | S152: 24294 | U152: =IFERROR(VLOOKUP($A152,#REF!, 21,FALSE),0) -> 0 | W152: 24294 | X152: 0 | Y152: 175 | Z152: 0 | AB152: 5305020 | AC152: METHOW VALLEY
A153: =VLOOKUP(B153,CCDDD!$A$3:$B$319,2,FALSE) -> 30031 | B153: 5305040 | C153: MILL A | D153: 0 | E153: 0 | F153: =VLOOKUP(B153,'23-24 Adjusted Formula counts'!$A$2:$L$319,8,FALSE) -> 74 | G153: =ROUND((F153/$F$5*Assumptions!$D$14*Assumptions!$D$30),0) -> 397 | H153: =VLOOKUP(B153,'23-24 Adjusted Formula counts'!$A$2:$L$319,9,FALSE) -> 12 | I153: =ROUND((H153/$H$5*Assumptions!$D$14*Assumptions!$D$31),0) -> 2338 | K153: 2735 | N153: 2735 | O153: 0 | P153: 2735 | R153: 0 | S153: 2735 | U153: =IFERROR(VLOOKUP($A153,#REF!, 21,FALSE),0) -> 0 | W153: 2735 | X153: 0 | Y153: 290 | Z153: 0 | AB153: 5305040 | AC153: MILL A
A154: =VLOOKUP(B154,CCDDD!$A$3:$B$319,2,FALSE) -> 31103 | B154: 5305130 | C154: MONROE | D154: 0 | E154: 0 | F154: =VLOOKUP(B154,'23-24 Adjusted Formula counts'!$A$2:$L$319,8,FALSE) -> 6741 | G154: =ROUND((F154/$F$5*Assumptions!$D$14*Assumptions!$D$30),0) -> 36174 | H154: =VLOOKUP(B154,'23-24 Adjusted Formula counts'!$A$2:$L$319,9,FALSE) -> 398 | I154: =ROUND((H154/$H$5*Assumptions!$D$14*Assumptions!$D$31),0) -> 77545 | K154: 113719 | N154: 113719 | O154: 0 | P154: 113719 | R154: 0 | S154: 113719 | U154: =IFERROR(VLOOKUP($A154,#REF!, 21,FALSE),0) -> 0 | W154: 113719 | X154: 0 | Y154: 74 | Z154: 0 | AB154: 5305130 | AC154: MONROE
A155: =VLOOKUP(B155,CCDDD!$A$3:$B$319,2,FALSE) -> 14066 | B155: 5305160 | C155: MONTESANO | D155: 0 | E155: 0 | F155: =VLOOKUP(B155,'23-24 Adjusted Formula counts'!$A$2:$L$319,8,FALSE) -> 1351 | G155: =ROUND((F155/$F$5*Assumptions!$D$14*Assumptions!$D$30),0) -> 7250 | H155: =VLOOKUP(B155,'23-24 Adjusted Formula counts'!$A$2:$L$319,9,FALSE) -> 159 | I155: =ROUND((H155/$H$5*Assumptions!$D$14*Assumptions!$D$31),0) -> 30979 | K155: 38229 | N155: 38229 | O155: 0 | P155: 38229 | R155: 0 | S155: 38229 | U155: =IFERROR(VLOOKUP($A155,#REF!, 21,FALSE),0) -> 0 | W155: 38229 | X155: 0 | Y155: 146 | Z155: 0 | AB155: 5305160 | AC155: MONTESANO
A156: =VLOOKUP(B156,CCDDD!$A$3:$B$319,2,FALSE) -> 21214 | B156: 5305190 | C156: MORTON | D156: 0 | E156: 0 | F156: =VLOOKUP(B156,'23-24 Adjusted Formula counts'!$A$2:$L$319,8,FALSE) -> 332 | G156: =ROUND((F156/$F$5*Assumptions!$D$14*Assumptions!$D$30),0) -> 1782 | H156: =VLOOKUP(B156,'23-24 Adjusted Formula counts'!$A$2:$L$319,9,FALSE) -> 66 | I156: =ROUND((H156/$H$5*Assumptions!$D$14*Assumptions!$D$31),0) -> 12859 | K156: 14641 | N156: 14641 | O156: 0 | P156: 14641 | R156: 0 | S156: 14641 | U156: =IFERROR(VLOOKUP($A156,#REF!, 21,FALSE),0) -> 0 | W156: 14641 | X156: 0 | Y156: 208 | Z156: 0 | AB156: 5305190 | AC156: MORTON
A157: =VLOOKUP(B157,CCDDD!$A$3:$B$319,2,FALSE) -> 13161 | B157: 5305220 | C157: MOSES LAKE | D157: 0 | E157: 0 | F157: =VLOOKUP(B157,'23-24 Adjusted Formula counts'!$A$2:$L$319,8,FALSE) -> 9920 | G157: =ROUND((F157/$F$5*Assumptions!$D$14*Assumptions!$D$30),0) -> 53233 | H157: =VLOOKUP(B157,'23-24 Adjusted Formula counts'!$A$2:$L$319,9,FALSE) -> 1242 | I157: =ROUND((H157/$H$5*Assumptions!$D$14*Assumptions!$D$31),0) -> 241988 | K157: 295221 | N157: 295221 | O157: 0 | P157: 295221 | R157: 0 | S157: 295221 | U157: =IFERROR(VLOOKUP($A157,#REF!, 21,FALSE),0) -> 0 | W157: 295221 | X157: 0 | Y157: 30 | Z157: 0 | AB157: 5305220 | AC157: MOSES LAKE
A158: =VLOOKUP(B158,CCDDD!$A$3:$B$319,2,FALSE) -> 21206 | B158: 5305250 | C158: MOSSYROCK | D158: 0 | E158: 0 | F158: =VLOOKUP(B158,'23-24 Adjusted Formula counts'!$A$2:$L$319,8,FALSE) -> 698 | G158: =ROUND((F158/$F$5*Assumptions!$D$14*Assumptions!$D$30),0) -> 3746 | H158: =VLOOKUP(B158,'23-24 Adjusted Formula counts'!$A$2:$L$319,9,FALSE) -> 106 | I158: =ROUND((H158/$H$5*Assumptions!$D$14*Assumptions!$D$31),0) -> 20653 | K158: 24399 | N158: 24399 | O158: 0 | P158: 24399 | R158: 0 | S158: 24399 | U158: =IFERROR(VLOOKUP($A158,#REF!, 21,FALSE),0) -> 0 | W158: 24399 | X158: 0 | Y158: 174 | Z158: 0 | AB158: 5305250 | AC158: MOSSYROCK
A159: =VLOOKUP(B159,CCDDD!$A$3:$B$319,2,FALSE) -> 39209 | B159: 5305280 | C159: MOUNT ADAMS | D159: 0 | E159: 0 | F159: =VLOOKUP(B159,'23-24 Adjusted Formula counts'!$A$2:$L$319,8,FALSE) -> 1015 | G159: =ROUND((F159/$F$5*Assumptions!$D$14*Assumptions!$D$30),0) -> 5447 | H159: =VLOOKUP(B159,'23-24 Adjusted Formula counts'!$A$2:$L$319,9,FALSE) -> 247 | I159: =ROUND((H159/$H$5*Assumptions!$D$14*Assumptions!$D$31),0) -> 48125 | K159: 53572 | N159: 53572 | O159: 0 | P159: 53572 | R159: 0 | S159: 53572 | U159: =IFERROR(VLOOKUP($A159,#REF!, 21,FALSE),0) -> 0 | W159: 53572 | X159: 0 | Y159: 123 | Z159: 0 | AB159: 5305280 | AC159: MOUNT ADAMS
A160: =VLOOKUP(B160,CCDDD!$A$3:$B$319,2,FALSE) -> 37507 | B160: 5305310 | C160: MOUNT BAKER | D160: 0 | E160: 0 | F160: =VLOOKUP(B160,'23-24 Adjusted Formula counts'!$A$2:$L$319,8,FALSE) -> 2481 | G160: =ROUND((F160/$F$5*Assumptions!$D$14*Assumptions!$D$30),0) -> 13314 | H160: =VLOOKUP(B160,'23-24 Adjusted Formula counts'!$A$2:$L$319,9,FALSE) -> 416 | I160: =ROUND((H160/$H$5*Assumptions!$D$14*Assumptions!$D$31),0) -> 81052 | K160: 94366 | N160: 94366 | O160: 0 | P160: 94366 | R160: 0 | S160: 94366 | U160: =IFERROR(VLOOKUP($A160,#REF!, 21,FALSE),0) -> 0 | W160: 94366 | X160: 0 | Y160: 83 | Z160: 0 | AB160: 5305310 | AC160: MOUNT BAKER
A161: =VLOOKUP(B161,CCDDD!$A$3:$B$319,2,FALSE) -> 30029 | B161: 5305340 | C161: MOUNT PLEASANT | D161: 0 | E161: 0 | F161: =VLOOKUP(B161,'23-24 Adjusted Formula counts'!$A$2:$L$319,8,FALSE) -> 41 | G161: =ROUND((F161/$F$5*Assumptions!$D$14*Assumptions!$D$30),0) -> 220 | H161: =VLOOKUP(B161,'23-24 Adjusted Formula counts'!$A$2:$L$319,9,FALSE) -> 6 | I161: =ROUND((H161/$H$5*Assumptions!$D$14*Assumptions!$D$31),0) -> 1169 | K161: 1389 | N161: 1389 | O161: 0 | P161: 1389 | R161: 0 | S161: 1389 | U161: =IFERROR(VLOOKUP($A161,#REF!, 21,FALSE),0) -> 0 | W161: 1389 | X161: 0 | Y161: 309 | Z161: 0 | AB161: 5305340 | AC161: MOUNT PLEASANT
A162: =VLOOKUP(B162,CCDDD!$A$3:$B$319,2,FALSE) -> 29320 | B162: 5305400 | C162: MOUNT VERNON | D162: 0 | E162: 0 | F162: =VLOOKUP(B162,'23-24 Adjusted Formula counts'!$A$2:$L$319,8,FALSE) -> 6931 | G162: =ROUND((F162/$F$5*Assumptions!$D$14*Assumptions!$D$30),0) -> 37193 | H162: =VLOOKUP(B162,'23-24 Adjusted Formula counts'!$A$2:$L$319,9,FALSE) -> 948 | I162: =ROUND((H162/$H$5*Assumptions!$D$14*Assumptions!$D$31),0) -> 184706 | K162: 221899 | N162: 221899 | O162: 0 | P162: 221899 | R162: 0 | S162: 221899 | U162: =IFERROR(VLOOKUP($A162,#REF!, 21,FALSE),0) -> 0 | W162: 221899 | X162: 0 | Y162: 40 | Z162: 0 | AB162: 5305400 | AC162: MOUNT VERNON
A163: =VLOOKUP(B163,CCDDD!$A$3:$B$319,2,FALSE) -> 31006 | B163: 5305430 | C163: MUKILTEO | D163: 0 | E163: 0 | F163: =VLOOKUP(B163,'23-24 Adjusted Formula counts'!$A$2:$L$319,8,FALSE) -> 17175 | G163: =ROUND((F163/$F$5*Assumptions!$D$14*Assumptions!$D$30),0) -> 92165 | H163: =VLOOKUP(B163,'23-24 Adjusted Formula counts'!$A$2:$L$319,9,FALSE) -> 1881 | I163: =ROUND((H163/$H$5*Assumptions!$D$14*Assumptions!$D$31),0) -> 366488 | K163: 458653 | N163: 458653 | O163: 0 | P163: 458653 | R163: 0 | S163: 458653 | U163: =IFERROR(VLOOKUP($A163,#REF!, 21,FALSE),0) -> 0 | W163: 458653 | X163: 0 | Y163: 19 | Z163: 0 | AB163: 5305430 | AC163: MUKILTEO
A164: =VLOOKUP(B164,CCDDD!$A$3:$B$319,2,FALSE) -> 39003 | B164: 5305460 | C164: NACHES VALLEY | D164: 0 | E164: 0 | F164: =VLOOKUP(B164,'23-24 Adjusted Formula counts'!$A$2:$L$319,8,FALSE) -> 1640 | G164: =ROUND((F164/$F$5*Assumptions!$D$14*Assumptions!$D$30),0) -> 8801 | H164: =VLOOKUP(B164,'23-24 Adjusted Formula counts'!$A$2:$L$319,9,FALSE) -> 202 | I164: =ROUND((H164/$H$5*Assumptions!$D$14*Assumptions!$D$31),0) -> 39357 | K164: 48158 | N164: 48158 | O164: 0 | P164: 48158 | R164: 0 | S164: 48158 | U164: =IFERROR(VLOOKUP($A164,#REF!, 21,FALSE),0) -> 0 | W164: 48158 | X164: 0 | Y164: 130 | Z164: 0 | AB164: 5305460 | AC164: NACHES VALLEY
A165: =VLOOKUP(B165,CCDDD!$A$3:$B$319,2,FALSE) -> 21014 | B165: 5305490 | C165: NAPAVINE | D165: 0 | E165: 0 | F165: =VLOOKUP(B165,'23-24 Adjusted Formula counts'!$A$2:$L$319,8,FALSE) -> 774 | G165: =ROUND((F165/$F$5*Assumptions!$D$14*Assumptions!$D$30),0) -> 4153 | H165: =VLOOKUP(B165,'23-24 Adjusted Formula counts'!$A$2:$L$319,9,FALSE) -> 78 | I165: =ROUND((H165/$H$5*Assumptions!$D$14*Assumptions!$D$31),0) -> 15197 | K165: 19350 | N165: 19350 | O165: 0 | P165: 19350 | R165: 0 | S165: 19350 | U165: =IFERROR(VLOOKUP($A165,#REF!, 21,FALSE),0) -> 0 | W165: 19350 | X165: 0 | Y165: 189 | Z165: 0 | AB165: 5305490 | AC165: NAPAVINE
A166: =VLOOKUP(B166,CCDDD!$A$3:$B$319,2,FALSE) -> 25155 | B166: 5305520 | C166: NASELLE-GRAYS | D166: 0 | E166: 0 | F166: =VLOOKUP(B166,'23-24 Adjusted Formula counts'!$A$2:$L$319,8,FALSE) -> 343 | G166: =ROUND((F166/$F$5*Assumptions!$D$14*Assumptions!$D$30),0) -> 1841 | H166: =VLOOKUP(B166,'23-24 Adjusted Formula counts'!$A$2:$L$319,9,FALSE) -> 48 | I166: =ROUND((H166/$H$5*Assumptions!$D$14*Assumptions!$D$31),0) -> 9352 | K166: 11193 | N166: 11193 | O166: 0 | P166: 11193 | R166: 0 | S166: 11193 | U166: =IFERROR(VLOOKUP($A166,#REF!, 21,FALSE),0) -> 0 | W166: 11193 | X166: 0 | Y166: 225 | Z166: 0 | AB166: 5305520 | AC166: NASELLE-GRAYS
A167: =VLOOKUP(B167,CCDDD!$A$3:$B$319,2,FALSE) -> 24014 | B167: 5305550 | C167: NESPELEM | D167: 0 | E167: 0 | F167: =VLOOKUP(B167,'23-24 Adjusted Formula counts'!$A$2:$L$319,8,FALSE) -> 253 | G167: =ROUND((F167/$F$5*Assumptions!$D$14*Assumptions!$D$30),0) -> 1358 | H167: =VLOOKUP(B167,'23-24 Adjusted Formula counts'!$A$2:$L$319,9,FALSE) -> 57 | I167: =ROUND((H167/$H$5*Assumptions!$D$14*Assumptions!$D$31),0) -> 11106 | K167: 12464 | N167: 12464 | O167: 0 | P167: 12464 | R167: 0 | S167: 12464 | U167: =IFERROR(VLOOKUP($A167,#REF!, 21,FALSE),0) -> 0 | W167: 12464 | X167: 0 | Y167: 220 | Z167: 0 | AB167: 5305550 | AC167: NESPELEM
A168: =VLOOKUP(B168,CCDDD!$A$3:$B$319,2,FALSE) -> 26056 | B168: 5305610 | C168: NEWPORT | D168: 0 | E168: 0 | F168: =VLOOKUP(B168,'23-24 Adjusted Formula counts'!$A$2:$L$319,8,FALSE) -> 1342 | G168: =ROUND((F168/$F$5*Assumptions!$D$14*Assumptions!$D$30),0) -> 7201 | H168: =VLOOKUP(B168,'23-24 Adjusted Formula counts'!$A$2:$L$319,9,FALSE) -> 310 | I168: =ROUND((H168/$H$5*Assumptions!$D$14*Assumptions!$D$31),0) -> 60399 | K168: 67600 | N168: 67600 | O168: 0 | P168: 67600 | R168: 0 | S168: 67600 | U168: =IFERROR(VLOOKUP($A168,#REF!, 21,FALSE),0) -> 0 | W168: 67600 | X168: 0 | Y168: 106 | Z168: 0 | AB168: 5305610 | AC168: NEWPORT
A169: =VLOOKUP(B169,CCDDD!$A$3:$B$319,2,FALSE) -> 32325 | B169: 5305640 | C169: NINE MILE FALLS | D169: 0 | E169: 0 | F169: =VLOOKUP(B169,'23-24 Adjusted Formula counts'!$A$2:$L$319,8,FALSE) -> 1580 | G169: =ROUND((F169/$F$5*Assumptions!$D$14*Assumptions!$D$30),0) -> 8479 | H169: =VLOOKUP(B169,'23-24 Adjusted Formula counts'!$A$2:$L$319,9,FALSE) -> 149 | I169: =ROUND((H169/$H$5*Assumptions!$D$14*Assumptions!$D$31),0) -> 29031 | K169: 37510 | N169: 37510 | O169: 0 | P169: 37510 | R169: 0 | S169: 37510 | U169: =IFERROR(VLOOKUP($A169,#REF!, 21,FALSE),0) -> 0 | W169: 37510 | X169: 0 | Y169: 150 | Z169: 0 | AB169: 5305640 | AC169: NINE MILE FALLS
A170: =VLOOKUP(B170,CCDDD!$A$3:$B$319,2,FALSE) -> 37506 | B170: 5305670 | C170: NOOKSACK VALLEY | D170: 0 | E170: 0 | F170: =VLOOKUP(B170,'23-24 Adjusted Formula counts'!$A$2:$L$319,8,FALSE) -> 2252 | G170: =ROUND((F170/$F$5*Assumptions!$D$14*Assumptions!$D$30),0) -> 12085 | H170: =VLOOKUP(B170,'23-24 Adjusted Formula counts'!$A$2:$L$319,9,FALSE) -> 294 | I170: =ROUND((H170/$H$5*Assumptions!$D$14*Assumptions!$D$31),0) -> 57282 | K170: 69367 | N170: 69367 | O170: 0 | P170: 69367 | R170: 0 | S170: 69367 | U170: =IFERROR(VLOOKUP($A170,#REF!, 21,FALSE),0) -> 0 | W170: 69367 | X170: 0 | Y170: 104 | Z170: 0 | AB170: 5305670 | AC170: NOOKSACK VALLEY
A171: =VLOOKUP(B171,CCDDD!$A$3:$B$319,2,FALSE) -> 14064 | B171: 5305700 | C171: NORTH BEACH | D171: 0 | E171: 0 | F171: =VLOOKUP(B171,'23-24 Adjusted Formula counts'!$A$2:$L$319,8,FALSE) -> 713 | G171: =ROUND((F171/$F$5*Assumptions!$D$14*Assumptions!$D$30),0) -> 3826 | H171: =VLOOKUP(B171,'23-24 Adjusted Formula counts'!$A$2:$L$319,9,FALSE) -> 161 | I171: =ROUND((H171/$H$5*Assumptions!$D$14*Assumptions!$D$31),0) -> 31369 | K171: 35195 | N171: 35195 | O171: 0 | P171: 35195 | R171: 0 | S171: 35195 | U171: =IFERROR(VLOOKUP($A171,#REF!, 21,FALSE),0) -> 0 | W171: 35195 | X171: 0 | Y171: 156 | Z171: 0 | AB171: 5305700 | AC171: NORTH BEACH
A172: =VLOOKUP(B172,CCDDD!$A$3:$B$319,2,FALSE) -> 11051 | B172: 5305730 | C172: NORTH FRANKLIN | D172: 0 | E172: 0 | F172: =VLOOKUP(B172,'23-24 Adjusted Formula counts'!$A$2:$L$319,8,FALSE) -> 2246 | G172: =ROUND((F172/$F$5*Assumptions!$D$14*Assumptions!$D$30),0) -> 12053 | H172: =VLOOKUP(B172,'23-24 Adjusted Formula counts'!$A$2:$L$319,9,FALSE) -> 312 | I172: =ROUND((H172/$H$5*Assumptions!$D$14*Assumptions!$D$31),0) -> 60789 | K172: 72842 | N172: 72842 | O172: 0 | P172: 72842 | R172: 0 | S172: 72842 | U172: =IFERROR(VLOOKUP($A172,#REF!, 21,FALSE),0) -> 0 | W172: 72842 | X172: 0 | Y172: 100 | Z172: 0 | AB172: 5305730 | AC172: NORTH FRANKLIN
A173: =VLOOKUP(B173,CCDDD!$A$3:$B$319,2,FALSE) -> 18400 | B173: 5305760 | C173: NORTH KITSAP | D173: 0 | E173: 0 | F173: =VLOOKUP(B173,'23-24 Adjusted Formula counts'!$A$2:$L$319,8,FALSE) -> 7279 | G173: =ROUND((F173/$F$5*Assumptions!$D$14*Assumptions!$D$30),0) -> 39061 | H173: =VLOOKUP(B173,'23-24 Adjusted Formula counts'!$A$2:$L$319,9,FALSE) -> 601 | I173: =ROUND((H173/$H$5*Assumptions!$D$14*Assumptions!$D$31),0) -> 117097 | K173: 156158 | N173: 156158 | O173: 0 | P173: 156158 | R173: 0 | S173: 156158 | U173: =IFERROR(VLOOKUP($A173,#REF!, 21,FALSE),0) -> 0 | W173: 156158 | X173: 0 | Y173: 60 | Z173: 0 | AB173: 5305760 | AC173: NORTH KITSAP
A174: =VLOOKUP(B174,CCDDD!$A$3:$B$319,2,FALSE) -> 23403 | B174: 5305790 | C174: NORTH MASON | D174: 0 | E174: 0 | F174: =VLOOKUP(B174,'23-24 Adjusted Formula counts'!$A$2:$L$319,8,FALSE) -> 2465 | G174: =ROUND((F174/$F$5*Assumptions!$D$14*Assumptions!$D$30),0) -> 13228 | H174: =VLOOKUP(B174,'23-24 Adjusted Formula counts'!$A$2:$L$319,9,FALSE) -> 394 | I174: =ROUND((H174/$H$5*Assumptions!$D$14*Assumptions!$D$31),0) -> 76766 | K174: 89994 | N174: 89994 | O174: 0 | P174: 89994 | R174: 0 | S174: 89994 | U174: =IFERROR(VLOOKUP($A174,#REF!, 21,FALSE),0) -> 0 | W174: 89994 | X174: 0 | Y174: 86 | Z174: 0 | AB174: 5305790 | AC174: NORTH MASON
A175: =VLOOKUP(B175,CCDDD!$A$3:$B$319,2,FALSE) -> 25200 | B175: 5305820 | C175: NORTH RIVER | D175: 0 | E175: 0 | F175: =VLOOKUP(B175,'23-24 Adjusted Formula counts'!$A$2:$L$319,8,FALSE) -> 54 | G175: =ROUND((F175/$F$5*Assumptions!$D$14*Assumptions!$D$30),0) -> 290 | H175: =VLOOKUP(B175,'23-24 Adjusted Formula counts'!$A$2:$L$319,9,FALSE) -> 8 | I175: =ROUND((H175/$H$5*Assumptions!$D$14*Assumptions!$D$31),0) -> 1559 | K175: 1849 | N175: 1849 | O175: 0 | P175: 1849 | R175: 0 | S175: 1849 | U175: =IFERROR(VLOOKUP($A175,#REF!, 21,FALSE),0) -> 0 | W175: 1849 | X175: 0 | Y175: 307 | Z175: 0 | AB175: 5305820 | AC175: NORTH RIVER
A176: =VLOOKUP(B176,CCDDD!$A$3:$B$319,2,FALSE) -> 34003 | B176: 5305850 | C176: NORTH THURSTON | D176: 0 | E176: 0 | F176: =VLOOKUP(B176,'23-24 Adjusted Formula counts'!$A$2:$L$319,8,FALSE) -> 17329 | G176: =ROUND((F176/$F$5*Assumptions!$D$14*Assumptions!$D$30),0) -> 92992 | H176: =VLOOKUP(B176,'23-24 Adjusted Formula counts'!$A$2:$L$319,9,FALSE) -> 1789 | I176: =ROUND((H176/$H$5*Assumptions!$D$14*Assumptions!$D$31),0) -> 348563 | K176: 441555 | N176: 441555 | O176: 0 | P176: 441555 | R176: 0 | S176: 441555 | U176: =IFERROR(VLOOKUP($A176,#REF!, 21,FALSE),0) -> 0 | W176: 441555 | X176: 0 | Y176: 21 | Z176: 0 | AB176: 5305850 | AC176: NORTH THURSTON
